Workbook

Sheet Users Manual
A1: Bedienungsanleitung / Users Manual
A3: Beschreibung der einzelnen Sheets:
A4: Flugdurchführungsplan | B4: Flight Log im DFS Format - in diesem sheet werden die Daten der Flugplanung eingegeben
A5: Flugdurchführungsplan schmal | B5: Flight Log im DIN A5 Format, passend fürs Kniebrett, hier können/sollen nur bei 'Bemerkungen' Eingaben gemacht werden
A6: Flugzeuge | B6: Um den Funktionsumfang voll zu nutzen, sollte das verwendete Flugzeug in diesem sheet mit allen Daten angelegt sein
A7: W&B C172 N | B7: Weight & Balance Berechnung; die Daten werden - ja nach Flugzeugauswahl - im Flight Log verwendet
A8: Startstrecke C 172 N | B8: Startstreckenberechnung; die Daten werden - ja nach Flugzeugauswahl - im Flight Log verwendet
A9: W&B C172 P | B9: dito
A10: Startstrecke C 172 P | B10: dito
A11: W&B C172 S | B11: dito
A12: Startstrecke C 172 S | B12: dito
A13: W&B C152 | B13: dito
A14: Startstrecke C 152 | B14: dito
A16: Anleitung
A17: 1. Verwendetes Flugzeug in 'Flugzeuge' anlegen, inkl. Kennzeichen, Basisdaten und Zuordnung der W&B sowie Startstreckenberechnung. Hierfür ab Spalte Z mit '=Z…' aus der Berechnungszeile unten verlinken.
A18: 2. Im 'Flugdurchführungsplan' ganz normal den Flug planen, beginnend mit Start und Zielflughafen lt ICAO (4-Buchstaben-Kürzel) und Flugzeugkennzeichen
A19: 3. W&B-Berechnung im zugehörigen Sheet vornehmen (das Flugzeugkennzeichen/Flugzeug muss hierfür im 'Flugdurchführungsplan' ausgewählt sein)
A20: 4. Startstreckenberechnung im zugehörigen Sheet durchführen (das Flugzeugkennzeichen/Flugzeug muss hierfür im 'Flugdurchführungsplan' ausgewählt sein, W&B muss berechnet sein)
A21: 5. Eingaben prüfen, Plausibilitätscheck bei allen Rechenergebnissen durchführen
A22: 6. Drucken: Flugdurchführungsplan, Startstreckenberechnung, W&B
A24: Bemerkungen:
A25: Im 'Flugdurchführungsplan (n. DFS)' sind alle berechneten/automatischen Werte rot, alle Eingaben dunkelblau
A26: Im 'Flugdurchführungsplan (schmal)' sind alle Eingaben und Berechnungen dunkelblau
A27: Die Sheets sind im allgemeinen so angelegt, dass man fehlende Informationen auch handschriftlich nachtragen kann, berechenbare Felder aber dennoch berechnet werden

Sheet Flugdurchführungsplan (n. DFS)
C1: =TODAY() -> 2018-02-12 | F1: =C1+1 -> 2018-02-13 | H1: =Sonnenuntergang!D21 -> Datum fehlt!
C3: F l u g d u r c h f ü h r u n g s p l a n / F l i g h t L o g | AK3: Seite 1
V4: =IF(ISERROR(VLOOKUP('Flugdurchführungsplan (n. DFS)'!Y4,Flugzeuge!$B$6:$X$40,2,FALSE)),"",VLOOKUP('Flugdurchführungsplan (n. DFS)'!Y4,Flugzeuge!$B$6:$X$40,2,FALSE)) ->  | AC4: Markus Born
C5: Datum: | F5: von: | G5: =IF(ISERROR(Flugplätze!AE4),"",Flugplätze!AE4) ->  | I5: =IF(ISERROR(Flugplätze!AB6),"","("&Flugplätze!AB6&" ft)") ->  | J5: ="nach: "&IF(ISERROR(Flugplätze!AJ4),"",Flugplätze!AJ4) -> nach: | K5: =IF(ISERROR(Flugplätze!AJ4),"",Flugplätze!AJ4) ->  | U5: =IF(ISERROR(Flugplätze!AG6),"","("&Flugplätze!AG6&" ft)") ->  | V5: LFZ-Muster | W5: =IF(Y4="","",IF(ISERROR(VLOOKUP('Flugdurchführungsplan (n. DFS)'!Y4,Flugzeuge!$B$6:$X$40,2,FALSE)),"(nicht bekannt)","")) ->  | Y5: LFZ-Kennzeichen | AC5: Pilot | AH5: =IF(IFERROR(Flugplätze!AD25,1)=1,"","Distance =") ->  | AI5: =IF(IFERROR(Flugplätze!AD25,1)=1,"",Flugplätze!AD25) ->  | AJ5: =IF(IFERROR(Flugplätze!AD26,1)=1,"","TC =") ->  | AK5: =IF(IFERROR(Flugplätze!AD26,1)=1,"",Flugplätze!AD26) -> 
C7: Freigaben / Wetter / Info | AA7: Frequenzen/Frequencies Startflugplatz / AD of Departure | AF7: =IF(F4<>"",F4&" "&G5,"") ->  | AH7: Frequenzen/Frequencies Zielflugplatz / Destination | AK7: =IF(J4<>"",J4&" "&K5,"") -> 
C8: =IF(Flugplätze!AN7<>"",Flugplätze!AO4&" ATIS: "&Flugplätze!AN7&" MHz","") ->  | F8: =IF(Flugplätze!AD7<>"",Flugplätze!AE4&" ATIS: "&Flugplätze!AD7&" MHz","") ->  | J8: =IF(Flugplätze!AI7<>"",Flugplätze!AJ4&" ATIS: "&Flugplätze!AI7&" MHz","") ->  | AA8: =IF(ISERROR(Flugplätze!AB7),"",Flugplätze!AB7) ->  | AE8: =IF(ISERROR(Flugplätze!AD6),"",Flugplätze!AD6) ->  | AF8: =IF(AE8<>"","MHz","") ->  | AH8: =IF(ISERROR(Flugplätze!AG7),"",Flugplätze!AG7) ->  | AJ8: =IF(ISERROR(Flugplätze!AI6),"",Flugplätze!AI6) ->  | AK8: =IF(AJ8<>"","MHz","") -> 
C9: München Information (Süd) 126.950 / München Information (Nord) 120.650 / Notfrequenz 121.500 / alle Militär-Tower 122.100 | AA9: Rollkontr. / Ground | AH9: Rollkontr. / Ground
C10: ATIS München 123.125 / ATIS Augsburg 124.575 | AA10: Turm/ TWR | AH10: Turm/ TWR
AA11: INFO | AH11: INFO
C13: ATIS Platzwetter | D13: Code | E13: Startbahn Runway in use | G13: Überg. FL Trans. FL | H13: Zeit Time (UTC) | I13: Wind Direction / Speed | K13: Sicht Visibility | T13: Wolken Clouds | W13: Temp. | X13: Taupunkt Dew Point | Y13: QNH | Z13: Tendenz/Weitere Informationen | AH13: EDT | AJ13: ATD
AH14: ETA | AI14: =IF(AI13<>"",AI13+TIME(0,ROUNDUP(AB18,0),0),"") ->  | AJ14: ATA
AH15: SS: | AK15: ="(UTC"&IF(K5<>""," in "&J4,"")&")" -> (UTC)
C17: Startflugplatz / Kontrollpunkt Aerodrome of Departure / Check Point | D17: VOR, NDB | F17: Sicherh.- höhe Safe Alt. | G17: Gepl. Flugh. o. FL Planned Cruis. Alt. | H17: VE TAS | I17: Wind | K17: rwK TC | L17: Zeit im Steigflug | M17: Zeit im Reiseflug | N17: Zeit im Steigflug OHNE Wind | O17: Zeit im Reiseflug OHNE WIND | P17: Windwinkel | Q17: Cross Wind component | R17: Headwind Component | S17: TH | T17: L WCA | U17: MW VAR | V17: mwST MH | W17: mwK MC | X17: Entf. Distance | Y17: Entf. gesamt Distance accum. | Z17: VG GS | AA17: Zeiten Abschn. Times Leg | AC17: Zeiten gesamt Times accum. | AE17: =D100 -> 0 : 10 | AG17: Sichere Flugzeit max. Flugzeit minus 30 Min.
I18: Direction | J18: Speed | L18: AUSBLENDEN | N18: AUSBLENDEN | P18: AUSBLENDEN | R18: AUSBLENDEN | Y18: =IF(SUM(X20:X53)<>0,SUM(X20:X53),"") ->  | AB18: =SUM(AA20:AA53) -> 0 | AC18: =IF(AND(AB18<>"",ISNUMBER(AB18),AA20<>""),ROUNDDOWN((AB18)/60,0)&" : "&IF(ROUNDUP(MOD(AB18,60),0)<10,0,"")&ROUNDUP(MOD(AB18,60),0)&" ","") ->  | AD18: =MAX(AD19:AD53) -> 17 | AH18: =IF(AND(F97<>"",NOT(A89)),"(mit "&F97&" Litern ausfliegbar)","") -> (mit 92 Litern ausfliegbar) | AR18: FALSE | AS18: FALSE | AU18: Vorschau der Kopie in die Bemerkungsspalte
C19: =IF(F4<>"",F4,"") ->  | E19: 2 | F19: FL / ft | G19: FL / ft | H19: kt | I19: degrees / ° | J19: kt | K19: degrees / ° | L19: =SUM(L20:L53) -> 0 | M19: =SUM(M20:M53) -> 0 | N19: =SUM(N20:N53) -> 0 | O19: =SUM(O20:O53) -> 0 | Q19: kt | R19: kt | T19: degrees / ° | U19: degrees / ° | V19: degrees / ° | W19: degrees / ° | X19: NM | Y19: NM | Z19: kt | AA19: Minutes | AC19: HH:MM | AE19: FALSE | AH19: Bemerkungen /Remarks /Freq. | AO19: 0 | AP19: Funknavigationsanlagen (Auswahl) | AR19: TRUE | AS19: TRUE
E20: 1 | L20: =IF(OR(G20="SF",G20="climb",G20="Steigflug",G20="climb flight"),AA20,0) -> 0 | M20: =IF(L20=0,AA20,0) ->  | N20: =IF(OR(G20="SF",G20="climb",G20="Steigflug",G20="climb flight"),IF(AND(X20<>"",H20<>""),IF(H20<=0,"Speed!!",X20*60/H20),""),0) -> 0 | O20: =IF(L20=0,IF(AND(X20<>"",H20<>""),IF(H20<=0,"Speed!!",X20*60/H20),""),0) ->  | P20: =I20-K20 -> 0 | Q20: =ROUND(J20*SIN((P20)*PI()/180),1) -> 0 | R20: =ROUND(J20*COS((P20)*PI()/180),1) -> 0 | S20: =IF(T20<>"",K20+T20,"") ->  | T20: =IF(AND(J20<>"",K20<>""),IF(ISERROR(ROUND(180*ASIN(SIN(P20*PI()/180)*J20/H20)/PI(),1)),"",ROUND(180*ASIN(SIN(P20*PI()/180)*J20/H20)/PI(),1)),"") ->  | V20: =IF(AND(T20<>"",W20<>""),IF(W20+T20>360,W20+T20-360,IF(W20+T20<0,W20+T20+360,W20+T20)),"") ->  | W20: =IF(K20<>"",IF(K20-U20>360,K20-U20-360,IF(K20-U20<0,K20-U20+360,K20-U20)),"") ->  | Y20: =IF(X20<>"",Y18-X20,"") ->  | Z20: =IF(T20<>"",ROUND(H20*COS(T20*PI()/180)-R20,1),"") ->  | AA20: =IF(AND(X20<>"",Z20<>""),IF(Z20<=0,"Speed!!",X20*60/Z20),"") ->  | AB20: =AB18-AA20 ->  | AC20: =IF(AND(AA20<>"",ISNUMBER(AA20)),ROUNDDOWN((AB20)/60,0)&" : "&IF(ROUNDUP(MOD(AB20,60),0)<10,0,"")&ROUNDUP(MOD(AB20,60),0)&" ","") ->  | AE20: ETO | AF20: ATO | AN20: TRUE | AO20: =IF(AN20,AO19+1,"") -> 1 | AP20: ='Funknav Auswahl'!J18 ->  | AT20: 1 | AU20: =IF(ISERROR(VLOOKUP(AT20,$AO$20:$AS$70,2,FALSE)),"",VLOOKUP(AT20,$AO$20:$AS$70,2,FALSE)) ->  | AY20: TRUE
E21: 1 | AD21: =IF(AE21<>"",1,0) -> 1 | AE21: =IF(AND(AI13<>0,AA20<>"",ISNUMBER(AA20)),AI13+TIME(0,ROUND(AA20,0),0),":") -> : | AF21: :
E22: 2 | L22: =IF(OR(G22="SF",G22="climb",G22="Steigflug",G22="climb flight"),AA22,0) -> 0 | M22: =IF(L22=0,AA22,0) ->  | N22: =IF(OR(G22="SF",G22="climb",G22="Steigflug",G22="climb flight"),IF(AND(X22<>"",H22<>""),IF(H22<=0,"Speed!!",X22*60/H22),""),0) -> 0 | O22: =IF(L22=0,IF(AND(X22<>"",H22<>""),IF(H22<=0,"Speed!!",X22*60/H22),""),0) ->  | P22: =I22-K22 -> 0 | Q22: =ROUND(J22*SIN((P22)*PI()/180),1) -> 0 | R22: =ROUND(J22*COS((P22)*PI()/180),1) -> 0 | S22: =IF(T22<>"",K22+T22,"") ->  | T22: =IF(AND(J22<>"",K22<>""),IF(ISERROR(ROUND(180*ASIN(SIN(P22*PI()/180)*J22/H22)/PI(),1)),"",ROUND(180*ASIN(SIN(P22*PI()/180)*J22/H22)/PI(),1)),"") ->  | V22: =IF(AND(T22<>"",W22<>""),IF(W22+T22>360,W22+T22-360,IF(W22+T22<0,W22+T22+360,W22+T22)),"") ->  | W22: =IF(K22<>"",IF(K22-U22>360,K22-U22-360,IF(K22-U22<0,K22-U22+360,K22-U22)),"") ->  | Y22: =IF(X22<>"",Y20-X22,"") ->  | Z22: =IF(T22<>"",ROUND(H22*COS(T22*PI()/180)-R22,1),"") ->  | AA22: =IF(AND(X22<>"",Z22<>""),IF(Z22<=0,"Speed!!",X22*60/Z22),"") ->  | AB22: =AB20-AA22 ->  | AC22: =IF(AND(AA22<>"",ISNUMBER(AA22),AC20<>""),ROUNDDOWN((AB22)/60,0)&" : "&IF(ROUNDUP(MOD(AB22,60),0)<10,0,"")&ROUNDUP(MOD(AB22,60),0)&" ","") ->  | AD22: =IF(AE21<>"",1,0) -> 1 | AN22: TRUE | AO22: =IF(AN22,MAX(AO$19:AO21)+1,"") -> 2 | AP22: ='Funknav Auswahl'!J19 ->  | AT22: 2 | AU22: =IF(ISERROR(VLOOKUP(AT22,$AO$20:$AS$70,2,FALSE)),"",VLOOKUP(AT22,$AO$20:$AS$70,2,FALSE)) ->  | AY22: TRUE
E23: 2 | AD23: =IF(AE23<>"",2,0) -> 2 | AE23: =IF(AND($AE$19,AE21<>0,AA22<>"",ISNUMBER(AA22),ISNUMBER(AE21)),AE21+TIME(0,ROUND(AA22,0),0),":") -> : | AF23: :
E24: 1 | L24: =IF(OR(G24="SF",G24="climb",G24="Steigflug",G24="climb flight"),AA24,0) -> 0 | M24: =IF(L24=0,AA24,0) ->  | N24: =IF(OR(G24="SF",G24="climb",G24="Steigflug",G24="climb flight"),IF(AND(X24<>"",H24<>""),IF(H24<=0,"Speed!!",X24*60/H24),""),0) -> 0 | O24: =IF(L24=0,IF(AND(X24<>"",H24<>""),IF(H24<=0,"Speed!!",X24*60/H24),""),0) ->  | P24: =I24-K24 -> 0 | Q24: =ROUND(J24*SIN((P24)*PI()/180),1) -> 0 | R24: =ROUND(J24*COS((P24)*PI()/180),1) -> 0 | S24: =IF(T24<>"",K24+T24,"") ->  | T24: =IF(AND(J24<>"",K24<>""),IF(ISERROR(ROUND(180*ASIN(SIN(P24*PI()/180)*J24/H24)/PI(),1)),"",ROUND(180*ASIN(SIN(P24*PI()/180)*J24/H24)/PI(),1)),"") ->  | V24: =IF(AND(T24<>"",W24<>""),IF(W24+T24>360,W24+T24-360,IF(W24+T24<0,W24+T24+360,W24+T24)),"") ->  | W24: =IF(K24<>"",IF(K24-U24>360,K24-U24-360,IF(K24-U24<0,K24-U24+360,K24-U24)),"") ->  | Y24: =IF(X24<>"",Y22-X24,"") ->  | Z24: =IF(T24<>"",ROUND(H24*COS(T24*PI()/180)-R24,1),"") ->  | AA24: =IF(AND(X24<>"",Z24<>""),IF(Z24<=0,"Speed!!",X24*60/Z24),"") ->  | AB24: =AB22-AA24 ->  | AC24: =IF(AND(AA24<>"",ISNUMBER(AA24),AC22<>""),ROUNDDOWN((AB24)/60,0)&" : "&IF(ROUNDUP(MOD(AB24,60),0)<10,0,"")&ROUNDUP(MOD(AB24,60),0)&" ","") ->  | AD24: =IF(AE23<>"",2,0) -> 2 | AN24: TRUE | AO24: =IF(AN24,MAX(AO$19:AO23)+1,"") -> 3 | AP24: ='Funknav Auswahl'!J20 ->  | AT24: 3 | AU24: =IF(ISERROR(VLOOKUP(AT24,$AO$20:$AS$70,2,FALSE)),"",VLOOKUP(AT24,$AO$20:$AS$70,2,FALSE)) ->  | AY24: TRUE
E25: 1 | AD25: =IF(AE25<>"",3,0) -> 3 | AE25: =IF(AND($AE$19,AE23<>0,AA24<>"",ISNUMBER(AA24),ISNUMBER(AE23)),AE23+TIME(0,ROUND(AA24,0),0),":") -> : | AF25: :
E26: 2 | L26: =IF(OR(G26="SF",G26="climb",G26="Steigflug",G26="climb flight"),AA26,0) -> 0 | M26: =IF(L26=0,AA26,0) ->  | N26: =IF(OR(G26="SF",G26="climb",G26="Steigflug",G26="climb flight"),IF(AND(X26<>"",H26<>""),IF(H26<=0,"Speed!!",X26*60/H26),""),0) -> 0 | O26: =IF(L26=0,IF(AND(X26<>"",H26<>""),IF(H26<=0,"Speed!!",X26*60/H26),""),0) ->  | P26: =I26-K26 -> 0 | Q26: =ROUND(J26*SIN((P26)*PI()/180),1) -> 0 | R26: =ROUND(J26*COS((P26)*PI()/180),1) -> 0 | S26: =IF(T26<>"",K26+T26,"") ->  | T26: =IF(AND(J26<>"",K26<>""),IF(ISERROR(ROUND(180*ASIN(SIN(P26*PI()/180)*J26/H26)/PI(),1)),"",ROUND(180*ASIN(SIN(P26*PI()/180)*J26/H26)/PI(),1)),"") ->  | V26: =IF(AND(T26<>"",W26<>""),IF(W26+T26>360,W26+T26-360,IF(W26+T26<0,W26+T26+360,W26+T26)),"") ->  | W26: =IF(K26<>"",IF(K26-U26>360,K26-U26-360,IF(K26-U26<0,K26-U26+360,K26-U26)),"") ->  | Y26: =IF(X26<>"",Y24-X26,"") ->  | Z26: =IF(T26<>"",ROUND(H26*COS(T26*PI()/180)-R26,1),"") ->  | AA26: =IF(AND(X26<>"",Z26<>""),IF(Z26<=0,"Speed!!",X26*60/Z26),"") ->  | AB26: =AB24-AA26 ->  | AC26: =IF(AND(AA26<>"",ISNUMBER(AA26),AC24<>""),ROUNDDOWN((AB26)/60,0)&" : "&IF(ROUNDUP(MOD(AB26,60),0)<10,0,"")&ROUNDUP(MOD(AB26,60),0)&" ","") ->  | AD26: =IF(AE25<>"",3,0) -> 3 | AN26: TRUE | AO26: =IF(AN26,MAX(AO$19:AO25)+1,"") -> 4 | AP26: ='Funknav Auswahl'!J21 ->  | AT26: 4 | AU26: =IF(ISERROR(VLOOKUP(AT26,$AO$20:$AS$70,2,FALSE)),"",VLOOKUP(AT26,$AO$20:$AS$70,2,FALSE)) ->  | AY26: TRUE
E27: 2 | AD27: =IF(AE27<>"",4,0) -> 4 | AE27: =IF(AND($AE$19,AE25<>0,AA26<>"",ISNUMBER(AA26),ISNUMBER(AE25)),AE25+TIME(0,ROUND(AA26,0),0),":") -> : | AF27: :
E28: 1 | L28: =IF(OR(G28="SF",G28="climb",G28="Steigflug",G28="climb flight"),AA28,0) -> 0 | M28: =IF(L28=0,AA28,0) ->  | N28: =IF(OR(G28="SF",G28="climb",G28="Steigflug",G28="climb flight"),IF(AND(X28<>"",H28<>""),IF(H28<=0,"Speed!!",X28*60/H28),""),0) -> 0 | O28: =IF(L28=0,IF(AND(X28<>"",H28<>""),IF(H28<=0,"Speed!!",X28*60/H28),""),0) ->  | P28: =I28-K28 -> 0 | Q28: =ROUND(J28*SIN((P28)*PI()/180),1) -> 0 | R28: =ROUND(J28*COS((P28)*PI()/180),1) -> 0 | S28: =IF(T28<>"",K28+T28,"") ->  | T28: =IF(AND(J28<>"",K28<>""),IF(ISERROR(ROUND(180*ASIN(SIN(P28*PI()/180)*J28/H28)/PI(),1)),"",ROUND(180*ASIN(SIN(P28*PI()/180)*J28/H28)/PI(),1)),"") ->  | V28: =IF(AND(T28<>"",W28<>""),IF(W28+T28>360,W28+T28-360,IF(W28+T28<0,W28+T28+360,W28+T28)),"") ->  | W28: =IF(K28<>"",IF(K28-U28>360,K28-U28-360,IF(K28-U28<0,K28-U28+360,K28-U28)),"") ->  | Y28: =IF(X28<>"",Y26-X28,"") ->  | Z28: =IF(T28<>"",ROUND(H28*COS(T28*PI()/180)-R28,1),"") ->  | AA28: =IF(AND(X28<>"",Z28<>""),IF(Z28<=0,"Speed!!",X28*60/Z28),"") ->  | AB28: =AB26-AA28 ->  | AC28: =IF(AND(AA28<>"",ISNUMBER(AA28),AC26<>""),ROUNDDOWN((AB28)/60,0)&" : "&IF(ROUNDUP(MOD(AB28,60),0)<10,0,"")&ROUNDUP(MOD(AB28,60),0)&" ","") ->  | AD28: =IF(AE27<>"",4,0) -> 4 | AN28: TRUE | AO28: =IF(AN28,MAX(AO$19:AO27)+1,"") -> 5 | AP28: ='Funknav Auswahl'!J22 ->  | AT28: 5 | AU28: =IF(ISERROR(VLOOKUP(AT28,$AO$20:$AS$70,2,FALSE)),"",VLOOKUP(AT28,$AO$20:$AS$70,2,FALSE)) ->  | AY28: TRUE
E29: 1 | AD29: =IF(AE29<>"",5,0) -> 5 | AE29: =IF(AND($AE$19,AE27<>0,AA28<>"",ISNUMBER(AA28),ISNUMBER(AE27)),AE27+TIME(0,ROUND(AA28,0),0),":") -> : | AF29: :
E30: 2 | L30: =IF(OR(G30="SF",G30="climb",G30="Steigflug",G30="climb flight"),AA30,0) -> 0 | M30: =IF(L30=0,AA30,0) ->  | N30: =IF(OR(G30="SF",G30="climb",G30="Steigflug",G30="climb flight"),IF(AND(X30<>"",H30<>""),IF(H30<=0,"Speed!!",X30*60/H30),""),0) -> 0 | O30: =IF(L30=0,IF(AND(X30<>"",H30<>""),IF(H30<=0,"Speed!!",X30*60/H30),""),0) ->  | P30: =I30-K30 -> 0 | Q30: =ROUND(J30*SIN((P30)*PI()/180),1) -> 0 | R30: =ROUND(J30*COS((P30)*PI()/180),1) -> 0 | S30: =IF(T30<>"",K30+T30,"") ->  | T30: =IF(AND(J30<>"",K30<>""),IF(ISERROR(ROUND(180*ASIN(SIN(P30*PI()/180)*J30/H30)/PI(),1)),"",ROUND(180*ASIN(SIN(P30*PI()/180)*J30/H30)/PI(),1)),"") ->  | V30: =IF(AND(T30<>"",W30<>""),IF(W30+T30>360,W30+T30-360,IF(W30+T30<0,W30+T30+360,W30+T30)),"") ->  | W30: =IF(K30<>"",IF(K30-U30>360,K30-U30-360,IF(K30-U30<0,K30-U30+360,K30-U30)),"") ->  | Y30: =IF(X30<>"",Y28-X30,"") ->  | Z30: =IF(T30<>"",ROUND(H30*COS(T30*PI()/180)-R30,1),"") ->  | AA30: =IF(AND(X30<>"",Z30<>""),IF(Z30<=0,"Speed!!",X30*60/Z30),"") ->  | AB30: =AB28-AA30 ->  | AC30: =IF(AND(AA30<>"",ISNUMBER(AA30),AC28<>""),ROUNDDOWN((AB30)/60,0)&" : "&IF(ROUNDUP(MOD(AB30,60),0)<10,0,"")&ROUNDUP(MOD(AB30,60),0)&" ","") ->  | AD30: =IF(AE29<>"",5,0) -> 5 | AN30: TRUE | AO30: =IF(AN30,MAX(AO$19:AO29)+1,"") -> 6 | AP30: ='Funknav Auswahl'!J23 ->  | AT30: 6 | AU30: =IF(ISERROR(VLOOKUP(AT30,$AO$20:$AS$70,2,FALSE)),"",VLOOKUP(AT30,$AO$20:$AS$70,2,FALSE)) ->  | AY30: TRUE
E31: 2 | AD31: =IF(AE31<>"",6,0) -> 6 | AE31: =IF(AND($AE$19,AE29<>0,AA30<>"",ISNUMBER(AA30),ISNUMBER(AE29)),AE29+TIME(0,ROUND(AA30,0),0),":") -> : | AF31: :
E32: 1 | L32: =IF(OR(G32="SF",G32="climb",G32="Steigflug",G32="climb flight"),AA32,0) -> 0 | M32: =IF(L32=0,AA32,0) ->  | N32: =IF(OR(G32="SF",G32="climb",G32="Steigflug",G32="climb flight"),IF(AND(X32<>"",H32<>""),IF(H32<=0,"Speed!!",X32*60/H32),""),0) -> 0 | O32: =IF(L32=0,IF(AND(X32<>"",H32<>""),IF(H32<=0,"Speed!!",X32*60/H32),""),0) ->  | P32: =I32-K32 -> 0 | Q32: =ROUND(J32*SIN((P32)*PI()/180),1) -> 0 | R32: =ROUND(J32*COS((P32)*PI()/180),1) -> 0 | S32: =IF(T32<>"",K32+T32,"") ->  | T32: =IF(AND(J32<>"",K32<>""),IF(ISERROR(ROUND(180*ASIN(SIN(P32*PI()/180)*J32/H32)/PI(),1)),"",ROUND(180*ASIN(SIN(P32*PI()/180)*J32/H32)/PI(),1)),"") ->  | V32: =IF(AND(T32<>"",W32<>""),IF(W32+T32>360,W32+T32-360,IF(W32+T32<0,W32+T32+360,W32+T32)),"") ->  | W32: =IF(K32<>"",IF(K32-U32>360,K32-U32-360,IF(K32-U32<0,K32-U32+360,K32-U32)),"") ->  | Y32: =IF(X32<>"",Y30-X32,"") ->  | Z32: =IF(T32<>"",ROUND(H32*COS(T32*PI()/180)-R32,1),"") ->  | AA32: =IF(AND(X32<>"",Z32<>""),IF(Z32<=0,"Speed!!",X32*60/Z32),"") ->  | AB32: =AB30-AA32 ->  | AC32: =IF(AND(AA32<>"",ISNUMBER(AA32),AC30<>""),ROUNDDOWN((AB32)/60,0)&" : "&IF(ROUNDUP(MOD(AB32,60),0)<10,0,"")&ROUNDUP(MOD(AB32,60),0)&" ","") ->  | AD32: =IF(AE31<>"",6,0) -> 6 | AN32: TRUE | AO32: =IF(AN32,MAX(AO$19:AO31)+1,"") -> 7 | AP32: ='Funknav Auswahl'!J24 ->  | AT32: 7 | AU32: =IF(ISERROR(VLOOKUP(AT32,$AO$20:$AS$70,2,FALSE)),"",VLOOKUP(AT32,$AO$20:$AS$70,2,FALSE)) ->  | AY32: TRUE
E33: 1 | AD33: =IF(AE33<>"",7,0) -> 7 | AE33: =IF(AND($AE$19,AE31<>0,AA32<>"",ISNUMBER(AA32),ISNUMBER(AE31)),AE31+TIME(0,ROUND(AA32,0),0),":") -> : | AF33: :
E34: 2 | L34: =IF(OR(G34="SF",G34="climb",G34="Steigflug",G34="climb flight"),AA34,0) -> 0 | M34: =IF(L34=0,AA34,0) ->  | N34: =IF(OR(G34="SF",G34="climb",G34="Steigflug",G34="climb flight"),IF(AND(X34<>"",H34<>""),IF(H34<=0,"Speed!!",X34*60/H34),""),0) -> 0 | O34: =IF(L34=0,IF(AND(X34<>"",H34<>""),IF(H34<=0,"Speed!!",X34*60/H34),""),0) ->  | P34: =I34-K34 -> 0 | Q34: =ROUND(J34*SIN((P34)*PI()/180),1) -> 0 | R34: =ROUND(J34*COS((P34)*PI()/180),1) -> 0 | S34: =IF(T34<>"",K34+T34,"") ->  | T34: =IF(AND(J34<>"",K34<>""),IF(ISERROR(ROUND(180*ASIN(SIN(P34*PI()/180)*J34/H34)/PI(),1)),"",ROUND(180*ASIN(SIN(P34*PI()/180)*J34/H34)/PI(),1)),"") ->  | V34: =IF(AND(T34<>"",W34<>""),IF(W34+T34>360,W34+T34-360,IF(W34+T34<0,W34+T34+360,W34+T34)),"") ->  | W34: =IF(K34<>"",IF(K34-U34>360,K34-U34-360,IF(K34-U34<0,K34-U34+360,K34-U34)),"") ->  | Y34: =IF(X34<>"",Y32-X34,"") ->  | Z34: =IF(T34<>"",ROUND(H34*COS(T34*PI()/180)-R34,1),"") ->  | AA34: =IF(AND(X34<>"",Z34<>""),IF(Z34<=0,"Speed!!",X34*60/Z34),"") ->  | AB34: =AB32-AA34 ->  | AC34: =IF(AND(AA34<>"",ISNUMBER(AA34),AC32<>""),ROUNDDOWN((AB34)/60,0)&" : "&IF(ROUNDUP(MOD(AB34,60),0)<10,0,"")&ROUNDUP(MOD(AB34,60),0)&" ","") ->  | AD34: =IF(AE33<>"",7,0) -> 7 | AN34: TRUE | AO34: =IF(AN34,MAX(AO$19:AO33)+1,"") -> 8 | AP34: ='Funknav Auswahl'!J25 ->  | AT34: 8 | AU34: =IF(ISERROR(VLOOKUP(AT34,$AO$20:$AS$70,2,FALSE)),"",VLOOKUP(AT34,$AO$20:$AS$70,2,FALSE)) ->  | AY34: TRUE
E35: 2 | AD35: =IF(AE35<>"",8,0) -> 8 | AE35: =IF(AND($AE$19,AE33<>0,AA34<>"",ISNUMBER(AA34),ISNUMBER(AE33)),AE33+TIME(0,ROUND(AA34,0),0),":") -> : | AF35: :
E36: 1 | L36: =IF(OR(G36="SF",G36="climb",G36="Steigflug",G36="climb flight"),AA36,0) -> 0 | M36: =IF(L36=0,AA36,0) ->  | N36: =IF(OR(G36="SF",G36="climb",G36="Steigflug",G36="climb flight"),IF(AND(X36<>"",H36<>""),IF(H36<=0,"Speed!!",X36*60/H36),""),0) -> 0 | O36: =IF(L36=0,IF(AND(X36<>"",H36<>""),IF(H36<=0,"Speed!!",X36*60/H36),""),0) ->  | P36: =I36-K36 -> 0 | Q36: =ROUND(J36*SIN((P36)*PI()/180),1) -> 0 | R36: =ROUND(J36*COS((P36)*PI()/180),1) -> 0 | S36: =IF(T36<>"",K36+T36,"") ->  | T36: =IF(AND(J36<>"",K36<>""),IF(ISERROR(ROUND(180*ASIN(SIN(P36*PI()/180)*J36/H36)/PI(),1)),"",ROUND(180*ASIN(SIN(P36*PI()/180)*J36/H36)/PI(),1)),"") ->  | V36: =IF(AND(T36<>"",W36<>""),IF(W36+T36>360,W36+T36-360,IF(W36+T36<0,W36+T36+360,W36+T36)),"") ->  | W36: =IF(K36<>"",IF(K36-U36>360,K36-U36-360,IF(K36-U36<0,K36-U36+360,K36-U36)),"") ->  | Y36: =IF(X36<>"",Y34-X36,"") ->  | Z36: =IF(T36<>"",ROUND(H36*COS(T36*PI()/180)-R36,1),"") ->  | AA36: =IF(AND(X36<>"",Z36<>""),IF(Z36<=0,"Speed!!",X36*60/Z36),"") ->  | AB36: =AB34-AA36 ->  | AC36: =IF(AND(AA36<>"",ISNUMBER(AA36),AC34<>""),ROUNDDOWN((AB36)/60,0)&" : "&IF(ROUNDUP(MOD(AB36,60),0)<10,0,"")&ROUNDUP(MOD(AB36,60),0)&" ","") ->  | AD36: =IF(AE35<>"",8,0) -> 8 | AN36: TRUE | AO36: =IF(AN36,MAX(AO$19:AO35)+1,"") -> 9 | AP36: ='Funknav Auswahl'!J26 ->  | AT36: 9 | AU36: =IF(ISERROR(VLOOKUP(AT36,$AO$20:$AS$70,2,FALSE)),"",VLOOKUP(AT36,$AO$20:$AS$70,2,FALSE)) ->  | AY36: TRUE
E37: 1 | AD37: =IF(AE37<>"",9,0) -> 9 | AE37: =IF(AND($AE$19,AE35<>0,AA36<>"",ISNUMBER(AA36),ISNUMBER(AE35)),AE35+TIME(0,ROUND(AA36,0),0),":") -> : | AF37: :
E38: 2 | L38: =IF(OR(G38="SF",G38="climb",G38="Steigflug",G38="climb flight"),AA38,0) -> 0 | M38: =IF(L38=0,AA38,0) ->  | N38: =IF(OR(G38="SF",G38="climb",G38="Steigflug",G38="climb flight"),IF(AND(X38<>"",H38<>""),IF(H38<=0,"Speed!!",X38*60/H38),""),0) -> 0 | O38: =IF(L38=0,IF(AND(X38<>"",H38<>""),IF(H38<=0,"Speed!!",X38*60/H38),""),0) ->  | P38: =I38-K38 -> 0 | Q38: =ROUND(J38*SIN((P38)*PI()/180),1) -> 0 | R38: =ROUND(J38*COS((P38)*PI()/180),1) -> 0 | T38: =IF(AND(J38<>"",K38<>""),IF(ISERROR(ROUND(180*ASIN(SIN(P38*PI()/180)*J38/H38)/PI(),1)),"",ROUND(180*ASIN(SIN(P38*PI()/180)*J38/H38)/PI(),1)),"") ->  | V38: =IF(AND(T38<>"",W38<>""),IF(W38+T38>360,W38+T38-360,IF(W38+T38<0,W38+T38+360,W38+T38)),"") ->  | W38: =IF(K38<>"",IF(K38-U38>360,K38-U38-360,IF(K38-U38<0,K38-U38+360,K38-U38)),"") ->  | Y38: =IF(X38<>"",Y36-X38,"") ->  | Z38: =IF(T38<>"",ROUND(H38*COS(T38*PI()/180)-R38,1),"") ->  | AA38: =IF(AND(X38<>"",Z38<>""),IF(Z38<=0,"Speed!!",X38*60/Z38),"") ->  | AB38: =AB36-AA38 ->  | AC38: =IF(AND(AA38<>"",ISNUMBER(AA38),AC36<>""),ROUNDDOWN((AB38)/60,0)&" : "&IF(ROUNDUP(MOD(AB38,60),0)<10,0,"")&ROUNDUP(MOD(AB38,60),0)&" ","") ->  | AD38: =IF(AE37<>"",9,0) -> 9 | AN38: TRUE | AO38: =IF(AN38,MAX(AO$19:AO37)+1,"") -> 10 | AP38: ='Funknav Auswahl'!J27 ->  | AT38: 10 | AU38: =IF(ISERROR(VLOOKUP(AT38,$AO$20:$AS$70,2,FALSE)),"",VLOOKUP(AT38,$AO$20:$AS$70,2,FALSE)) ->  | AY38: TRUE
E39: 2 | AD39: =IF(AE39<>"",10,0) -> 10 | AE39: =IF(AND($AE$19,AE37<>0,AA38<>"",ISNUMBER(AA38),ISNUMBER(AE37)),AE37+TIME(0,ROUND(AA38,0),0),":") -> : | AF39: :
E40: 1 | L40: =IF(OR(G40="SF",G40="climb",G40="Steigflug",G40="climb flight"),AA40,0) -> 0 | M40: =IF(L40=0,AA40,0) ->  | N40: =IF(OR(G40="SF",G40="climb",G40="Steigflug",G40="climb flight"),IF(AND(X40<>"",H40<>""),IF(H40<=0,"Speed!!",X40*60/H40),""),0) -> 0 | O40: =IF(L40=0,IF(AND(X40<>"",H40<>""),IF(H40<=0,"Speed!!",X40*60/H40),""),0) ->  | P40: =I40-K40 -> 0 | Q40: =ROUND(J40*SIN((P40)*PI()/180),1) -> 0 | R40: =ROUND(J40*COS((P40)*PI()/180),1) -> 0 | S40: =IF(T40<>"",K40+T40,"") ->  | T40: =IF(AND(J40<>"",K40<>""),IF(ISERROR(ROUND(180*ASIN(SIN(P40*PI()/180)*J40/H40)/PI(),1)),"",ROUND(180*ASIN(SIN(P40*PI()/180)*J40/H40)/PI(),1)),"") ->  | V40: =IF(AND(T40<>"",W40<>""),IF(W40+T40>360,W40+T40-360,IF(W40+T40<0,W40+T40+360,W40+T40)),"") ->  | W40: =IF(K40<>"",IF(K40-U40>360,K40-U40-360,IF(K40-U40<0,K40-U40+360,K40-U40)),"") ->  | Z40: =IF(T40<>"",ROUND(H40*COS(T40*PI()/180)-R40,1),"") ->  | AA40: =IF(AND(X40<>"",Z40<>""),IF(Z40<=0,"Speed!!",X40*60/Z40),"") ->  | AB40: =AB38-AA40 ->  | AC40: =IF(AND(AA40<>"",ISNUMBER(AA40),AC38<>""),ROUNDDOWN((AB40)/60,0)&" : "&IF(ROUNDUP(MOD(AB40,60),0)<10,0,"")&ROUNDUP(MOD(AB40,60),0)&" ","") ->  | AD40: =IF(AE39<>"",10,0) -> 10 | AN40: TRUE | AO40: =IF(AN40,MAX(AO$19:AO39)+1,"") -> 11 | AP40: ='Funknav Auswahl'!J28 ->  | AT40: 11 | AU40: =IF(ISERROR(VLOOKUP(AT40,$AO$20:$AS$70,2,FALSE)),"",VLOOKUP(AT40,$AO$20:$AS$70,2,FALSE)) ->  | AY40: TRUE
E41: 1 | AD41: =IF(AE41<>"",11,0) -> 11 | AE41: =IF(AND($AE$19,AE39<>0,AA40<>"",ISNUMBER(AA40),ISNUMBER(AE39)),AE39+TIME(0,ROUND(AA40,0),0),":") -> : | AF41: :
E42: 2 | L42: =IF(OR(G42="SF",G42="climb",G42="Steigflug",G42="climb flight"),AA42,0) -> 0 | M42: =IF(L42=0,AA42,0) ->  | N42: =IF(OR(G42="SF",G42="climb",G42="Steigflug",G42="climb flight"),IF(AND(X42<>"",H42<>""),IF(H42<=0,"Speed!!",X42*60/H42),""),0) -> 0 | O42: =IF(L42=0,IF(AND(X42<>"",H42<>""),IF(H42<=0,"Speed!!",X42*60/H42),""),0) ->  | P42: =I42-K42 -> 0 | Q42: =ROUND(J42*SIN((P42)*PI()/180),1) -> 0 | R42: =ROUND(J42*COS((P42)*PI()/180),1) -> 0 | S42: =IF(T42<>"",K42+T42,"") ->  | T42: =IF(AND(J42<>"",K42<>""),IF(ISERROR(ROUND(180*ASIN(SIN(P42*PI()/180)*J42/H42)/PI(),1)),"",ROUND(180*ASIN(SIN(P42*PI()/180)*J42/H42)/PI(),1)),"") ->  | V42: =IF(AND(T42<>"",W42<>""),IF(W42+T42>360,W42+T42-360,IF(W42+T42<0,W42+T42+360,W42+T42)),"") ->  | W42: =IF(K42<>"",IF(K42-U42>360,K42-U42-360,IF(K42-U42<0,K42-U42+360,K42-U42)),"") ->  | Z42: =IF(T42<>"",ROUND(H42*COS(T42*PI()/180)-R42,1),"") ->  | AA42: =IF(AND(X42<>"",Z42<>""),IF(Z42<=0,"Speed!!",X42*60/Z42),"") ->  | AB42: =AB40-AA42 ->  | AC42: =IF(AND(AA42<>"",ISNUMBER(AA42),AC40<>""),ROUNDDOWN((AB42)/60,0)&" : "&IF(ROUNDUP(MOD(AB42,60),0)<10,0,"")&ROUNDUP(MOD(AB42,60),0)&" ","") ->  | AD42: =IF(AE41<>"",11,0) -> 11 | AN42: TRUE | AO42: =IF(AN42,MAX(AO$19:AO41)+1,"") -> 12 | AP42: ='Funknav Auswahl'!J29 ->  | AT42: 12 | AU42: =IF(ISERROR(VLOOKUP(AT42,$AO$20:$AS$70,2,FALSE)),"",VLOOKUP(AT42,$AO$20:$AS$70,2,FALSE)) ->  | AY42: TRUE
E43: 2 | AD43: =IF(AE43<>"",12,0) -> 12 | AE43: =IF(AND($AE$19,AE41<>0,AA42<>"",ISNUMBER(AA42),ISNUMBER(AE41)),AE41+TIME(0,ROUND(AA42,0),0),":") -> : | AF43: :
E44: 1 | L44: =IF(OR(G44="SF",G44="climb",G44="Steigflug",G44="climb flight"),AA44,0) -> 0 | M44: =IF(L44=0,AA44,0) ->  | N44: =IF(OR(G44="SF",G44="climb",G44="Steigflug",G44="climb flight"),IF(AND(X44<>"",H44<>""),IF(H44<=0,"Speed!!",X44*60/H44),""),0) -> 0 | O44: =IF(L44=0,IF(AND(X44<>"",H44<>""),IF(H44<=0,"Speed!!",X44*60/H44),""),0) ->  | P44: =I44-K44 -> 0 | Q44: =ROUND(J44*SIN((P44)*PI()/180),1) -> 0 | R44: =ROUND(J44*COS((P44)*PI()/180),1) -> 0 | S44: =IF(T44<>"",K44+T44,"") ->  | T44: =IF(AND(J44<>"",K44<>""),IF(ISERROR(ROUND(180*ASIN(SIN(P44*PI()/180)*J44/H44)/PI(),1)),"",ROUND(180*ASIN(SIN(P44*PI()/180)*J44/H44)/PI(),1)),"") ->  | V44: =IF(AND(T44<>"",W44<>""),IF(W44+T44>360,W44+T44-360,IF(W44+T44<0,W44+T44+360,W44+T44)),"") ->  | W44: =IF(K44<>"",IF(K44-U44>360,K44-U44-360,IF(K44-U44<0,K44-U44+360,K44-U44)),"") ->  | Z44: =IF(T44<>"",ROUND(H44*COS(T44*PI()/180)-R44,1),"") ->  | AA44: =IF(AND(X44<>"",Z44<>""),IF(Z44<=0,"Speed!!",X44*60/Z44),"") ->  | AB44: =AB42-AA44 ->  | AC44: =IF(AND(AA44<>"",ISNUMBER(AA44),AC42<>""),ROUNDDOWN((AB44)/60,0)&" : "&IF(ROUNDUP(MOD(AB44,60),0)<10,0,"")&ROUNDUP(MOD(AB44,60),0)&" ","") ->  | AD44: =IF(AE43<>"",12,0) -> 12 | AN44: TRUE | AO44: =IF(AN44,MAX(AO$19:AO43)+1,"") -> 13 | AP44: ='Funknav Auswahl'!J30 ->  | AT44: 13 | AU44: =IF(ISERROR(VLOOKUP(AT44,$AO$20:$AS$70,2,FALSE)),"",VLOOKUP(AT44,$AO$20:$AS$70,2,FALSE)) ->  | AY44: TRUE
E45: 1 | AD45: =IF(AE45<>"",13,0) -> 13 | AE45: =IF(AND($AE$19,AE43<>0,AA44<>"",ISNUMBER(AA44),ISNUMBER(AE43)),AE43+TIME(0,ROUND(AA44,0),0),":") -> : | AF45: :
E46: 2 | L46: =IF(OR(G46="SF",G46="climb",G46="Steigflug",G46="climb flight"),AA46,0) -> 0 | M46: =IF(L46=0,AA46,0) ->  | N46: =IF(OR(G46="SF",G46="climb",G46="Steigflug",G46="climb flight"),IF(AND(X46<>"",H46<>""),IF(H46<=0,"Speed!!",X46*60/H46),""),0) -> 0 | O46: =IF(L46=0,IF(AND(X46<>"",H46<>""),IF(H46<=0,"Speed!!",X46*60/H46),""),0) ->  | P46: =I46-K46 -> 0 | Q46: =ROUND(J46*SIN((P46)*PI()/180),1) -> 0 | R46: =ROUND(J46*COS((P46)*PI()/180),1) -> 0 | S46: =IF(T46<>"",K46+T46,"") ->  | T46: =IF(AND(J46<>"",K46<>""),IF(ISERROR(ROUND(180*ASIN(SIN(P46*PI()/180)*J46/H46)/PI(),1)),"",ROUND(180*ASIN(SIN(P46*PI()/180)*J46/H46)/PI(),1)),"") ->  | V46: =IF(AND(T46<>"",W46<>""),IF(W46+T46>360,W46+T46-360,IF(W46+T46<0,W46+T46+360,W46+T46)),"") ->  | W46: =IF(K46<>"",IF(K46-U46>360,K46-U46-360,IF(K46-U46<0,K46-U46+360,K46-U46)),"") ->  | Z46: =IF(T46<>"",ROUND(H46*COS(T46*PI()/180)-R46,1),"") ->  | AA46: =IF(AND(X46<>"",Z46<>""),IF(Z46<=0,"Speed!!",X46*60/Z46),"") ->  | AB46: =AB44-AA46 ->  | AC46: =IF(AND(AA46<>"",ISNUMBER(AA46),AC44<>""),ROUNDDOWN((AB46)/60,0)&" : "&IF(ROUNDUP(MOD(AB46,60),0)<10,0,"")&ROUNDUP(MOD(AB46,60),0)&" ","") ->  | AD46: =IF(AE45<>"",13,0) -> 13 | AN46: TRUE | AO46: =IF(AN46,MAX(AO$19:AO45)+1,"") -> 14 | AP46: ='Funknav Auswahl'!J31 ->  | AT46: 14 | AU46: =IF(ISERROR(VLOOKUP(AT46,$AO$20:$AS$70,2,FALSE)),"",VLOOKUP(AT46,$AO$20:$AS$70,2,FALSE)) ->  | AY46: TRUE
E47: 2 | AD47: =IF(AE47<>"",14,0) -> 14 | AE47: =IF(AND($AE$19,AE45<>0,AA46<>"",ISNUMBER(AA46),ISNUMBER(AE45)),AE45+TIME(0,ROUND(AA46,0),0),":") -> : | AF47: :
E48: 1 | L48: =IF(OR(G48="SF",G48="climb",G48="Steigflug",G48="climb flight"),AA48,0) -> 0 | M48: =IF(L48=0,AA48,0) ->  | N48: =IF(OR(G48="SF",G48="climb",G48="Steigflug",G48="climb flight"),IF(AND(X48<>"",H48<>""),IF(H48<=0,"Speed!!",X48*60/H48),""),0) -> 0 | O48: =IF(L48=0,IF(AND(X48<>"",H48<>""),IF(H48<=0,"Speed!!",X48*60/H48),""),0) ->  | P48: =I48-K48 -> 0 | Q48: =ROUND(J48*SIN((P48)*PI()/180),1) -> 0 | R48: =ROUND(J48*COS((P48)*PI()/180),1) -> 0 | S48: =IF(T48<>"",K48+T48,"") ->  | T48: =IF(AND(J48<>"",K48<>""),IF(ISERROR(ROUND(180*ASIN(SIN(P48*PI()/180)*J48/H48)/PI(),1)),"",ROUND(180*ASIN(SIN(P48*PI()/180)*J48/H48)/PI(),1)),"") ->  | V48: =IF(AND(T48<>"",W48<>""),IF(W48+T48>360,W48+T48-360,IF(W48+T48<0,W48+T48+360,W48+T48)),"") ->  | W48: =IF(K48<>"",IF(K48-U48>360,K48-U48-360,IF(K48-U48<0,K48-U48+360,K48-U48)),"") ->  | Z48: =IF(T48<>"",ROUND(H48*COS(T48*PI()/180)-R48,1),"") ->  | AA48: =IF(AND(X48<>"",Z48<>""),IF(Z48<=0,"Speed!!",X48*60/Z48),"") ->  | AB48: =AB46-AA48 ->  | AC48: =IF(AND(AA48<>"",ISNUMBER(AA48),AC46<>""),ROUNDDOWN((AB48)/60,0)&" : "&IF(ROUNDUP(MOD(AB48,60),0)<10,0,"")&ROUNDUP(MOD(AB48,60),0)&" ","") ->  | AD48: =IF(AE47<>"",14,0) -> 14 | AN48: TRUE | AO48: =IF(AN48,MAX(AO$19:AO47)+1,"") -> 15 | AP48: ='Funknav Auswahl'!J32 ->  | AT48: 15 | AU48: =IF(ISERROR(VLOOKUP(AT48,$AO$20:$AS$70,2,FALSE)),"",VLOOKUP(AT48,$AO$20:$AS$70,2,FALSE)) ->  | AY48: TRUE
E49: 1 | AD49: =IF(AE49<>"",15,0) -> 15 | AE49: =IF(AND($AE$19,AE47<>0,AA48<>"",ISNUMBER(AA48),ISNUMBER(AE47)),AE47+TIME(0,ROUND(AA48,0),0),":") -> : | AF49: :
E50: 2 | L50: =IF(OR(G50="SF",G50="climb",G50="Steigflug",G50="climb flight"),AA50,0) -> 0 | M50: =IF(L50=0,AA50,0) ->  | N50: =IF(OR(G50="SF",G50="climb",G50="Steigflug",G50="climb flight"),IF(AND(X50<>"",H50<>""),IF(H50<=0,"Speed!!",X50*60/H50),""),0) -> 0 | O50: =IF(L50=0,IF(AND(X50<>"",H50<>""),IF(H50<=0,"Speed!!",X50*60/H50),""),0) ->  | P50: =I50-K50 -> 0 | Q50: =ROUND(J50*SIN((P50)*PI()/180),1) -> 0 | R50: =ROUND(J50*COS((P50)*PI()/180),1) -> 0 | T50: =IF(AND(J50<>"",K50<>""),IF(ISERROR(ROUND(180*ASIN(SIN(P50*PI()/180)*J50/H50)/PI(),1)),"",ROUND(180*ASIN(SIN(P50*PI()/180)*J50/H50)/PI(),1)),"") ->  | V50: =IF(AND(T50<>"",W50<>""),IF(W50+T50>360,W50+T50-360,IF(W50+T50<0,W50+T50+360,W50+T50)),"") ->  | W50: =IF(K50<>"",IF(K50-U50>360,K50-U50-360,IF(K50-U50<0,K50-U50+360,K50-U50)),"") ->  | Z50: =IF(T50<>"",ROUND(H50*COS(T50*PI()/180)-R50,1),"") ->  | AA50: =IF(AND(X50<>"",Z50<>""),IF(Z50<=0,"Speed!!",X50*60/Z50),"") ->  | AB50: =AB48-AA50 ->  | AC50: =IF(AND(AA50<>"",ISNUMBER(AA50),AC48<>""),ROUNDDOWN((AB50)/60,0)&" : "&IF(ROUNDUP(MOD(AB50,60),0)<10,0,"")&ROUNDUP(MOD(AB50,60),0)&" ","") ->  | AD50: =IF(AE49<>"",15,0) -> 15 | AN50: TRUE | AO50: =IF(AN50,MAX(AO$19:AO49)+1,"") -> 16 | AP50: ='Funknav Auswahl'!J33 ->  | AT50: 16 | AU50: =IF(ISERROR(VLOOKUP(AT50,$AO$20:$AS$70,2,FALSE)),"",VLOOKUP(AT50,$AO$20:$AS$70,2,FALSE)) ->  | AY50: TRUE
E51: 2 | AD51: =IF(AE51<>"",16,0) -> 16 | AE51: =IF(AND($AE$19,AE49<>0,AA50<>"",ISNUMBER(AA50),ISNUMBER(AE49)),AE49+TIME(0,ROUND(AA50,0),0),":") -> : | AF51: :
E52: 1 | L52: =IF(OR(G52="SF",G52="climb",G52="Steigflug",G52="climb flight"),AA52,0) -> 0 | M52: =IF(L52=0,AA52,0) ->  | N52: =IF(OR(G52="SF",G52="climb",G52="Steigflug",G52="climb flight"),IF(AND(X52<>"",H52<>""),IF(H52<=0,"Speed!!",X52*60/H52),""),0) -> 0 | O52: =IF(L52=0,IF(AND(X52<>"",H52<>""),IF(H52<=0,"Speed!!",X52*60/H52),""),0) ->  | P52: =I52-K52 -> 0 | Q52: =ROUND(J52*SIN((P52)*PI()/180),1) -> 0 | R52: =ROUND(J52*COS((P52)*PI()/180),1) -> 0 | T52: =IF(AND(J52<>"",K52<>""),IF(ISERROR(ROUND(180*ASIN(SIN(P52*PI()/180)*J52/H52)/PI(),1)),"",ROUND(180*ASIN(SIN(P52*PI()/180)*J52/H52)/PI(),1)),"") ->  | V52: =IF(AND(T52<>"",W52<>""),IF(W52+T52>360,W52+T52-360,IF(W52+T52<0,W52+T52+360,W52+T52)),"") ->  | W52: =IF(K52<>"",IF(K52-U52>360,K52-U52-360,IF(K52-U52<0,K52-U52+360,K52-U52)),"") ->  | Z52: =IF(T52<>"",ROUND(H52*COS(T52*PI()/180)-R52,1),"") ->  | AA52: =IF(AND(X52<>"",Z52<>""),IF(Z52<=0,"Speed!!",X52*60/Z52),"") ->  | AB52: =AB50-AA52 ->  | AC52: =IF(AND(AA52<>"",ISNUMBER(AA52),AC50<>""),ROUNDDOWN((AB52)/60,0)&" : "&IF(ROUNDUP(MOD(AB52,60),0)<10,0,"")&ROUNDUP(MOD(AB52,60),0)&" ","") ->  | AD52: =IF(AE51<>"",16,0) -> 16 | AN52: TRUE | AO52: =IF(AN52,MAX(AO$19:AO51)+1,"") -> 17 | AP52: ='Funknav Auswahl'!J34 ->  | AT52: 17 | AU52: =IF(ISERROR(VLOOKUP(AT52,$AO$20:$AS$70,2,FALSE)),"",VLOOKUP(AT52,$AO$20:$AS$70,2,FALSE)) ->  | AY52: TRUE
E53: 1 | AD53: =IF(AE53<>"",17,0) -> 17 | AE53: =IF(AND($AE$19,AE51<>0,AA52<>"",ISNUMBER(AA52),ISNUMBER(AE51)),AE51+TIME(0,ROUND(AA52,0),0),":") -> : | AF53: :
AD54: =IF(AE53<>"",17,0) -> 17 | AN54: TRUE | AO54: =IF(AN54,MAX(AO$19:AO53)+1,"") -> 18 | AP54: ='Funknav Auswahl'!J35 ->  | AY54: TRUE
C55: Ausweichflugplatz / Alternate:
E56: 2 | P56: =I56-K56 -> 0 | Q56: =ROUND(J56*SIN((P56)*PI()/180),1) -> 0 | R56: =ROUND(J56*COS((P56)*PI()/180),1) -> 0 | S56: =IF(T56<>"",K56+T56,"") ->  | T56: =IF(AND(J56<>"",K56<>""),IF(ISERROR(ROUND(180*ASIN(SIN(P56*PI()/180)*J56/H56)/PI(),1)),"",ROUND(180*ASIN(SIN(P56*PI()/180)*J56/H56)/PI(),1)),"") ->  | V56: =IF(AND(T56<>"",W56<>""),IF(W56+T56>360,W56+T56-360,IF(W56+T56<0,W56+T56+360,W56+T56)),"") ->  | W56: =IF(K56<>"",IF(K56-U56>360,K56-U56-360,IF(K56-U56<0,K56-U56+360,K56-U56)),"") ->  | Z56: =IF(T56<>"",ROUND(H56*COS(T56*PI()/180)-R56,1),"") ->  | AA56: =IF(AND(X56<>"",Z56<>""),X56*60/Z56,"") ->  | AB56: =IF(AA56<>"",AA56+AB54,0) -> 0 | AN56: TRUE | AO56: =IF(AN56,MAX(AO$19:AO55)+1,"") -> 19 | AP56: ='Funknav Auswahl'!J36 ->  | AY56: TRUE
AN58: TRUE | AO58: =IF(AN58,MAX(AO$19:AO57)+1,"") -> 20 | AP58: ='Funknav Auswahl'!J37 ->  | AY58: TRUE
C59: © by Dr. Markus Born
AN60: TRUE | AO60: =IF(AN60,MAX(AO$19:AO59)+1,"") -> 21 | AP60: ='Funknav Auswahl'!J38 ->  | AY60: TRUE
C61: Flugdurchführungsplan / Flight Log | D61: Pilot: | H61: LFZ-Muster | J61: LFZ-Kennzeichen | W61: von: | AA61: nach: | AK61: Seite 2
C62: =IF(C4<>"",C4,"") ->  | D62: =IF(AC4<>"",AC4,"") -> Markus Born | H62: =IF(V4<>"",V4,"") ->  | J62: =IF(Y4<>"",Y4,"") ->  | W62: =IF(F4<>"",F4,"") ->  | X62: =IF(G5<>"","("&G5&")","") ->  | AA62: =IF(J4<>"",J4,"") ->  | AC62: =IF(K5<>"","("&K5&")","") ->  | AN62: TRUE | AO62: =IF(AN62,MAX(AO$19:AO61)+1,"") -> 22 | AP62: ='Funknav Auswahl'!J39 ->  | AY62: TRUE
C64: Flugberatung | AN64: TRUE | AO64: =IF(AN64,MAX(AO$19:AO63)+1,"") -> 23 | AP64: ='Funknav Auswahl'!J41 ->  | AY64: TRUE
AN65: TRUE | AO65: =IF(AN65,MAX(AO$19:AO64)+1,"") -> 24 | AP65: ='Funknav Auswahl'!J42 ->  | AY65: TRUE
AN66: TRUE | AO66: =IF(AN66,MAX(AO$19:AO65)+1,"") -> 25 | AP66: ='Funknav Auswahl'!J43 ->  | AY66: TRUE
AN67: TRUE | AO67: =IF(AN67,MAX(AO$19:AO66)+1,"") -> 26 | AP67: ='Funknav Auswahl'!J44 ->  | AY67: TRUE
AN68: TRUE | AO68: =IF(AN68,MAX(AO$19:AO67)+1,"") -> 27 | AP68: ='Funknav Auswahl'!J45 ->  | AY68: TRUE
AN69: TRUE | AO69: =IF(AN69,MAX(AO$19:AO68)+1,"") -> 28 | AP69: ='Funknav Auswahl'!J46 ->  | AY69: TRUE
AN70: TRUE | AO70: =IF(AN70,MAX(AO$19:AO69)+1,"") -> 29 | AP70: ='Funknav Auswahl'!J47 ->  | AY70: TRUE
C72: Wetterberatung
C73: GAFOR o, gültig (UTC): Individuelle Beratung:
C80: Flugplatzdaten aus AIP | D80: Bahn RWY in use | F80: Länge | H80: Strecke 15 m | J80: Hohe ft Elevation ft | T80: Temp °C | U80: Taupunkt °C | V80: Wind richtung direction | W80: Wind Speed kt | X80: Bahn-neigung +/- | Y80: Belag | AA80: Gras-bahn | AC80: Oberflächenzustand | AF80: Beschränkungen
C81: =IF(F4<>"",F4,"") -> 
C82: =IF(J4<>"",J4,"") -> 
C83: =IF(C56<>"",C56,"") -> 
C85: Verbrauch Reiseflug (Liter pro Stunde) | F85: =Flugzeuge!D2 -> 
C86: Verbrauch Steigflug (Liter pro Stunde) | F86: =Flugzeuge!E2 ->  | H86: =Flugzeuge!AX2 ->  | W86: =IF(AND(AA100<>"",AE100<>""),IF(AND(AA89>AA100,AE90>AE100),"Startstrecke OK!","Startstrecke zu kurz!"),"") ->  | AA86: START | AH86: LANDUNG
A88: FALSE | C88: Kraftstoffberechnung | D88: Flugzeit (Min) | F88: Kraftstoff (l) | H88: Masse-/ Schwerpunktberechnung | J88: Masse (kg) / Gewicht (kp) | T88: Moment | W88: Start- und Landestreckenberechnung | AA88: Rollstrecke | AE88: Startstrecke | AH88: Landestrecke | AJ88: Rollstrecke
A89: FALSE | C89: Reiseflug | D89: =IF($A$89,"",IF($A$88,ROUNDUP($O$19,0),ROUNDUP($M$19,0))) -> 0 | F89: =IF(F85="","",IF($A$89,"",ROUNDUP($F$85/60*D89,0))) ->  | H89: Leermasse | J89: =IF(Flugzeuge!Z2<>0,Flugzeuge!Z2,"") ->  | T89: =IF(Flugzeuge!AL2<>0,Flugzeuge!AL2,"") ->  | W89: Vorhandene Bahnlänge (aus AIP) | AA89: =Flugzeuge!AZ2 ->  | AM89: 2
C90: Zuschlag Anlassen/Rollen (ca. 5 Min.) | D90: 5 | F90: =IF(F85="","",IF($A$89,"",ROUNDUP($F$85/60*D90,0))) ->  | H90: Kraftstoff, nichtausfliegbar | J90: =IF(Flugzeuge!AA2<>0,Flugzeuge!AA2,"") ->  | T90: =IF(Flugzeuge!AM2<>0,Flugzeuge!AM2,"") ->  | W90: Vorhandene Startstrecke ü. 15 m | AE90: =Flugzeuge!BA2 ->  | AM90: 3
C91: Steigflug | D91: =IF($A$89,"",IF($A$88,ROUNDUP($N$19,0),ROUNDUP($L$19,0))) -> 0 | F91: =IF(F86="","",IF($A$89,"",ROUNDUP($F$86/60*D91,0))) ->  | H91: Schmierstoff | J91: =IF(Flugzeuge!AB2<>0,Flugzeuge!AB2,"") ->  | T91: =IF(Flugzeuge!AN2<>0,Flugzeuge!AN2,"") ->  | W91: aus Flughandbuch: | AA91: =Flugzeuge!BB2 ->  | AM91: 4
C92: An- und Abflug (min 10 Min.) | D92: 10 | F92: =IF(F85="","",IF($A$89,"",ROUNDUP($F$85/60*D92,0))) ->  | H92: =Grundmasse | J92: =IF(Flugzeuge!AC2<>0,Flugzeuge!AC2,"") ->  | T92: =IF(Flugzeuge!AO2<>0,Flugzeuge!AO2,"") ->  | W92: Grundstrecke | AA92: =Flugzeuge!BC2 ->  | AE92: =Flugzeuge!BL2 ->  | AM92: 5
C93: Ausweichflugplatz | D93: =IF($A$89,"",IF($AA$56<>"",ROUNDUP($AA$56,0),0)) -> 0 | F93: =IF(F85="","",IF($A$89,"",IF($AA$56<>"",ROUNDUP($F$85/60*D93,0),0))) ->  | H93: Sitzreihe 1 | J93: =IF(Flugzeuge!AD2<>0,Flugzeuge!AD2,"") ->  | T93: =IF(Flugzeuge!AP2<>0,Flugzeuge!AP2,"") ->  | W93: Höhenzuschlag | AA93: =Flugzeuge!BD2 ->  | AE93: =Flugzeuge!BM2 ->  | AM93: 6
C94: Reserve (min. 30 Min.) | D94: 30 | F94: =IF(F85="","",IF($A$89,"",ROUNDUP($F$85/60*D94,0))) ->  | H94: Sitzreihe 2 | J94: =IF(Flugzeuge!AE2<>0,Flugzeuge!AE2,"") ->  | T94: =IF(Flugzeuge!AQ2<>0,Flugzeuge!AQ2,"") ->  | W94: Temperaturzuschlag | AA94: =Flugzeuge!BE2 ->  | AE94: =Flugzeuge!BN2 ->  | AM94: 7
C95: Mindest-Kraftstoffbedarf | F95: =IF($A$89,"",SUM(F89:F94)) -> 0 | H95: Sitzreihe 3 | J95: =IF(Flugzeuge!AF2<>0,Flugzeuge!AF2,"") ->  | T95: =IF(Flugzeuge!AR2<>0,Flugzeuge!AR2,"") ->  | W95: Windeinfluss | AA95: =Flugzeuge!BF2 ->  | AE95: =Flugzeuge!BO2 ->  | AM95: 8
C96: Extra Kraftstoff | D96: =IF(F85="","",IF($A$89,"",ROUNDDOWN(F96/F85*60,0))) ->  | F96: =IF($A$89,"",F97-F95) -> 92 | H96: Gepäckraum 1 | J96: =IF(Flugzeuge!AG2<>0,Flugzeuge!AG2,"") ->  | T96: =IF(Flugzeuge!AS2<>0,Flugzeuge!AS2,"") ->  | W96: Neigungszuschlag | AA96: =Flugzeuge!BG2 ->  | AE96: =Flugzeuge!BP2 ->  | AM96: 9
C97: Kraftstoff-Vorrat (ausfliegbar) | D97: =IF($A$89,"",IF(D96="",0,D96)+D94+D93+D92+D91+D89) -> 40 | F97: 92 | G97: =IF(Y4<>"","max."&Flugzeuge!G2,"") ->  | H97: Gepäckraum 2 | J97: =IF(Flugzeuge!AH2<>0,Flugzeuge!AH2,"") ->  | T97: =IF(Flugzeuge!AT2<>0,Flugzeuge!AT2,"") ->  | W97: Grasbahnzuschlag | AA97: =Flugzeuge!BH2 ->  | AE97: =Flugzeuge!BQ2 ->  | AM97: 10
C98: =IF(D96<0,"ZU WENIG KRAFTSTOFF!!","") ->  | H98: Gepäckraum 3 | J98: =IF(Flugzeuge!AI2<>0,Flugzeuge!AI2,"") ->  | T98: =IF(Flugzeuge!AU2<>0,Flugzeuge!AU2,"") ->  | W98: Oberflächenzuschlag | AA98: =Flugzeuge!BI2 ->  | AE98: =Flugzeuge!BR2 ->  | AM98: 11
C99: Sichere Flugzeit (=max. Flugzeit minus 30 Min.) | D99: =IF($A$89,"",D97-30) -> 10 | F99: Minuten | H99: Kraftstoff, ausfliegbar | J99: =IF(Flugzeuge!AJ2<>0,Flugzeuge!AJ2,"") ->  | T99: =IF(Flugzeuge!AV2<>0,Flugzeuge!AV2,"") ->  | W99: Weitere Zuschläge | AA99: =Flugzeuge!BJ2 ->  | AE99: =Flugzeuge!BS2 ->  | AM99: 12
D100: =IF(ISNUMBER(D99),ROUNDDOWN((D99)/60,0)&" : "&IF(ROUNDUP(MOD(D99,60),0)<10,0,"")&ROUNDUP(MOD(D99,60),0)&" ","") -> 0 : 10 | F100: HH:MM | H100: Startmasse Startmoment | J100: =IF(Flugzeuge!AK2<>0,Flugzeuge!AK2,"") ->  | T100: =IF(Flugzeuge!AW2<>0,Flugzeuge!AW2,"") ->  | W100: Benötigte Strecke | AA100: =Flugzeuge!BK2 ->  | AE100: =Flugzeuge!BT2 ->  | AH100: =IF(SUM(AH92:AI99)<>0,SUM(AH92:AI99),"") ->  | AJ100: =IF(SUM(AJ92:AK99)<>0,SUM(AJ92:AK99),"") ->  | AM100: 13
AM101: 14
AM102: 15

Sheet Flugdurchführungsplan (schmal)
Q1: HIER NACH HINTEN KNICKEN
B3: F l u g d u r c h f ü h r u n g s p l a n / F l i g h t L o g
B4: =IF('Flugdurchführungsplan (n. DFS)'!C4<>"",'Flugdurchführungsplan (n. DFS)'!C4,"") ->  | E4: =IF('Flugdurchführungsplan (n. DFS)'!F4<>"",'Flugdurchführungsplan (n. DFS)'!F4,"") ->  | H4: =IF('Flugdurchführungsplan (n. DFS)'!J4<>"",'Flugdurchführungsplan (n. DFS)'!J4,"") ->  | K4: =IF('Flugdurchführungsplan (n. DFS)'!V4<>"",'Flugdurchführungsplan (n. DFS)'!V4,"") ->  | N4: =IF('Flugdurchführungsplan (n. DFS)'!Y4<>"",'Flugdurchführungsplan (n. DFS)'!Y4,"") -> 
B5: Datum: | E5: von: | F5: ='Flugdurchführungsplan (n. DFS)'!G5 ->  | G5: ='Flugdurchführungsplan (n. DFS)'!I5 ->  | H5: ="nach: "&IF(ISERROR(Flugplätze!AI3),"",Flugplätze!AI3) -> nach: | I5: ='Flugdurchführungsplan (n. DFS)'!K5 ->  | J5: ='Flugdurchführungsplan (n. DFS)'!U5 ->  | K5: LFZ-Muster | N5: LFZ-Kennzeichen
B6: =IF('Flugdurchführungsplan (n. DFS)'!AC4<>"",'Flugdurchführungsplan (n. DFS)'!AC4,"") -> Markus Born | D6: (Pilot) | E6: ='Flugdurchführungsplan (n. DFS)'!AE8 ->  | G6: =IF(E6<>"","MHz","") ->  | H6: ='Flugdurchführungsplan (n. DFS)'!AJ8 ->  | J6: =IF(H6<>"","MHz","") ->  | K6: ='Flugdurchführungsplan (n. DFS)'!AE17 -> 0 : 10 | R6: Funkspruch
E7: =IF('Flugdurchführungsplan (n. DFS)'!AA8<>"",'Flugdurchführungsplan (n. DFS)'!AA8,"") ->  | H7: =IF('Flugdurchführungsplan (n. DFS)'!AH8<>"",'Flugdurchführungsplan (n. DFS)'!AH8,"") ->  | N7: max. Tankfüll. (L) | O7: =Flugzeuge!G2 -> 
B8: =IF('Flugdurchführungsplan (n. DFS)'!J8<>"",'Flugdurchführungsplan (n. DFS)'!J8,"") ->  | E8: Ground | F8: =IF('Flugdurchführungsplan (n. DFS)'!AC9<>"",'Flugdurchführungsplan (n. DFS)'!AC9,"") ->  | G8: =IF(F8<>"","MHz","") ->  | H8: Ground | I8: =IF('Flugdurchführungsplan (n. DFS)'!AI9<>"",'Flugdurchführungsplan (n. DFS)'!AI9,"") ->  | J8: =IF(I8<>"","MHz","") ->  | K8: Sichere Flugzeit (hh:mm) | M8: Kraftstoff | N8: Verbrauch (L/h) | O8: =IF(ISERROR('Flugdurchführungsplan (n. DFS)'!F85),"",'Flugdurchführungsplan (n. DFS)'!F85) ->  | R8: ="WER? "&IF(N4<>"",N4,"D-E .. .. .. ")&", "&IF(Flugzeuge!Y2<>"",Flugzeuge!Y2,"Flugzeugtyp") -> WER? D-E .. .. .. , Flugzeugtyp
B9: =IF('Flugdurchführungsplan (n. DFS)'!F8<>"",'Flugdurchführungsplan (n. DFS)'!F8,"") ->  | E9: TWR | F9: =IF('Flugdurchführungsplan (n. DFS)'!AC10<>"",'Flugdurchführungsplan (n. DFS)'!AC10,"") ->  | G9: =IF(F9<>"","MHz","") ->  | H9: TWR | I9: =IF('Flugdurchführungsplan (n. DFS)'!AI10<>"",'Flugdurchführungsplan (n. DFS)'!AI10,"") ->  | J9: =IF(I9<>"","MHz","") ->  | K9: (Max. Flugzeit minus 30 Min.) | N9: ausfliegb. Vorrat (L) | O9: =IF(ISERROR('Flugdurchführungsplan (n. DFS)'!F97),"",IF('Flugdurchführungsplan (n. DFS)'!F97="","",'Flugdurchführungsplan (n. DFS)'!F97)) -> 92 | R9: ="WIE? VFR von "&IF(F5<>"",F5," … ")&" nach "&IF(I5<>"",I5," … ")&" via … " -> WIE? VFR von … nach … via …
B10: =IF('Flugdurchführungsplan (n. DFS)'!C8<>"",'Flugdurchführungsplan (n. DFS)'!C8,"") ->  | E10: INFO | F10: =IF('Flugdurchführungsplan (n. DFS)'!AC11<>"",'Flugdurchführungsplan (n. DFS)'!AC11,"") ->  | G10: =IF(F10<>"","MHz","") ->  | H10: INFO | I10: =IF('Flugdurchführungsplan (n. DFS)'!AI11<>"",'Flugdurchführungsplan (n. DFS)'!AI11,"") ->  | J10: =IF(I10<>"","MHz","") ->  | N10: Mindestbedarf (L) | O10: =IF(ISERROR('Flugdurchführungsplan (n. DFS)'!F95),"",'Flugdurchführungsplan (n. DFS)'!F95) -> 0 | R10: WO? Position (z.B. 5 Min. südlich), Höhe (z.B. 3000 ft)
B11: =IF('Flugdurchführungsplan (n. DFS)'!C9<>"",'Flugdurchführungsplan (n. DFS)'!C9,"") -> München Information (Süd) 126.950 / München Information (Nord) 120.650 / Notfrequenz 121.500 / alle Militär-Tower 122.100 | M11: Speeds in kt IAS | N11: ="Bestes Gleiten" -> Bestes Gleiten | O11: =IF(Flugzeuge!X2<>"",Flugzeuge!X2,"") ->  | R11: [POB n Personen an Bord] (nur bei Militärplätzen)
N12: Bestes Gleiten 30° | O12: =IF(Flugzeuge!W2<>"",Flugzeuge!W2,"") ->  | R12: Wx Information [Kennbuchstabe] (ATIS)
N13: Maneuv. Speed VA | O13: =IF(Flugzeuge!P2<>"",Flugzeuge!P2,"") ->  | R13: WAS? Zur Landung, zum Aufsetzen und Durchstarten,
B14: =IF('Flugdurchführungsplan (n. DFS)'!C10<>"",'Flugdurchführungsplan (n. DFS)'!C10,"") -> ATIS München 123.125 / ATIS Augsburg 124.575 | N14: Climb 10° Flaps | O14: =IF(Flugzeuge!N2<>"",Flugzeuge!N2,"") ->  | R14: erbitte Rollinformationen, zum Tiefanflug,
N15: Climb no Flaps | O15: =IF(Flugzeuge!O2<>"",Flugzeuge!O2,"") ->  | R15: erbitte Durchflug durch Kontrollzone von ..
N16: Steilstes Steigen VX | O16: =IF(Flugzeuge!S2<>"",Flugzeuge!S2,"") ->  | R16: nach .. via ...
B17: =IF('Flugdurchführungsplan (n. DFS)'!C11<>"",'Flugdurchführungsplan (n. DFS)'!C11,"") ->  | N17: Beste Steigrate VY | O17: =IF(Flugzeuge!T2<>"",Flugzeuge!T2,"") -> 
N18: Minimum Speed VS | O18: =IF(Flugzeuge!U2<>"",Flugzeuge!U2,"") -> 
B20: Bemerkungen/Notizen: | E20: =E4&IF(E4<>""," -> ","") ->  | F20: =H4&IF(G20<>""," TC=","") ->  | G20: ='Flugdurchführungsplan (n. DFS)'!AK5 ->  | H20: ='Flugdurchführungsplan (n. DFS)'!AI5 ->  | N20: Landings:
N21: OFF BLOCK | O21: AIR-BORNE
M22: FROM | N22: : | O22: :
M23: UNTIL | N23: : | O23: :
B25: Kontrollpunkt Check Point | D25: Sicherh.- höhe Safe Alt./ Planned Cruis. Alt | E25: rwK TC | F25: mwST MH | G25: mwK MC | H25: VG GS | I25: Entf. Distance | J25: Entf. gesamt Distance accum. | K25: Zeiten Abschn. Times Leg | L25: Zeiten gesamt Times accum. | N25: ="SS "&"(UTC"&IF(I5<>""," in "&H4,"")&")" -> SS (UTC) | O25: =IF('Flugdurchführungsplan (n. DFS)'!AI15<>"",'Flugdurchführungsplan (n. DFS)'!AI15,"") ->  | R25: Kontrollpunkt Check Point | T25: Bemerkungen Remarks
J26: =IF('Flugdurchführungsplan (n. DFS)'!Y18<>"",'Flugdurchführungsplan (n. DFS)'!Y18,"") ->  | L26: =IF('Flugdurchführungsplan (n. DFS)'!AC18<>"",'Flugdurchführungsplan (n. DFS)'!AC18,"") ->  | N26: ADT
B27: =IF('Flugdurchführungsplan (n. DFS)'!C19<>"",'Flugdurchführungsplan (n. DFS)'!C19,"") ->  | C27: 2 | D27: FL / ft | E27: degrees / ° | F27: degrees / ° | G27: degrees / ° | H27: kt | I27: NM | J27: NM | K27: Minutes | L27: HH:MM | R27: =IF('Flugdurchführungsplan (n. DFS)'!C19<>"",'Flugdurchführungsplan (n. DFS)'!C19,"") ->  | T27: =IF('Flugdurchführungsplan (n. DFS)'!AH20<>"",'Flugdurchführungsplan (n. DFS)'!AH20,"") -> 
C28: 1 | D28: =IF('Flugdurchführungsplan (n. DFS)'!F20<>"",'Flugdurchführungsplan (n. DFS)'!F20,"") ->  | E28: =IF('Flugdurchführungsplan (n. DFS)'!K20<>"",'Flugdurchführungsplan (n. DFS)'!K20,"") ->  | F28: =IF('Flugdurchführungsplan (n. DFS)'!V20<>"",'Flugdurchführungsplan (n. DFS)'!V20,"") ->  | G28: =IF('Flugdurchführungsplan (n. DFS)'!W20<>"",'Flugdurchführungsplan (n. DFS)'!W20,"") ->  | H28: =IF('Flugdurchführungsplan (n. DFS)'!Z20<>"",'Flugdurchführungsplan (n. DFS)'!Z20,"") ->  | I28: =IF('Flugdurchführungsplan (n. DFS)'!X20<>"",'Flugdurchführungsplan (n. DFS)'!X20,"") ->  | J28: =IF('Flugdurchführungsplan (n. DFS)'!Y20<>"",'Flugdurchführungsplan (n. DFS)'!Y20,"") ->  | K28: =IF('Flugdurchführungsplan (n. DFS)'!AA20<>"",'Flugdurchführungsplan (n. DFS)'!AA20,"") ->  | L28: =IF('Flugdurchführungsplan (n. DFS)'!AC20<>"",'Flugdurchführungsplan (n. DFS)'!AC20,"") ->  | N28: ETO | O28: ATO
B29: =IF('Flugdurchführungsplan (n. DFS)'!C21<>"",'Flugdurchführungsplan (n. DFS)'!C21,"") ->  | C29: 1 | D29: =IF('Flugdurchführungsplan (n. DFS)'!G20<>"",'Flugdurchführungsplan (n. DFS)'!G20,"") ->  | N29: =IF('Flugdurchführungsplan (n. DFS)'!AE21<>"",'Flugdurchführungsplan (n. DFS)'!AE21,":") -> : | O29: : | R29: =IF('Flugdurchführungsplan (n. DFS)'!C21<>"",'Flugdurchführungsplan (n. DFS)'!C21,"") ->  | T29: =IF('Flugdurchführungsplan (n. DFS)'!AH22<>"",'Flugdurchführungsplan (n. DFS)'!AH22,"") -> 
C30: 2 | D30: =IF('Flugdurchführungsplan (n. DFS)'!F22<>"",'Flugdurchführungsplan (n. DFS)'!F22,"") ->  | E30: =IF('Flugdurchführungsplan (n. DFS)'!K22<>"",'Flugdurchführungsplan (n. DFS)'!K22,"") ->  | F30: =IF('Flugdurchführungsplan (n. DFS)'!V22<>"",'Flugdurchführungsplan (n. DFS)'!V22,"") ->  | G30: =IF('Flugdurchführungsplan (n. DFS)'!W22<>"",'Flugdurchführungsplan (n. DFS)'!W22,"") ->  | H30: =IF('Flugdurchführungsplan (n. DFS)'!Z22<>"",'Flugdurchführungsplan (n. DFS)'!Z22,"") ->  | I30: =IF('Flugdurchführungsplan (n. DFS)'!X22<>"",'Flugdurchführungsplan (n. DFS)'!X22,"") ->  | J30: =IF('Flugdurchführungsplan (n. DFS)'!Y22<>"",'Flugdurchführungsplan (n. DFS)'!Y22,"") ->  | K30: =IF('Flugdurchführungsplan (n. DFS)'!AA22<>"",'Flugdurchführungsplan (n. DFS)'!AA22,"") ->  | L30: =IF('Flugdurchführungsplan (n. DFS)'!AC22<>"",'Flugdurchführungsplan (n. DFS)'!AC22,"") -> 
B31: =IF('Flugdurchführungsplan (n. DFS)'!C23<>"",'Flugdurchführungsplan (n. DFS)'!C23,"") ->  | C31: 2 | D31: =IF('Flugdurchführungsplan (n. DFS)'!G22<>"",'Flugdurchführungsplan (n. DFS)'!G22,"") ->  | N31: =IF('Flugdurchführungsplan (n. DFS)'!AE23<>"",'Flugdurchführungsplan (n. DFS)'!AE23,":") -> : | O31: : | R31: =IF('Flugdurchführungsplan (n. DFS)'!C23<>"",'Flugdurchführungsplan (n. DFS)'!C23,"") ->  | T31: =IF('Flugdurchführungsplan (n. DFS)'!AH24<>"",'Flugdurchführungsplan (n. DFS)'!AH24,"") -> 
C32: 1 | D32: =IF('Flugdurchführungsplan (n. DFS)'!F24<>"",'Flugdurchführungsplan (n. DFS)'!F24,"") ->  | E32: =IF('Flugdurchführungsplan (n. DFS)'!K24<>"",'Flugdurchführungsplan (n. DFS)'!K24,"") ->  | F32: =IF('Flugdurchführungsplan (n. DFS)'!V24<>"",'Flugdurchführungsplan (n. DFS)'!V24,"") ->  | G32: =IF('Flugdurchführungsplan (n. DFS)'!W24<>"",'Flugdurchführungsplan (n. DFS)'!W24,"") ->  | H32: =IF('Flugdurchführungsplan (n. DFS)'!Z24<>"",'Flugdurchführungsplan (n. DFS)'!Z24,"") ->  | I32: =IF('Flugdurchführungsplan (n. DFS)'!X24<>"",'Flugdurchführungsplan (n. DFS)'!X24,"") ->  | J32: =IF('Flugdurchführungsplan (n. DFS)'!Y24<>"",'Flugdurchführungsplan (n. DFS)'!Y24,"") ->  | K32: =IF('Flugdurchführungsplan (n. DFS)'!AA24<>"",'Flugdurchführungsplan (n. DFS)'!AA24,"") ->  | L32: =IF('Flugdurchführungsplan (n. DFS)'!AC24<>"",'Flugdurchführungsplan (n. DFS)'!AC24,"") -> 
B33: =IF('Flugdurchführungsplan (n. DFS)'!C25<>"",'Flugdurchführungsplan (n. DFS)'!C25,"") ->  | C33: 1 | D33: =IF('Flugdurchführungsplan (n. DFS)'!G24<>"",'Flugdurchführungsplan (n. DFS)'!G24,"") ->  | N33: =IF('Flugdurchführungsplan (n. DFS)'!AE25<>"",'Flugdurchführungsplan (n. DFS)'!AE25,":") -> : | O33: : | R33: =IF('Flugdurchführungsplan (n. DFS)'!C25<>"",'Flugdurchführungsplan (n. DFS)'!C25,"") ->  | T33: =IF('Flugdurchführungsplan (n. DFS)'!AH26<>"",'Flugdurchführungsplan (n. DFS)'!AH26,"") -> 
C34: 2 | D34: =IF('Flugdurchführungsplan (n. DFS)'!F26<>"",'Flugdurchführungsplan (n. DFS)'!F26,"") ->  | E34: =IF('Flugdurchführungsplan (n. DFS)'!K26<>"",'Flugdurchführungsplan (n. DFS)'!K26,"") ->  | F34: =IF('Flugdurchführungsplan (n. DFS)'!V26<>"",'Flugdurchführungsplan (n. DFS)'!V26,"") ->  | G34: =IF('Flugdurchführungsplan (n. DFS)'!W26<>"",'Flugdurchführungsplan (n. DFS)'!W26,"") ->  | H34: =IF('Flugdurchführungsplan (n. DFS)'!Z26<>"",'Flugdurchführungsplan (n. DFS)'!Z26,"") ->  | I34: =IF('Flugdurchführungsplan (n. DFS)'!X26<>"",'Flugdurchführungsplan (n. DFS)'!X26,"") ->  | J34: =IF('Flugdurchführungsplan (n. DFS)'!Y26<>"",'Flugdurchführungsplan (n. DFS)'!Y26,"") ->  | K34: =IF('Flugdurchführungsplan (n. DFS)'!AA26<>"",'Flugdurchführungsplan (n. DFS)'!AA26,"") ->  | L34: =IF('Flugdurchführungsplan (n. DFS)'!AC26<>"",'Flugdurchführungsplan (n. DFS)'!AC26,"") -> 
B35: =IF('Flugdurchführungsplan (n. DFS)'!C27<>"",'Flugdurchführungsplan (n. DFS)'!C27,"") ->  | C35: 2 | D35: =IF('Flugdurchführungsplan (n. DFS)'!G26<>"",'Flugdurchführungsplan (n. DFS)'!G26,"") ->  | N35: =IF('Flugdurchführungsplan (n. DFS)'!AE27<>"",'Flugdurchführungsplan (n. DFS)'!AE27,":") -> : | O35: : | R35: =IF('Flugdurchführungsplan (n. DFS)'!C27<>"",'Flugdurchführungsplan (n. DFS)'!C27,"") ->  | T35: =IF('Flugdurchführungsplan (n. DFS)'!AH28<>"",'Flugdurchführungsplan (n. DFS)'!AH28,"") -> 
C36: 1 | D36: =IF('Flugdurchführungsplan (n. DFS)'!F28<>"",'Flugdurchführungsplan (n. DFS)'!F28,"") ->  | E36: =IF('Flugdurchführungsplan (n. DFS)'!K28<>"",'Flugdurchführungsplan (n. DFS)'!K28,"") ->  | F36: =IF('Flugdurchführungsplan (n. DFS)'!V28<>"",'Flugdurchführungsplan (n. DFS)'!V28,"") ->  | G36: =IF('Flugdurchführungsplan (n. DFS)'!W28<>"",'Flugdurchführungsplan (n. DFS)'!W28,"") ->  | H36: =IF('Flugdurchführungsplan (n. DFS)'!Z28<>"",'Flugdurchführungsplan (n. DFS)'!Z28,"") ->  | I36: =IF('Flugdurchführungsplan (n. DFS)'!X28<>"",'Flugdurchführungsplan (n. DFS)'!X28,"") ->  | J36: =IF('Flugdurchführungsplan (n. DFS)'!Y28<>"",'Flugdurchführungsplan (n. DFS)'!Y28,"") ->  | K36: =IF('Flugdurchführungsplan (n. DFS)'!AA28<>"",'Flugdurchführungsplan (n. DFS)'!AA28,"") ->  | L36: =IF('Flugdurchführungsplan (n. DFS)'!AC28<>"",'Flugdurchführungsplan (n. DFS)'!AC28,"") -> 
B37: =IF('Flugdurchführungsplan (n. DFS)'!C29<>"",'Flugdurchführungsplan (n. DFS)'!C29,"") ->  | C37: 1 | D37: =IF('Flugdurchführungsplan (n. DFS)'!G28<>"",'Flugdurchführungsplan (n. DFS)'!G28,"") ->  | N37: =IF('Flugdurchführungsplan (n. DFS)'!AE29<>"",'Flugdurchführungsplan (n. DFS)'!AE29,":") -> : | O37: : | R37: =IF('Flugdurchführungsplan (n. DFS)'!C29<>"",'Flugdurchführungsplan (n. DFS)'!C29,"") ->  | T37: =IF('Flugdurchführungsplan (n. DFS)'!AH30<>"",'Flugdurchführungsplan (n. DFS)'!AH30,"") -> 
C38: 2 | D38: =IF('Flugdurchführungsplan (n. DFS)'!F30<>"",'Flugdurchführungsplan (n. DFS)'!F30,"") ->  | E38: =IF('Flugdurchführungsplan (n. DFS)'!K30<>"",'Flugdurchführungsplan (n. DFS)'!K30,"") ->  | F38: =IF('Flugdurchführungsplan (n. DFS)'!V30<>"",'Flugdurchführungsplan (n. DFS)'!V30,"") ->  | G38: =IF('Flugdurchführungsplan (n. DFS)'!W30<>"",'Flugdurchführungsplan (n. DFS)'!W30,"") ->  | H38: =IF('Flugdurchführungsplan (n. DFS)'!Z30<>"",'Flugdurchführungsplan (n. DFS)'!Z30,"") ->  | I38: =IF('Flugdurchführungsplan (n. DFS)'!X30<>"",'Flugdurchführungsplan (n. DFS)'!X30,"") ->  | J38: =IF('Flugdurchführungsplan (n. DFS)'!Y30<>"",'Flugdurchführungsplan (n. DFS)'!Y30,"") ->  | K38: =IF('Flugdurchführungsplan (n. DFS)'!AA30<>"",'Flugdurchführungsplan (n. DFS)'!AA30,"") ->  | L38: =IF('Flugdurchführungsplan (n. DFS)'!AC30<>"",'Flugdurchführungsplan (n. DFS)'!AC30,"") -> 
B39: =IF('Flugdurchführungsplan (n. DFS)'!C31<>"",'Flugdurchführungsplan (n. DFS)'!C31,"") ->  | C39: 2 | D39: =IF('Flugdurchführungsplan (n. DFS)'!G30<>"",'Flugdurchführungsplan (n. DFS)'!G30,"") ->  | N39: =IF('Flugdurchführungsplan (n. DFS)'!AE31<>"",'Flugdurchführungsplan (n. DFS)'!AE31,":") -> : | O39: : | R39: =IF('Flugdurchführungsplan (n. DFS)'!C31<>"",'Flugdurchführungsplan (n. DFS)'!C31,"") ->  | T39: =IF('Flugdurchführungsplan (n. DFS)'!AH32<>"",'Flugdurchführungsplan (n. DFS)'!AH32,"") -> 
C40: 1 | D40: =IF('Flugdurchführungsplan (n. DFS)'!F32<>"",'Flugdurchführungsplan (n. DFS)'!F32,"") ->  | E40: =IF('Flugdurchführungsplan (n. DFS)'!K32<>"",'Flugdurchführungsplan (n. DFS)'!K32,"") ->  | F40: =IF('Flugdurchführungsplan (n. DFS)'!V32<>"",'Flugdurchführungsplan (n. DFS)'!V32,"") ->  | G40: =IF('Flugdurchführungsplan (n. DFS)'!W32<>"",'Flugdurchführungsplan (n. DFS)'!W32,"") ->  | H40: =IF('Flugdurchführungsplan (n. DFS)'!Z32<>"",'Flugdurchführungsplan (n. DFS)'!Z32,"") ->  | I40: =IF('Flugdurchführungsplan (n. DFS)'!X32<>"",'Flugdurchführungsplan (n. DFS)'!X32,"") ->  | J40: =IF('Flugdurchführungsplan (n. DFS)'!Y32<>"",'Flugdurchführungsplan (n. DFS)'!Y32,"") ->  | K40: =IF('Flugdurchführungsplan (n. DFS)'!AA32<>"",'Flugdurchführungsplan (n. DFS)'!AA32,"") ->  | L40: =IF('Flugdurchführungsplan (n. DFS)'!AC32<>"",'Flugdurchführungsplan (n. DFS)'!AC32,"") -> 
B41: =IF('Flugdurchführungsplan (n. DFS)'!C33<>"",'Flugdurchführungsplan (n. DFS)'!C33,"") ->  | C41: 1 | D41: =IF('Flugdurchführungsplan (n. DFS)'!G32<>"",'Flugdurchführungsplan (n. DFS)'!G32,"") ->  | N41: =IF('Flugdurchführungsplan (n. DFS)'!AE33<>"",'Flugdurchführungsplan (n. DFS)'!AE33,":") -> : | O41: : | R41: =IF('Flugdurchführungsplan (n. DFS)'!C33<>"",'Flugdurchführungsplan (n. DFS)'!C33,"") ->  | T41: =IF('Flugdurchführungsplan (n. DFS)'!AH34<>"",'Flugdurchführungsplan (n. DFS)'!AH34,"") -> 
C42: 2 | D42: =IF('Flugdurchführungsplan (n. DFS)'!F34<>"",'Flugdurchführungsplan (n. DFS)'!F34,"") ->  | E42: =IF('Flugdurchführungsplan (n. DFS)'!K34<>"",'Flugdurchführungsplan (n. DFS)'!K34,"") ->  | F42: =IF('Flugdurchführungsplan (n. DFS)'!V34<>"",'Flugdurchführungsplan (n. DFS)'!V34,"") ->  | G42: =IF('Flugdurchführungsplan (n. DFS)'!W34<>"",'Flugdurchführungsplan (n. DFS)'!W34,"") ->  | H42: =IF('Flugdurchführungsplan (n. DFS)'!Z34<>"",'Flugdurchführungsplan (n. DFS)'!Z34,"") ->  | I42: =IF('Flugdurchführungsplan (n. DFS)'!X34<>"",'Flugdurchführungsplan (n. DFS)'!X34,"") ->  | J42: =IF('Flugdurchführungsplan (n. DFS)'!Y34<>"",'Flugdurchführungsplan (n. DFS)'!Y34,"") ->  | K42: =IF('Flugdurchführungsplan (n. DFS)'!AA34<>"",'Flugdurchführungsplan (n. DFS)'!AA34,"") ->  | L42: =IF('Flugdurchführungsplan (n. DFS)'!AC34<>"",'Flugdurchführungsplan (n. DFS)'!AC34,"") -> 
B43: =IF('Flugdurchführungsplan (n. DFS)'!C35<>"",'Flugdurchführungsplan (n. DFS)'!C35,"") ->  | C43: 2 | D43: =IF('Flugdurchführungsplan (n. DFS)'!G34<>"",'Flugdurchführungsplan (n. DFS)'!G34,"") ->  | N43: =IF('Flugdurchführungsplan (n. DFS)'!AE35<>"",'Flugdurchführungsplan (n. DFS)'!AE35,":") -> : | O43: : | R43: =IF('Flugdurchführungsplan (n. DFS)'!C35<>"",'Flugdurchführungsplan (n. DFS)'!C35,"") ->  | T43: =IF('Flugdurchführungsplan (n. DFS)'!AH36<>"",'Flugdurchführungsplan (n. DFS)'!AH36,"") -> 
C44: 1 | D44: =IF('Flugdurchführungsplan (n. DFS)'!F36<>"",'Flugdurchführungsplan (n. DFS)'!F36,"") ->  | E44: =IF('Flugdurchführungsplan (n. DFS)'!K36<>"",'Flugdurchführungsplan (n. DFS)'!K36,"") ->  | F44: =IF('Flugdurchführungsplan (n. DFS)'!V36<>"",'Flugdurchführungsplan (n. DFS)'!V36,"") ->  | G44: =IF('Flugdurchführungsplan (n. DFS)'!W36<>"",'Flugdurchführungsplan (n. DFS)'!W36,"") ->  | H44: =IF('Flugdurchführungsplan (n. DFS)'!Z36<>"",'Flugdurchführungsplan (n. DFS)'!Z36,"") ->  | I44: =IF('Flugdurchführungsplan (n. DFS)'!X36<>"",'Flugdurchführungsplan (n. DFS)'!X36,"") ->  | J44: =IF('Flugdurchführungsplan (n. DFS)'!Y36<>"",'Flugdurchführungsplan (n. DFS)'!Y36,"") ->  | K44: =IF('Flugdurchführungsplan (n. DFS)'!AA36<>"",'Flugdurchführungsplan (n. DFS)'!AA36,"") ->  | L44: =IF('Flugdurchführungsplan (n. DFS)'!AC36<>"",'Flugdurchführungsplan (n. DFS)'!AC36,"") -> 
B45: =IF('Flugdurchführungsplan (n. DFS)'!C37<>"",'Flugdurchführungsplan (n. DFS)'!C37,"") ->  | C45: 1 | D45: =IF('Flugdurchführungsplan (n. DFS)'!G36<>"",'Flugdurchführungsplan (n. DFS)'!G36,"") ->  | N45: =IF('Flugdurchführungsplan (n. DFS)'!AE37<>"",'Flugdurchführungsplan (n. DFS)'!AE37,":") -> : | O45: : | R45: =IF('Flugdurchführungsplan (n. DFS)'!C37<>"",'Flugdurchführungsplan (n. DFS)'!C37,"") ->  | T45: =IF('Flugdurchführungsplan (n. DFS)'!AH38<>"",'Flugdurchführungsplan (n. DFS)'!AH38,"") -> 
C46: 2 | D46: =IF('Flugdurchführungsplan (n. DFS)'!F38<>"",'Flugdurchführungsplan (n. DFS)'!F38,"") ->  | E46: =IF('Flugdurchführungsplan (n. DFS)'!K38<>"",'Flugdurchführungsplan (n. DFS)'!K38,"") ->  | F46: =IF('Flugdurchführungsplan (n. DFS)'!V38<>"",'Flugdurchführungsplan (n. DFS)'!V38,"") ->  | G46: =IF('Flugdurchführungsplan (n. DFS)'!W38<>"",'Flugdurchführungsplan (n. DFS)'!W38,"") ->  | H46: =IF('Flugdurchführungsplan (n. DFS)'!Z38<>"",'Flugdurchführungsplan (n. DFS)'!Z38,"") ->  | I46: =IF('Flugdurchführungsplan (n. DFS)'!X38<>"",'Flugdurchführungsplan (n. DFS)'!X38,"") ->  | J46: =IF('Flugdurchführungsplan (n. DFS)'!Y38<>"",'Flugdurchführungsplan (n. DFS)'!Y38,"") ->  | K46: =IF('Flugdurchführungsplan (n. DFS)'!AA38<>"",'Flugdurchführungsplan (n. DFS)'!AA38,"") ->  | L46: =IF('Flugdurchführungsplan (n. DFS)'!AC38<>"",'Flugdurchführungsplan (n. DFS)'!AC38,"") -> 
B47: =IF('Flugdurchführungsplan (n. DFS)'!C39<>"",'Flugdurchführungsplan (n. DFS)'!C39,"") ->  | C47: 2 | D47: =IF('Flugdurchführungsplan (n. DFS)'!G38<>"",'Flugdurchführungsplan (n. DFS)'!G38,"") ->  | N47: =IF('Flugdurchführungsplan (n. DFS)'!AE39<>"",'Flugdurchführungsplan (n. DFS)'!AE39,":") -> : | O47: : | R47: =IF('Flugdurchführungsplan (n. DFS)'!C39<>"",'Flugdurchführungsplan (n. DFS)'!C39,"") ->  | T47: =IF('Flugdurchführungsplan (n. DFS)'!AH40<>"",'Flugdurchführungsplan (n. DFS)'!AH40,"") -> 
C48: 1 | D48: =IF('Flugdurchführungsplan (n. DFS)'!F40<>"",'Flugdurchführungsplan (n. DFS)'!F40,"") ->  | E48: =IF('Flugdurchführungsplan (n. DFS)'!K40<>"",'Flugdurchführungsplan (n. DFS)'!K40,"") ->  | F48: =IF('Flugdurchführungsplan (n. DFS)'!V40<>"",'Flugdurchführungsplan (n. DFS)'!V40,"") ->  | G48: =IF('Flugdurchführungsplan (n. DFS)'!W40<>"",'Flugdurchführungsplan (n. DFS)'!W40,"") ->  | H48: =IF('Flugdurchführungsplan (n. DFS)'!Z40<>"",'Flugdurchführungsplan (n. DFS)'!Z40,"") ->  | I48: =IF('Flugdurchführungsplan (n. DFS)'!X40<>"",'Flugdurchführungsplan (n. DFS)'!X40,"") ->  | J48: =IF('Flugdurchführungsplan (n. DFS)'!Y40<>"",'Flugdurchführungsplan (n. DFS)'!Y40,"") ->  | K48: =IF('Flugdurchführungsplan (n. DFS)'!AA40<>"",'Flugdurchführungsplan (n. DFS)'!AA40,"") ->  | L48: =IF('Flugdurchführungsplan (n. DFS)'!AC40<>"",'Flugdurchführungsplan (n. DFS)'!AC40,"") -> 
B49: =IF('Flugdurchführungsplan (n. DFS)'!C41<>"",'Flugdurchführungsplan (n. DFS)'!C41,"") ->  | C49: 1 | D49: =IF('Flugdurchführungsplan (n. DFS)'!G40<>"",'Flugdurchführungsplan (n. DFS)'!G40,"") ->  | N49: =IF('Flugdurchführungsplan (n. DFS)'!AE41<>"",'Flugdurchführungsplan (n. DFS)'!AE41,":") -> : | O49: : | R49: =IF('Flugdurchführungsplan (n. DFS)'!C41<>"",'Flugdurchführungsplan (n. DFS)'!C41,"") ->  | T49: =IF('Flugdurchführungsplan (n. DFS)'!AH42<>"",'Flugdurchführungsplan (n. DFS)'!AH42,"") -> 
C50: 2 | D50: =IF('Flugdurchführungsplan (n. DFS)'!F42<>"",'Flugdurchführungsplan (n. DFS)'!F42,"") ->  | E50: =IF('Flugdurchführungsplan (n. DFS)'!K42<>"",'Flugdurchführungsplan (n. DFS)'!K42,"") ->  | F50: =IF('Flugdurchführungsplan (n. DFS)'!V42<>"",'Flugdurchführungsplan (n. DFS)'!V42,"") ->  | G50: =IF('Flugdurchführungsplan (n. DFS)'!W42<>"",'Flugdurchführungsplan (n. DFS)'!W42,"") ->  | H50: =IF('Flugdurchführungsplan (n. DFS)'!Z42<>"",'Flugdurchführungsplan (n. DFS)'!Z42,"") ->  | I50: =IF('Flugdurchführungsplan (n. DFS)'!X42<>"",'Flugdurchführungsplan (n. DFS)'!X42,"") ->  | J50: =IF('Flugdurchführungsplan (n. DFS)'!Y42<>"",'Flugdurchführungsplan (n. DFS)'!Y42,"") ->  | K50: =IF('Flugdurchführungsplan (n. DFS)'!AA42<>"",'Flugdurchführungsplan (n. DFS)'!AA42,"") ->  | L50: =IF('Flugdurchführungsplan (n. DFS)'!AC42<>"",'Flugdurchführungsplan (n. DFS)'!AC42,"") -> 
B51: =IF('Flugdurchführungsplan (n. DFS)'!C43<>"",'Flugdurchführungsplan (n. DFS)'!C43,"") ->  | C51: 2 | D51: =IF('Flugdurchführungsplan (n. DFS)'!G42<>"",'Flugdurchführungsplan (n. DFS)'!G42,"") ->  | N51: =IF('Flugdurchführungsplan (n. DFS)'!AE43<>"",'Flugdurchführungsplan (n. DFS)'!AE43,":") -> : | O51: : | R51: =IF('Flugdurchführungsplan (n. DFS)'!C43<>"",'Flugdurchführungsplan (n. DFS)'!C43,"") ->  | T51: =IF('Flugdurchführungsplan (n. DFS)'!AH44<>"",'Flugdurchführungsplan (n. DFS)'!AH44,"") -> 
C52: 1 | D52: =IF('Flugdurchführungsplan (n. DFS)'!F44<>"",'Flugdurchführungsplan (n. DFS)'!F44,"") ->  | E52: =IF('Flugdurchführungsplan (n. DFS)'!K44<>"",'Flugdurchführungsplan (n. DFS)'!K44,"") ->  | F52: =IF('Flugdurchführungsplan (n. DFS)'!V44<>"",'Flugdurchführungsplan (n. DFS)'!V44,"") ->  | G52: =IF('Flugdurchführungsplan (n. DFS)'!W44<>"",'Flugdurchführungsplan (n. DFS)'!W44,"") ->  | H52: =IF('Flugdurchführungsplan (n. DFS)'!Z44<>"",'Flugdurchführungsplan (n. DFS)'!Z44,"") ->  | I52: =IF('Flugdurchführungsplan (n. DFS)'!X44<>"",'Flugdurchführungsplan (n. DFS)'!X44,"") ->  | J52: =IF('Flugdurchführungsplan (n. DFS)'!Y44<>"",'Flugdurchführungsplan (n. DFS)'!Y44,"") ->  | K52: =IF('Flugdurchführungsplan (n. DFS)'!AA44<>"",'Flugdurchführungsplan (n. DFS)'!AA44,"") ->  | L52: =IF('Flugdurchführungsplan (n. DFS)'!AC44<>"",'Flugdurchführungsplan (n. DFS)'!AC44,"") -> 
B53: =IF('Flugdurchführungsplan (n. DFS)'!C45<>"",'Flugdurchführungsplan (n. DFS)'!C45,"") ->  | C53: 1 | D53: =IF('Flugdurchführungsplan (n. DFS)'!G44<>"",'Flugdurchführungsplan (n. DFS)'!G44,"") ->  | N53: =IF('Flugdurchführungsplan (n. DFS)'!AE45<>"",'Flugdurchführungsplan (n. DFS)'!AE45,":") -> : | O53: : | R53: =IF('Flugdurchführungsplan (n. DFS)'!C45<>"",'Flugdurchführungsplan (n. DFS)'!C45,"") ->  | T53: =IF('Flugdurchführungsplan (n. DFS)'!AH46<>"",'Flugdurchführungsplan (n. DFS)'!AH46,"") -> 
C54: 2 | D54: =IF('Flugdurchführungsplan (n. DFS)'!F46<>"",'Flugdurchführungsplan (n. DFS)'!F46,"") ->  | E54: =IF('Flugdurchführungsplan (n. DFS)'!K46<>"",'Flugdurchführungsplan (n. DFS)'!K46,"") ->  | F54: =IF('Flugdurchführungsplan (n. DFS)'!V46<>"",'Flugdurchführungsplan (n. DFS)'!V46,"") ->  | G54: =IF('Flugdurchführungsplan (n. DFS)'!W46<>"",'Flugdurchführungsplan (n. DFS)'!W46,"") ->  | H54: =IF('Flugdurchführungsplan (n. DFS)'!Z46<>"",'Flugdurchführungsplan (n. DFS)'!Z46,"") ->  | I54: =IF('Flugdurchführungsplan (n. DFS)'!X46<>"",'Flugdurchführungsplan (n. DFS)'!X46,"") ->  | J54: =IF('Flugdurchführungsplan (n. DFS)'!Y46<>"",'Flugdurchführungsplan (n. DFS)'!Y46,"") ->  | K54: =IF('Flugdurchführungsplan (n. DFS)'!AA46<>"",'Flugdurchführungsplan (n. DFS)'!AA46,"") ->  | L54: =IF('Flugdurchführungsplan (n. DFS)'!AC46<>"",'Flugdurchführungsplan (n. DFS)'!AC46,"") -> 
B55: =IF('Flugdurchführungsplan (n. DFS)'!C47<>"",'Flugdurchführungsplan (n. DFS)'!C47,"") ->  | C55: 2 | D55: =IF('Flugdurchführungsplan (n. DFS)'!G46<>"",'Flugdurchführungsplan (n. DFS)'!G46,"") ->  | N55: =IF('Flugdurchführungsplan (n. DFS)'!AE47<>"",'Flugdurchführungsplan (n. DFS)'!AE47,":") -> : | O55: : | R55: =IF('Flugdurchführungsplan (n. DFS)'!C47<>"",'Flugdurchführungsplan (n. DFS)'!C47,"") ->  | T55: =IF('Flugdurchführungsplan (n. DFS)'!AH48<>"",'Flugdurchführungsplan (n. DFS)'!AH48,"") -> 
C56: 1 | D56: =IF('Flugdurchführungsplan (n. DFS)'!F48<>"",'Flugdurchführungsplan (n. DFS)'!F48,"") ->  | E56: =IF('Flugdurchführungsplan (n. DFS)'!K48<>"",'Flugdurchführungsplan (n. DFS)'!K48,"") ->  | F56: =IF('Flugdurchführungsplan (n. DFS)'!V48<>"",'Flugdurchführungsplan (n. DFS)'!V48,"") ->  | G56: =IF('Flugdurchführungsplan (n. DFS)'!W48<>"",'Flugdurchführungsplan (n. DFS)'!W48,"") ->  | H56: =IF('Flugdurchführungsplan (n. DFS)'!Z48<>"",'Flugdurchführungsplan (n. DFS)'!Z48,"") ->  | I56: =IF('Flugdurchführungsplan (n. DFS)'!X48<>"",'Flugdurchführungsplan (n. DFS)'!X48,"") ->  | J56: =IF('Flugdurchführungsplan (n. DFS)'!Y48<>"",'Flugdurchführungsplan (n. DFS)'!Y48,"") ->  | K56: =IF('Flugdurchführungsplan (n. DFS)'!AA48<>"",'Flugdurchführungsplan (n. DFS)'!AA48,"") ->  | L56: =IF('Flugdurchführungsplan (n. DFS)'!AC48<>"",'Flugdurchführungsplan (n. DFS)'!AC48,"") -> 
B57: =IF('Flugdurchführungsplan (n. DFS)'!C49<>"",'Flugdurchführungsplan (n. DFS)'!C49,"") ->  | C57: 1 | D57: =IF('Flugdurchführungsplan (n. DFS)'!G48<>"",'Flugdurchführungsplan (n. DFS)'!G48,"") ->  | N57: =IF('Flugdurchführungsplan (n. DFS)'!AE49<>"",'Flugdurchführungsplan (n. DFS)'!AE49,":") -> : | O57: : | R57: =IF('Flugdurchführungsplan (n. DFS)'!C49<>"",'Flugdurchführungsplan (n. DFS)'!C49,"") ->  | T57: =IF('Flugdurchführungsplan (n. DFS)'!AH50<>"",'Flugdurchführungsplan (n. DFS)'!AH50,"") -> 
C58: 2 | D58: =IF('Flugdurchführungsplan (n. DFS)'!F50<>"",'Flugdurchführungsplan (n. DFS)'!F50,"") ->  | E58: =IF('Flugdurchführungsplan (n. DFS)'!K50<>"",'Flugdurchführungsplan (n. DFS)'!K50,"") ->  | F58: =IF('Flugdurchführungsplan (n. DFS)'!V50<>"",'Flugdurchführungsplan (n. DFS)'!V50,"") ->  | G58: =IF('Flugdurchführungsplan (n. DFS)'!W50<>"",'Flugdurchführungsplan (n. DFS)'!W50,"") ->  | H58: =IF('Flugdurchführungsplan (n. DFS)'!Z50<>"",'Flugdurchführungsplan (n. DFS)'!Z50,"") ->  | I58: =IF('Flugdurchführungsplan (n. DFS)'!X50<>"",'Flugdurchführungsplan (n. DFS)'!X50,"") ->  | J58: =IF('Flugdurchführungsplan (n. DFS)'!Y50<>"",'Flugdurchführungsplan (n. DFS)'!Y50,"") ->  | K58: =IF('Flugdurchführungsplan (n. DFS)'!AA50<>"",'Flugdurchführungsplan (n. DFS)'!AA50,"") ->  | L58: =IF('Flugdurchführungsplan (n. DFS)'!AC50<>"",'Flugdurchführungsplan (n. DFS)'!AC50,"") -> 
B59: =IF('Flugdurchführungsplan (n. DFS)'!C51<>"",'Flugdurchführungsplan (n. DFS)'!C51,"") ->  | C59: 2 | D59: =IF('Flugdurchführungsplan (n. DFS)'!G50<>"",'Flugdurchführungsplan (n. DFS)'!G50,"") ->  | N59: =IF('Flugdurchführungsplan (n. DFS)'!AE51<>"",'Flugdurchführungsplan (n. DFS)'!AE51,":") -> : | O59: : | R59: =IF('Flugdurchführungsplan (n. DFS)'!C51<>"",'Flugdurchführungsplan (n. DFS)'!C51,"") ->  | T59: =IF('Flugdurchführungsplan (n. DFS)'!AH52<>"",'Flugdurchführungsplan (n. DFS)'!AH52,"") -> 
C60: 1 | D60: =IF('Flugdurchführungsplan (n. DFS)'!F52<>"",'Flugdurchführungsplan (n. DFS)'!F52,"") ->  | E60: =IF('Flugdurchführungsplan (n. DFS)'!K52<>"",'Flugdurchführungsplan (n. DFS)'!K52,"") ->  | F60: =IF('Flugdurchführungsplan (n. DFS)'!V52<>"",'Flugdurchführungsplan (n. DFS)'!V52,"") ->  | G60: =IF('Flugdurchführungsplan (n. DFS)'!W52<>"",'Flugdurchführungsplan (n. DFS)'!W52,"") ->  | H60: =IF('Flugdurchführungsplan (n. DFS)'!Z52<>"",'Flugdurchführungsplan (n. DFS)'!Z52,"") ->  | I60: =IF('Flugdurchführungsplan (n. DFS)'!X52<>"",'Flugdurchführungsplan (n. DFS)'!X52,"") ->  | J60: =IF('Flugdurchführungsplan (n. DFS)'!Y52<>"",'Flugdurchführungsplan (n. DFS)'!Y52,"") ->  | K60: =IF('Flugdurchführungsplan (n. DFS)'!AA52<>"",'Flugdurchführungsplan (n. DFS)'!AA52,"") ->  | L60: =IF('Flugdurchführungsplan (n. DFS)'!AC52<>"",'Flugdurchführungsplan (n. DFS)'!AC52,"") -> 
B61: =IF('Flugdurchführungsplan (n. DFS)'!C53<>"",'Flugdurchführungsplan (n. DFS)'!C53,"") ->  | C61: 1 | D61: =IF('Flugdurchführungsplan (n. DFS)'!G52<>"",'Flugdurchführungsplan (n. DFS)'!G52,"") ->  | N61: =IF('Flugdurchführungsplan (n. DFS)'!AE53<>"",'Flugdurchführungsplan (n. DFS)'!AE53,":") -> : | O61: : | R61: =IF('Flugdurchführungsplan (n. DFS)'!C53<>"",'Flugdurchführungsplan (n. DFS)'!C53,"") ->  | T61: =IF('Flugdurchführungsplan (n. DFS)'!AH54<>"",'Flugdurchführungsplan (n. DFS)'!AH54,"") -> 
B63: Ausweichflugplatz / Alternate: | R63: Ausweichflugplatz / Alternate:
B64: =IF('Flugdurchführungsplan (n. DFS)'!C56<>"",'Flugdurchführungsplan (n. DFS)'!C56,"") ->  | C64: 2 | D64: =IF('Flugdurchführungsplan (n. DFS)'!F56<>"",'Flugdurchführungsplan (n. DFS)'!F56,"") ->  | E64: =IF('Flugdurchführungsplan (n. DFS)'!K56<>"",'Flugdurchführungsplan (n. DFS)'!K56,"") ->  | F64: =IF('Flugdurchführungsplan (n. DFS)'!V56<>"",'Flugdurchführungsplan (n. DFS)'!V56,"") ->  | G64: =IF('Flugdurchführungsplan (n. DFS)'!W56<>"",'Flugdurchführungsplan (n. DFS)'!W56,"") ->  | H64: =IF('Flugdurchführungsplan (n. DFS)'!Z56<>"",'Flugdurchführungsplan (n. DFS)'!Z56,"") ->  | I64: =IF('Flugdurchführungsplan (n. DFS)'!X56<>"",'Flugdurchführungsplan (n. DFS)'!X56,"") ->  | J64: =IF('Flugdurchführungsplan (n. DFS)'!Y56<>"",'Flugdurchführungsplan (n. DFS)'!Y56,"") ->  | K64: =IF('Flugdurchführungsplan (n. DFS)'!AA56<>"",'Flugdurchführungsplan (n. DFS)'!AA56,"") ->  | L64: =IF('Flugdurchführungsplan (n. DFS)'!AC56<>"",'Flugdurchführungsplan (n. DFS)'!AC56,"") ->  | R64: =IF('Flugdurchführungsplan (n. DFS)'!C56<>"",'Flugdurchführungsplan (n. DFS)'!C56,"") ->  | T64: =IF('Flugdurchführungsplan (n. DFS)'!AH56<>"",'Flugdurchführungsplan (n. DFS)'!AH56,"") -> 

Sheet Flugzeuge
B2: ='Flugdurchführungsplan (n. DFS)'!Y4 -> 0 | C2: =IF($B$3="Fehler","",VLOOKUP($B$2,$B$6:$X$40,COLUMN()-COLUMN($B$2)+1,FALSE)) ->  | D2: =IF($B$3="Fehler","",VLOOKUP($B$2,$B$6:$X$40,COLUMN()-COLUMN($B$2)+1,FALSE)) ->  | X2: =IF($B$3="Fehler","",VLOOKUP($B$2,$B$6:$X$40,COLUMN()-COLUMN($B$2)+1,FALSE)) ->  | Y2: =IF($B$3="Fehler","",VLOOKUP($B$2,$B$6:$Y$40,COLUMN()-COLUMN($B$2)+1,FALSE)) ->  | Z2: =IF($B$3="Fehler","",VLOOKUP($B$2,$B$6:$AX$40,COLUMN()-COLUMN($B$2)+1,FALSE)) ->  | AA2: =IF($B$3="Fehler","",VLOOKUP($B$2,$B$6:$AX$40,COLUMN()-COLUMN($B$2)+1,FALSE)) ->  | AY2: =B2 -> 0 | AZ2: =IF($B$3="Fehler","",VLOOKUP($B$2,$AY$6:$BT$40,COLUMN()-COLUMN($AY$2)+1,FALSE)) ->  | BA2: =IF($B$3="Fehler","",VLOOKUP($B$2,$AY$6:$BT$40,COLUMN()-COLUMN($AY$2)+1,FALSE)) -> 
B3: =IF(ISERROR(VLOOKUP($B$2,$B$6:$X$40,1,FALSE)),"Fehler","OK") -> Fehler | Z3: 1 | AA3: 2 | AB3: 3 | AC3: 4 | AD3: 5 | AE3: 6 | AF3: 7 | AG3: 8 | AH3: 9 | AI3: 10 | AJ3: 11 | AK3: 12 | AL3: 1 | AM3: 2 | AN3: 3 | AO3: 4 | AP3: 5 | AQ3: 6 | AR3: 7 | AS3: 8 | AT3: 9 | AU3: 10 | AV3: 11 | AW3: 12
B4: Hier bitte Daten aus dem Flughandbuch eintragen! | Z4: Hier werden die Berechnungen für Weight and Balance gesammelt und in den Flugdurchführungsplan übertragen | BC4: Startrollstrecke | BL4: Startstrecke
B5: Kennzeichen | C5: Typ | D5: Verbrauch Reiseflug Liter/h | E5: Verbrauch Steigflug Liter/h | F5: Tankvolumen (Liter) | G5: davon ausfliegbar (Liter) | H5: Leergewicht (kg oder kp) | I5: Leermoment | J5: Wägung vom DD:MM:YYYY | K5: MTOW (kg oder kp) | L5: Max Moment | M5: V r (Rotation) | N5: V Climb (10° Flps) | O5: V Climb (no Flaps) | P5: VA (KIAS) Manöver | Q5: VNE (KIAS) Maximum Speed | R5: VFE (KIAS) Max mit Klappen | S5: VX (KIAS) Steilstes Steigen | T5: VY (KIAS) Beste Steigrate | U5: VS (KIAS) Minimum Speed | V5: VS0 (KIAS) Minimum 30° Klappen | W5: V (KIAS) Bestes Gleiten 30° | X5: V (KIAS) Bestes Gleiten | Y5: Typ (kurz) | Z5: Leermasse | AA5: Kraftstoff, nichtausfliegbar | AB5: Schmierstoff | AC5: =Grundmasse | AD5: Sitzreihe 1 | AE5: Sitzreihe 2 | AF5: Sitzreihe 3 | AG5: Gepäckraum 1 | AH5: Gepäckraum 2 | AI5: Gepäckraum 3 | AJ5: Kraftstoff, ausfliegbar | AK5: Startmasse Startmoment | AL5: Leermoment | AM5: Moment Kraftstoff, nichtausfliegbar | AN5: Schmierstoff | AO5: =Moment der Grundmasse | AP5: Sitzreihe 1 Moment | AQ5: Sitzreihe 2 | AR5: Sitzreihe 3 | AS5: Gepäckraum 1 | AT5: Gepäckraum 2 | AU5: Gepäckraum 3 | AV5: Kraftstoff, ausfliegbar | AW5: Gesamtmoment | AX5: Bewertung | AY5: Kennzeichen | AZ5: Vorhandene Bahnlänge (aus AIP) | BA5: Vorhandene Startstrecke ü. 15 m | BB5: Daten: | BC5: Grundstrecken | BD5: Höhenzuschlag | BE5: Temperaturzuschlag | BF5: Windeinfluss | BG5: Neigungszuschlag | BH5: Grasbahnzuschlag | BI5: Oberflächenzuschlag | BJ5: Weitere Zuschläge | BK5: Benötigte RollStrecke | BL5: Grundstrecken | BM5: Höhenzuschlag | BN5: Temperaturzuschlag | BO5: Windeinfluss | BP5: Neigungszuschlag | BQ5: Grasbahnzuschlag | BR5: Oberflächenzuschlag | BS5: Weitere Zuschläge | BT5: Benötigte Strecke
B6: D-C152 other | C6: Cessna 152 | D6: 25 | E6: 35 | F6: 98 | G6: 93 | H6: 535 | I6: 429 | J6: laut Handbuch | K6: 758 | L6: 651 | M6: 55 | N6: 60 | O6: 70 | P6: 93-104 | Q6: 140 | R6: 85 | S6: 55 | T6: 66 | U6: 40 | V6: 35 | W6: 60 | X6: 70 | Y6: Cessna 152 | Z6: =Z42 -> 0 | AA6: =AA42 -> 0 | AB6: =AB42 -> 0 | AD6: 160 | AE6: 0 | AF6: 0 | AG6: 10 | AH6: 0 | AI6: 0 | AJ6: 66.24 | AL6: 0 | AM6: 0 | AN6: 0 | AP6: 160 | AQ6: 0 | AR6: 0 | AS6: 10 | AT6: 0 | AU6: 0 | AV6: 66.24 | AX6: =AX42 ->  | AY6: =B6 -> D-C152 other | AZ6: =AZ42 -> 425 | BA6: 738 | BB6: =BB42 -> Platzhöhe 1862ft, QNH=1013,2hPa, Druckhöhe=1862ft, T=20°C | BC6: =BC42 -> 273 | BD6: (eingerechnet) | BE6: (eingerechnet) | BF6: 0 | BG6: 0 | BH6: 0 | BI6: 0 | BJ6: 0 | BK6: 273 | BL6: 508 | BM6: (eingerechnet) | BN6: (eingerechnet) | BO6: 0 | BP6: 0 | BQ6: 0 | BR6: 0 | BS6: 0 | BT6: 508
B7: D-EOKK | C7: Cessna 152 | D7: 25 | E7: 35 | F7: 98 | G7: 93 | H7: 544 | I7: 436 | J7: laut Handbuch | K7: 758 | L7: 651 | M7: 55 | N7: 60 | O7: 70 | P7: 93-104 | Q7: 140 | R7: 85 | S7: 55 | T7: 66 | U7: 40 | V7: 35 | W7: 60 | X7: 70 | Y7: Cessna 152 | Z7: =Z42 -> 0 | AA7: =AA42 -> 0 | AB7: =AB42 -> 0 | AD7: 160 | AE7: 0 | AF7: 0 | AG7: 10 | AH7: 0 | AI7: 0 | AJ7: 66.24 | AL7: 0 | AM7: 0 | AN7: 0 | AP7: 160 | AQ7: 0 | AR7: 0 | AS7: 10 | AT7: 0 | AU7: 0 | AV7: 66.24 | AX7: =AX42 ->  | AY7: =B7 -> D-EOKK | AZ7: =AZ42 -> 425 | BA7: 738 | BB7: =BB42 -> Platzhöhe 1862ft, QNH=1013,2hPa, Druckhöhe=1862ft, T=20°C | BC7: =BC42 -> 273 | BD7: (eingerechnet) | BE7: (eingerechnet) | BF7: 0 | BG7: 0 | BH7: 0 | BI7: 0 | BJ7: 0 | BK7: 273 | BL7: 508 | BM7: (eingerechnet) | BN7: (eingerechnet) | BO7: 0 | BP7: 0 | BQ7: 0 | BR7: 0 | BS7: 0 | BT7: 508
B8: D-ETCR | C8: Cessna 152 | D8: 25 | E8: 35 | F8: 98 | G8: 93 | H8: 537 | I8: 422 | J8: laut Handbuch | K8: 758 | L8: 651 | M8: 55 | N8: 60 | O8: 70 | P8: 93-104 | Q8: 140 | R8: 85 | S8: 55 | T8: 66 | U8: 40 | V8: 35 | W8: 60 | X8: 70 | Y8: Cessna 152 | Z8: =Z42 -> 0 | AA8: =AA42 -> 0 | AB8: =AB42 -> 0 | AD8: 160 | AE8: 0 | AF8: 0 | AG8: 10 | AH8: 0 | AI8: 0 | AJ8: 66.24 | AL8: 0 | AM8: 0 | AN8: 0 | AP8: 160 | AQ8: 0 | AR8: 0 | AS8: 10 | AT8: 0 | AU8: 0 | AV8: 66.24 | AX8: =AX42 ->  | AY8: D-ETCR | AZ8: =AZ42 -> 425 | BA8: 738 | BB8: =BB42 -> Platzhöhe 1862ft, QNH=1013,2hPa, Druckhöhe=1862ft, T=20°C | BC8: =BC42 -> 273 | BD8: (eingerechnet) | BE8: (eingerechnet) | BF8: 0 | BG8: 0 | BH8: 0 | BI8: 0 | BJ8: 0 | BK8: 273 | BL8: 508 | BM8: (eingerechnet) | BN8: (eingerechnet) | BO8: 0 | BP8: 0 | BQ8: 0 | BR8: 0 | BS8: 0 | BT8: 508
B9: D-EDMJ | C9: Cessna 152 | D9: 25 | E9: 35 | F9: 98 | G9: 93 | K9: 758 | L9: 651 | M9: 55 | N9: 60 | O9: 70 | P9: 93-104 | Q9: 140 | R9: 85 | S9: 55 | T9: 66 | U9: 40 | V9: 35 | W9: 60 | X9: 70 | Y9: Cessna 152 | Z9: =Z42 -> 0 | AA9: =AA42 -> 0 | AB9: 0 | AD9: 160 | AE9: 0 | AF9: 0 | AG9: 10 | AH9: 0 | AI9: 0 | AJ9: 66.24 | AL9: 0 | AM9: 0 | AN9: 0 | AP9: 160 | AQ9: 0 | AR9: 0 | AS9: 10 | AT9: 0 | AU9: 0 | AV9: 66.24 | AY9: D-EDMJ | AZ9: 425 | BA9: 738 | BB9: =BB43 -> Platzhöhe 1862ft, QNH=1013,25hPa, Druckhöhe=1862ft, T=15°C | BD9: (eingerechnet) | BE9: (eingerechnet) | BF9: 0 | BG9: 0 | BH9: 0 | BI9: 0 | BJ9: 0 | BK9: =BK42 -> 273 | BL9: =BL42 -> 508 | BM9: (eingerechnet) | BN9: (eingerechnet) | BO9: 0 | BP9: 0 | BQ9: 0 | BR9: 0 | BS9: =BS42 -> 0 | BT9: =BT42 -> 508
B10: D-C172 other | C10: Cessna 172 | D10: 35 | E10: 45 | F10: 151.4 | G10: 151.4 | N10: 60 | O10: 70 | X10: 70 | Y10: Cessna 172 | AY10: D-C172 other
B11: D-EHCP | C11: Cessna 172 N | D11: 35 | E11: 45 | F11: 204 | G11: 189 | H11: 647 | I11: 636 | J11: laut Handbuch | K11: 1043 | L11: 1190 | N11: 60 | O11: 70 | P11: 80-97 | Q11: 160 | R11: 85 | S11: 59 | T11: 73 | U11: 47 | V11: 41 | W11: n.a. | X11: (65) 70 | Y11: Cessna 172 | Z11: =Z43 -> 0 | AA11: =AA43 -> 0 | AB11: 0 | AD11: 170 | AE11: 4 | AF11: 0 | AG11: 3 | AH11: 2 | AI11: 0 | AJ11: 66.24 | AL11: 0 | AM11: 0 | AN11: 0 | AP11: 159.8 | AQ11: 7.42 | AR11: 0 | AS11: 7.242 | AT11: 6.16 | AU11: 0 | AV11: 80.441856 | AX11: =AX43 ->  | AY11: D-EHCP | AZ11: =AZ43 -> 425 | BA11: 738 | BB11: =BB43 -> Platzhöhe 1862ft, QNH=1013,25hPa, Druckhöhe=1862ft, T=15°C | BC11: =BC43 ->  | BD11: (eingerechnet) | BE11: (eingerechnet) | BF11: 0 | BG11: 0 | BH11: 0 | BI11: 0 | BJ11: 0 | BM11: (eingerechnet) | BN11: (eingerechnet) | BO11: 0 | BP11: 0 | BQ11: 0 | BR11: 0
B12: D-EEFW | C12: Cessna 172 P | D12: 35 | E12: 45 | F12: 204 | G12: 189 | H12: 712 | I12: 740 | J12: laut Handbuch | K12: 1089 | L12: 1236 | N12: 60 | O12: 70 | P12: 80-97 | Q12: 160 | R12: 85 | S12: 59 | T12: 73 | U12: 47 | V12: 41 | W12: n.a. | X12: 70 | Y12: Cessna 172 | Z12: =Z44 -> 0 | AA12: 0 | AB12: 0 | AD12: 170 | AE12: 5 | AF12: 0 | AG12: 0 | AH12: 0 | AI12: 0 | AJ12: 66.24 | AL12: 0 | AM12: 0 | AN12: 0 | AP12: 159.8 | AQ12: 9.25 | AR12: 0 | AS12: 0 | AT12: 0 | AU12: 0 | AV12: 81.4752 | AX12: =AX44 ->  | AY12: D-EEFW | AZ12: =AZ44 -> 425 | BA12: 738 | BB12: =BB44 -> Platzhöhe 1861ft, QNH=1013,25hPa, Druckhöhe=1861ft, T=15°C | BC12: =BC44 ->  | BD12: (eingerechnet) | BE12: (eingerechnet) | BG12: 0 | BH12: 0 | BI12: 0 | BJ12: 0 | BM12: (eingerechnet) | BN12: (eingerechnet) | BP12: 0 | BQ12: 0 | BR12: 0 | BS12: 0
B13: D-EFTT | C13: Cessna 172 S | D13: 35 | E13: 45 | N13: 60 | O13: 70 | P13: n.a. | Q13: n.a. | R13: n.a. | S13: n.a. | T13: n.a. | U13: n.a. | V13: n.a. | W13: n.a. | X13: 70 | Y13: Cessna 172 | Z13: 0 | AA13: 0 | AB13: 0 | AC13: 659.4 | AD13: 180 | AE13: 65 | AF13: 0 | AG13: 0 | AH13: 0 | AI13: 0 | AJ13: 136.08 | AK13: 1040.48 | AL13: 0 | AM13: 0 | AN13: 0 | AO13: 66.4 | AP13: 16.92 | AQ13: 12.0575 | AR13: 0 | AS13: 0 | AT13: 0 | AU13: 0 | AV13: 16.5255552 | AW13: 111.9030552 | AX13: =AX45 ->  | AY13: D-EFTT
B14: D-EMPR | C14: Piper PA 28-181 | Y14: Piper PA 28 | AY14: D-EMPR
AY15: 0
AY16: 0
AY17: 0
AY18: 0
AY19: 0
AY20: 0
AY21: 0
AY22: 0
AY23: 0
AY24: 0
AY25: 0
AY26: 0
AY27: 0
AY28: 0
AY29: 0
AY30: 0
AY31: 0
AY32: 0
AY33: 0
AY34: 0
AY35: 0
AY36: 0
AY37: 0
AY38: 0
AY39: 0
AY40: 0
X41: W&B | AZ41: Startstreckenberechnung
X42: C 152 | AC42: ='W&B C152'!E8 ->  | AD42: ='W&B C152'!E11 -> 160 | AE42: ='W&B C152'!E10 -> 0 | AG42: ='W&B C152'!E12 -> 10 | AH42: ='W&B C152'!E13 -> 0 | AJ42: ='W&B C152'!E9 -> 66.24 | AK42: ='W&B C152'!E14 ->  | AO42: ='W&B C152'!F8 ->  | AP42: ='W&B C152'!E11 -> 160 | AQ42: ='W&B C152'!E10 -> 0 | AS42: ='W&B C152'!E12 -> 10 | AT42: ='W&B C152'!E13 -> 0 | AV42: ='W&B C152'!E9 -> 66.24 | AW42: ='W&B C152'!F14 ->  | AX42: ='W&B C152'!A94 ->  | AZ42: ='Startstrecke C152'!G62 -> 425 | BA42: ='Startstrecke C152'!H62 -> 738 | BB42: ="Platzhöhe "&'Startstrecke C152'!D9&"ft, QNH="&'Startstrecke C152'!D8&"hPa, Druckhöhe="&'Startstrecke C152'!D10&"ft, T="&'Startstrecke C152'!D7&"°C" -> Platzhöhe 1862ft, QNH=1013,2hPa, Druckhöhe=1862ft, T=20°C | BC42: ='Startstrecke C152'!G50 -> 273 | BD42: (eingerechnet) | BE42: (eingerechnet) | BF42: ='Startstrecke C152'!G53 -> 0 | BG42: ='Startstrecke C152'!G54 -> 0 | BH42: ='Startstrecke C152'!G55 -> 0 | BI42: ='Startstrecke C152'!G56 -> 0 | BJ42: =SUM('Startstrecke C152'!G58:G60) -> 0 | BK42: ='Startstrecke C152'!G61 -> 273 | BL42: ='Startstrecke C152'!H51 -> 508 | BM42: (eingerechnet) | BN42: (eingerechnet) | BO42: ='Startstrecke C152'!H53 -> 0 | BP42: ='Startstrecke C152'!H54 -> 0 | BQ42: ='Startstrecke C152'!H55 -> 0 | BR42: ='Startstrecke C152'!H56 -> 0 | BS42: =SUM('Startstrecke C152'!H57:H60) -> 0 | BT42: ='Startstrecke C152'!H61 -> 508
X43: C 172 N | AC43: ='W&B C172 N'!$E$8 ->  | AD43: ='W&B C172 N'!$E$11 -> 170 | AE43: ='W&B C172 N'!$E$12 -> 4 | AF43: ='W&B C172 N'!$E$10 -> 0 | AG43: ='W&B C172 N'!$E$13 -> 3 | AH43: ='W&B C172 N'!$E$14 -> 2 | AJ43: ='W&B C172 N'!$E$9 -> 66.24 | AK43: ='W&B C172 N'!$E$15 ->  | AO43: ='W&B C172 N'!$F$8 ->  | AP43: ='W&B C172 N'!$F$11 -> 159.8 | AQ43: ='W&B C172 N'!$F$12 -> 7.42 | AR43: ='W&B C172 N'!$F$10 -> 0 | AS43: ='W&B C172 N'!$F$13 -> 7.242 | AT43: ='W&B C172 N'!$F$14 -> 6.16 | AV43: ='W&B C172 N'!$F$9 -> 80.441856 | AW43: ='W&B C172 N'!$F$15 ->  | AX43: ='W&B C172 N'!A95 ->  | AZ43: ='Startstrecke C172 N'!G85 -> 425 | BA43: ='Startstrecke C172 N'!H85 -> 738 | BB43: ="Platzhöhe "&'Startstrecke C172 N'!D9&"ft, QNH="&'Startstrecke C172 N'!D8&"hPa, Druckhöhe="&'Startstrecke C172 N'!D10&"ft, T="&'Startstrecke C172 N'!D7&"°C" -> Platzhöhe 1862ft, QNH=1013,25hPa, Druckhöhe=1862ft, T=15°C | BC43: ='Startstrecke C172 N'!G73 ->  | BD43: (eingerechnet) | BE43: (eingerechnet) | BF43: ='Startstrecke C172 N'!G76 -> 0 | BG43: ='Startstrecke C172 N'!G77 -> 0 | BH43: ='Startstrecke C172 N'!G78 -> 0 | BI43: ='Startstrecke C172 N'!G79 -> 0 | BJ43: =SUM('Startstrecke C172 N'!G81:G83) -> 0 | BK43: ='Startstrecke C172 N'!G84 ->  | BL43: ='Startstrecke C172 N'!H74 ->  | BM43: (eingerechnet) | BN43: (eingerechnet) | BO43: ='Startstrecke C172 N'!H76 -> 0 | BP43: ='Startstrecke C172 N'!H77 -> 0 | BQ43: ='Startstrecke C172 N'!H78 -> 0 | BR43: ='Startstrecke C172 N'!H79 -> 0 | BS43: =SUM('Startstrecke C172 N'!H80:H83) ->  | BT43: ='Startstrecke C172 N'!H84 -> 
X44: C 172 P | AC44: ='W&B C172 P'!$E$8 ->  | AD44: ='W&B C172 P'!$E$11 -> 170 | AE44: ='W&B C172 P'!$E$12 -> 5 | AF44: ='W&B C172 P'!$E$10 -> 0 | AG44: ='W&B C172 P'!$E$13 -> 0 | AH44: ='W&B C172 P'!$E$14 -> 0 | AJ44: ='W&B C172 P'!$E$9 -> 66.24 | AK44: ='W&B C172 P'!$E$15 ->  | AO44: ='W&B C172 P'!$F$8 ->  | AP44: ='W&B C172 P'!$F$11 -> 159.8 | AQ44: ='W&B C172 P'!$F$12 -> 9.25 | AR44: ='W&B C172 P'!$F$10 -> 0 | AS44: ='W&B C172 P'!$F$13 -> 0 | AT44: ='W&B C172 P'!$F$14 -> 0 | AV44: ='W&B C172 P'!$F$9 -> 81.4752 | AW44: ='W&B C172 P'!$F$15 ->  | AX44: ='W&B C172 P'!A95 ->  | AZ44: ='Startstrecke C172 P'!G74 -> 425 | BA44: ='Startstrecke C172 P'!H74 -> 738 | BB44: ="Platzhöhe "&'Startstrecke C172 P'!D9&"ft, QNH="&'Startstrecke C172 P'!D8&"hPa, Druckhöhe="&'Startstrecke C172 P'!D10&"ft, T="&'Startstrecke C172 P'!D7&"°C" -> Platzhöhe 1861ft, QNH=1013,25hPa, Druckhöhe=1861ft, T=15°C | BC44: ='Startstrecke C172 P'!G62 ->  | BD44: (eingerechnet) | BE44: (eingerechnet) | BF44: ='Startstrecke C172 P'!G65 ->  | BG44: ='Startstrecke C172 P'!G66 -> 0 | BH44: ='Startstrecke C172 P'!G67 -> 0 | BI44: ='Startstrecke C172 P'!G68 -> 0 | BJ44: =SUM('Startstrecke C172 P'!G70:G72) -> 0 | BK44: ='Startstrecke C172 P'!G73 ->  | BL44: ='Startstrecke C172 P'!H63 ->  | BM44: (eingerechnet) | BN44: (eingerechnet) | BO44: ='Startstrecke C172 P'!H65 ->  | BP44: ='Startstrecke C172 P'!H66 -> 0 | BQ44: ='Startstrecke C172 P'!H67 -> 0 | BR44: ='Startstrecke C172 P'!H68 -> 0 | BS44: =SUM('Startstrecke C172 P'!H69:H72) -> 0 | BT44: ='Startstrecke C172 P'!H73 -> 
X45: C 172 S | AC45: ='W&B C172 S'!$E$8 -> 659.4 | AD45: ='W&B C172 S'!$E$11 -> 180 | AE45: ='W&B C172 S'!$E$12 -> 65 | AF45: ='W&B C172 S'!$E$10 -> 0 | AG45: ='W&B C172 S'!$E$13 -> 0 | AH45: ='W&B C172 S'!$E$14 -> 0 | AJ45: ='W&B C172 S'!$E$9 -> 136.08 | AK45: ='W&B C172 S'!$E$15 -> 1040.48 | AO45: ='W&B C172 S'!$F$8 -> 66.4 | AP45: ='W&B C172 S'!$F$11 -> 16.92 | AQ45: ='W&B C172 S'!$F$12 -> 12.0575 | AR45: ='W&B C172 S'!$F$10 -> 0 | AS45: ='W&B C172 S'!$F$13 -> 0 | AT45: ='W&B C172 S'!$F$14 -> 0 | AV45: ='W&B C172 S'!$F$9 -> 16.5255552 | AW45: ='W&B C172 S'!$F$15 -> 111.9030552 | AX45: ='W&B C172 S'!A95 -> 

Sheet W&B C172 N
A2: Weight & Balance C 172 N | C2: =IF(VLOOKUP('Flugdurchführungsplan (n. DFS)'!Y4,Flugzeuge!$B$6:$X$40,2,FALSE)="Cessna 172 N",'Flugdurchführungsplan (n. DFS)'!Y4,"falscher Flugzeugtyp für diese Berechnung!") ->  | L2: =IF(VLOOKUP('Flugdurchführungsplan (n. DFS)'!Y4,Flugzeuge!$B$6:$X$40,2,FALSE)="Cessna 172 N","OK",1) -> 
A4: Berechnung des Beladungszustands | B4: Musterflugzeug/Beispiel | E4: =IF(VLOOKUP('Flugdurchführungsplan (n. DFS)'!Y4,Flugzeuge!$B$6:$X$40,2,FALSE)="Cessna 172 N",'Flugdurchführungsplan (n. DFS)'!Y4,"bitte LFZ-Kennzeichen im Flugdurchführungsplan ändern oder im Sheet Flugzeuge korrigieren!") -> 
B5: Gewicht | C5: Moment | E5: Gewicht | F5: Moment
A6: C -172 | B6: in kp | C6: in mkp | E6: in kp | F6: in mkp | I6: max Gewicht
A8: 1. Grundgewicht | B8: 695 | C8: 660 | E8: =IF(VLOOKUP('Flugdurchführungsplan (n. DFS)'!Y4,Flugzeuge!$B$6:$X$40,2,FALSE)="Cessna 172 N",VLOOKUP('Flugdurchführungsplan (n. DFS)'!Y4,Flugzeuge!$B$6:$X$40,7,FALSE),"Fehler") ->  | F8: =IF(VLOOKUP('Flugdurchführungsplan (n. DFS)'!Y4,Flugzeuge!$B$6:$X$40,2,FALSE)="Cessna 172 N",VLOOKUP('Flugdurchführungsplan (n. DFS)'!Y4,Flugzeuge!$B$6:$X$40,8,FALSE),"Fehler") ->  | N8: =C8/B8 -> 0.9496402878 | O8: =N8*1000 -> 949.6402878
A9: 2. Kraftstoff, ausfliegbar (bei 0,72 kg/l) und | B9: 109 | C9: 132 | E9: =G9*0.72 -> 66.24 | F9: =E9*P36 -> 80.441856 | G9: ='Flugdurchführungsplan (n. DFS)'!F97 -> 92 | I9: =189*0.72 -> 136.08 | J9: =IF(VLOOKUP('Flugdurchführungsplan (n. DFS)'!Y4,Flugzeuge!$B$6:$X$40,2,FALSE)="Cessna 172 N",VLOOKUP('Flugdurchführungsplan (n. DFS)'!Y4,Flugzeuge!$B$6:$X$40,5,FALSE),"Fehler") ->  | N9: =C9/B9 -> 1.211009174 | O9: =N9*1000 -> 1211.009174
A10: Fallschirm | E10: 0 | F10: =E10*P36 -> 0 | N10: =N9 -> 1.211009174 | O10: 1211.009174
A11: 3. Pilot und vorderer Fluggast | B11: 154.3 | C11: 145 | E11: 170 | F11: =E11*P33 -> 159.8 | N11: 0.939727803 | O11: 939.727803
A12: 4. Hintere Fluggäste | B12: 77.1 | C12: 143 | E12: 4 | F12: =E12*P39 -> 7.42 | N12: 1.854734112 | O12: 1854.734112
A13: 5. Gepäckbereich 1 | B13: 43.5 | C13: 110 | E13: 3 | F13: =E13*P42 -> 7.242 | I13: 54 | N13: 2.528735632 | O13: 2528.735632
A14: 6. Gepäckbereich 2 | E14: 2 | F14: =E14*P45 -> 6.16 | I14: 23 | N14: 0.307826087 | O14: 307.826087
A15: 7. Startgewicht (max. 1043 kp) und Moment | B15: 1043 | C15: =SUM(C8:C14) -> 1190 | E15: =SUM(E8:E14) ->  | F15: =SUM(F8:F14) ->  | I15: 1043.03
A17: (Leergewicht und -moment basiert auf der letzten Wägung vom )
N30: Gewicht | O30: Moment | P30: Hebel
N31: Pilot, Fluggast
N32: 0 | O32: 0
N33: 200 | O33: =N33*P33 -> 188 | P33: 0.94
N34: Kraftstoff (Standrdtanks) 0,72 kp/l und Fallschirm
N35: 0 | O35: 0
N36: =189*0.72 -> 136.08 | O36: =N36*P36 -> 165.255552 | P36: 1.2144
N37: Hintere Fluggäste
N38: 0 | O38: 0
N39: 188 | O39: =N39*P39 -> 348.74 | P39: 1.855
N40: Gepäck im Gepäckbereich 1 (oder Fluggast auf Kindersitz)
N41: 0 | O41: 0
N42: 54 | O42: =N42*P42 -> 130.356 | P42: 2.414
N43: Gepäck im Gepäckbereich 2, max. 23 kp
N44: 0 | O44: 0
N45: 23 | O45: =N45*P45 -> 70.84 | P45: 3.08
F61: zu schwer
N65: Nutzflugzeug
N66: =N78 -> 700 | O66: 695
N67: 910 | O67: 935
N68: Nutzflugzeug oben
B69: zu frontlastig | N69: 910 | O69: 820 | T69: kp | U69: max
N70: 910 | O70: 935 | T70: =E8 ->  | U70: =I8 -> 0 | V70: =IF(AND(U70>0,U70<T70),"Grundgewicht überschritten! ","") -> 
D71: zulässig | T71: =E9 -> 66.24 | U71: =I9 -> 136.08 | V71: =IF(AND(U71>0,U71<T71),"Kraftstoffmenge zu hoch! ","") -> 
T72: =E11 -> 170 | U72: =I11 -> 0 | V72: =IF(AND(U72>0,U72<T72),"","") -> 
N73: y | O73: x | T73: =E13 -> 3 | U73: =I13 -> 54 | V73: =IF(AND(U73>0,U73<T73),"Gepäckbereich 1 überladen! ","") -> 
N74: IST-Wert | T74: =E14 -> 2 | U74: =I14 -> 23 | V74: =IF(AND(U74>0,U74<T74),"Gepäckbereich 2 überladen! ","") -> 
N75: =E15 ->  | O75: =F15 ->  | T75: =T74+T73 -> 5 | U75: 54 | V75: =IF(AND(U75>0,U75<T75),"Gepäckbereich in Summe überladen! ","") -> 
N76: Vordere Grenze | T76: =E15 ->  | U76: =I15 -> 1043.03 | V76: =IF(AND(U76>0,U76<T76),"Gesamtgewicht zu hoch! ","") -> 
N77: Gewicht VG | O77: Moment VG | Q77: y=ax+c | R77: x=(y-c)/a | T77: 700 | U77: =IF($N$75<T77,$N$75,0) ->  | V77: =IF(U77>0,IF(U77<T77,"Gewicht prüfen - zu gering? ",""),"") -> 
N78: 700 | O78: 600
N79: 890 | O79: 780 | Q79: a= | R79: =(N79-N78)/(O79-O78) -> 1.055555556 | S79: c= | T79: =N78-O78*R79 -> 66.66666667 | U79: =IF(AND($N$75<=N79,$N$75>=N78),$N$75,0) ->  | V79: =IF(U79>0,IF($O$75<(U79-T79)/R79,"zu vorderlastig! ",IF($O$75>(U79-$T$84)/$R$84,"zu hecklastig beladen! ","OK")),"") -> 
B80: zulässig | N80: =N84 -> 1043.04 | O80: 1015 | Q80: a= | R80: =(N80-N79)/(O80-O79) -> 0.6512340426 | S80: c= | T80: =N79-O79*R80 -> 382.0374468 | U80: =IF(AND($N$75<=N80,$N$75>=N79),$N$75,0) ->  | V80: =IF(U80>0,IF($O$75<(U80-T80)/R80,"Zu vorderlastig! ",IF($O$75>(U80-$T$84)/$R$84,"Zu hecklastig beladen! ","OK")),"") -> 
N81: Hintere Grenze | V81: =IF(U81>0,"Maximalgewicht überschritten! ","") -> 
F82: zu hecklastig | N82: Gewicht HG | O82: Moment HG | V82: =V70&V71&V72&V73&V74&V76&V77&V79&V80&V75 -> 
N83: 700 | O83: 810
N84: 1043.04 | O84: 1250 | Q84: a= | R84: =(N84-N83)/(O84-O83) -> 0.7796363636 | S84: c= | T84: =N83-O83*R84 -> 68.49454545
N85: Obere Grenze
N86: Gewicht OG | O86: Moment OG
N87: =N80 -> 1043.04 | O87: 1015
N88: =N87 -> 1043.04 | O88: =O84 -> 1250
A95: =IF(L2="OK",IF(V82="OK"," Weight & Balance OK!",V82),"FEHLER!") -> 
A97: Luftfahrzeugführer | C97: Datum | F97: Unterschrift

Sheet Startstrecke C172 N
B2: Startstreckenberechnung Cessna 172 N (Kurzstart)
B4: LFZ-Muster | D4: C 172 N | J4: MTOW: 1043 kp
B5: Kennzeichen | D5: =IF(VLOOKUP('Flugdurchführungsplan (n. DFS)'!Y4,Flugzeuge!$B$6:$X$40,2,FALSE)="Cessna 172 N",'Flugdurchführungsplan (n. DFS)'!Y4,"falscher Flugzeugtyp für diese Berechnung!") -> 
B7: Temperatur | D7: 15 | H7: Leergewicht | J7: ='W&B C172 N'!E8 -> 
B8: QNH in hPa | D8: 1013.25 | H8: Zuladung | J8: =SUM('W&B C172 N'!E10:E14) -> 179
B9: Platzhöhe ü.NN in ft | D9: 1862 | F9: =IF('Flugdurchführungsplan (n. DFS)'!I5<>"","("&Flugplätze!AB4&" "&Flugplätze!AB6&"ft)","") ->  | H9: Treibstoff | J9: ='W&B C172 N'!E9 -> 66.24
B10: Druckhöhe | D10: =ROUND(-(D8-1013.25)*27+D9,0) -> 1862
B11: Windrichtung | D11: 270 | H11: Abfluggewicht | J11: ='W&B C172 N'!E15 ->  | L11: Bedingungen:
B12: Windgeschwindigkeit | D12: 7 | L12: - Klappen 0°
B13: Bahnrichtung | D13: 25 | F13: =IF(D13<=18,D13+18,D13-18) -> 7 | L13: - Vollgas vor dem Lösen der Bremsen
B14: Gegenwind | D14: =D12*COS((D11-(10*D13))*PI()/180) -> 6.577848346 | F14: =D12*COS((D11-(10*F13))*PI()/180) -> -6.577848346 | G14: (negative Werte = Rückenwind) | L14: - Befestigte, trockene und ebene Startbahn
B15: Seitenwind | D15: =D12*SIN((D11-(10*D13))*PI()/180) -> 2.394141003 | F15: =D12*SIN((D11-(10*F13))*PI()/180) -> -2.394141003 | G15: (pos. Werte = von rechts, neg. = von links) | L15: - Windstille
G16: =IF(OR($AI$20=G18,$AK$20=G18),1,0) -> 0 | H16: =IF(OR($AI$20=G18,$AK$20=G18),1,0) -> 0 | I16: =IF(OR($AI$20=I18,$AK$20=I18),1,0) -> 1 | J16: =IF(OR($AI$20=I18,$AK$20=I18),1,0) -> 1 | K16: =IF(OR($AI$20=K18,$AK$20=K18),1,0) -> 1 | L16: =IF(OR($AI$20=K18,$AK$20=K18),1,0) -> 1 | M16: =IF(OR($AI$20=M18,$AK$20=M18),1,0) -> 0 | N16: =IF(OR($AI$20=M18,$AK$20=M18),1,0) -> 0 | O16: =IF(OR($AI$20=O18,$AK$20=O18),1,0) -> 0 | P16: =IF(OR($AI$20=O18,$AK$20=O18),1,0) -> 0
B17: Flug-gewicht | C17: Startgeschwindigkeit | F17: Druckhöhe | G17: Startlauf und Startstrecke über 15 m Höhe in Metern in Abhängikeit von der Temperatur | T17: 0 | U17: 10 | V17: 20 | W17: 30 | X17: 40 | AA17: 0 | AB17: 10 | AC17: 20 | AD17: 30 | AE17: 40
C18: beim Abheben | D18: in 15 m Höhe | G18: 0 | I18: 10 | K18: 20 | M18: 30 | O18: 40 | T18: Startlauf | U18: Startlauf | V18: Startlauf | W18: Startlauf | X18: Startlauf | AA18: Str. ü. 15 m | AB18: Str. ü. 15 m | AC18: Str. ü. 15 m | AD18: Str. ü. 15 m | AE18: Str. ü. 15 m | AG18: Startlauf | AH18: Startlauf | AI18: Startlauf | AJ18: Startlauf | AK18: Startlauf | AL18: Str. ü. 15 m | AM18: Str. ü. 15 m | AN18: Str. ü. 15 m | AO18: Str. ü. 15 m | AP18: Str. ü. 15 m
B19: kp | C19: kt IAS | D19: kt IAS | F19: ft | G19: Startlauf | H19: Str. ü. 15 m | I19: Startlauf | J19: Str. ü. 15 m | K19: Startlauf | L19: Str. ü. 15 m | M19: Startlauf | N19: Str. ü. 15 m | O19: Startlauf | P19: Str. ü. 15 m | S19: ft | T19: 0 | U19: 1 | V19: 2 | W19: 3 | X19: 4 | Z19: ft | AA19: 0 | AB19: 1 | AC19: 2 | AD19: 3 | AE19: 4
A20: =IF(J11<=B34,0,1) ->  | B20: 1043 | C20: 52 | D20: 59 | E20: =IF(OR($AH$22=F20,$AH$24=F20),1,0) -> 0 | F20: 0 | G20: 219 | H20: 396 | I20: 236 | J20: 424 | K20: 255 | L20: 454 | M20: 273 | N20: 485 | O20: 293 | P20: 518 | S20: 0 | T20: =G20 -> 219 | U20: =I20 -> 236 | V20: =K20 -> 255 | W20: =M20 -> 273 | X20: =O20 -> 293 | Z20: 0 | AA20: =H20 -> 396 | AB20: =J20 -> 424 | AC20: =L20 -> 454 | AD20: =N20 -> 485 | AE20: =P20 -> 518 | AI20: =ROUNDDOWN(AJ20/10,0)*10 -> 10 | AJ20: =$D$7 -> 15 | AK20: =ROUNDUP(AJ20/10,0)*10 -> 20 | AN20: =ROUNDDOWN(AO20/10,0)*10 -> 10 | AO20: =$D$7 -> 15 | AP20: =ROUNDUP(AO20/10,0)*10 -> 20
E21: 1 | F21: 1000 | G21: 241 | H21: 433 | I21: 259 | J21: 465 | K21: 279 | L21: 497 | M21: 299 | N21: 532 | O21: 320 | P21: 568 | S21: 1000 | T21: =G21 -> 241 | U21: =I21 -> 259 | V21: =K21 -> 279 | W21: =M21 -> 299 | X21: =O21 -> 320 | Z21: 1000 | AA21: =H21 -> 433 | AB21: =J21 -> 465 | AC21: =L21 -> 497 | AD21: =N21 -> 532 | AE21: =P21 -> 568 | AI21: =$AI$20/10 -> 1 | AK21: =$AK$20/10 -> 2 | AN21: =$AN$20/10 -> 1 | AP21: =$AP$20/10 -> 2
E22: 1 | F22: 2000 | G22: 264 | H22: 474 | I22: 287 | J22: 509 | K22: 305 | L22: 546 | M22: 328 | N22: 584 | O22: 352 | P22: 626 | S22: 2000 | T22: 264 | U22: 287 | V22: 305 | W22: 328 | X22: 352 | Z22: 2000 | AA22: 474 | AB22: 509 | AC22: 546 | AD22: 584 | AE22: 626 | AH22: =ROUNDDOWN(AH23/1000,0)*1000 -> 1000 | AI22: =VLOOKUP($AH22,$S$19:$X$28,AI$21+2,FALSE) -> 259 | AJ22: =ROUND(AI22+(AJ20-AI20)/10*(AK22-AI22),0) -> 269 | AK22: =VLOOKUP($AH22,$S$19:$X$28,AK$21+2,FALSE) -> 279 | AM22: =ROUNDDOWN(AM23/1000,0)*1000 -> 1000 | AN22: =VLOOKUP($AM22,$Z$19:$AE$28,AN$21+2,FALSE) -> 465 | AO22: =ROUND(AN22+(AO20-AN20)/10*(AP22-AN22),0) -> 481 | AP22: =VLOOKUP($AM22,$Z$19:$AE$28,AP$21+2,FALSE) -> 497
E23: 0 | F23: 3000 | G23: 290 | H23: 521 | I23: 312 | J23: 559 | K23: 335 | L23: 600 | M23: 361 | N23: 645 | O23: 387 | P23: 690 | S23: 3000 | T23: 290 | U23: 312 | V23: 335 | W23: 361 | X23: 387 | Z23: 3000 | AA23: 521 | AB23: 559 | AC23: 600 | AD23: 645 | AE23: 690 | AH23: =$D$10 -> 1862 | AI23: =ROUND(AI22+(AH23-AH22)/1000*(AI24-AI22),0) -> 283 | AJ23: =ROUND(AI23+(AJ20-AI20)/10*(AK23-AI23),0) -> 292 | AK23: =ROUND(AK22+(AH23-AH22)/1000*(AK24-AK22),0) -> 301 | AM23: =$D$10 -> 1862 | AN23: =ROUND(AN22+(AM23-AM22)/1000*(AN24-AN22),0) -> 503 | AO23: =ROUND(AN23+(AO20-AN20)/10*(AP23-AN23),0) -> 521 | AP23: =ROUND(AP22+(AM23-AM22)/1000*(AP24-AP22),0) -> 539
E24: 0 | F24: 4000 | G24: 319 | H24: 573 | I24: 343 | J24: 617 | K24: 369 | L24: 663 | M24: 396 | N24: 712 | O24: 427 | P24: 765 | S24: 4000 | T24: 319 | U24: 343 | V24: 369 | W24: 396 | X24: 427 | Z24: 4000 | AA24: 573 | AB24: 617 | AC24: 663 | AD24: 712 | AE24: 765 | AH24: =ROUNDUP(AH23/1000,0)*1000 -> 2000 | AI24: =VLOOKUP($AH24,$S$19:$X$28,AI$21+2,FALSE) -> 287 | AJ24: =ROUND(AI24+(AJ20-AI20)/10*(AK24-AI24),0) -> 296 | AK24: =VLOOKUP($AH24,$S$19:$X$28,AK$21+2,FALSE) -> 305 | AM24: =ROUNDUP(AM23/1000,0)*1000 -> 2000 | AN24: =VLOOKUP($AM24,$Z$19:$AE$28,AN$21+2,FALSE) -> 509 | AO24: =ROUND(AN24+(AO20-AN20)/10*(AP24-AN24),0) -> 528 | AP24: =VLOOKUP($AM24,$Z$19:$AE$28,AP$21+2,FALSE) -> 546
E25: 0 | F25: 5000 | G25: 351 | H25: 632 | I25: 378 | J25: 683 | K25: 407 | L25: 735 | M25: 437 | N25: 791 | O25: 469 | P25: 852 | S25: 5000 | T25: 351 | U25: 378 | V25: 407 | W25: 437 | X25: 469 | Z25: 5000 | AA25: 632 | AB25: 683 | AC25: 735 | AD25: 791 | AE25: 852
E26: 0 | F26: 6000 | G26: 386 | H26: 703 | I26: 416 | J26: 757 | K26: 450 | L26: 817 | M26: 483 | N26: 882 | O26: 520 | P26: 953 | S26: 6000 | T26: 386 | U26: 416 | V26: 450 | W26: 483 | X26: 520 | Z26: 6000 | AA26: 703 | AB26: 757 | AC26: 817 | AD26: 882 | AE26: 953
E27: 0 | F27: 7000 | G27: 427 | H27: 782 | I27: 460 | J27: 844 | K27: 497 | L27: 914 | M27: 535 | N27: 989 | O27: 576 | P27: 1071 | S27: 7000 | T27: 427 | U27: 460 | V27: 497 | W27: 535 | X27: 576 | Z27: 7000 | AA27: 782 | AB27: 844 | AC27: 914 | AD27: 989 | AE27: 1071
E28: 0 | F28: 8000 | G28: 472 | H28: 875 | I28: 511 | J28: 948 | K28: 550 | L28: 1029 | M28: 593 | N28: 1119 | O28: 639 | P28: 1216 | S28: 8000 | T28: 472 | U28: 511 | V28: 550 | W28: 593 | X28: 639 | Z28: 8000 | AA28: 875 | AB28: 948 | AC28: 1029 | AD28: 1119 | AE28: 1216
B31: Flug-gewicht | C31: Startgeschwindigkeit | F31: Druckhöhe | G31: Startlauf und Startstrecke über 15 m Höhe in Metern in Abhängikeit von der Temperatur
C32: beim Abheben | D32: in 15 m Höhe | G32: 0 | I32: 10 | K32: 20 | M32: 30 | O32: 40
B33: kp | C33: kt IAS | D33: kt IAS | F33: ft | G33: Startlauf | H33: Str. ü. 15 m | I33: Startlauf | J33: Str. ü. 15 m | K33: Startlauf | L33: Str. ü. 15 m | M33: Startlauf | N33: Str. ü. 15 m | O33: Startlauf | P33: Str. ü. 15 m
A34: =IF(AND(J11<=B34,J11>B44),1,0) ->  | B34: 953 | C34: 50 | D34: 56 | E34: =IF(OR($AH$22=F34,$AH$24=F34),1,0) -> 0 | F34: 0 | G34: 178 | H34: 326 | I34: 192 | J34: 347 | K34: 207 | L34: 372 | M34: 221 | N34: 396 | O34: 238 | P34: 424 | S34: ft | T34: 0 | U34: 1 | V34: 2 | W34: 3 | X34: 4 | Z34: ft | AA34: 0 | AB34: 1 | AC34: 2 | AD34: 3 | AE34: 4
E35: =IF(OR($AH$22=F35,$AH$24=F35),1,0) -> 1 | F35: 1000 | G35: 195 | H35: 355 | I35: 210 | J35: 379 | K35: 226 | L35: 405 | M35: 242 | N35: 433 | O35: 259 | P35: 463 | S35: 0 | T35: 178 | U35: 192 | V35: 207 | W35: 221 | X35: 238 | Z35: 0 | AA35: 326 | AB35: 347 | AC35: 372 | AD35: 396 | AE35: 424
E36: 1 | F36: 2000 | G36: 213 | H36: 387 | I36: 230 | J36: 415 | K36: 247 | L36: 443 | M36: 265 | N36: 474 | O36: 285 | P36: 507 | S36: 1000 | T36: 195 | U36: 210 | V36: 226 | W36: 242 | X36: 259 | Z36: 1000 | AA36: 355 | AB36: 379 | AC36: 405 | AD36: 433 | AE36: 463 | AH36: =ROUNDDOWN(AH37/1000,0)*1000 -> 1000 | AI36: =VLOOKUP($AH36,$S$34:$X$39,AI$21+2,FALSE) -> 210 | AK36: =VLOOKUP($AH36,$S$34:$X$39,AK$21+2,FALSE) -> 226 | AM36: =ROUNDDOWN(AM37/1000,0)*1000 -> 1000 | AN36: =VLOOKUP($AH36,$Z$34:$AE$39,AN$21+2,FALSE) -> 379 | AP36: =VLOOKUP($AH36,$Z$34:$AE$39,AP$21+2,FALSE) -> 405
E37: 0 | F37: 3000 | G37: 235 | H37: 424 | I37: 253 | J37: 454 | K37: 271 | L37: 486 | M37: 291 | N37: 521 | O37: 312 | P37: 558 | S37: 2000 | T37: 213 | U37: 230 | V37: 247 | W37: 265 | X37: 285 | Z37: 2000 | AA37: 387 | AB37: 415 | AC37: 443 | AD37: 474 | AE37: 507 | AH37: =$D$10 -> 1862 | AI37: =ROUND(AI36+(AH37-AH36)/1000*(AI38-AI36),0) -> 227 | AJ37: =ROUND(AI37+(AJ20-AI20)/10*(AK37-AI37),0) -> 236 | AK37: =ROUND(AK36+(AH37-AH36)/1000*(AK38-AK36),0) -> 244 | AM37: =$D$10 -> 1862 | AN37: =ROUND(AN36+(AM37-AM36)/1000*(AN38-AN36),0) -> 410 | AO37: =ROUND(AN37+(AO20-AN20)/10*(AP37-AN37),0) -> 424 | AP37: =ROUND(AP36+(AM37-AM36)/1000*(AP38-AP36),0) -> 438
E38: 0 | F38: 4000 | G38: 256 | H38: 465 | I38: 277 | J38: 500 | K38: 299 | L38: 535 | M38: 320 | N38: 573 | O38: 344 | P38: 614 | S38: 3000 | T38: 235 | U38: 253 | V38: 271 | W38: 291 | X38: 312 | Z38: 3000 | AA38: 424 | AB38: 454 | AC38: 486 | AD38: 521 | AE38: 558 | AH38: =ROUNDUP(AH37/1000,0)*1000 -> 2000 | AI38: =VLOOKUP($AH38,$S$34:$X$39,AI$21+2,FALSE) -> 230 | AK38: =VLOOKUP($AH38,$S$34:$X$39,AK$21+2,FALSE) -> 247 | AM38: =ROUNDUP(AM37/1000,0)*1000 -> 2000 | AN38: =VLOOKUP($AH38,$Z$34:$AE$39,AN$21+2,FALSE) -> 415 | AP38: =VLOOKUP($AH38,$Z$34:$AE$39,AP$21+2,FALSE) -> 443
S39: 4000 | T39: 256 | U39: 277 | V39: 299 | W39: 320 | X39: 344 | Z39: 4000 | AA39: 465 | AB39: 500 | AC39: 535 | AD39: 573 | AE39: 614
B41: Flug-gewicht | C41: Startgeschwindigkeit | F41: Druckhöhe | G41: Startlauf und Startstrecke über 15 m Höhe in Metern in Abhängikeit von der Temperatur
C42: beim Abheben | D42: in 15 m Höhe | G42: 0 | I42: 10 | K42: 20 | M42: 30 | O42: 40
B43: kp | C43: kt IAS | D43: kt IAS | F43: ft | G43: Startlauf | H43: Str. ü. 15 m | I43: Startlauf | J43: Str. ü. 15 m | K43: Startlauf | L43: Str. ü. 15 m | M43: Startlauf | N43: Str. ü. 15 m | O43: Startlauf | P43: Str. ü. 15 m
A44: =IF(J11<=B44,1,0) ->  | B44: 862 | C44: 47 | D44: 54 | E44: =IF(OR($AH$22=F44,$AH$24=F44),1,0) -> 0 | F44: 0 | G44: 143 | H44: 264 | I44: 154 | J44: 280 | K44: 165 | L44: 300 | M44: 177 | N44: 319 | O44: 189 | P44: 340 | S44: ft | T44: 0 | U44: 1 | V44: 2 | W44: 3 | X44: 4 | Z44: ft | AA44: 0 | AB44: 1 | AC44: 2 | AD44: 3 | AE44: 4
E45: 1 | F45: 1000 | G45: 157 | H45: 287 | I45: 168 | J45: 306 | K45: 180 | L45: 326 | M45: 194 | N45: 347 | O45: 207 | P45: 370 | S45: 0 | T45: 143 | U45: 154 | V45: 165 | W45: 177 | X45: 189 | Z45: 0 | AA45: 264 | AB45: 280 | AC45: 300 | AD45: 319 | AE45: 340
E46: 1 | F46: 2000 | G46: 171 | H46: 312 | I46: 184 | J46: 334 | K46: 197 | L46: 357 | M46: 212 | N46: 379 | O46: 227 | P46: 405 | S46: 1000 | T46: 157 | U46: 168 | V46: 180 | W46: 194 | X46: 207 | Z46: 1000 | AA46: 287 | AB46: 306 | AC46: 326 | AD46: 347 | AE46: 370 | AH46: =ROUNDDOWN(AH47/1000,0)*1000 -> 1000 | AI46: =VLOOKUP($AH46,$S$44:$X$49,AI$21+2,FALSE) -> 168 | AK46: =VLOOKUP($AH46,$S$44:$X$49,AK$21+2,FALSE) -> 180 | AM46: =ROUNDDOWN(AM47/1000,0)*1000 -> 1000 | AN46: =VLOOKUP($AH46,$Z$44:$AE$49,AN$21+2,FALSE) -> 306 | AP46: =VLOOKUP($AH46,$Z$44:$AE$49,AP$21+2,FALSE) -> 326
E47: 0 | F47: 3000 | G47: 187 | H47: 340 | I47: 201 | J47: 364 | K47: 216 | L47: 389 | M47: 232 | N47: 416 | O47: 248 | P47: 443 | S47: 2000 | T47: 171 | U47: 184 | V47: 197 | W47: 212 | X47: 227 | Z47: 2000 | AA47: 312 | AB47: 334 | AC47: 357 | AD47: 379 | AE47: 405 | AH47: =$D$10 -> 1862 | AI47: =ROUND(AI46+(AH47-AH46)/1000*(AI48-AI46),0) -> 182 | AJ47: =ROUND(AI47+(AJ20-AI20)/10*(AK47-AI47),0) -> 189 | AK47: =ROUND(AK46+(AH47-AH46)/1000*(AK48-AK46),0) -> 195 | AM47: =$D$10 -> 1862 | AN47: =ROUND(AN46+(AM47-AM46)/1000*(AN48-AN46),0) -> 330 | AO47: =ROUND(AN47+(AO20-AN20)/10*(AP47-AN47),0) -> 342 | AP47: =ROUND(AP46+(AM47-AM46)/1000*(AP48-AP46),0) -> 353
E48: 0 | F48: 4000 | G48: 204 | H48: 372 | I48: 221 | J48: 389 | K48: 238 | L48: 427 | M48: 255 | N48: 456 | O48: 273 | P48: 488 | S48: 3000 | T48: 187 | U48: 201 | V48: 216 | W48: 232 | X48: 248 | Z48: 3000 | AA48: 340 | AB48: 364 | AC48: 389 | AD48: 416 | AE48: 443 | AH48: =ROUNDUP(AH47/1000,0)*1000 -> 2000 | AI48: =VLOOKUP($AH48,$S$44:$X$49,AI$21+2,FALSE) -> 184 | AK48: =VLOOKUP($AH48,$S$44:$X$49,AK$21+2,FALSE) -> 197 | AM48: =ROUNDUP(AM47/1000,0)*1000 -> 2000 | AN48: =VLOOKUP($AH48,$Z$44:$AE$49,AN$21+2,FALSE) -> 334 | AP48: =VLOOKUP($AH48,$Z$44:$AE$49,AP$21+2,FALSE) -> 357
S49: 4000 | T49: 204 | U49: 221 | V49: 238 | W49: 255 | X49: 273 | Z49: 4000 | AA49: 372 | AB49: 389 | AC49: 427 | AD49: 456 | AE49: 488
B50: Startlauf | K50: Startstrecke über 15 m Höhe
S52: =A20*B20+A34*B34+A44*B44 ->  | U52: 8000 | V52: 7000 | W52: 6000 | X52: 5000 | Y52: 4000 | Z52: 3000 | AA52: 2000 | AB52: 1000 | AC52: 0
T53: 0 | U53: =IF($S$52=$S$104,U105,IF($S$52=$S$88,U89,U73)) ->  | V53: =IF($S$52=$S$104,V105,IF($S$52=$S$88,V89,V73)) -> 
T54: 10 | U54: =IF($S$52=$S$104,U106,IF($S$52=$S$88,U90,U74)) ->  | V54: =IF($S$52=$S$104,V106,IF($S$52=$S$88,V90,V74)) -> 
T55: 20 | U55: =IF($S$52=$S$104,U107,IF($S$52=$S$88,U91,U75)) -> 
T56: 30 | U56: =IF($S$52=$S$104,U108,IF($S$52=$S$88,U92,U76)) -> 
T57: 40 | U57: =IF($S$52=$S$104,U109,IF($S$52=$S$88,U93,U77)) -> 
U60: 8000 | V60: 7000 | W60: 6000 | X60: 5000 | Y60: 4000 | Z60: 3000 | AA60: 2000 | AB60: 1000 | AC60: 0
T61: 0 | U61: =IF($S$52=$S$104,U113,IF($S$52=$S$88,U97,U81)) ->  | V61: =IF($S$52=$S$104,V113,IF($S$52=$S$88,V97,V81)) -> 
T62: 10 | U62: =IF($S$52=$S$104,U114,IF($S$52=$S$88,U98,U82)) -> 
T63: 20 | U63: =IF($S$52=$S$104,U115,IF($S$52=$S$88,U99,U83)) -> 
T64: 30 | U64: =IF($S$52=$S$104,U116,IF($S$52=$S$88,U100,U84)) -> 
T65: 40 | U65: =IF($S$52=$S$104,U117,IF($S$52=$S$88,U101,U85)) -> 
B68: Bei | C68: und | D68: bei Abfluggewicht | G68: Startlauf | H68: Str. ü. 15 m
B69: =D7 -> 15 | D69: =B20 -> 1043 | E69: =A20 ->  | F69: kp | G69: =AJ23 -> 292 | H69: =AO23 -> 521
B70: =D10 -> 1862 | C70: (Druckhöhe) | D70: =B34 -> 953 | E70: =A34 ->  | F70: kp | G70: =AJ37 -> 236 | H70: =AO37 -> 424
D71: =B44 -> 862 | E71: =A44 ->  | F71: kp | G71: =AJ47 -> 189 | H71: =AO47 -> 342
J72: Anmerkungen: | S72: 1043 | U72: 8000 | V72: 7000 | W72: 6000 | X72: 5000 | Y72: 4000 | Z72: 3000 | AA72: 2000 | AB72: 1000 | AC72: 0
B73: Intrapolierte Startlaufstrecke: | G73: =IF(E71=1,G71,IF(E70=1,G70,G69)) ->  | J73: 1. Kurzstartverfahren, wie in Abschnitt IV angegeben. | T73: 0 | U73: =HLOOKUP($T73/10,$S$19:$X$28,U$52/1000+2,FALSE) -> 472 | V73: 427 | W73: 386 | X73: 351 | Y73: 319 | Z73: 290 | AA73: 264 | AB73: 241 | AC73: 219
B74: Intrapolierte Startstrecke über 15 m Höhe: | H74: =IF(E71=1,H71,IF(E70=1,H70,H69)) ->  | J74: 2. Vor dem Start auf Plätzen, die höher als 3000 ft über NN liegen, ist das Gemisch entsprechend | T74: 10 | U74: 511 | V74: 460 | W74: 416 | X74: 378 | Y74: 343 | Z74: 312 | AA74: 287 | AB74: 259 | AC74: 236
B75: Zuschläge: | J75: einzustellen um beim Vollgas-standlauf die maximale Drehzahl zu erhalten | T75: 20 | U75: 550 | V75: 497 | W75: 450 | X75: 407 | Y75: 369 | Z75: 335 | AA75: 305 | AB75: 279 | AC75: 255
B76: Rücken- / Gegenwind Zu- /Abschlag | G76: =IF(I76,IF(D14>0,-ROUNDDOWN($D$14/9,0)*0.1*G73,ROUNDUP($D$14/2,0)*-0.1*G73),0) -> 0 | H76: =IF(I76,IF(D14>0,-ROUNDDOWN($D$14/9,0)*0.1*H74,ROUNDUP($D$14/2,0)*-0.1*H74),0) -> 0 | I76: FALSE | J76: 3. Für je 9 kt Gegenwind sind die Strecken um 10% zu verringern. Für Starts bei Rückenwind | T76: 30 | U76: 593 | V76: 535 | W76: 483 | X76: 437 | Y76: 396 | Z76: 361 | AA76: 328 | AB76: 299 | AC76: 273
B77: Neigungszuschlag | I77: FALSE | J77: bis 10 kt sind die Strecken für je 2 kt Rückenwind um 10% zu vergrößern | T77: 40 | U77: 639 | V77: 576 | W77: 520 | X77: 469 | Y77: 427 | Z77: 387 | AA77: 352 | AB77: 320 | AC77: 293
B78: Trockene Grasbahn | G78: =IF(I77,G73*15%,0) -> 0 | H78: =G78 -> 0 | I78: TRUE | J78: 4. Für den Start auf trockenr Grasbahn sind die Strecken um 15% des Werts für den Startlauf
B79: Oberflächenzuschlag | J79: zu vergrößern
B80: 40% Zuschlag auf Startstrecke über 15 m (50 ft)1) | H80: =IF(I78,0.4*H74,0) ->  | J80: 5. Zusätzliche Zuschläge wegen feuchter Grasbahn, aufgeweichten Untergrundes oder | U80: 8000 | V80: 7000 | W80: 6000 | X80: 5000 | Y80: 4000 | Z80: 3000 | AA80: 2000 | AB80: 1000 | AC80: 0
J81: Schnee sind zu berücksichtigen | T81: 0 | U81: =HLOOKUP($T81/10,$Z$19:$AE$28,U$60/1000+2,FALSE) -> 875 | V81: 782 | W81: 703 | X81: 632 | Y81: 573 | Z81: 521 | AA81: 474 | AB81: 433 | AC81: 396
T82: 10 | U82: 948 | V82: 844 | W82: 757 | X82: 683 | Y82: 617 | Z82: 559 | AA82: 509 | AB82: 465 | AC82: 424
T83: 20 | U83: 1029 | V83: 914 | W83: 817 | X83: 735 | Y83: 663 | Z83: 600 | AA83: 546 | AB83: 497 | AC83: 454
B84: Summe inkl. Zu- / Abschläge | G84: =SUM(G73:G83) ->  | H84: =SUM(H73:H83) ->  | J84: 1) für EDMJ entspr. Startstr. über 100ft (Wald); max. 738 m!! | T84: 30 | U84: 1119 | V84: 989 | W84: 882 | X84: 791 | Y84: 712 | Z84: 645 | AA84: 584 | AB84: 532 | AC84: 485
B85: ZUR VERFÜGUNG STEHEN (lt. AIP): | G85: 425 | H85: 738 | T85: 40 | U85: 1216 | V85: 1071 | W85: 953 | X85: 852 | Y85: 765 | Z85: 690 | AA85: 626 | AB85: 568 | AC85: 518
B86: =IF(VLOOKUP('Flugdurchführungsplan (n. DFS)'!Y4,Flugzeuge!$B$6:$X$40,2,FALSE)="Cessna 172 N","","falscher Flugzeugtyp für diese Berechnung!") -> 
S88: 953 | T88: ft | U88: 8000 | V88: 7000 | W88: 6000 | X88: 5000 | Y88: 4000 | Z88: 3000 | AA88: 2000 | AB88: 1000 | AC88: 0
T89: 0 | Y89: 256 | Z89: 235 | AA89: 213 | AB89: 195 | AC89: 178
T90: 1 | Y90: 277 | Z90: 253 | AA90: 230 | AB90: 210 | AC90: 192
T91: 2 | Y91: 299 | Z91: 271 | AA91: 247 | AB91: 226 | AC91: 207
T92: 3 | Y92: 320 | Z92: 291 | AA92: 265 | AB92: 242 | AC92: 221
T93: 4 | Y93: 344 | Z93: 312 | AA93: 285 | AB93: 259 | AC93: 238
T96: ft | U96: 8000 | V96: 7000 | W96: 6000 | X96: 5000 | Y96: 4000 | Z96: 3000 | AA96: 2000 | AB96: 1000 | AC96: 0
T97: 0 | Y97: 465 | Z97: 424 | AA97: 387 | AB97: 355 | AC97: 326
T98: 1 | Y98: 500 | Z98: 454 | AA98: 415 | AB98: 379 | AC98: 347
T99: 2 | Y99: 535 | Z99: 486 | AA99: 443 | AB99: 405 | AC99: 372
T100: 3 | Y100: 573 | Z100: 521 | AA100: 474 | AB100: 433 | AC100: 396
T101: 4 | Y101: 614 | Z101: 558 | AA101: 507 | AB101: 463 | AC101: 424
S104: 862 | T104: ft | U104: 8000 | V104: 7000 | W104: 6000 | X104: 5000 | Y104: 4000 | Z104: 3000 | AA104: 2000 | AB104: 1000 | AC104: 0
T105: 0 | Y105: 204 | Z105: 187 | AA105: 171 | AB105: 157 | AC105: 143
T106: 1 | Y106: 221 | Z106: 201 | AA106: 184 | AB106: 168 | AC106: 154
T107: 2 | Y107: 238 | Z107: 216 | AA107: 197 | AB107: 180 | AC107: 165
T108: 3 | Y108: 255 | Z108: 232 | AA108: 212 | AB108: 194 | AC108: 177
T109: 4 | Y109: 273 | Z109: 248 | AA109: 227 | AB109: 207 | AC109: 189
T112: ft | U112: 8000 | V112: 7000 | W112: 6000 | X112: 5000 | Y112: 4000 | Z112: 3000 | AA112: 2000 | AB112: 1000 | AC112: 0
T113: 0 | Y113: 372 | Z113: 340 | AA113: 312 | AB113: 287 | AC113: 264
T114: 1 | Y114: 389 | Z114: 364 | AA114: 334 | AB114: 306 | AC114: 280
T115: 2 | Y115: 427 | Z115: 389 | AA115: 357 | AB115: 326 | AC115: 300
T116: 3 | Y116: 456 | Z116: 416 | AA116: 379 | AB116: 347 | AC116: 319
T117: 4 | Y117: 488 | Z117: 443 | AA117: 405 | AB117: 370 | AC117: 340

Sheet W&B C172 P
A2: Weight & Balance C 172 P | C2: =IF(VLOOKUP('Flugdurchführungsplan (n. DFS)'!Y4,Flugzeuge!$B$6:$X$40,2,FALSE)="Cessna 172 P",'Flugdurchführungsplan (n. DFS)'!Y4,"falscher Flugzeugtyp für diese Berechnung!") ->  | L2: =IF(VLOOKUP('Flugdurchführungsplan (n. DFS)'!Y4,Flugzeuge!$B$6:$X$40,2,FALSE)="Cessna 172 P","OK",1) -> 
A4: Berechnung des Beladungszustands | B4: Musterflugzeug/Beispiel | E4: =IF(VLOOKUP('Flugdurchführungsplan (n. DFS)'!Y4,Flugzeuge!$B$6:$X$40,2,FALSE)="Cessna 172 P",'Flugdurchführungsplan (n. DFS)'!Y4,"bitte LFZ-Kennzeichen im Flugdurchführungsplan ändern oder im Sheet Flugzeuge korrigieren!") -> 
B5: Gewicht | C5: Moment | E5: Gewicht | F5: Moment
A6: C -172 | B6: in kg | C6: kgm | E6: in kp | F6: in kgm | I6: max Gewicht
A8: 1. Grundgewicht | B8: 666 | C8: 660 | E8: =IF(VLOOKUP('Flugdurchführungsplan (n. DFS)'!Y4,Flugzeuge!$B$6:$X$40,2,FALSE)="Cessna 172 P",VLOOKUP('Flugdurchführungsplan (n. DFS)'!Y4,Flugzeuge!$B$6:$X$40,7,FALSE),"Fehler") ->  | F8: =IF(VLOOKUP('Flugdurchführungsplan (n. DFS)'!Y4,Flugzeuge!$B$6:$X$40,2,FALSE)="Cessna 172 P",VLOOKUP('Flugdurchführungsplan (n. DFS)'!Y4,Flugzeuge!$B$6:$X$40,8,FALSE),"Fehler") ->  | N8: =C8/B8 -> 0.990990991 | O8: =N8*1000 -> 990.990991
A9: 2. Kraftstoff, ausfliegbar __ L (bei 0,72 kg/l) und | B9: 108 | C9: 133 | E9: =G9*0.72 -> 66.24 | F9: =E9*P36 -> 81.4752 | G9: ='Flugdurchführungsplan (n. DFS)'!$F$97 -> 92 | I9: =189*0.72 -> 136.08 | N9: =C9/B9 -> 1.231481481 | O9: =N9*1000 -> 1231.481481
N10: =N9 -> 1.231481481 | O10: 1231.481481
A11: 3. Pilot und vorderer Fluggast | B11: 154 | C11: 145 | E11: 170 | F11: =E11*P33 -> 159.8 | N11: =C11/B11 -> 0.9415584416 | O11: 941.5584416
A12: 4. Hintere Fluggäste | B12: 154 | C12: 285 | E12: 5 | F12: =E12*P39 -> 9.25 | N12: 1.850649351 | O12: 1850.649351
A13: 5. Gepäckbereich 1 | B13: 9 | C13: 22 | E13: 0 | F13: =E13*P42 -> 0 | I13: 54 | N13: 2.444444444 | O13: 2444.444444
A14: 6. Gepäckbereich 2 | E14: 0 | F14: =E14*P45 -> 0 | I14: 23 | N14: 3.07826087 | O14: 3078.26087
A15: 7. Startgewicht (max. 1089 kp) und Moment | B15: 1088 | C15: 1236 | E15: =SUM(E8:E14) ->  | F15: =SUM(F8:F14) ->  | I15: 1089
A17: (Leergewicht und -moment basiert auf der letzten Wägung vom )
N30: Gewicht | O30: Moment | P30: Hebel
N31: Pilot, Fluggast
N32: 0 | O32: 0
N33: 175 | O33: =N33*P33 -> 164.5 | P33: 0.94
N34: Kraftstoff (Standrdtanks) 0,72 kp/l und Fallschirm
N35: 0 | O35: 0
N36: =189*0.72 -> 136.08 | O36: =N36*P36 -> 167.3784 | P36: 1.23
N37: Hintere Fluggäste
N38: 0 | O38: 0
N39: 175 | O39: =N39*P39 -> 323.75 | P39: 1.85
N40: Gepäck im Gepäckbereich 1 (oder Fluggast auf Kindersitz)
N41: 0 | O41: 0
N42: 54 | O42: =N42*P42 -> 131.76 | P42: 2.44
N43: Gepäck im Gepäckbereich 2, max. 23 kp
N44: 0 | O44: 0
N45: 23 | O45: =N45*P45 -> 70.7963 | P45: 3.0781
F61: zu schwer
N64: Nutzflugzeug
N65: =N83 -> 600 | O65: 610
N66: 950 | O66: 960
N67: Nutzflugzeug oben
N68: 950 | O68: 880
B69: zu frontlastig | N69: 950 | O69: 960 | T69: kp | U69: max
T70: =E8 ->  | U70: =I8 -> 0 | V70: =IF(AND(U70>0,U70<T70),"Grundgewicht überschritten! ","") -> 
D71: zulässig | T71: =E9 -> 66.24 | U71: =I9 -> 136.08 | V71: =IF(AND(U71>0,U71<T71),"Kraftstoffmenge zu hoch! ","") -> 
T72: =E11 -> 170 | U72: =I11 -> 0 | V72: =IF(AND(U72>0,U72<T72),"","") -> 
N73: y | O73: x | T73: =E13 -> 0 | U73: =I13 -> 54 | V73: =IF(AND(U73>0,U73<T73),"Gepäckbereich 1 überladen! ","") -> 
N74: IST-Wert | T74: =E14 -> 0 | U74: =I14 -> 23 | V74: =IF(AND(U74>0,U74<T74),"Gepäckbereich 2 überladen! ","") -> 
N75: =E15 ->  | O75: =F15 ->  | T75: =T74+T73 -> 0 | U75: 54 | V75: =IF(AND(U75>0,U75<T75),"Gepäckbereich in Summe überladen! ","") -> 
N76: Vordere Grenze | T76: =E15 ->  | U76: =I15 -> 1089 | V76: =IF(AND(U76>0,U76<T76),"Gesamtgewicht zu hoch! ","") -> 
N77: Gewicht VG | O77: Moment VG | Q77: y=ax+c | R77: x=(y-c)/a | T77: 700 | U77: =IF($N$75<T77,$N$75,0) ->  | V77: =IF(U77>0,IF(U77<T77,"Gewicht prüfen - zu gering? ",""),"") -> 
N78: 600 | O78: 530
N79: 890 | O79: 790 | Q79: a= | R79: =(N79-N78)/(O79-O78) -> 1.115384615 | S79: c= | T79: =N78-O78*R79 -> 8.846153846 | U79: =IF(AND($N$75<=N79,$N$75>=N78),$N$75,0) ->  | V79: =IF(U79>0,IF($O$75<(U79-T79)/R79,"zu vorderlastig! ",IF($O$75>(U79-$T$84)/$R$84,"zu hecklastig beladen! ","OK")),"") -> 
C80: zulässig | N80: 1090 | O80: 1090 | Q80: a= | R80: =(N80-N79)/(O80-O79) -> 0.6666666667 | S80: c= | T80: =N79-O79*R80 -> 363.3333333 | U80: =IF(AND($N$75<=N80,$N$75>=N79),$N$75,0) ->  | V80: =IF(U80>0,IF($O$75<(U80-T80)/R80,"Zu vorderlastig! ",IF($O$75>(U80-$T$84)/$R$84,"Zu hecklastig beladen! ","OK")),"") -> 
N81: Hintere Grenze | V81: =IF(U81>0,"Maximalgewicht überschritten! ","") -> 
F82: zu hecklastig | N82: Gewicht HG | O82: Moment HG | V82: =V70&V71&V72&V73&V74&V76&V77&V79&V80&V75 -> 
N83: 600 | O83: 720
N84: 1090 | O84: 1310 | Q84: a= | R84: =(N84-N83)/(O84-O83) -> 0.8305084746 | S84: c= | T84: =N83-O83*R84 -> 2.033898305
N85: Obere Grenze
N86: Gewicht OG | O86: Moment OG
N87: =N80 -> 1090 | O87: =O80 -> 1090
N88: =N87 -> 1090 | O88: =O84 -> 1310
A95: =IF(L2="OK",IF(V82="OK"," Weight & Balance OK!",V82),"FEHLER!") -> 
A97: Luftfahrzeugführer | C97: Datum | F97: Unterschrift

Sheet Startstrecke C172 P
B2: Startstreckenberechnung Cessna 172 P (Kurzstart)
B4: LFZ-Muster | D4: C 172 P | J4: MTOW: 1043 kp
B5: Kennzeichen | D5: =IF(VLOOKUP('Flugdurchführungsplan (n. DFS)'!Y4,Flugzeuge!$B$6:$X$40,2,FALSE)="Cessna 172 P",'Flugdurchführungsplan (n. DFS)'!Y4,"falscher Flugzeugtyp für diese Berechnung!") -> 
B7: Temperatur | D7: 15 | H7: Leergewicht | J7: ='W&B C172 P'!E8 -> 
B8: QNH in hPa | D8: 1013.25 | H8: Zuladung | J8: =SUM('W&B C172 P'!E10:E14) -> 175
B9: Platzhöhe ü.NN in ft | D9: 1861 | F9: =IF('Flugdurchführungsplan (n. DFS)'!I5<>"","("&Flugplätze!AB4&" "&Flugplätze!AB6&"ft)","") ->  | H9: Treibstoff | J9: ='W&B C172 P'!E9 -> 66.24
B10: Druckhöhe | D10: =ROUND(-(D8-1013.25)*27+D9,0) -> 1861
B11: Windrichtung | D11: 270 | H11: Abfluggewicht | J11: ='W&B C172 P'!E15 ->  | L11: Bedingungen:
B12: Windgeschwindigkeit | D12: 5 | L12: - Klappen 0°
B13: Bahnrichtung | D13: 25 | F13: =IF(D13<=18,D13+18,D13-18) -> 7 | L13: - Vollgas vor dem Lösen der Bremsen
B14: Gegenwind | D14: =D12*COS((D11-(10*D13))*PI()/180) -> 4.698463104 | F14: =D12*COS((D11-(10*F13))*PI()/180) -> -4.698463104 | G14: (negative Werte = Rückenwind) | L14: - Befestigte, trockene und ebene Startbahn
B15: Seitenwind | D15: =D12*SIN((D11-(10*D13))*PI()/180) -> 1.710100717 | F15: =D12*SIN((D11-(10*F13))*PI()/180) -> -1.710100717 | G15: (pos. Werte = von rechts, neg. = von links) | L15: - Windstille
G16: =IF(OR($AK$20=G18,$AM$20=G18),1,0) -> 0 | H16: =IF(OR($AK$20=G18,$AM$20=G18),1,0) -> 0 | I16: =IF(OR($AK$20=I18,$AM$20=I18),1,0) -> 1 | J16: =IF(OR($AK$20=I18,$AM$20=I18),1,0) -> 1 | K16: =IF(OR($AK$20=K18,$AM$20=K18),1,0) -> 1 | L16: =IF(OR($AK$20=K18,$AM$20=K18),1,0) -> 1 | M16: =IF(OR($AK$20=M18,$AM$20=M18),1,0) -> 0 | N16: =IF(OR($AK$20=M18,$AM$20=M18),1,0) -> 0 | O16: =IF(OR($AK$20=O18,$AM$20=O18),1,0) -> 0 | P16: =IF(OR($AK$20=O18,$AM$20=O18),1,0) -> 0
B17: Flug-gewicht | C17: Startgeschwindigkeit | F17: Druckhöhe | G17: Startlauf und Startstrecke über 15 m Höhe in Metern in Abhängikeit von der Temperatur | V17: 0 | W17: 10 | X17: 20 | Y17: 30 | Z17: 40 | AC17: 0 | AD17: 10 | AE17: 20 | AF17: 30 | AG17: 40
C18: beim Abheben | D18: in 15 m Höhe | G18: 0 | I18: 10 | K18: 20 | M18: 30 | O18: 40 | V18: Startlauf | W18: Startlauf | X18: Startlauf | Y18: Startlauf | Z18: Startlauf | AC18: Str. ü. 15 m | AD18: Str. ü. 15 m | AE18: Str. ü. 15 m | AF18: Str. ü. 15 m | AG18: Str. ü. 15 m | AI18: Startlauf | AJ18: Startlauf | AK18: Startlauf | AL18: Startlauf | AM18: Startlauf | AN18: Str. ü. 15 m | AO18: Str. ü. 15 m | AP18: Str. ü. 15 m | AQ18: Str. ü. 15 m | AR18: Str. ü. 15 m
B19: kp | C19: kt IAS | D19: kt IAS | F19: ft | G19: Startlauf | H19: Str. ü. 15 m | I19: Startlauf | J19: Str. ü. 15 m | K19: Startlauf | L19: Str. ü. 15 m | M19: Startlauf | N19: Str. ü. 15 m | O19: Startlauf | P19: Str. ü. 15 m | U19: ft | V19: 0 | W19: 1 | X19: 2 | Y19: 3 | Z19: 4 | AB19: ft | AC19: 0 | AD19: 1 | AE19: 2 | AF19: 3 | AG19: 4
A20: =IF(J11<=B26,0,1) ->  | B20: 1089 | C20: 52 | D20: 59 | E20: =IF(OR($AJ$22=F20,$AJ$24=F20),1,0) -> 0 | F20: 0 | G20: 242 | H20: 445 | I20: 262 | J20: 479 | K20: 282 | L20: 514 | M20: 303 | N20: 552 | O20: 325 | P20: 593 | U20: 0 | V20: =G20 -> 242 | W20: =I20 -> 262 | X20: =K20 -> 282 | Y20: =M20 -> 303 | Z20: =O20 -> 325 | AB20: 0 | AC20: =H20 -> 445 | AD20: =J20 -> 479 | AE20: =L20 -> 514 | AF20: =N20 -> 552 | AG20: =P20 -> 593 | AK20: =ROUNDDOWN(AL20/10,0)*10 -> 10 | AL20: =$D$7 -> 15 | AM20: =ROUNDUP(AL20/10,0)*10 -> 20 | AP20: =ROUNDDOWN(AQ20/10,0)*10 -> 10 | AQ20: =$D$7 -> 15 | AR20: =ROUNDUP(AQ20/10,0)*10 -> 20
E21: 1 | F21: 1000 | G21: 267 | H21: 489 | I21: 287 | J21: 526 | K21: 309 | L21: 567 | M21: 332 | N21: 610 | O21: 357 | P21: 657 | U21: 1000 | V21: 267 | W21: 287 | X21: 309 | Y21: 332 | Z21: 357 | AB21: 1000 | AC21: 489 | AD21: 526 | AE21: 567 | AF21: 610 | AG21: 657 | AK21: =$AK$20/10 -> 1 | AM21: =$AM$20/10 -> 2 | AP21: =$AP$20/10 -> 1 | AR21: =$AR$20/10 -> 2
E22: 1 | F22: 2000 | G22: 293 | H22: 539 | I22: 315 | J22: 582 | K22: 340 | L22: 628 | M22: 366 | N22: 677 | O22: 393 | P22: 750 | U22: 2000 | V22: 293 | W22: 315 | X22: 340 | Y22: 366 | Z22: 393 | AB22: 2000 | AC22: 539 | AD22: 582 | AE22: 628 | AF22: 677 | AG22: 750 | AJ22: =ROUNDDOWN(AJ23/1000,0)*1000 -> 1000 | AK22: =VLOOKUP($AJ22,$U$19:$Z$24,AK$21+2,FALSE) -> 287 | AL22: =ROUND(AK22+(AL20-AK20)/10*(AM22-AK22),0) -> 298 | AM22: =VLOOKUP($AJ22,$U$19:$Z$24,AM$21+2,FALSE) -> 309 | AO22: =ROUNDDOWN(AO23/1000,0)*1000 -> 1000 | AP22: =VLOOKUP($AO22,$AB$19:$AG$24,AP$21+2,FALSE) -> 526 | AQ22: =ROUND(AP22+(AQ20-AP20)/10*(AR22-AP22),0) -> 547 | AR22: =VLOOKUP($AO22,$AB$19:$AG$24,AR$21+2,FALSE) -> 567
E23: 0 | F23: 3000 | G23: 322 | H23: 597 | I23: 347 | J23: 646 | K23: 375 | L23: 700 | M23: 404 | N23: 756 | O23: 434 | P23: 818 | U23: 3000 | V23: 322 | W23: 347 | X23: 375 | Y23: 404 | Z23: 434 | AB23: 3000 | AC23: 597 | AD23: 646 | AE23: 700 | AF23: 756 | AG23: 818 | AJ23: =$D$10 -> 1861 | AK23: =ROUND(AK22+(AJ23-AJ22)/1000*(AK24-AK22),0) -> 311 | AL23: =ROUND(AK23+(AL20-AK20)/10*(AM23-AK23),0) -> 324 | AM23: =ROUND(AM22+(AJ23-AJ22)/1000*(AM24-AM22),0) -> 336 | AO23: =$D$10 -> 1861 | AP23: =ROUND(AP22+(AO23-AO22)/1000*(AP24-AP22),0) -> 574 | AQ23: =ROUND(AP23+(AQ20-AP20)/10*(AR23-AP23),0) -> 597 | AR23: =ROUND(AR22+(AO23-AO22)/1000*(AR24-AR22),0) -> 620
E24: 0 | F24: 4000 | G24: 355 | H24: 666 | I24: 384 | J24: 721 | K24: 413 | L24: 783 | M24: 447 | N24: 850 | O24: 480 | P24: 924 | U24: 4000 | V24: 355 | W24: 384 | X24: 413 | Y24: 447 | Z24: 480 | AB24: 4000 | AC24: 666 | AD24: 721 | AE24: 783 | AF24: 850 | AG24: 924 | AJ24: =ROUNDUP(AJ23/1000,0)*1000 -> 2000 | AK24: =VLOOKUP($AJ24,$U$19:$Z$24,AK$21+2,FALSE) -> 315 | AL24: =ROUND(AK24+(AL20-AK20)/10*(AM24-AK24),0) -> 328 | AM24: =VLOOKUP($AJ24,$U$19:$Z$24,AM$21+2,FALSE) -> 340 | AO24: =ROUNDUP(AO23/1000,0)*1000 -> 2000 | AP24: =VLOOKUP($AO24,$AB$19:$AG$24,AP$21+2,FALSE) -> 582 | AQ24: =ROUND(AP24+(AQ20-AP20)/10*(AR24-AP24),0) -> 605 | AR24: =VLOOKUP($AO24,$AB$19:$AG$24,AR$21+2,FALSE) -> 628
E25: 0 | F25: 5000 | G25: 392 | H25: 745 | I25: 424 | J25: 811 | K25: 457 | L25: 882 | M25: 494 | N25: 963 | O25: 532 | P25: 1053 | U25: 5000 | V25: 392 | W25: 424 | X25: 457 | Y25: 494 | Z25: 532 | AB25: 5000 | AC25: 745 | AD25: 811 | AE25: 882 | AF25: 963 | AG25: 1053
A26: =IF(AND(J11<=B26,J11>B32),1,0) ->  | B26: 998 | C26: 50 | D26: 56 | E26: 0 | F26: 0 | G26: 198 | H26: 364 | I26: 213 | J26: 390 | K26: 229 | L26: 419 | M26: 245 | N26: 448 | O26: 264 | P26: 480 | U26: ft | V26: 0 | W26: 1 | X26: 2 | Y26: 3 | Z26: 4 | AB26: ft | AC26: 0 | AD26: 1 | AE26: 2 | AF26: 3 | AG26: 4
E27: 1 | F27: 1000 | G27: 216 | H27: 399 | I27: 233 | J27: 428 | K27: 251 | L27: 460 | M27: 270 | N27: 492 | O27: 290 | P27: 529 | U27: 0 | V27: =G26 -> 198 | W27: =I26 -> 213 | X27: =K26 -> 229 | Y27: =M26 -> 245 | Z27: =O26 -> 264 | AB27: 0 | AC27: =H26 -> 364 | AD27: =J26 -> 390 | AE27: =L26 -> 419 | AF27: =N26 -> 448 | AG27: =P26 -> 480
E28: 1 | F28: 2000 | G28: 238 | H28: 439 | I28: 256 | J28: 471 | K28: 276 | L28: 506 | M28: 297 | N28: 544 | O28: 318 | P28: 584 | U28: 1000 | V28: =G27 -> 216 | W28: =I27 -> 233 | X28: =K27 -> 251 | Y28: =M27 -> 270 | Z28: =O27 -> 290 | AB28: 1000 | AC28: =H27 -> 399 | AD28: =J27 -> 428 | AE28: =L27 -> 460 | AF28: =N27 -> 492 | AG28: =P27 -> 529 | AJ28: =ROUNDDOWN(AJ29/1000,0)*1000 -> 1000 | AK28: =VLOOKUP($AJ28,$U$26:$Z$31,AK$21+2,FALSE) -> 233 | AM28: =VLOOKUP($AJ28,$U$26:$Z$31,AM$21+2,FALSE) -> 251 | AO28: =ROUNDDOWN(AO29/1000,0)*1000 -> 1000 | AP28: =VLOOKUP($AJ28,$AB$26:$AG$31,AP$21+2,FALSE) -> 428 | AR28: =VLOOKUP($AJ28,$AB$26:$AG$31,AR$21+2,FALSE) -> 460
E29: 0 | F29: 3000 | G29: 261 | H29: 483 | I29: 282 | J29: 520 | K29: 303 | L29: 559 | M29: 326 | N29: 602 | O29: 351 | P29: 649 | U29: 2000 | V29: 238 | W29: 256 | X29: 276 | Y29: 297 | Z29: 318 | AB29: 2000 | AC29: 439 | AD29: 471 | AE29: 506 | AF29: 544 | AG29: 584 | AJ29: =$D$10 -> 1861 | AK29: =ROUND(AK28+(AJ29-AJ28)/1000*(AK30-AK28),0) -> 253 | AL29: =ROUND(AK29+(AL20-AK20)/10*(AM29-AK29),0) -> 263 | AM29: =ROUND(AM28+(AJ29-AJ28)/1000*(AM30-AM28),0) -> 273 | AO29: =$D$10 -> 1861 | AP29: =ROUND(AP28+(AO29-AO28)/1000*(AP30-AP28),0) -> 465 | AQ29: =ROUND(AP29+(AQ20-AP20)/10*(AR29-AP29),0) -> 483 | AR29: =ROUND(AR28+(AO29-AO28)/1000*(AR30-AR28),0) -> 500
E30: 0 | F30: 4000 | G30: 288 | H30: 533 | I30: 311 | J30: 576 | K30: 335 | L30: 622 | M30: 360 | N30: 671 | O30: 387 | P30: 724 | U30: 3000 | V30: 261 | W30: 282 | X30: 303 | Y30: 326 | Z30: 351 | AB30: 3000 | AC30: 483 | AD30: 520 | AE30: 559 | AF30: 602 | AG30: 649 | AJ30: =ROUNDUP(AJ29/1000,0)*1000 -> 2000 | AK30: =VLOOKUP($AJ30,$U$26:$Z$31,AK$21+2,FALSE) -> 256 | AM30: =VLOOKUP($AJ30,$U$26:$Z$31,AM$21+2,FALSE) -> 276 | AO30: =ROUNDUP(AO29/1000,0)*1000 -> 2000 | AP30: =VLOOKUP($AJ30,$AB$26:$AG$31,AP$21+2,FALSE) -> 471 | AR30: =VLOOKUP($AJ30,$AB$26:$AG$31,AR$21+2,FALSE) -> 506
E31: 0 | F31: 5000 | G31: 317 | H31: 593 | I31: 343 | J31: 642 | K31: 369 | L31: 693 | M31: 398 | N31: 751 | O31: 428 | P31: 812 | U31: 4000 | V31: =G30 -> 288 | W31: =I30 -> 311 | X31: =K30 -> 335 | Y31: =M30 -> 360 | Z31: =O30 -> 387 | AB31: 4000 | AC31: =H30 -> 533 | AD31: =J30 -> 576 | AE31: =L30 -> 622 | AF31: =N30 -> 671 | AG31: =P30 -> 724
A32: =IF(J11<=B32,1,0) ->  | B32: 907 | C32: 47 | D32: 54 | E32: 0 | F32: 0 | G32: 160 | H32: 296 | I32: 172 | J32: 315 | K32: 184 | L32: 338 | M32: 198 | N32: 361 | O32: 212 | P32: 386 | U32: 5000 | V32: =G31 -> 317 | W32: =I31 -> 343 | X32: =K31 -> 369 | Y32: =M31 -> 398 | Z32: =O31 -> 428 | AB32: 5000 | AC32: =H31 -> 593 | AD32: =J31 -> 642 | AE32: =L31 -> 693 | AF32: =N31 -> 751 | AG32: =P31 -> 812
E33: 1 | F33: 1000 | G33: 174 | H33: 323 | I33: 187 | J33: 346 | K33: 203 | L33: 370 | M33: 216 | N33: 395 | O33: 233 | P33: 422 | U33: ft | V33: 0 | W33: 1 | X33: 2 | Y33: 3 | Z33: 4 | AB33: ft | AC33: 0 | AD33: 1 | AE33: 2 | AF33: 3 | AG33: 4
E34: 1 | F34: 2000 | G34: 190 | H34: 354 | I34: 206 | J34: 378 | K34: 221 | L34: 405 | M34: 238 | N34: 434 | O34: 256 | P34: 456 | U34: 0 | V34: =G32 -> 160 | W34: =I32 -> 172 | X34: =K32 -> 184 | Y34: =M32 -> 198 | Z34: =O32 -> 212 | AB34: 0 | AC34: =H32 -> 296 | AD34: =J32 -> 315 | AE34: =L32 -> 338 | AF34: =N32 -> 361 | AG34: =P32 -> 386
E35: 0 | F35: 3000 | G35: 210 | H35: 387 | I35: 225 | J35: 416 | K35: 244 | L35: 447 | M35: 262 | N35: 479 | O35: 280 | P35: 514 | U35: 1000 | V35: 174 | W35: 187 | X35: 203 | Y35: 216 | Z35: 233 | AB35: 1000 | AC35: 323 | AD35: 346 | AE35: 370 | AF35: 395 | AG35: 422 | AJ35: =ROUNDDOWN(AJ36/1000,0)*1000 -> 1000 | AK35: =VLOOKUP($AJ35,$U$33:$Z$38,AK$21+2,FALSE) -> 187 | AM35: =VLOOKUP($AJ35,$U$33:$Z$38,AM$21+2,FALSE) -> 203 | AO35: =ROUNDDOWN(AO36/1000,0)*1000 -> 1000 | AP35: =VLOOKUP($AJ35,$AB$33:$AG$38,AP$21+2,FALSE) -> 346 | AR35: =VLOOKUP($AJ35,$AB$33:$AG$38,AR$21+2,FALSE) -> 370
E36: 0 | F36: 4000 | G36: 230 | H36: 427 | I36: 248 | J36: 457 | K36: 268 | L36: 492 | M36: 288 | N36: 529 | O36: 309 | P36: 568 | U36: 2000 | V36: 190 | W36: 206 | X36: 221 | Y36: 238 | Z36: 256 | AB36: 2000 | AC36: 354 | AD36: 378 | AE36: 405 | AF36: 434 | AG36: 456 | AJ36: =$D$10 -> 1861 | AK36: =ROUND(AK35+(AJ36-AJ35)/1000*(AK37-AK35),0) -> 203 | AL36: =ROUND(AK36+(AL20-AK20)/10*(AM36-AK36),0) -> 211 | AM36: =ROUND(AM35+(AJ36-AJ35)/1000*(AM37-AM35),0) -> 218 | AO36: =$D$10 -> 1861 | AP36: =ROUND(AP35+(AO36-AO35)/1000*(AP37-AP35),0) -> 374 | AQ36: =ROUND(AP36+(AQ20-AP20)/10*(AR36-AP36),0) -> 387 | AR36: =ROUND(AR35+(AO36-AO35)/1000*(AR37-AR35),0) -> 400
E37: 0 | F37: 5000 | G37: 253 | H37: 471 | I37: 274 | J37: 506 | K37: 296 | L37: 546 | M37: 317 | N37: 587 | O37: 341 | P37: 631 | U37: 3000 | V37: 210 | W37: 225 | X37: 244 | Y37: 262 | Z37: 280 | AB37: 3000 | AC37: 387 | AD37: 416 | AE37: 447 | AF37: 479 | AG37: 514 | AJ37: =ROUNDUP(AJ36/1000,0)*1000 -> 2000 | AK37: =VLOOKUP($AJ37,$U$33:$Z$38,AK$21+2,FALSE) -> 206 | AM37: =VLOOKUP($AJ37,$U$33:$Z$38,AM$21+2,FALSE) -> 221 | AO37: =ROUNDUP(AO36/1000,0)*1000 -> 2000 | AP37: =VLOOKUP($AJ37,$AB$33:$AG$38,AP$21+2,FALSE) -> 378 | AR37: =VLOOKUP($AJ37,$AB$33:$AG$38,AR$21+2,FALSE) -> 405
U38: 4000 | V38: 230 | W38: 248 | X38: 268 | Y38: 288 | Z38: 309 | AB38: 4000 | AC38: 427 | AD38: 457 | AE38: 492 | AF38: 529 | AG38: 568
B39: Startlauf | K39: Startstrecke über 15 m Höhe | U39: 5000 | V39: 253 | W39: 274 | X39: 296 | Y39: 317 | Z39: 341 | AB39: 5000 | AC39: 471 | AD39: 506 | AE39: 546 | AF39: 587 | AG39: 631
S43: =A20*B20+A26*B26+A32*B32 ->  | U43: 5000 | V43: 4000 | W43: 3000 | X43: 2000 | Y43: 1000 | Z43: 0
T44: 0 | U44: =IF($S$43=$S$93,U94,IF($S$43=$S$77,U78,U62)) ->  | V44: =IF($S$43=$S$93,V94,IF($S$43=$S$77,V78,V62)) ->  | W44: =IF($S$43=$S$93,W94,IF($S$43=$S$77,W78,W62)) -> 
T45: 10 | U45: =IF($S$43=$S$93,U95,IF($S$43=$S$77,U79,U63)) -> 
T46: 20
T47: 30
T48: 40
U51: 5000 | V51: 4000 | W51: 3000 | X51: 2000 | Y51: 1000 | Z51: 0
T52: 0 | U52: =IF($S$43=$S$93,U102,IF($S$43=$S$77,U86,U70)) ->  | V52: =IF($S$43=$S$93,V102,IF($S$43=$S$77,V86,V70)) -> 
T53: 10 | U53: =IF($S$43=$S$93,U103,IF($S$43=$S$77,U87,U71)) -> 
T54: 20
T55: 30
T56: 40
B57: Bei | C57: und | D57: bei Abfluggewicht | G57: Startlauf | H57: Str. ü. 15 m
B58: =D7 -> 15 | D58: =B20 -> 1089 | E58: =A20 ->  | F58: kp | G58: =AL23 -> 324 | H58: =AQ23 -> 597
B59: =D10 -> 1861 | C59: (Druckhöhe) | D59: =B26 -> 998 | E59: =A26 ->  | F59: kp | G59: =AL29 -> 263 | H59: =AQ29 -> 483
D60: =B32 -> 907 | E60: =A32 ->  | F60: kp | G60: =AL36 -> 211 | H60: =AQ36 -> 387
J61: Anmerkungen: | S61: =B20 -> 1089 | U61: 5000 | V61: 4000 | W61: 3000 | X61: 2000 | Y61: 1000 | Z61: 0
B62: Intrapolierte Startlaufstrecke: | G62: =IF(E60=1,G60,IF(E59=1,G59,G58)) ->  | J62: 1. Kurzstartverfahren, wie in Abschnitt IV angegeben. | T62: 0 | U62: =HLOOKUP($T62/10,$U$19:$Z$25,U$43/1000+2,FALSE) -> 392 | V62: =HLOOKUP($T62/10,$U$19:$Z$25,V$43/1000+2,FALSE) -> 355 | W62: 322 | X62: 293 | Y62: 267 | Z62: 242
B63: Intrapolierte Startstrecke über 15 m Höhe: | H63: =IF(E60=1,H60,IF(E59=1,H59,H58)) ->  | J63: 2. Vor dem Start auf Plätzen, die höher als 3000 ft über NN liegen, ist das Gemisch entsprechend | T63: 10 | U63: =HLOOKUP($T63/10,$U$19:$Z$25,U$43/1000+2,FALSE) -> 424 | V63: 384 | W63: 347 | X63: 315 | Y63: 287 | Z63: 262
B64: Zuschläge: | J64: einzustellen um beim Vollgas-standlauf die maximale Drehzahl zu erhalten | T64: 20 | U64: 457 | V64: 413 | W64: 375 | X64: 340 | Y64: 309 | Z64: 282
B65: Rücken- / Gegenwind Zu- /Abschlag | G65: =IF(I65,IF(D14>0,-ROUNDDOWN($D$14/9,0)*0.1*G62,ROUNDUP($D$14/2,0)*-0.1*G62),0) ->  | H65: =IF(I65,IF(D14>0,-ROUNDDOWN($D$14/9,0)*0.1*H63,ROUNDUP($D$14/2,0)*-0.1*H63),0) ->  | I65: TRUE | J65: 3. Für je 9 kt Gegenwind sind die Strecken um 10% zu verringern. Für Starts bei Rückenwind | T65: 30 | U65: 494 | V65: 447 | W65: 404 | X65: 366 | Y65: 332 | Z65: 303
B66: Neigungszuschlag | I66: FALSE | J66: bis 10 kt sind die Strecken für je 2 kt Rückenwind um 10% zu vergrößern | T66: 40 | U66: 532 | V66: 480 | W66: 434 | X66: 393 | Y66: 357 | Z66: 325
B67: Trockene Grasbahn | G67: =IF(I66,G62*15%,0) -> 0 | H67: =G67 -> 0 | I67: FALSE | J67: 4. Für den Start auf trockener Grasbahn sind die Strecken um 15% des Werts für den Startlauf
B68: Oberflächenzuschlag | J68: zu vergrößern
B69: 40% Zuschlag auf Startstrecke über 15 m (50 ft)1) | H69: =IF(I67,0.4*H63,0) -> 0 | J69: 5. Zusätzliche Zuschläge wegen feuchter Grasbahn, aufgeweichten Untergrundes oder | U69: 5000 | V69: 4000 | W69: 3000 | X69: 2000 | Y69: 1000 | Z69: 0
J70: Schnee sind zu berücksichtigen | T70: 0 | U70: =HLOOKUP($T70/10,$AB$19:$AG$25,U$51/1000+2,FALSE) -> 745 | V70: =HLOOKUP($T70/10,$AB$19:$AG$25,V$51/1000+2,FALSE) -> 666 | W70: 597 | X70: 539 | Y70: 489 | Z70: 445
T71: 10 | U71: =HLOOKUP($T71/10,$AB$19:$AG$25,U$51/1000+2,FALSE) -> 811 | V71: 721 | W71: 646 | X71: 582 | Y71: 526 | Z71: 479
J72: 1) für EDMJ entspr. Startstr. über 100ft (Wald); max. 738 m!! | T72: 20 | U72: 882 | V72: 783 | W72: 700 | X72: 628 | Y72: 567 | Z72: 514
B73: Summe inkl. Zu- / Abschläge | G73: =SUM(G62:G72) ->  | H73: =SUM(H62:H72) ->  | T73: 30 | U73: 963 | V73: 850 | W73: 756 | X73: 677 | Y73: 610 | Z73: 552
B74: ZUR VERFÜGUNG STEHEN (lt. AIP): | G74: 425 | H74: 738 | T74: 40 | U74: 1053 | V74: 924 | W74: 818 | X74: 750 | Y74: 657 | Z74: 593
B75: =IF(VLOOKUP('Flugdurchführungsplan (n. DFS)'!Y4,Flugzeuge!$B$6:$X$40,2,FALSE)="Cessna 172 P","","falscher Flugzeugtyp für diese Berechnung!") -> 
S77: =B26 -> 998 | T77: ft | U77: 5000 | V77: 4000 | W77: 3000 | X77: 2000 | Y77: 1000 | Z77: 0
T78: 0 | U78: =HLOOKUP($T78/10,$U$26:$Z$32,U$43/1000+2,FALSE) -> 317 | V78: =HLOOKUP($T78/10,$U$26:$Z$32,V$43/1000+2,FALSE) -> 288 | W78: 261 | X78: 238 | Y78: 216 | Z78: 198
T79: 10 | U79: =HLOOKUP($T79/10,$U$26:$Z$32,U$43/1000+2,FALSE) -> 343 | V79: 311 | W79: 282 | X79: 256 | Y79: 233 | Z79: 213
T80: 20 | U80: 369 | V80: 335 | W80: 303 | X80: 276 | Y80: 251 | Z80: 229
T81: 30 | U81: 398 | V81: 360 | W81: 326 | X81: 297 | Y81: 270 | Z81: 245
T82: 40 | U82: 428 | V82: 387 | W82: 351 | X82: 318 | Y82: 290 | Z82: 264
T85: ft | U85: 5000 | V85: 4000 | W85: 3000 | X85: 2000 | Y85: 1000 | Z85: 0
T86: 0 | U86: =HLOOKUP($T86/10,$AB$26:$AG$32,U$51/1000+2,FALSE) -> 593 | V86: =HLOOKUP($T86/10,$AB$26:$AG$32,V$51/1000+2,FALSE) -> 533 | W86: 483 | X86: 439 | Y86: 399 | Z86: 364
T87: 10 | U87: =HLOOKUP($T87/10,$AB$26:$AG$32,U$51/1000+2,FALSE) -> 642 | V87: 576 | W87: 520 | X87: 471 | Y87: 428 | Z87: 390
T88: 20 | U88: 693 | V88: 622 | W88: 559 | X88: 506 | Y88: 460 | Z88: 419
T89: 30 | U89: 751 | V89: 671 | W89: 602 | X89: 544 | Y89: 492 | Z89: 448
T90: 40 | U90: 812 | V90: 724 | W90: 649 | X90: 584 | Y90: 529 | Z90: 480
S93: =B32 -> 907 | T93: ft | U93: 5000 | V93: 4000 | W93: 3000 | X93: 2000 | Y93: 1000 | Z93: 0
T94: 0 | U94: =HLOOKUP($T94/10,$U$33:$Z$39,U$43/1000+2,FALSE) -> 253 | V94: =HLOOKUP($T94/10,$U$33:$Z$39,V$43/1000+2,FALSE) -> 230 | W94: 210 | X94: 190 | Y94: 174 | Z94: 160
T95: 10 | U95: =HLOOKUP($T95/10,$U$33:$Z$39,U$43/1000+2,FALSE) -> 274 | V95: 248 | W95: 225 | X95: 206 | Y95: 187 | Z95: 172
T96: 20 | U96: 296 | V96: 268 | W96: 244 | X96: 221 | Y96: 203 | Z96: 184
T97: 30 | U97: 317 | V97: 288 | W97: 262 | X97: 238 | Y97: 216 | Z97: 198
T98: 40 | U98: 341 | V98: 309 | W98: 280 | X98: 256 | Y98: 233 | Z98: 212
T101: ft | U101: 5000 | V101: 4000 | W101: 3000 | X101: 2000 | Y101: 1000 | Z101: 0
T102: 0 | U102: =HLOOKUP($T102/10,$AB$33:$AG$39,U$51/1000+2,FALSE) -> 471 | V102: =HLOOKUP($T102/10,$AB$33:$AG$39,V$51/1000+2,FALSE) -> 427 | W102: 387 | X102: 354 | Y102: 323 | Z102: 296
T103: 10 | U103: =HLOOKUP($T103/10,$AB$33:$AG$39,U$51/1000+2,FALSE) -> 506 | V103: 457 | W103: 416 | X103: 378 | Y103: 346 | Z103: 315
T104: 20 | U104: 546 | V104: 492 | W104: 447 | X104: 405 | Y104: 370 | Z104: 338
T105: 30 | U105: 587 | V105: 529 | W105: 479 | X105: 434 | Y105: 395 | Z105: 361
T106: 40 | U106: 631 | V106: 568 | W106: 514 | X106: 456 | Y106: 422 | Z106: 386

Sheet Startstrecke C172 S (hidden)
A1: ACHTUNG dieses Sheet ist noch nicht fertig!!
B2: Startstreckenberechnung Cessna 172 (Kurzstart)
B4: LFZ-Muster | D4: C 172 | G4: MTOW: 1043 kp
B5: Kennzeichen | D5: D-EOKK
B7: Temperatur | D7: 22 | H7: Leergewicht | V7: =ROUNDDOWN(W7/10,0)*10 -> 20 | W7: =D7 -> 22 | X7: =ROUNDUP(W7/10,0)*10 -> 30 | AA7: =ROUNDDOWN(AB7/10,0)*10 -> 20 | AB7: =W7 -> 22 | AC7: =ROUNDUP(AB7/10,0)*10 -> 30
B8: QNH in hPa | D8: 1033 | H8: Zuladung | V8: =V7/10 -> 2 | X8: =X7/10 -> 3 | AA8: =AA7/10 -> 2 | AC8: =AC7/10 -> 3
B9: Platzhöhe ü.NN in ft | D9: 1862 | H9: Treibstoff | U9: =ROUNDDOWN(U10/1000,0)*1000 -> 1000 | V9: =VLOOKUP($U9,$S$19:$X$28,V$8+2,FALSE) -> 279 | W9: =ROUND(V9+(W7-V7)/10*(X9-V9),0) -> 283 | X9: =VLOOKUP($U9,$S$19:$X$28,X$8+2,FALSE) -> 299 | Z9: =ROUNDDOWN(Z10/1000,0)*1000 -> 1000 | AA9: =VLOOKUP($Z9,$Z$19:$AE$28,AA$8+2,FALSE) -> 497 | AB9: =ROUND(AA9+(AB7-AA7)/10*(AC9-AA9),0) -> 504 | AC9: =VLOOKUP($Z9,$Z$19:$AE$28,AC$8+2,FALSE) -> 532
B10: Druckhöhe | D10: =ROUND(-(D8-1013.2)*27+D9,0) -> 1327 | U10: =D10 -> 1327 | V10: =ROUND(V9+(U10-U9)/1000*(V11-V9),0) -> 288 | W10: =ROUND(V10+(W7-V7)/10*(X10-V10),0) -> 292 | X10: =ROUND(X9+(U10-U9)/1000*(X11-X9),0) -> 308 | Z10: =U10 -> 1327 | AA10: =ROUND(AA9+(Z10-Z9)/1000*(AA11-AA9),0) -> 513 | AB10: =ROUND(AA10+(AB7-AA7)/10*(AC10-AA10),0) -> 520 | AC10: =ROUND(AC9+(Z10-Z9)/1000*(AC11-AC9),0) -> 549
B11: Windrichtung | D11: 270 | H11: Abfluggewicht | J11: 1043 | L11: Bedingungen: | U11: =ROUNDUP(U10/1000,0)*1000 -> 2000 | V11: =VLOOKUP($U11,$S$19:$X$28,V$8+2,FALSE) -> 305 | W11: =ROUND(V11+(W7-V7)/10*(X11-V11),0) -> 310 | X11: =VLOOKUP($U11,$S$19:$X$28,X$8+2,FALSE) -> 328 | Z11: =ROUNDUP(Z10/1000,0)*1000 -> 2000 | AA11: =VLOOKUP($Z11,$Z$19:$AE$28,AA$8+2,FALSE) -> 546 | AB11: =ROUND(AA11+(AB7-AA7)/10*(AC11-AA11),0) -> 554 | AC11: =VLOOKUP($Z11,$Z$19:$AE$28,AC$8+2,FALSE) -> 584
B12: Windgeschwindigkeit | D12: 7 | L12: - Klappen 0°
B13: Bahnrichtung | D13: 25 | F13: =IF(D13<=18,D13+18,D13-18) -> 7 | L13: - Vollgas vor dem Lösen der Bremsen
B14: Gegenwind | D14: =D12*COS((D11-(10*D13))*PI()/180) -> 6.577848346 | F14: =D12*COS((D11-(10*F13))*PI()/180) -> -6.577848346 | G14: (negative Werte = Rückenwind) | L14: - Befestigte, trockene und ebene Startbahn
B15: Seitenwind | D15: =D12*SIN((D11-(10*D13))*PI()/180) -> 2.394141003 | F15: =D12*SIN((D11-(10*F13))*PI()/180) -> -2.394141003 | G15: (pos. Werte = von rechts, neg. = von links) | L15: - Windstille
G16: =IF(OR($V$7=G18,$X$7=G18),1,0) -> 0 | H16: =IF(OR($V$7=G18,$X$7=G18),1,0) -> 0 | I16: =IF(OR($V$7=I18,$X$7=I18),1,0) -> 0 | J16: =IF(OR($V$7=I18,$X$7=I18),1,0) -> 0 | K16: =IF(OR($V$7=K18,$X$7=K18),1,0) -> 1 | L16: =IF(OR($V$7=K18,$X$7=K18),1,0) -> 1 | M16: =IF(OR($V$7=M18,$X$7=M18),1,0) -> 1 | N16: =IF(OR($V$7=M18,$X$7=M18),1,0) -> 1 | O16: =IF(OR($V$7=O18,$X$7=O18),1,0) -> 0 | P16: =IF(OR($V$7=O18,$X$7=O18),1,0) -> 0
B17: Flug-gewicht | C17: Startgeschwindigkeit | F17: Druckhöhe | G17: Startlauf und Startstrecke über 15 m Höhe in Metern in Abhängikeit von der Temperatur | T17: Startlauf | U17: Startlauf | V17: Startlauf | W17: Startlauf | X17: Startlauf | AA17: Str. ü. 15 m | AB17: Str. ü. 15 m | AC17: Str. ü. 15 m | AD17: Str. ü. 15 m | AE17: Str. ü. 15 m
C18: beim Abheben | D18: in 15 m Höhe | G18: 0 | I18: 10 | K18: 20 | M18: 30 | O18: 40 | T18: 0 | U18: 10 | V18: 20 | W18: 30 | X18: 40 | AA18: 0 | AB18: 10 | AC18: 20 | AD18: 30 | AE18: 40
B19: kp | C19: kt IAS | D19: kt IAS | F19: ft | G19: Startlauf | H19: Str. ü. 15 m | I19: Startlauf | J19: Str. ü. 15 m | K19: Startlauf | L19: Str. ü. 15 m | M19: Startlauf | N19: Str. ü. 15 m | O19: Startlauf | P19: Str. ü. 15 m | S19: ft | T19: 0 | U19: 1 | V19: 2 | W19: 3 | X19: 4 | Z19: ft | AA19: 0 | AB19: 1 | AC19: 2 | AD19: 3 | AE19: 4
B20: 1043 | C20: 52 | D20: 59 | E20: =IF(OR($U$9=F20,$U$11=F20),1,0) -> 0 | F20: 0 | G20: 219 | H20: 396 | I20: 236 | J20: 424 | K20: 255 | L20: 454 | M20: 273 | N20: 485 | O20: 293 | P20: 518 | S20: 0 | T20: =G20 -> 219 | U20: =I20 -> 236 | V20: =K20 -> 255 | W20: =M20 -> 273 | X20: =O20 -> 293 | Z20: 0 | AA20: =H20 -> 396 | AB20: =J20 -> 424 | AC20: =L20 -> 454 | AD20: =N20 -> 485 | AE20: =P20 -> 518
E21: 1 | F21: 1000 | G21: 241 | H21: 433 | I21: 259 | J21: 465 | K21: 279 | L21: 497 | M21: 299 | N21: 532 | O21: 320 | P21: 568 | S21: 1000 | T21: =G21 -> 241 | U21: =I21 -> 259 | V21: =K21 -> 279 | W21: =M21 -> 299 | X21: =O21 -> 320 | Z21: 1000 | AA21: =H21 -> 433 | AB21: =J21 -> 465 | AC21: =L21 -> 497 | AD21: =N21 -> 532 | AE21: =P21 -> 568
E22: 1 | F22: 2000 | G22: 264 | H22: 474 | I22: 287 | J22: 509 | K22: 305 | L22: 546 | M22: 328 | N22: 584 | O22: 352 | P22: 626 | S22: 2000 | T22: 264 | U22: 287 | V22: 305 | W22: 328 | X22: 352 | Z22: 2000 | AA22: 474 | AB22: 509 | AC22: 546 | AD22: 584 | AE22: 626
E23: 0 | F23: 3000 | G23: 290 | H23: 521 | I23: 312 | J23: 559 | K23: 335 | L23: 600 | M23: 361 | N23: 645 | O23: 387 | P23: 690 | S23: 3000 | T23: 290 | U23: 312 | V23: 335 | W23: 361 | X23: 387 | Z23: 3000 | AA23: 521 | AB23: 559 | AC23: 600 | AD23: 645 | AE23: 690
E24: 0 | F24: 4000 | G24: 319 | H24: 573 | I24: 343 | J24: 617 | K24: 369 | L24: 663 | M24: 396 | N24: 712 | O24: 427 | P24: 765 | S24: 4000 | T24: 319 | U24: 343 | V24: 369 | W24: 396 | X24: 427 | Z24: 4000 | AA24: 573 | AB24: 617 | AC24: 663 | AD24: 712 | AE24: 765
E25: 0 | F25: 5000 | G25: 351 | H25: 632 | I25: 378 | J25: 683 | K25: 407 | L25: 735 | M25: 437 | N25: 791 | O25: 469 | P25: 852 | S25: 5000 | T25: 351 | U25: 378 | V25: 407 | W25: 437 | X25: 469 | Z25: 5000 | AA25: 632 | AB25: 683 | AC25: 735 | AD25: 791 | AE25: 852
E26: 0 | F26: 6000 | G26: 386 | H26: 703 | I26: 416 | J26: 757 | K26: 450 | L26: 817 | M26: 483 | N26: 882 | O26: 520 | P26: 953 | S26: 6000 | T26: 386 | U26: 416 | V26: 450 | W26: 483 | X26: 520 | Z26: 6000 | AA26: 703 | AB26: 757 | AC26: 817 | AD26: 882 | AE26: 953
E27: 0 | F27: 7000 | G27: 427 | H27: 782 | I27: 460 | J27: 844 | K27: 497 | L27: 914 | M27: 535 | N27: 989 | O27: 576 | P27: 1071 | S27: 7000 | T27: 427 | U27: 460 | V27: 497 | W27: 535 | X27: 576 | Z27: 7000 | AA27: 782 | AB27: 844 | AC27: 914 | AD27: 989 | AE27: 1071
E28: 0 | F28: 8000 | G28: 472 | H28: 875 | I28: 511 | J28: 948 | K28: 550 | L28: 1029 | M28: 593 | N28: 1119 | O28: 639 | P28: 1216 | S28: 8000 | T28: 472 | U28: 511 | V28: 550 | W28: 593 | X28: 639 | Z28: 8000 | AA28: 875 | AB28: 948 | AC28: 1029 | AD28: 1119 | AE28: 1216
T29: 0°C | U29: 10°C | V29: 20°C | W29: 30°C | X29: 40°C | AA29: 0°C | AB29: 10°C | AC29: 20°C | AD29: 30°C | AE29: 40°C
B31: Startlauf | K31: Startstrecke über 15 m Höhe
U33: 8000 | V33: 7000 | W33: 6000 | X33: 5000 | Y33: 4000 | Z33: 3000 | AA33: 2000 | AB33: 1000 | AC33: 0
T34: 0 | U34: =HLOOKUP($T34/10,$S$19:$X$28,U$33/1000+2,FALSE) -> 472 | V34: =HLOOKUP($T34/10,$S$19:$X$28,V$33/1000+2,FALSE) -> 427 | W34: =HLOOKUP($T34/10,$S$19:$X$28,W$33/1000+2,FALSE) -> 386 | X34: =HLOOKUP($T34/10,$S$19:$X$28,X$33/1000+2,FALSE) -> 351 | Y34: 319 | Z34: 290 | AA34: 264 | AB34: 241 | AC34: 219
T35: 10 | U35: =HLOOKUP($T35/10,$S$19:$X$28,U$33/1000+2,FALSE) -> 511 | V35: 460 | W35: 416 | X35: 378 | Y35: 343 | Z35: 312 | AA35: 287 | AB35: 259 | AC35: 236
T36: 20 | U36: 550 | V36: 497 | W36: 450 | X36: 407 | Y36: 369 | Z36: 335 | AA36: 305 | AB36: 279 | AC36: 255
T37: 30 | U37: 593 | V37: 535 | W37: 483 | X37: 437 | Y37: 396 | Z37: 361 | AA37: 328 | AB37: 299 | AC37: 273
T38: 40 | U38: 639 | V38: 576 | W38: 520 | X38: 469 | Y38: 427 | Z38: 387 | AA38: 352 | AB38: 320 | AC38: 293
U41: 8000 | V41: 7000 | W41: 6000 | X41: 5000 | Y41: 4000 | Z41: 3000 | AA41: 2000 | AB41: 1000 | AC41: 0
T42: 0 | U42: =HLOOKUP($T42/10,$Z$19:$AE$28,U$41/1000+2,FALSE) -> 875 | V42: =HLOOKUP($T42/10,$Z$19:$AE$28,V$41/1000+2,FALSE) -> 782 | W42: 703 | X42: 632 | Y42: 573 | Z42: 521 | AA42: 474 | AB42: 433 | AC42: 396
T43: 10 | U43: =HLOOKUP($T43/10,$Z$19:$AE$28,U$41/1000+2,FALSE) -> 948 | V43: 844 | W43: 757 | X43: 683 | Y43: 617 | Z43: 559 | AA43: 509 | AB43: 465 | AC43: 424
T44: 20 | U44: 1029 | V44: 914 | W44: 817 | X44: 735 | Y44: 663 | Z44: 600 | AA44: 546 | AB44: 497 | AC44: 454
T45: 30 | U45: 1119 | V45: 989 | W45: 882 | X45: 791 | Y45: 712 | Z45: 645 | AA45: 584 | AB45: 532 | AC45: 485
T46: 40 | U46: 1216 | V46: 1071 | W46: 953 | X46: 852 | Y46: 765 | Z46: 690 | AA46: 626 | AB46: 568 | AC46: 518
J49: Anmerkungen:
B50: Intrapolierte Startlaufstrecke: | G50: =W10 -> 292 | J50: 1. Kurzstartverfahren, wie in Abschnitt IV angegeben.
B51: Intrapolierte Startstrecke über 15 m Höhe: | H51: =AB10 -> 520 | J51: 2. Vor dem Start auf Plätzen, die höher als 3000 ft über NN liegen, ist das Gemisch entsprechend
B52: Zuschläge: | J52: einzustellen um beim Vollgas-standlauf die maximale Drehzahl zu erhalten
B53: Rücken- / Gegenwind Zu- /Abschlag | G53: =IF(I53,IF(D14>0,-ROUNDDOWN($D$14/9,0)*0.1*G50,ROUNDUP($D$14/2,0)*-0.1*G50),0) -> 0 | H53: =IF(I53,IF(D14>0,-ROUNDDOWN($D$14/9,0)*0.1*H51,ROUNDUP($D$14/2,0)*-0.1*H51),0) -> 0 | I53: TRUE | J53: 3. Für je 9 kt Gegenwind sind die Strecken um 10% zu verringern. Für Starts bei Rückenwind
B54: Trockene Grasbahn | G54: =IF(I54,G50*15%,0) -> 0 | H54: =G54 -> 0 | I54: FALSE | J54: bis 10 kt sind die Strecken für je 2 kt Rückenwind um 10% zu vergrößern
I55: FALSE | J55: 4. Für den Start auf trockenr Grasbahn sind die Strecken um 15% des Werts für den Startlauf
J56: zu vergrößern
J57: 5. Zusätzliche Zuschläge wegen feuchter Grasbahn, aufgeweichten Untergrundes oder
J58: Schnee sind zu berücksichtigen
J60: 1) entspr. Startstr. über 100ft (Wald); max. 738 m!!
B61: Summe inkl. Zu- / Abschläge | G61: =SUM(G50:G60) -> 292 | H61: =SUM(H50:H60) -> 520
B62: ZUR VERFÜGUNG STEHEN (lt. AIP): | G62: 425 | H62: 738

Sheet W&B C152
A2: Weight & Balance C 152 | C2: =IF(VLOOKUP('Flugdurchführungsplan (n. DFS)'!Y4,Flugzeuge!$B$6:$X$40,2,FALSE)="Cessna 152",'Flugdurchführungsplan (n. DFS)'!Y4,"falsches Flugzeug für diese Berechnung!") ->  | L2: =IF(VLOOKUP('Flugdurchführungsplan (n. DFS)'!Y4,Flugzeuge!$B$6:$X$40,2,FALSE)="Cessna 152","OK",1) -> 
A4: Berechnung des Beladungszustands | B4: Musterflugzeug/Beispiel | E4: =IF(VLOOKUP('Flugdurchführungsplan (n. DFS)'!Y4,Flugzeuge!$B$6:$X$40,2,FALSE)="Cessna 152",'Flugdurchführungsplan (n. DFS)'!Y4,"bitte LFZ-Kennzeichen im Flugdurchführungsplan ändern oder anderes W&B sheet verwenden!") -> 
B5: Gewicht | C5: Moment | E5: Gewicht | F5: Moment
A6: C -152 | B6: in kp | C6: in mkp | E6: in kp | F6: in mkp | I6: max Gewicht
A8: 1. Grundgewicht | B8: 515 | C8: 392 | E8: =IF(VLOOKUP('Flugdurchführungsplan (n. DFS)'!Y4,Flugzeuge!$B$6:$X$40,2,FALSE)="Cessna 152",VLOOKUP('Flugdurchführungsplan (n. DFS)'!Y4,Flugzeuge!$B$6:$X$40,7,FALSE),"Fehler") ->  | F8: =IF(VLOOKUP('Flugdurchführungsplan (n. DFS)'!Y4,Flugzeuge!$B$6:$X$40,2,FALSE)="Cessna 152",VLOOKUP('Flugdurchführungsplan (n. DFS)'!Y4,Flugzeuge!$B$6:$X$40,8,FALSE),"Fehler") -> 
A9: 2. Kraftstoff, ausfliegbar 92 L (bei 0,72 kg/l) und | B9: 65 | C9: 68 | E9: =G9*0.72 -> 66.24 | F9: =E9*P35 -> 70.2144 | G9: ='Flugdurchführungsplan (n. DFS)'!F97 -> 92 | I9: =92*0.72 -> 66.24
A10: Fallschirm | E10: 0 | F10: =E10*P35 -> 0
A11: 3. Pilot und vorderer Fluggast | B11: 154 | C11: 153 | E11: 160 | F11: =E11*P32 -> 160.8
A12: 4. Gepäckbereich 1 | B12: 24 | C12: 38 | E12: 10 | F12: =E12*P38 -> 16.7 | I12: 54
A13: 5. Gepäckbereich 2 | E13: 0 | F13: =E13*P41 -> 0 | I13: 18
A14: 6. Startgewicht (max. 785) und Moment | B14: 515 | C14: 651 | E14: =SUM(E8:E13) ->  | F14: =SUM(F8:F13) ->  | I14: 758
A16: (Leergewicht und -moment basiert auf der letzten Wägung vom | C16: =IF(VLOOKUP('Flugdurchführungsplan (n. DFS)'!Y4,Flugzeuge!$B$6:$X$40,2,FALSE)="Cessna 152",VLOOKUP('Flugdurchführungsplan (n. DFS)'!Y4,Flugzeuge!$B$6:$X$40,9,FALSE),"Fehler") ->  | D16: )
N29: Gewicht | O29: Moment | P29: Hebel
N30: Pilot, Fluggast
N31: 0 | O31: 0
N32: 180 | O32: =N32*P32 -> 180.9 | P32: 1.005
N33: Kraftstoff (Standrdtanks) 0,72 kp/l und Fallschirm
N34: 0 | O34: 0
N35: 69 | O35: =N35*P35 -> 73.14 | P35: 1.06
N36: Gepäck im Gepäckbereich 1 (oder Fluggast auf Kindersitz) max. 54 kp
N37: 0 | O37: 0
N38: 54 | O38: =N38*P38 -> 90.18 | P38: 1.67
N39: Gepäck im Gepäckbereich 2, max. 18 kp
N40: 0 | O40: 0
N41: 18 | O41: =N41*P41 -> 39.6 | P41: 2.2
F60: zu schwer
B68: zu frontlastig
D70: zulässig | T70: kp | U70: max
T71: =E8 ->  | U71: =I8 -> 0 | V71: =IF(AND(U71>0,U71<T71),"Grundgewicht überschritten! ","") -> 
N72: y | O72: x | T72: =E9 -> 66.24 | U72: =I9 -> 66.24 | V72: =IF(AND(U72>0,U72<T72),"Kraftstoffmenge zu hoch! ","") -> 
N73: IST-Wert | T73: =E11 -> 160 | U73: =I11 -> 0 | V73: =IF(AND(U73>0,U73<T73),"","") -> 
N74: =E14 ->  | O74: =F14 ->  | T74: 10 | U74: 54 | V74: =IF(AND(U74>0,U74<T74),"Gepäckbereich 1 überladen! ","") -> 
N75: Vordere Grenze | T75: 0 | U75: 18 | V75: =IF(AND(U75>0,U75<T75),"Gepäckbereich 2 überladen! ","") -> 
N76: Gewicht VG | O76: Moment VG | T76: =E14 ->  | U76: 758 | V76: =IF(AND(U76>0,U76<T76),"Gesamtgewicht zu hoch! ","") -> 
N77: 455 | O77: 358 | Q77: y=ax+c | R77: x=(y-c)/a | U77: =IF($N$74<N77,$N$74,0) ->  | V77: =IF(U77>0,IF(U77<N77,"Gewicht prüfen - zu gering? ",""),"") -> 
N78: 590 | O78: 467 | Q78: a= | R78: =(N78-N77)/(O78-O77) -> 1.23853211 | S78: c= | T78: =N77-O77*R78 -> 11.60550459 | U78: =IF(AND($N$74<=N78,$N$74>=N77),$N$74,0) ->  | V78: =IF(U78>0,IF($O$74<(U78-T78)/R78,"zu vorderlastig! ",IF($O$74>(U78-$T$84)/$R$84,"zu hecklastig beladen! ","OK")),"") -> 
B79: zulässig | N79: 655 | O79: 525 | Q79: a= | R79: =(N79-N78)/(O79-O78) -> 1.120689655 | S79: c= | T79: =N78-O78*R79 -> 66.63793103 | U79: =IF(AND($N$74<=N79,$N$74>=N78),$N$74,0) ->  | V79: =IF(U79>0,IF($O$74<(U79-T79)/R79,"zu vorderlastig! ",IF($O$74>(U79-$T$84)/$R$84,"zu hecklastig beladen! ","OK")),"") -> 
N80: 758 | O80: 628 | Q80: a= | R80: =(N80-N79)/(O80-O79) -> 1 | S80: c= | T80: =N79-O79*R80 -> 130 | U80: =IF(AND($N$74<=N80,$N$74>=N79),$N$74,0) ->  | V80: =IF(U80>0,IF($O$74<(U80-T80)/R80,"zu vorderlastig! ",IF($O$74>(U80-$T$84)/$R$84,"zu hecklastig beladen! ","OK")),"") -> 
F81: zu hecklastig | N81: Hintere Grenze | U81: =IF(AND($N$74>N80),$N$74,0) ->  | V81: =IF(U81>0,"Maximalgewicht überschritten! ","") -> 
N82: Gewicht HG | O82: Moment HG | V82: =V71&V72&V73&V74&V75&V76&V77&V78&V79&V80&V81 -> 
N83: 455 | O83: 420
N84: 758 | O84: 703 | Q84: a= | R84: =(N84-N83)/(O84-O83) -> 1.070671378 | S84: c= | T84: =N83-O83*R84 -> 5.318021201
N85: Obere Grenze
N86: Gewicht OG | O86: Moment OG
N87: 757 | O87: 628
N88: 758 | O88: 703
A94: =IF(L2="OK",IF(V82="OK"," Weight & Balance OK!",V82),"FEHLER!") -> 
A96: Luftfahrzeugführer | C96: Datum | F96: Unterschrift

Sheet Startstrecke C152
B2: Startstreckenberechnung Cessna 152 (Kurzstart)
B4: LFZ-Muster | D4: C 152 | G4: MTOW: 758 kp, Tankinhalt 98 l, ausfliegbar 92 l
B5: Kennzeichen | D5: =IF(VLOOKUP('Flugdurchführungsplan (n. DFS)'!Y4,Flugzeuge!$B$6:$X$40,2,FALSE)="Cessna 152",'Flugdurchführungsplan (n. DFS)'!Y4,"falscher Flugzeugtyp für diese Berechnung!") -> 
B7: Temperatur | D7: 20 | H7: Leergewicht | J7: ='W&B C152'!E8 ->  | V7: =ROUNDDOWN(W7/10,0)*10 -> 20 | W7: =D7 -> 20 | X7: =ROUNDUP(W7/10,0)*10 -> 20 | AA7: =ROUNDDOWN(AB7/10,0)*10 -> 20 | AB7: =W7 -> 20 | AC7: =ROUNDUP(AB7/10,0)*10 -> 20
B8: QNH in hPa | D8: 1013.2 | H8: Zuladung | V8: =V7/10 -> 2 | X8: =X7/10 -> 2 | AA8: =AA7/10 -> 2 | AC8: =AC7/10 -> 2
B9: Platzhöhe ü.NN in ft | D9: 1862 | F9: =IF('Flugdurchführungsplan (n. DFS)'!I5<>"","("&Flugplätze!AB4&" "&Flugplätze!AB6&"ft)","") ->  | H9: Treibstoff | U9: =ROUNDDOWN(U10/1000,0)*1000 -> 1000 | V9: =VLOOKUP($U9,$S$19:$X$28,V$8+2,FALSE) -> 251 | W9: =ROUND(V9+(W7-V7)/10*(X9-V9),0) -> 251 | X9: =VLOOKUP($U9,$S$19:$X$28,X$8+2,FALSE) -> 251 | Z9: =ROUNDDOWN(Z10/1000,0)*1000 -> 1000 | AA9: =VLOOKUP($Z9,$Z$19:$AE$28,AA$8+2,FALSE) -> 466 | AB9: =ROUND(AA9+(AB7-AA7)/10*(AC9-AA9),0) -> 466 | AC9: =VLOOKUP($Z9,$Z$19:$AE$28,AC$8+2,FALSE) -> 466
B10: Druckhöhe | D10: =ROUND(-(D8-1013.2)*27+D9,0) -> 1862 | U10: =D10 -> 1862 | V10: =ROUND(V9+(U10-U9)/1000*(V11-V9),0) -> 273 | W10: =ROUND(V10+(W7-V7)/10*(X10-V10),0) -> 273 | X10: =ROUND(X9+(U10-U9)/1000*(X11-X9),0) -> 273 | Z10: =U10 -> 1862 | AA10: =ROUND(AA9+(Z10-Z9)/1000*(AA11-AA9),0) -> 508 | AB10: =ROUND(AA10+(AB7-AA7)/10*(AC10-AA10),0) -> 508 | AC10: =ROUND(AC9+(Z10-Z9)/1000*(AC11-AC9),0) -> 508
B11: Windrichtung | D11: 270 | H11: Abfluggewicht | J11: 758 | L11: Bedingungen: | U11: =ROUNDUP(U10/1000,0)*1000 -> 2000 | V11: =VLOOKUP($U11,$S$19:$X$28,V$8+2,FALSE) -> 277 | W11: =ROUND(V11+(W7-V7)/10*(X11-V11),0) -> 277 | X11: =VLOOKUP($U11,$S$19:$X$28,X$8+2,FALSE) -> 277 | Z11: =ROUNDUP(Z10/1000,0)*1000 -> 2000 | AA11: =VLOOKUP($Z11,$Z$19:$AE$28,AA$8+2,FALSE) -> 515 | AB11: =ROUND(AA11+(AB7-AA7)/10*(AC11-AA11),0) -> 515 | AC11: =VLOOKUP($Z11,$Z$19:$AE$28,AC$8+2,FALSE) -> 515
B12: Windgeschwindigkeit | D12: 5 | L12: - Klappen 10°
B13: Bahnrichtung | D13: 25 | F13: =IF(D13<=18,D13+18,D13-18) -> 7 | L13: - Vollgas vor dem Lösen der Bremsen
B14: Gegenwind | D14: =D12*COS((D11-(10*D13))*PI()/180) -> 4.698463104 | F14: =D12*COS((D11-(10*F13))*PI()/180) -> -4.698463104 | G14: (negative Werte = Rückenwind) | L14: - Befestigte, trockene und ebene Startbahn
B15: Seitenwind | D15: =D12*SIN((D11-(10*D13))*PI()/180) -> 1.710100717 | F15: =D12*SIN((D11-(10*F13))*PI()/180) -> -1.710100717 | G15: (pos. Werte = von rechts, neg. = von links) | L15: - Windstille
G16: =IF(OR($V$7=G18,$X$7=G18),1,0) -> 0 | H16: =IF(OR($V$7=G18,$X$7=G18),1,0) -> 0 | I16: =IF(OR($V$7=I18,$X$7=I18),1,0) -> 0 | J16: =IF(OR($V$7=I18,$X$7=I18),1,0) -> 0 | K16: =IF(OR($V$7=K18,$X$7=K18),1,0) -> 1 | L16: =IF(OR($V$7=K18,$X$7=K18),1,0) -> 1 | M16: =IF(OR($V$7=M18,$X$7=M18),1,0) -> 0 | N16: =IF(OR($V$7=M18,$X$7=M18),1,0) -> 0 | O16: =IF(OR($V$7=O18,$X$7=O18),1,0) -> 0 | P16: =IF(OR($V$7=O18,$X$7=O18),1,0) -> 0
B17: Flug-gewicht | C17: Startgeschwindigkeit | F17: Druckhöhe | G17: Startlauf und Startstrecke über 15 m Höhe in Metern in Abhängikeit von der Temperatur | T17: Startlauf | U17: Startlauf | V17: Startlauf | W17: Startlauf | X17: Startlauf | AA17: Str. ü. 15 m | AB17: Str. ü. 15 m | AC17: Str. ü. 15 m | AD17: Str. ü. 15 m | AE17: Str. ü. 15 m
C18: beim Abheben | D18: in 15 m Höhe | G18: 0 | I18: 10 | K18: 20 | M18: 30 | O18: 40 | T18: 0 | U18: 10 | V18: 20 | W18: 30 | X18: 40 | AA18: 0 | AB18: 10 | AC18: 20 | AD18: 30 | AE18: 40
B19: kp | C19: kt IAS | D19: kt IAS | F19: ft | G19: Startlauf | H19: Str. ü. 15 m | I19: Startlauf | J19: Str. ü. 15 m | K19: Startlauf | L19: Str. ü. 15 m | M19: Startlauf | N19: Str. ü. 15 m | O19: Startlauf | P19: Str. ü. 15 m | S19: ft | T19: 0 | U19: 1 | V19: 2 | W19: 3 | X19: 4 | Z19: ft | AA19: 0 | AB19: 1 | AC19: 2 | AD19: 3 | AE19: 4
B20: 758 | C20: 50 | D20: 54 | E20: =IF(OR($U$9=F20,$U$11=F20),1,0) -> 0 | F20: 0 | G20: 195 | H20: 363 | I20: 212 | J20: 393 | K20: 230 | L20: 424 | M20: 247 | N20: 456 | O20: 267 | P20: 489 | S20: 0 | T20: 195 | U20: 212 | V20: 230 | W20: 247 | X20: 267 | Z20: 0 | AA20: 363 | AB20: 393 | AC20: 424 | AD20: 456 | AE20: 489
E21: 1 | F21: 1000 | G21: 215 | H21: 399 | I21: 233 | J21: 433 | K21: 251 | L21: 466 | M21: 271 | N21: 501 | O21: 293 | P21: 539 | S21: 1000 | T21: 215 | U21: 233 | V21: 251 | W21: 271 | X21: 293 | Z21: 1000 | AA21: 399 | AB21: 433 | AC21: 466 | AD21: 501 | AE21: 539
E22: 1 | F22: 2000 | G22: 236 | H22: 440 | I22: 256 | J22: 477 | K22: 277 | L22: 515 | M22: 299 | N22: 555 | O22: 322 | P22: 597 | S22: 2000 | T22: 236 | U22: 256 | V22: 277 | W22: 299 | X22: 322 | Z22: 2000 | AA22: 440 | AB22: 477 | AC22: 515 | AD22: 555 | AE22: 597
E23: 0 | F23: 3000 | G23: 261 | H23: 488 | I23: 282 | J23: 527 | K23: 305 | L23: 570 | M23: 329 | N23: 616 | O23: 355 | P23: 666 | S23: 3000 | T23: 261 | U23: 282 | V23: 305 | W23: 329 | X23: 355 | Z23: 3000 | AA23: 488 | AB23: 527 | AC23: 570 | AD23: 616 | AE23: 666
E24: 0 | F24: 4000 | G24: 287 | H24: 541 | I24: 311 | J24: 585 | K24: 335 | L24: 634 | M24: 363 | N24: 686 | O24: 392 | P24: 744 | S24: 4000 | T24: 287 | U24: 311 | V24: 335 | W24: 363 | X24: 392 | Z24: 4000 | AA24: 541 | AB24: 585 | AC24: 634 | AD24: 686 | AE24: 744
E25: 0 | F25: 5000 | G25: 317 | H25: 600 | I25: 343 | J25: 652 | K25: 370 | L25: 707 | M25: 401 | N25: 770 | O25: 433 | P25: 838 | S25: 5000 | T25: 317 | U25: 343 | V25: 370 | W25: 401 | X25: 433 | Z25: 5000 | AA25: 600 | AB25: 652 | AC25: 707 | AD25: 770 | AE25: 838
E26: 0 | F26: 6000 | G26: 349 | H26: 671 | I26: 379 | J26: 730 | K26: 410 | L26: 796 | M26: 443 | N26: 870 | O26: 479 | P26: 953 | S26: 6000 | T26: 349 | U26: 379 | V26: 410 | W26: 443 | X26: 479 | Z26: 6000 | AA26: 671 | AB26: 730 | AC26: 796 | AD26: 870 | AE26: 953
E27: 0 | F27: 7000 | G27: 387 | H27: 753 | I27: 419 | J27: 824 | K27: 454 | L27: 902 | M27: 492 | N27: 992 | O27: 532 | P27: 1094 | S27: 7000 | T27: 387 | U27: 419 | V27: 454 | W27: 492 | X27: 532 | Z27: 7000 | AA27: 753 | AB27: 824 | AC27: 902 | AD27: 992 | AE27: 1094
E28: 0 | F28: 8000 | G28: 428 | H28: 853 | I28: 465 | J28: 939 | K28: 504 | L28: 1035 | M28: 547 | N28: 1148 | O28: 591 | P28: 1279 | S28: 8000 | T28: 428 | U28: 465 | V28: 504 | W28: 547 | X28: 591 | Z28: 8000 | AA28: 853 | AB28: 939 | AC28: 1035 | AD28: 1148 | AE28: 1279
T29: 0°C | U29: 10°C | V29: 20°C | W29: 30°C | X29: 40°C | AA29: 0°C | AB29: 10°C | AC29: 20°C | AD29: 30°C | AE29: 40°C
B31: Startlauf | K31: Startstrecke über 15 m Höhe
U33: 8000 | V33: 7000 | W33: 6000 | X33: 5000 | Y33: 4000 | Z33: 3000 | AA33: 2000 | AB33: 1000 | AC33: 0
T34: 0 | U34: 428 | V34: 387 | W34: 349 | X34: 317 | Y34: 287 | Z34: 261 | AA34: 236 | AB34: 215 | AC34: 195
T35: 10 | U35: 465 | V35: 419 | W35: 379 | X35: 343 | Y35: 311 | Z35: 282 | AA35: 256 | AB35: 233 | AC35: 212
T36: 20 | U36: 504 | V36: 454 | W36: 410 | X36: 370 | Y36: 335 | Z36: 305 | AA36: 277 | AB36: 251 | AC36: 230
T37: 30 | U37: 547 | V37: 492 | W37: 443 | X37: 401 | Y37: 363 | Z37: 329 | AA37: 299 | AB37: 271 | AC37: 247
T38: 40 | U38: 591 | V38: 532 | W38: 479 | X38: 433 | Y38: 392 | Z38: 355 | AA38: 322 | AB38: 293 | AC38: 267
U41: 8000 | V41: 7000 | W41: 6000 | X41: 5000 | Y41: 4000 | Z41: 3000 | AA41: 2000 | AB41: 1000 | AC41: 0
T42: 0 | U42: 853 | V42: 753 | W42: 671 | X42: 600 | Y42: 541 | Z42: 488 | AA42: 440 | AB42: 399 | AC42: 363
T43: 10 | U43: 939 | V43: 824 | W43: 730 | X43: 652 | Y43: 585 | Z43: 527 | AA43: 477 | AB43: 433 | AC43: 393
T44: 20 | U44: 1035 | V44: 902 | W44: 796 | X44: 707 | Y44: 634 | Z44: 570 | AA44: 515 | AB44: 466 | AC44: 424
T45: 30 | U45: 1148 | V45: 992 | W45: 870 | X45: 770 | Y45: 686 | Z45: 616 | AA45: 555 | AB45: 501 | AC45: 456
T46: 40 | U46: 1279 | V46: 1094 | W46: 953 | X46: 838 | Y46: 744 | Z46: 666 | AA46: 597 | AB46: 539 | AC46: 489
J49: Anmerkungen:
B50: Intrapolierte Startlaufstrecke: | G50: =W10 -> 273 | J50: 1. Kurzstartverfahren, wie in Abschnitt IV angegeben.
B51: Intrapolierte Startstrecke über 15 m Höhe: | H51: =AB10 -> 508 | J51: 2. Vor dem Start auf Plätzen, die höher als 3000 ft über NN liegen, ist das Gemisch entsprechend
B52: Zuschläge: | J52: einzustellen um beim Vollgas-standlauf die maximale Drehzahl zu erhalten
B53: Rücken- / Gegenwind Zu- /Abschlag | G53: =IF(I53,IF(D14>0,-ROUNDDOWN($D$14/9,0)*0.1*G50,ROUNDUP($D$14/2,0)*-0.1*G50),0) -> 0 | H53: =IF(I53,IF(D14>0,-ROUNDDOWN($D$14/9,0)*0.1*H51,ROUNDUP($D$14/2,0)*-0.1*H51),0) -> 0 | I53: FALSE | J53: 3. Für je 9 kt Gegenwind sind die Strecken um 10% zu verringern. Für Starts bei Rückenwind
B54: Neigungszuschlag | I54: FALSE | J54: bis 10 kt sind die Strecken für je 2 kt Rückenwind um 10% zu vergrößern
B55: Trockene Grasbahn | G55: =IF(I54,G50*15%,0) -> 0 | H55: =G55 -> 0 | I55: FALSE | J55: 4. Für den Start auf trockenr Grasbahn sind die Strecken um 15% des Werts für den Startlauf
B56: Oberflächenzuschlag | J56: zu vergrößern
B57: 40% Zuschlag auf Startstrecke über 15 m (50 ft)1) | H57: =IF(I55,0.4*H51,0) -> 0 | J57: 5. Zusätzliche Zuschläge wegen feuchter Grasbahn, aufgeweichten Untergrundes oder
J58: Schnee sind zu berücksichtigen
J60: 1) für EDMJ entspr. Startstr. über 100ft (Wald); max. 738 m!!
B61: Summe inkl. Zu- / Abschläge | G61: =SUM(G50:G60) -> 273 | H61: =SUM(H51:H60) -> 508
B62: ZUR VERFÜGUNG STEHEN (lt. AIP): | G62: 425 | H62: 738
B63: =IF(VLOOKUP('Flugdurchführungsplan (n. DFS)'!Y4,Flugzeuge!$B$6:$X$40,2,FALSE)="Cessna 152","","falscher Flugzeugtyp für diese Berechnung!") -> 

Sheet W&B C172 S (hidden)
A1: ACHTUNG dieses Sheet ist noch nicht fertig!! | R1: Ausgabe für Flight Log
A2: Weight & Balance C 172 S | C2: =IF(VLOOKUP('Flugdurchführungsplan (n. DFS)'!Y4,Flugzeuge!$B$6:$X$40,2,FALSE)="Cessna 172 S",'Flugdurchführungsplan (n. DFS)'!Y4,"falscher Flugzeugtyp für diese Berechnung!") ->  | L2: =IF(VLOOKUP('Flugdurchführungsplan (n. DFS)'!Y4,Flugzeuge!$B$6:$X$40,2,FALSE)="Cessna 172 S","OK",1) ->  | R2: Masse-/ Schwerpunktberechnung | S2: Masse (kg) / Gewicht (kp) | T2: Moment
R3: Leermasse | S3: 544 | T3: =K6*AP6 -> 0
A4: Berechnung des Beladungszustands | B4: Musterflugzeug/Beispiel | E4: =IF(VLOOKUP('Flugdurchführungsplan (n. DFS)'!Y4,Flugzeuge!$B$6:$X$40,2,FALSE)="Cessna 172 S",'Flugdurchführungsplan (n. DFS)'!Y4,"bitte LFZ-Kennzeichen im Flugdurchführungsplan ändern oder im Sheet Flugzeuge korrigieren!") ->  | R4: Kraftstoff, nichtausfliegbar | S4: =6*0.72 -> 4.32 | T4: =K7*AP7 -> 0
B5: Gewicht | C5: Moment | E5: Gewicht | F5: Moment | R5: Schmierstoff | T5: =K8*AP8 -> 0
A6: C -172 | B6: in kp | C6: in cmkp/1000 | E6: in kp | F6: in cmkp/1000 | I6: max Gewicht | R6: =Grundmasse | S6: =SUM(S3:S5) -> 548.32 | T6: =SUM(T3:T5) -> 0
R7: Sitzreihe 1 | S7: 100 | T7: =K10*AP10 -> 0
A8: 1. Grundgewicht | B8: 659.4 | C8: 66.4 | E8: =B8 -> 659.4 | F8: =C8 -> 66.4 | N8: =C8/B8 -> 0.1006976039 | O8: =N8*1000 -> 100.6976039 | R8: Sitzreihe 2 | T8: 0
A9: 2. Kraftstoff, ausfliegbar __ L (bei 0,72 kg/l) und | B9: 108.7 | C9: 13.2 | E9: =G9*0.72 -> 136.08 | F9: =E9*P36/10 -> 16.5255552 | G9: 189 | I9: =189*0.72 -> 136.08 | N9: =C9/B9 -> 0.1214351426 | O9: =N9*1000 -> 121.4351426 | R9: Sitzreihe 3 | T9: 0
A10: Fallschirm | E10: 0 | F10: =E10*P36/10 -> 0 | N10: =N9 -> 0.1214351426 | O10: 121.4351426 | R10: Gepäckraum 1 | S10: 20 | T10: 0
A11: 3. Pilot und vorderer Fluggast | B11: 154.3 | C11: 14.5 | E11: 180 | F11: =E11*P33/10 -> 16.92 | N11: 0.0939727803 | O11: 93.9727803 | R11: Gepäckraum 2 | T11: 0
A12: 4. Hintere Fluggäste | B12: 77.1 | C12: 14.3 | E12: 65 | F12: =E12*P39/10 -> 12.0575 | N12: 0.1854734112 | O12: 185.4734112 | R12: Gepäckraum 3 | T12: 0
A13: 5. Gepäckbereich 1 | B13: 43.5 | C13: 10.5 | E13: 0 | F13: =E13*P42/10 -> 0 | I13: 54 | N13: 0.2413793103 | O13: 241.3793103 | R13: Kraftstoff, ausfliegbar | S13: =N14*0.72 -> 0.2216347826 | T13: 0
A14: 6. Gepäckbereich 2 | E14: 0 | F14: =E14*P45/10 -> 0 | I14: 23 | N14: 0.307826087 | O14: 307.826087 | R14: Startmasse Startmoment | S14: =SUM(S6:S13) -> 668.5416348 | T14: =SUM(T6:T13) -> 0
A15: 7. Startgewicht (max. 1043 kp) und Moment | B15: =SUM(B8:B14) -> 1043 | C15: =SUM(C8:C14) -> 118.9 | E15: =SUM(E8:E14) -> 1040.48 | F15: =SUM(F8:F14) -> 111.9030552 | I15: 1043.03
A17: (Leergewicht und -moment basiert auf der letzten Wägung vom )
N30: Gewicht | O30: Moment | P30: Hebel
N31: Pilot, Fluggast
N32: 0 | O32: 0
N33: 200 | O33: =N33*P33/10 -> 18.8 | P33: 0.94
N34: Kraftstoff (Standrdtanks) 0,72 kp/l und Fallschirm
N35: 0 | O35: 0
N36: =189*0.72 -> 136.08 | O36: =N36*P36/10 -> 16.5255552 | P36: 1.2144
N37: Hintere Fluggäste
N38: 0 | O38: 0
N39: 188 | O39: =N39*P39/10 -> 34.874 | P39: 1.855
N40: Gepäck im Gepäckbereich 1 (oder Fluggast auf Kindersitz)
N41: 0 | O41: 0
N42: 54 | O42: =N42*P42/10 -> 13.0356 | P42: 2.414
N43: Gepäck im Gepäckbereich 2, max. 23 kp
N44: 0 | O44: 0
N45: 23 | O45: =N45*P45/10 -> 7.084 | P45: 3.08
F61: zu schwer
B69: zu frontlastig | T69: kp | U69: max
T70: =E8 -> 659.4 | U70: =I8 -> 0 | V70: =IF(AND(U70>0,U70<T70),"Grundgewicht überschritten! ","") -> 
D71: zulässig | T71: =E9 -> 136.08 | U71: =I9 -> 136.08 | V71: =IF(AND(U71>0,U71<T71),"Kraftstoffmenge zu hoch! ","") -> 
T72: =E11 -> 180 | U72: =I11 -> 0 | V72: =IF(AND(U72>0,U72<T72),"","") -> 
N73: y | O73: x | T73: =E13 -> 0 | U73: =I13 -> 54 | V73: =IF(AND(U73>0,U73<T73),"Gepäckbereich 1 überladen! ","") -> 
N74: IST-Wert | T74: =E14 -> 0 | U74: =I14 -> 23 | V74: =IF(AND(U74>0,U74<T74),"Gepäckbereich 2 überladen! ","") -> 
N75: =E15 -> 1040.48 | O75: =F15 -> 111.9030552 | T75: =T74+T73 -> 0 | U75: 54 | V75: =IF(AND(U75>0,U75<T75),"Gepäckbereich in Summe überladen! ","") -> 
N76: Vordere Grenze | T76: =E15 -> 1040.48 | U76: =I15 -> 1043.03 | V76: =IF(AND(U76>0,U76<T76),"Gesamtgewicht zu hoch! ","") -> 
N77: Gewicht VG | O77: Moment VG | Q77: y=ax+c | R77: x=(y-c)/a | T77: 700 | U77: =IF($N$75<T77,$N$75,0) -> 0 | V77: =IF(U77>0,IF(U77<T77,"Gewicht prüfen - zu gering? ",""),"") -> 
N78: 700 | O78: 60
N79: 890 | O79: 78 | Q79: a= | R79: =(N79-N78)/(O79-O78) -> 10.55555556 | S79: c= | T79: =N78-O78*R79 -> 66.66666667 | U79: =IF(AND($N$75<=N79,$N$75>=N78),$N$75,0) -> 0 | V79: =IF(U79>0,IF($O$75<(U79-T79)/R79,"zu vorderlastig! ",IF($O$75>(U79-$T$84)/$R$84,"zu hecklastig beladen! ","OK")),"") -> 
B80: zulässig | N80: =N84 -> 1043.04 | O80: 102 | Q80: a= | R80: =(N80-N79)/(O80-O79) -> 6.376666667 | S80: c= | T80: =N79-O79*R80 -> 392.62 | U80: =IF(AND($N$75<=N80,$N$75>=N79),$N$75,0) -> 1040.48 | V80: =IF(U80>0,IF($O$75<(U80-T80)/R80,"Zu vorderlastig! ",IF($O$75>(U80-$T$84)/$R$84,"Zu hecklastig beladen! ","OK")),"") -> OK
N81: Hintere Grenze | V81: =IF(U81>0,"Maximalgewicht überschritten! ","") -> 
F82: zu hecklastig | N82: Gewicht HG | O82: Moment HG | V82: =V70&V71&V72&V73&V74&V76&V77&V79&V80&V75 -> OK
N83: 700 | O83: 81
N84: 1043.04 | O84: 125 | Q84: a= | R84: =(N84-N83)/(O84-O83) -> 7.796363636 | S84: c= | T84: =N83-O83*R84 -> 68.49454545
N85: Obere Grenze
N86: Gewicht OG | O86: Moment OG
N87: =N80 -> 1043.04 | O87: =O80 -> 102
N88: =N87 -> 1043.04 | O88: =O84 -> 125
A95: =IF(L2="OK",IF(V82="OK"," Weight & Balance OK!",V82),"FEHLER!") -> 
A97: Luftfahrzeugführer | C97: Datum | F97: Unterschrift

Sheet Sonnenuntergang (hidden)
B2: Berechnung von Sonnenauf- und untergang auf Basis der Zeitgleichung Version Januar 2005: http://lexikon.astronomie.info
B3: Die Berechnung mit Formel in Einzelschritten ist ab Spalte L dieses Blattes einzusehen. Blattschutz ohne Passwort.
B4: Erstellt von Axel Lopata 29.06.2010 Angaben ohne Gewähr (bauphysik@guru.de)
B6: Ort | C6: =Flugplätze!AJ4 -> 
C7: Grad | D7: Minuten | E7: Sekunden
B8: Breite | C8: =Flugplätze!AH10 ->  | D8: =Flugplätze!AI10 ->  | E8: =Flugplätze!AJ10 ->  | G8: Tag_Diff z. 01.01.2000 | H8: =Datum-36526 -> -36526
B9: Nord = 1 / Süd = 2 | C9: 1 | G9: T | H9: =(Tag_Diff)/36525 -> -1.000027379 | K9: =MATCH(Tag_2,Datum_Liste) ->  | L9: =YEAR(Datum) -> 1900 | M9: =IF(ISERROR(DAY(Datum)),0,1) -> 1
G10: M | H10: =2*PI()*(0.993133+99.997361*T) -> -622.0791127 | K10: 2004-01-01 | L10: =IF(DAY(Datum)<10,0,"")&DAY(Datum)&"."&IF(MONTH(Datum)<10,0,"")&MONTH(Datum)&"."&"04" -> 00.01.04
B11: Länge | C11: =Flugplätze!AH11 ->  | D11: =Flugplätze!AI11 ->  | E11: =Flugplätze!AJ11 ->  | G11: L | H11: =2*PI()*(0.7859453+M/(2*PI())+(6893*SIN(M)+72*SIN(2*M)+6191.2*T)/1296000) -> -617.172382 | K11: 2004-01-02 | L11: =DATEVALUE(Tag) -> 
B12: Ost = 1 / West = 2 | C12: 1 | G12: e | H12: =2*PI()*(23.43929111+(-46.815*T-0.00059*T*T+0.001813*T*T*T)/3600)/360 -> 0.4093197643 | K12: 2004-01-03
G13: DK | H13: =ASIN(SIN(e)*SIN(L)) -> -0.4044162882 | K13: 2004-01-04
B14: Datum | C14: ='Flugdurchführungsplan (n. DFS)'!C4 -> 00:00:00 | G14: RA | H14: =ATAN(TAN(L )*COS(e )) -> -1.406894959 | K14: 2004-01-05
G15: RA_2 | H15: =IF(OR(RA<0,L>PI()),RA+PI(),RA) -> 1.734697695 | K15: 2004-01-06
B16: Zeitzone (Diff. zu UTC) | C16: 2 | G16: RA_3 | H16: =RA_2*24/(2*PI()) -> 6.62605711 | K16: 2004-01-07
G17: RAm | H17: =MOD((2400.0513369*T+18.73022974),24) -> 18.61318302 | K17: 2004-01-08
B18: Sunrise Ortszeit | C18: =IF(Datum_Kontrolle=0,"Datumsfehler",Sunrise_Ortszeit_Ausgabe) ->  | G18: WOZ-MOZ (Zeit.Gl) | H18: =1.0027379*(RAm-RA_3) -> 12.01994546 | K18: 2004-01-09
B19: Sunrise UTC | C19: =IF(Datum_Kontrolle=0,"Datumsfehler",Sunrise_UTC_Ausgabe) ->  | G19: Zeitdifferenz | H19: =12*ACOS((SIN(-0.0145)-SIN(Breite*PI()/180)*SIN(DK))/(COS(Breite*PI()/180)*COS(DK)))/PI() ->  | K19: 2004-01-10
B20: Sunset Ortszeit | C20: =IF(Datum_Kontrolle=0,"Datumsfehler",Sunset_Ortszeit_Ausgabe) ->  | G20: Aufgang = A | H20: =12-Zeit_Diff-Zeit_Gl-(Laenge/15) ->  | K20: 2004-01-11
B21: Sunset UTC | C21: =IF(Datum_Kontrolle=0,"Datumsfehler",Sunset_UTC_Ausgabe) ->  | D21: =IF(ISERROR(C21),"Datum fehlt!",IF(C21="dunkel","Ort fehlt!",C21)) -> Datum fehlt! | G21: Untergang = U | H21: =12+Zeit_Diff-Zeit_Gl-(Laenge/15) ->  | K21: 2004-01-12
G22: Breite | H22: =IF(Breite_Nord_Sued=1,Breite_Grad+Breite_Minute/60+Breite_Sekunde/3600,IF(Breite_Nord_Sued=2,(Breite_Grad+Breite_Minute/60+Breite_Sekunde/3600)*-1,"Fehler")) ->  | K22: 2004-01-13
B23: Sonnenstunden | C23: =IF(Datum_Kontrolle=0,"Datumsfehler",Sunset_Tageslicht_Ausgabe) ->  | G23: Länge | H23: =IF(Laenge_Ost_West=1,Laenge_Grad+Laenge_Minute/60+Laenge_Sekunde/3600,IF(Laenge_Ost_West=2,(Laenge_Grad+Laenge_Minute/60+Laenge_Sekunde/3600)*-1,"Fehler")) ->  | K23: 2004-01-14
K24: 2004-01-15
B25: Formel nach Zeitgleichung Version Januar 2005 | K25: 2004-01-16
B26: Sunrise Ortszeit | C26: =IF(A+UTC<0,A+UTC+12,IF(A+UTC>12,A+UTC-12,A+UTC)) ->  | D26: =IF(Sunrise_Ortszeit<0,24+Sunrise_Ortszeit,Sunrise_Ortszeit) ->  | E26: =INT(Sunrise_Ortszeit_2)&":"&ROUND((Sunrise_Ortszeit_2-INT(Sunrise_Ortszeit_2))*60,0) ->  | F26: =IF(ISERROR(Sunrise_Ortszeit_3),Sunrise_Ortszeit_Hell_Dunkel_Ausgabe,IF(HOUR(Sunrise_Ortszeit_3)<10,0,"")&HOUR(Sunrise_Ortszeit_3)&":"&IF(MINUTE(Sunrise_Ortszeit_3)<10,0,"")&MINUTE(Sunrise_Ortszeit_3)) ->  | G26: =IF(AND(ISERROR(Sunrise_Ortszeit_3),Breite_Nord_Sued=1,OR(Tag_Nummer<90,Tag_Nummer>270)),"dunkel",IF(AND(ISERROR(Sunrise_Ortszeit_3),Breite_Nord_Sued=1,Tag_Nummer>90,Tag_Nummer<270),"hell",IF(AND(ISERROR(Sunrise_Ortszeit_3),Breite_Nord_Sued=2,OR(Tag_Nummer<90,Tag_Nummer>270)),"hell",IF(AND(ISERROR(Sunrise_Ortszeit_3),Breite_Nord_Sued=2,Tag_Nummer>90,Tag_Nummer<270),"dunkel",0)))) ->  | K26: 2004-01-17
B27: Sunrise UTC | C27: =+Sunrise_Ortszeit-UTC ->  | D27: =IF(Sunrise_UTC<0,24+Sunrise_UTC,Sunrise_UTC) ->  | E27: =INT(Sunrise_UTC_2)&":"&ROUND((Sunrise_UTC_2-INT(Sunrise_UTC_2))*60,0) ->  | F27: =IF(ISERROR(Sunrise_UTC_3),Sunrise_UTC_Hell_Dunkel_Ausgabe,IF(HOUR(Sunrise_UTC_3)<10,0,"")&HOUR(Sunrise_UTC_3)&":"&IF(MINUTE(Sunrise_UTC_3)<10,0,"")&MINUTE(Sunrise_UTC_3)) ->  | G27: =IF(AND(ISERROR(Sunrise_UTC_3),Breite_Nord_Sued=1,OR(Tag_Nummer<90,Tag_Nummer>270)),"dunkel",IF(AND(ISERROR(Sunrise_UTC_3),Breite_Nord_Sued=1,Tag_Nummer>90,Tag_Nummer<270),"hell",IF(AND(ISERROR(Sunrise_UTC_3),Breite_Nord_Sued=2,OR(Tag_Nummer<90,Tag_Nummer>270)),"hell",IF(AND(ISERROR(Sunrise_UTC_3),Breite_Nord_Sued=2,Tag_Nummer>90,Tag_Nummer<270),"dunkel",0)))) ->  | K27: 2004-01-18
B28: Sunset Ortszeit | C28: =IF(U+UTC<12,U+UTC+12,IF(U+UTC>24,U+UTC-12,U+UTC)) ->  | D28: =IF(Sunset_Ortszeit<0,24+Sunset_Ortszeit,Sunset_Ortszeit) ->  | E28: =INT(Sunset_Ortszeit_2)&":"&ROUND((Sunset_Ortszeit_2-INT(Sunset_Ortszeit_2))*60,0) ->  | F28: =IF(ISERROR(Sunset_Ortszeit_3),Sunset_Ortszeit_Hell_Dunkel_Ausgabe,IF(HOUR(Sunset_Ortszeit_3)<10,0,"")&HOUR(Sunset_Ortszeit_3)&":"&IF(MINUTE(Sunset_Ortszeit_3)<10,0,"")&MINUTE(Sunset_Ortszeit_3)) ->  | G28: =IF(AND(ISERROR(Sunset_Ortszeit_3),Breite_Nord_Sued=1,OR(Tag_Nummer<90,Tag_Nummer>270)),"dunkel",IF(AND(ISERROR(Sunset_Ortszeit_3),Breite_Nord_Sued=1,Tag_Nummer>90,Tag_Nummer<270),"hell",IF(AND(ISERROR(Sunset_Ortszeit_3),Breite_Nord_Sued=2,OR(Tag_Nummer<90,Tag_Nummer>270)),"hell",IF(AND(ISERROR(Sunset_Ortszeit_3),Breite_Nord_Sued=2,Tag_Nummer>90,Tag_Nummer<270),"dunkel",0)))) ->  | K28: 2004-01-19
B29: Sunset UTC | C29: =+Sunset_Ortszeit-UTC ->  | D29: =IF(Sunset_UTC<0,24+Sunset_UTC,Sunset_UTC) ->  | E29: =INT(Sunset_UTC_2)&":"&ROUND((Sunset_UTC_2-INT(Sunset_UTC_2))*60,0) ->  | F29: =IF(ISERROR(Sunset_UTC_3),Sunset_UTC_Hell_Dunkel_Ausgabe,IF(HOUR(Sunset_UTC_3)<10,0,"")&HOUR(Sunset_UTC_3)&":"&IF(MINUTE(Sunset_UTC_3)<10,0,"")&MINUTE(Sunset_UTC_3)) ->  | G29: =IF(AND(ISERROR(Sunset_UTC_3),Breite_Nord_Sued=1,OR(Tag_Nummer<90,Tag_Nummer>270)),"dunkel",IF(AND(ISERROR(Sunset_UTC_3),Breite_Nord_Sued=1,Tag_Nummer>90,Tag_Nummer<270),"hell",IF(AND(ISERROR(Sunset_UTC_3),Breite_Nord_Sued=2,OR(Tag_Nummer<90,Tag_Nummer>270)),"hell",IF(AND(ISERROR(Sunset_UTC_3),Breite_Nord_Sued=2,Tag_Nummer>90,Tag_Nummer<270),"dunkel",0)))) ->  | K29: 2004-01-20
D30: Tageslicht | E30: =Sunset_Ortszeit_3-Sunrise_Ortszeit_3 ->  | F30: =IF(Sunset_Ortszeit_3-Sunrise_Ortszeit_3<0,"UTC !",IF(ISERROR(Sunset_Tageslicht),Sunset_UTC_Hell_Dunkel_Ausgabe,IF(HOUR(Sunset_Tageslicht)<10,0,"")&HOUR(Sunset_Tageslicht)&":"&IF(MINUTE(Sunset_Tageslicht)<10,0,"")&MINUTE(Sunset_Tageslicht))) ->  | K30: 2004-01-21
K31: 2004-01-22
K32: 2004-01-23
K33: 2004-01-24
K34: 2004-01-25
K35: 2004-01-26
K36: 2004-01-27
K37: 2004-01-28
K38: 2004-01-29
K39: 2004-01-30
K40: 2004-01-31
K41: 2004-02-01
K42: 2004-02-02
K43: 2004-02-03
K44: 2004-02-04
K45: 2004-02-05
K46: 2004-02-06
K47: 2004-02-07
K48: 2004-02-08
K49: 2004-02-09
K50: 2004-02-10
K51: 2004-02-11
K52: 2004-02-12
K53: 2004-02-13
K54: 2004-02-14
K55: 2004-02-15
K56: 2004-02-16
K57: 2004-02-17
K58: 2004-02-18
K59: 2004-02-19
K60: 2004-02-20
K61: 2004-02-21
K62: 2004-02-22
K63: 2004-02-23
K64: 2004-02-24
K65: 2004-02-25
K66: 2004-02-26
K67: 2004-02-27
K68: 2004-02-28
K69: =IF(MOD(Jahr,4)=0,K68+1,J70) -> 2004-02-29
J70: 2004-03-01 | K70: 2004-03-01
J71: 2004-03-02 | K71: 2004-03-02
J72: 2004-03-03 | K72: 2004-03-03
J73: 2004-03-04 | K73: 2004-03-04
J74: 2004-03-05 | K74: 2004-03-05
J75: 2004-03-06 | K75: 2004-03-06
J76: 2004-03-07 | K76: 2004-03-07
J77: 2004-03-08 | K77: 2004-03-08
J78: 2004-03-09 | K78: 2004-03-09
J79: 2004-03-10 | K79: 2004-03-10
J80: 2004-03-11 | K80: 2004-03-11
J81: 2004-03-12 | K81: 2004-03-12
J82: 2004-03-13 | K82: 2004-03-13
J83: 2004-03-14 | K83: 2004-03-14
J84: 2004-03-15 | K84: 2004-03-15
J85: 2004-03-16 | K85: 2004-03-16
J86: 2004-03-17 | K86: 2004-03-17
J87: 2004-03-18 | K87: 2004-03-18
J88: 2004-03-19 | K88: 2004-03-19
J89: 2004-03-20 | K89: 2004-03-20
J90: 2004-03-21 | K90: 2004-03-21
J91: 2004-03-22 | K91: 2004-03-22
J92: 2004-03-23 | K92: 2004-03-23
J93: 2004-03-24 | K93: 2004-03-24
J94: 2004-03-25 | K94: 2004-03-25
J95: 2004-03-26 | K95: 2004-03-26
J96: 2004-03-27 | K96: 2004-03-27
J97: 2004-03-28 | K97: 2004-03-28
J98: 2004-03-29 | K98: 2004-03-29
J99: 2004-03-30 | K99: 2004-03-30
J100: 2004-03-31 | K100: 2004-03-31
J101: 2004-04-01 | K101: 2004-04-01
J102: 2004-04-02 | K102: 2004-04-02
J103: 2004-04-03 | K103: 2004-04-03
J104: 2004-04-04 | K104: 2004-04-04
J105: 2004-04-05 | K105: 2004-04-05
J106: 2004-04-06 | K106: 2004-04-06
J107: 2004-04-07 | K107: 2004-04-07
J108: 2004-04-08 | K108: 2004-04-08
J109: 2004-04-09 | K109: 2004-04-09
J110: 2004-04-10 | K110: 2004-04-10
J111: 2004-04-11 | K111: 2004-04-11
J112: 2004-04-12 | K112: 2004-04-12
J113: 2004-04-13 | K113: 2004-04-13
J114: 2004-04-14 | K114: 2004-04-14
J115: 2004-04-15 | K115: 2004-04-15
J116: 2004-04-16 | K116: 2004-04-16
J117: 2004-04-17 | K117: 2004-04-17
J118: 2004-04-18 | K118: 2004-04-18
J119: 2004-04-19 | K119: 2004-04-19
J120: 2004-04-20 | K120: 2004-04-20
J121: 2004-04-21 | K121: 2004-04-21
J122: 2004-04-22 | K122: 2004-04-22
J123: 2004-04-23 | K123: 2004-04-23
J124: 2004-04-24 | K124: 2004-04-24
J125: 2004-04-25 | K125: 2004-04-25
J126: 2004-04-26 | K126: 2004-04-26
J127: 2004-04-27 | K127: 2004-04-27
J128: 2004-04-28 | K128: 2004-04-28
J129: 2004-04-29 | K129: 2004-04-29
J130: 2004-04-30 | K130: 2004-04-30
J131: 2004-05-01 | K131: 2004-05-01
J132: 2004-05-02 | K132: 2004-05-02
J133: 2004-05-03 | K133: =IF(MOD(Jahr,4)=0,K132+1,J134) -> 2004-05-03
J134: 2004-05-04 | K134: 2004-05-04
J135: 2004-05-05 | K135: 2004-05-05
J136: 2004-05-06 | K136: 2004-05-06
J137: 2004-05-07 | K137: 2004-05-07
J138: 2004-05-08 | K138: 2004-05-08
J139: 2004-05-09 | K139: 2004-05-09
J140: 2004-05-10 | K140: 2004-05-10
J141: 2004-05-11 | K141: 2004-05-11
J142: 2004-05-12 | K142: 2004-05-12
J143: 2004-05-13 | K143: 2004-05-13
J144: 2004-05-14 | K144: 2004-05-14
J145: 2004-05-15 | K145: 2004-05-15
J146: 2004-05-16 | K146: 2004-05-16
J147: 2004-05-17 | K147: 2004-05-17
J148: 2004-05-18 | K148: 2004-05-18
J149: 2004-05-19 | K149: 2004-05-19
J150: 2004-05-20 | K150: 2004-05-20
J151: 2004-05-21 | K151: 2004-05-21
J152: 2004-05-22 | K152: 2004-05-22
J153: 2004-05-23 | K153: 2004-05-23
J154: 2004-05-24 | K154: 2004-05-24
J155: 2004-05-25 | K155: 2004-05-25
J156: 2004-05-26 | K156: 2004-05-26
J157: 2004-05-27 | K157: 2004-05-27
J158: 2004-05-28 | K158: 2004-05-28
J159: 2004-05-29 | K159: 2004-05-29
J160: 2004-05-30 | K160: 2004-05-30
J161: 2004-05-31 | K161: 2004-05-31
J162: 2004-06-01 | K162: 2004-06-01
J163: 2004-06-02 | K163: 2004-06-02
J164: 2004-06-03 | K164: 2004-06-03
J165: 2004-06-04 | K165: 2004-06-04
J166: 2004-06-05 | K166: 2004-06-05
J167: 2004-06-06 | K167: 2004-06-06
J168: 2004-06-07 | K168: 2004-06-07
J169: 2004-06-08 | K169: 2004-06-08
J170: 2004-06-09 | K170: 2004-06-09
J171: 2004-06-10 | K171: 2004-06-10
J172: 2004-06-11 | K172: 2004-06-11
J173: 2004-06-12 | K173: 2004-06-12
J174: 2004-06-13 | K174: 2004-06-13
J175: 2004-06-14 | K175: 2004-06-14
J176: 2004-06-15 | K176: 2004-06-15
J177: 2004-06-16 | K177: 2004-06-16
J178: 2004-06-17 | K178: 2004-06-17
J179: 2004-06-18 | K179: 2004-06-18
J180: 2004-06-19 | K180: 2004-06-19
J181: 2004-06-20 | K181: 2004-06-20
J182: 2004-06-21 | K182: 2004-06-21
J183: 2004-06-22 | K183: 2004-06-22
J184: 2004-06-23 | K184: 2004-06-23
J185: 2004-06-24 | K185: 2004-06-24
J186: 2004-06-25 | K186: 2004-06-25
J187: 2004-06-26 | K187: 2004-06-26
J188: 2004-06-27 | K188: 2004-06-27
J189: 2004-06-28 | K189: 2004-06-28
J190: 2004-06-29 | K190: 2004-06-29
J191: 2004-06-30 | K191: 2004-06-30
J192: 2004-07-01 | K192: 2004-07-01
J193: 2004-07-02 | K193: 2004-07-02
J194: 2004-07-03 | K194: 2004-07-03
J195: 2004-07-04 | K195: 2004-07-04
J196: 2004-07-05 | K196: 2004-07-05
J197: 2004-07-06 | K197: =IF(MOD(Jahr,4)=0,K196+1,J198) -> 2004-07-06
J198: 2004-07-07 | K198: 2004-07-07
J199: 2004-07-08 | K199: 2004-07-08
J200: 2004-07-09 | K200: 2004-07-09
J201: 2004-07-10 | K201: 2004-07-10
J202: 2004-07-11 | K202: 2004-07-11
... 174 more rows

Sheet Flugplätze (hidden)
F1: Aerodrome | H1: # | I1: Elev (ft) | J1: Freq [MHz] | K1: INFO/TWR | L1: GROUND [MHz] | M1: ATIS [MHz] | P1: Lat ° | Q1: Lat ' | S1: Long ° | T1: Long ' | V1: Lat | W1: Long
E2: EDAB | F2: Bautzen | G2: =COUNTIF($J$2:$J$445,J2) -> 2 | H2: 50 | I2: 568 | J2: 120.6 | K2: Bautzen INFO | N2: INFO | P2: 51 | Q2: 11.61 | R2: N | S2: 14 | T2: 31.18 | U2: E | V2: =IF(P2+(Q2/60)<>0,ROUND(P2+(Q2/60),4),"") -> 51.1935 | W2: =IF(S2+(T2/60)<>0,ROUND(S2+(T2/60),4),"") -> 14.5197 | X2: =LEFT(V2,2)&"."&RIGHT(TEXT(V2,"00,0000"),4) -> 51.1935 | Y2: =LEFT(W2,IF(W2<10,1,2))&"."&RIGHT(TEXT(W2,"00,0000"),4) -> 14.5197 | Z2: =LEFT(J2,3)&"."&IF(LEN(J2)=3,"",RIGHT(J2,LEN(J2)-4))&IF(LEN(J2)=3,"000",IF(LEN(J2)=5,"00",IF(LEN(J2)=6,"0",""))) -> 120.600
E3: EDAC | F3: Leipzig-Altenburg Airport | G3: 1 | H3: 246 | I3: 640 | J3: 123.575 | K3: Altenburg TURM/TOWER | N3: TWR | P3: 50 | Q3: 58.91 | R3: N | S3: 12 | T3: 30.38 | U3: E | V3: 50.9818 | W3: 12.5063 | X3: 50.9818 | Y3: 12.5063 | Z3: 123.575 | AB3: Startplatz | AG3: Zielplatz | AL3: Ausweichplugplatz
E4: EDAD | F4: Dessau | G4: 7 | H4: 95 | I4: 187 | J4: 118.175 | K4: Dessau INFO | N4: INFO | P4: 51 | Q4: 49.93 | R4: N | S4: 12 | T4: 11.15 | U4: E | V4: 51.8322 | W4: 12.1858 | X4: 51.8322 | Y4: 12.1858 | Z4: 118.175 | AB4: ='Flugdurchführungsplan (n. DFS)'!F4 -> 0 | AC4: =VLOOKUP($AB$4,$E$2:$Y$421,COLUMN($V$1)-4,FALSE) ->  | AD4: =VLOOKUP($AB$4,$E$2:$Y$421,COLUMN($W$1)-4,FALSE) ->  | AE4: =VLOOKUP($AB$4,$E$2:$Y$421,2,FALSE) ->  | AG4: ='Flugdurchführungsplan (n. DFS)'!J4 -> 0 | AH4: =VLOOKUP(AG4,$E$2:$Y$421,COLUMN($V$1)-4,FALSE) ->  | AI4: =VLOOKUP($AG$4,$E$2:$Y$421,COLUMN($W$1)-4,FALSE) ->  | AJ4: =VLOOKUP($AG$4,$E$2:$Y$421,2,FALSE) ->  | AL4: ='Flugdurchführungsplan (n. DFS)'!C56 -> 0 | AM4: =VLOOKUP($AL$4,$E$2:$Y$421,COLUMN($V$1)-4,FALSE) ->  | AN4: =VLOOKUP($AL$4,$E$2:$Y$421,COLUMN($W$1)-4,FALSE) ->  | AO4: =VLOOKUP($AL$4,$E$2:$Y$421,2,FALSE) -> 
E5: EDAE | F5: Eisenhuettenstadt | G5: 19 | H5: 115 | I5: 149 | J5: 122 | K5: Eisenhuettenstadt INFO | N5: INFO | P5: 52 | Q5: 11.67 | R5: N | S5: 14 | T5: 35.28 | U5: E | V5: 52.1945 | W5: 14.588 | X5: 52.1945 | Y5: 14.5880 | Z5: 122.000 | AC5: =AC4 ->  | AD5: =AD4 ->  | AE5: =AE4 ->  | AH5: =AH4 ->  | AI5: =AI4 ->  | AJ5: =AJ4 ->  | AM5: =VALUE(LEFT(AM4,2)&","&RIGHT(AM4,4)) ->  | AN5: =AN4 ->  | AO5: =AO4 -> 
E6: EDAG | F6: Großrueckerswalde | G6: 24 | H6: 160 | I6: 2198 | J6: 123 | K6: Grossrueckerswalde INFO | N6: INFO | P6: 50 | Q6: 38.63 | R6: N | S6: 13 | T6: 7.58 | U6: E | V6: 50.6438 | W6: 13.1263 | X6: 50.6438 | Y6: 13.1263 | Z6: 123.000 | AB6: =VLOOKUP($AB$4,$E$2:$Y$421,5,FALSE) ->  | AC6: ft | AD6: =VLOOKUP($AB$4,$E$2:$Y$421,6,FALSE) ->  | AE6: MHz | AG6: =VLOOKUP($AG$4,$E$2:$Y$421,5,FALSE) ->  | AH6: ft | AI6: =VLOOKUP($AG$4,$E$2:$Y$421,6,FALSE) ->  | AJ6: MHz | AL6: =VLOOKUP($AL$4,$E$2:$Y$421,5,FALSE) ->  | AM6: ft | AN6: =VLOOKUP($AL$4,$E$2:$Y$421,6,FALSE) ->  | AO6: MHz
E7: EDAH | F7: Heringsdorf | G7: 1 | H7: 181 | I7: 93 | J7: 132.825 | K7: Heringsdorf TURM/TOWER | N7: TWR | P7: 53 | Q7: 52.72 | R7: N | S7: 14 | T7: 9.14 | U7: E | V7: 53.8787 | W7: 14.1523 | X7: 53.8787 | Y7: 14.1523 | Z7: 132.825 | AB7: =VLOOKUP($AB$4,$E$2:$Y$421,7,FALSE) ->  | AC7: ATIS: | AD7: =IF(ISERROR(VLOOKUP($AB$4,$E$2:$Y$421,9,FALSE)),"",VLOOKUP($AB$4,$E$2:$Y$421,9,FALSE)) ->  | AE7: MHz | AG7: =VLOOKUP($AG$4,$E$2:$Y$421,7,FALSE) ->  | AH7: ATIS: | AI7: =IF(ISERROR(VLOOKUP($AG$4,$E$2:$Y$421,9,FALSE)),"",VLOOKUP($AG$4,$E$2:$Y$421,9,FALSE)) ->  | AJ7: MHz | AL7: =VLOOKUP($AL$4,$E$2:$Y$421,7,FALSE) ->  | AM7: ATIS: | AN7: =IF(ISERROR(VLOOKUP($AL$4,$E$2:$Y$421,9,FALSE)),"",VLOOKUP($AL$4,$E$2:$Y$421,9,FALSE)) ->  | AO7: MHz
E8: EDAI | F8: Segeletz | G8: 9 | H8: 394 | I8: 142 | J8: 0 | K8: no call sign | P8: 52 | Q8: 49.59 | R8: N | S8: 12 | T8: 32.52 | U8: E | V8: 52.8265 | W8: 12.542 | X8: 52.8265 | Y8: 12.5420 | AB8: =VLOOKUP($AB$4,$E$2:$Y$421,10,FALSE) ->  | AC8: GROUND: | AD8: =VLOOKUP($AB$4,$E$2:$Y$421,8,FALSE) ->  | AE8: MHz | AG8: =VLOOKUP($AG$4,$E$2:$Y$421,10,FALSE) ->  | AH8: GROUND: | AI8: =VLOOKUP($AG$4,$E$2:$Y$421,8,FALSE) ->  | AJ8: MHz | AL8: =VLOOKUP($AL$4,$E$2:$Y$421,10,FALSE) ->  | AM8: GROUND: | AN8: =VLOOKUP($AL$4,$E$2:$Y$421,8,FALSE) ->  | AO8: MHz
E9: EDAJ | F9: Gera-Leumnitz | G9: 3 | H9: 142 | I9: 1015 | J9: 118.075 | K9: Gera INFO | N9: INFO | P9: 50 | Q9: 52.84 | R9: N | S9: 12 | T9: 8.24 | U9: E | V9: 50.8807 | W9: 12.1373 | X9: 50.8807 | Y9: 12.1373 | Z9: 118.075 | AC9: Grad | AD9: Minuten | AE9: Sekunden | AH9: Grad | AI9: Minuten | AJ9: Sekunden | AM9: Grad | AN9: Minuten | AO9: Sekunden
E10: EDAK | F10: Großenhain | G10: 5 | H10: 159 | I10: 417 | J10: 122.7 | K10: Grossenhain INFO | N10: INFO | P10: 51 | Q10: 18.42 | R10: N | S10: 13 | T10: 33.33 | U10: E | V10: 51.307 | W10: 13.5555 | X10: 51.3070 | Y10: 13.5555 | Z10: 122.700 | AB10: Breite | AC10: =ROUNDDOWN(AC5,0) ->  | AD10: =ROUNDDOWN((AC5-AC10)*60,0) ->  | AE10: =(AC5-AC10-(AD10/60))*60*60 ->  | AG10: Breite | AH10: =ROUNDDOWN(AH5,0) ->  | AI10: =ROUNDDOWN((AH5-AH10)*60,0) ->  | AJ10: =(AH5-AH10-(AI10/60))*60*60 ->  | AL10: Breite | AM10: =ROUNDDOWN(AM5,0) ->  | AN10: =ROUNDDOWN((AM5-AM10)*60,0) ->  | AO10: =(AM5-AM10-(AN10/60))*60*60 -> 
E11: EDAM | F11: Merseburg | G11: 3 | H11: 270 | I11: 340 | J11: 122.9 | K11: Merseburg INFO | N11: INFO | P11: 51 | Q11: 21.78 | R11: N | S11: 11 | T11: 56.45 | U11: E | V11: 51.363 | W11: 11.9408 | X11: 51.3630 | Y11: 11.9408 | Z11: 122.900 | AB11: Länge | AC11: =ROUNDDOWN(AD5,0) ->  | AD11: =ROUNDDOWN((AD5-AC11)*60,0) ->  | AE11: =(AD5-AC11-(AD11/60))*60*60 ->  | AG11: Länge | AH11: =ROUNDDOWN(AI5,0) ->  | AI11: =ROUNDDOWN((AI5-AH11)*60,0) ->  | AJ11: =(AI5-AH11-(AI11/60))*60*60 ->  | AL11: Länge | AM11: =ROUNDDOWN(AN5,0) ->  | AN11: =ROUNDDOWN((AN5-AM11)*60,0) ->  | AO11: =(AN5-AM11-(AN11/60))*60*60 -> 
E12: EDAN | F12: Neustadt-Glewe | G12: 5 | H12: 297 | I12: 115 | J12: 123.375 | K12: Neustadt INFO | N12: INFO | P12: 53 | Q12: 21.66 | R12: N | S12: 11 | T12: 36.91 | U12: E | V12: 53.361 | W12: 11.6152 | X12: 53.3610 | Y12: 11.6152 | Z12: 123.375
E13: EDAO | F13: Nordhausen | G13: 6 | H13: 303 | I13: 689 | J13: 118.625 | K13: Nordhausen INFO | N13: INFO | P13: 51 | Q13: 29.59 | R13: N | S13: 10 | T13: 50 | U13: E | V13: 51.4932 | W13: 10.8333 | X13: 51.4932 | Y13: 10.8333 | Z13: 118.625 | AC13: z= | AD13: =ACOS(SIN(AD22)*SIN(AD18)+COS(AD18)*COS(AD22)*COS(AD23-AD19)) -> 
E14: EDAP | F14: Neuhausen | G14: 2 | H14: 290 | I14: 279 | J14: 122.725 | K14: Neuhausen INFO | N14: INFO | P14: 51 | Q14: 41.09 | R14: N | S14: 14 | T14: 25.39 | U14: E | V14: 51.6848 | W14: 14.4232 | X14: 51.6848 | Y14: 14.4232 | Z14: 122.725 | AC14: a= | AD14: =ACOS((SIN(AD22)-SIN(AD18)*COS(AD13))/(COS(AD18)*SIN(AD13))) -> 
E15: EDAQ | F15: Halle-Oppin | G15: 2 | H15: 168 | I15: 350 | J15: 135.15 | K15: Oppin INFO | N15: INFO | P15: 51 | Q15: 33.13 | R15: N | S15: 12 | T15: 3.23 | U15: E | V15: 51.5522 | W15: 12.0538 | X15: 51.5522 | Y15: 12.0538 | Z15: 135.150 | AC15: b= | AD15: =ACOS((SIN(AD18)-SIN(AD22)*COS(AD13))/(COS(AD18)*SIN(AD13))) -> 
E16: EDAR | F16: Pirna-Pratzschwitz | G16: 6 | H16: 343 | I16: 402 | J16: 118.625 | K16: Pirna INFO | N16: INFO | P16: 50 | Q16: 58.78 | R16: N | S16: 13 | T16: 54.51 | U16: E | V16: 50.9797 | W16: 13.9085 | X16: 50.9797 | Y16: 13.9085 | Z16: 118.625
E17: EDAS | F17: Finsterwalde/Heinrichsruh | G17: 9 | H17: 125 | I17: 384 | K17: no call sign | L17: 0 | M17: 0 | N17: 0 | P17: 51 | Q17: 38.06 | R17: N | S17: 13 | T17: 40.31 | U17: E | V17: 51.6343 | W17: 13.6718 | X17: 51.6343 | Y17: 13.6718 | AB17: Start
E18: EDAT | F18: Nardt | G18: 24 | H18: 286 | I18: 382 | J18: 123 | K18: Nardt INFO | N18: INFO | P18: 51 | Q18: 27.1 | R18: N | S18: 14 | T18: 12.15 | U18: E | V18: 51.4517 | W18: 14.2025 | X18: 51.4517 | Y18: 14.2025 | Z18: 123.000 | AB18: Breite | AC18: j= | AD18: =AC5*PI()/180 ->  | AE18: N
E19: EDAU | F19: Riesa-Goehlis | G19: 20 | H19: 357 | I19: 322 | J19: 122.6 | K19: Riesa INFO | N19: INFO | P19: 51 | Q19: 17.59 | R19: N | S19: 13 | T19: 21.43 | U19: E | V19: 51.2932 | W19: 13.3572 | X19: 51.2932 | Y19: 13.3572 | Z19: 122.600 | AB19: Länge | AC19: l= | AD19: =AD5*PI()/180 ->  | AE19: E
E20: EDAV | F20: Eberswalde-Finow | G20: 2 | H20: 110 | I20: 116 | J20: 119.05 | K20: Finow INFO | N20: INFO | P20: 52 | Q20: 49.58 | R20: N | S20: 13 | T20: 42.1 | U20: E | V20: 52.8263 | W20: 13.7017 | X20: 52.8263 | Y20: 13.7017 | Z20: 119.050 | AF20: =IF(AD19>AD23,-1,1) -> 
E21: EDAW | F21: Roitzschjora | G21: 19 | H21: 359 | I21: 289 | J21: 122 | K21: Roitzschjora INFO | N21: INFO | P21: 51 | Q21: 34.61 | R21: N | S21: 12 | T21: 29.75 | U21: E | V21: 51.5768 | W21: 12.4958 | X21: 51.5768 | Y21: 12.4958 | Z21: 122.000 | AB21: Ziel
E22: EDAX | F22: Mueritz Airpark | G22: 6 | H22: 283 | I22: 220 | J22: 129.975 | K22: Müritz INFO | N22: INFO | P22: 53 | Q22: 18.31 | R22: N | S22: 12 | T22: 45.13 | U22: E | V22: 53.3052 | W22: 12.7522 | X22: 53.3052 | Y22: 12.7522 | Z22: 129.975 | AB22: Breite | AC22: j= | AD22: =AH5*PI()/180 ->  | AE22: N
E23: EDAY | F23: Strausberg | G23: 11 | H23: 412 | I23: 263 | J23: 123.05 | K23: Strausberg INFO | N23: INFO | P23: 52 | Q23: 34.81 | R23: N | S23: 13 | T23: 54.9 | U23: E | V23: 52.5802 | W23: 13.915 | X23: 52.5802 | Y23: 13.9150 | Z23: 123.050 | AB23: Länge | AC23: l= | AD23: =AI5*PI()/180 ->  | AE23: E
E24: EDAZ | F24: Schoenhagen | G24: 1 | H24: 381 | I24: 131 | J24: 131.15 | K24: Schoenhagen INFO | N24: INFO | P24: 52 | Q24: 12.48 | R24: N | S24: 13 | T24: 9.39 | U24: E | V24: 52.208 | W24: 13.1565 | X24: 52.2080 | Y24: 13.1565 | Z24: 131.150
E25: EDBA | F25: Arnstadt-Alkersleben | G25: 24 | H25: 19 | I25: 1145 | J25: 123 | K25: Arnstadt INFO | N25: INFO | P25: 50 | Q25: 50.51 | R25: N | S25: 11 | T25: 4.2 | U25: E | V25: 50.8418 | W25: 11.07 | X25: 50.8418 | Y25: 11.0700 | Z25: 123.000 | AC25: Distance= | AD25: =AD13*21600/(2*PI()) ->  | AE25: NM
E26: EDBC | F26: Magdeburg/Cochstedt | G26: 1 | H26: 258 | I26: 601 | J26: 131.125 | K26: Cochstedt TURM/TOWER | L26: 121.825 | N26: TWR | P26: 51 | Q26: 51.36 | R26: N | S26: 11 | T26: 25.08 | U26: E | V26: 51.856 | W26: 11.418 | X26: 51.8560 | Y26: 11.4180 | Z26: 131.125 | AC26: True Course= | AD26: =IF(AF20=-1,360-(AD14*180/PI()),AD14*180/PI()) ->  | AE26: °
E27: EDBE | F27: Brandenburg-Muehlenfeld | G27: 6 | H27: 76 | I27: 100 | J27: 118.625 | K27: Brandenburg INFO | N27: INFO | P27: 52 | Q27: 26.18 | R27: N | S27: 12 | T27: 35.44 | U27: E | V27: 52.4363 | W27: 12.5907 | X27: 52.4363 | Y27: 12.5907 | Z27: 118.625
E28: EDBF | F28: Ruppiner Land | G28: 15 | H28: 367 | I28: 135 | J28: 122.5 | K28: Ruppiner Land INFO | N28: INFO | P28: 52 | Q28: 47.6 | R28: N | S28: 12 | T28: 45.62 | U28: E | V28: 52.7933 | W28: 12.7603 | X28: 52.7933 | Y28: 12.7603 | Z28: 122.500
E29: EDBG | F29: Burg | G29: 9 | H29: 84 | I29: 173 | J29: 122.05 | K29: Burg INFO | N29: INFO | P29: 52 | Q29: 14.5 | R29: N | S29: 11 | T29: 51.36 | U29: E | V29: 52.2417 | W29: 11.856 | X29: 52.2417 | Y29: 11.8560 | Z29: 122.050
E30: EDBH | F30: Barth | G30: 3 | H30: 48 | I30: 23 | J30: 118.075 | K30: Barth INFO | N30: INFO | P30: 54 | Q30: 20.29 | R30: N | S30: 12 | T30: 42.61 | U30: E | V30: 54.3382 | W30: 12.7102 | X30: 54.3382 | Y30: 12.7102 | Z30: 118.075
E31: EDBI | F31: Zwickau | G31: 3 | H31: 466 | I31: 1050 | J31: 122.9 | K31: Zwickau INFO | N31: INFO | P31: 50 | Q31: 42.18 | R31: N | S31: 12 | T31: 27.57 | U31: E | V31: 50.703 | W31: 12.4595 | X31: 50.7030 | Y31: 12.4595 | Z31: 122.900
E32: EDBJ | F32: Jena-Schoengleina | G32: 9 | H32: 206 | I32: 1228 | J32: 122.05 | K32: Jena-Schoengleina INFO | N32: INFO | P32: 50 | Q32: 54.93 | R32: N | S32: 11 | T32: 42.85 | U32: E | V32: 50.9155 | W32: 11.7142 | X32: 50.9155 | Y32: 11.7142 | Z32: 122.050
E33: EDBK | F33: Kyritz | G33: 2 | H33: 230 | I33: 130 | J33: 122.725 | K33: Kyritz INFO | N33: INFO | P33: 52 | Q33: 55.13 | R33: N | S33: 12 | T33: 25.52 | U33: E | V33: 52.9188 | W33: 12.4253 | X33: 52.9188 | Y33: 12.4253 | Z33: 122.725
E34: EDBL | F34: Laucha | G34: 5 | H34: 240 | I34: 738 | J34: 122.475 | K34: Laucha INFO | N34: INFO | P34: 51 | Q34: 14.76 | R34: N | S34: 11 | T34: 41.58 | U34: E | V34: 51.246 | W34: 11.693 | X34: 51.2460 | Y34: 11.6930 | Z34: 122.475
E35: EDBM | F35: Magdeburg/City | G35: 1 | H35: 257 | I35: 268 | J35: 119.3 | K35: Magdeburg INFO | N35: INFO | P35: 52 | Q35: 4.42 | R35: N | S35: 11 | T35: 37.59 | U35: E | V35: 52.0737 | W35: 11.6265 | X35: 52.0737 | Y35: 11.6265 | Z35: 119.300
E36: EDBN | F36: Neubrandenburg | G36: 2 | H36: 287 | I36: 228 | J36: 119.175 | P36: 53 | Q36: 36.13 | R36: N | S36: 13 | T36: 18.36 | U36: E | V36: 53.6022 | W36: 13.306 | X36: 53.6022 | Y36: 13.3060 | Z36: 119.175
E37: EDBO | F37: Oehna | G37: 15 | H37: 318 | I37: 287 | J37: 122.5 | K37: Oehna INFO | N37: INFO | P37: 51 | Q37: 53.94 | R37: N | S37: 13 | T37: 3.35 | U37: E | V37: 51.899 | W37: 13.0558 | X37: 51.8990 | Y37: 13.0558 | Z37: 122.500
E38: EDBP | F38: Pinnow | G38: 15 | H38: 341 | I38: 144 | J38: 122.5 | K38: Pinnow INFO | N38: INFO | P38: 53 | Q38: 36.91 | R38: N | S38: 11 | T38: 33.66 | U38: E | V38: 53.6152 | W38: 11.561 | X38: 53.6152 | Y38: 11.5610 | Z38: 122.500
E39: EDBQ | F39: Bronkow | G39: 2 | H39: 82 | I39: 423 | J39: 130.325 | K39: Bronkow INFO | N39: INFO | P39: 51 | Q39: 40.24 | R39: N | S39: 13 | T39: 57.61 | U39: E | V39: 51.6707 | W39: 13.9602 | X39: 51.6707 | Y39: 13.9602 | Z39: 130.325
E40: EDBR | F40: Rothenburg/Goerlitz | G40: 5 | H40: 363 | I40: 517 | J40: 123.25 | K40: Rothenburg INFO | N40: INFO | P40: 51 | Q40: 21.79 | R40: N | S40: 14 | T40: 57 | U40: E | V40: 51.3632 | W40: 14.95 | X40: 51.3632 | Y40: 14.9500 | Z40: 123.250
E41: EDBS | F41: Soemmerda-Dermsdorf | G41: 2 | H41: 399 | I41: 451 | J41: 124 | K41: Soemmerda INFO | N41: INFO | P41: 51 | Q41: 11.94 | R41: N | S41: 11 | T41: 11.55 | U41: E | V41: 51.199 | W41: 11.1925 | X41: 51.1990 | Y41: 11.1925 | Z41: 124.000
E42: EDBT | F42: Allstedt | G42: 19 | H42: 10 | I42: 932 | J42: 122 | K42: no call sign | P42: 51 | Q42: 22.83 | R42: N | S42: 11 | T42: 26.8 | U42: E | V42: 51.3805 | W42: 11.4467 | X42: 51.3805 | Y42: 11.4467 | Z42: 122.000
E43: EDBU | F43: Pritzwalk-Sommersberg | G43: 20 | H43: 347 | I43: 289 | J43: 122.6 | K43: Pritzwalk INFO | N43: INFO | P43: 53 | Q43: 10.85 | R43: N | S43: 12 | T43: 11.13 | U43: E | V43: 53.1808 | W43: 12.1855 | X43: 53.1808 | Y43: 12.1855 | Z43: 122.600
E44: EDBV | F44: Stralsund | G44: 6 | H44: 410 | I44: 49 | J44: 118.625 | K44: Stralsund INFO | N44: INFO | P44: 54 | Q44: 20.32 | R44: N | S44: 13 | T44: 2.81 | U44: E | V44: 54.3387 | W44: 13.0468 | X44: 54.3387 | Y44: 13.0468 | Z44: 118.625
E45: EDBW | F45: Werneuchen | G45: 20 | H45: 447 | I45: 263 | J45: 122.6 | K45: Werneuchen INFO | N45: INFO | P45: 52 | Q45: 37.98 | R45: N | S45: 13 | T45: 46.02 | U45: E | V45: 52.633 | W45: 13.767 | X45: 52.6330 | Y45: 13.7670 | Z45: 122.600
E46: EDBX | F46: Goerlitz | G46: 19 | H46: 149 | I46: 778 | J46: 122 | K46: Goerlitz INFO | N46: INFO | P46: 51 | Q46: 9.53 | R46: N | S46: 14 | T46: 57.02 | U46: E | V46: 51.1588 | W46: 14.9503 | X46: 51.1588 | Y46: 14.9503 | Z46: 122.000
E47: EDBY | F47: Schmoldow | G47: 15 | H47: 378 | I47: 105 | J47: 122.85 | K47: Schmoldow INFO | N47: INFO | P47: 53 | Q47: 58.24 | R47: N | S47: 13 | T47: 20.64 | U47: E | V47: 53.9707 | W47: 13.344 | X47: 53.9707 | Y47: 13.3440 | Z47: 122.850
E48: EDBZ | F48: Schwarzheide-Schipkau | G48: 6 | H48: 387 | I48: 330 | J48: 129.975 | K48: Schwarzheide INFO | N48: INFO | P48: 51 | Q48: 29.39 | R48: N | S48: 13 | T48: 52.76 | U48: E | V48: 51.4898 | W48: 13.8793 | X48: 51.4898 | Y48: 13.8793 | Z48: 129.975
E49: EDCA | F49: Anklam | G49: 3 | H49: 14 | I49: 18 | J49: 122.65 | K49: Anklam INFO | N49: INFO | P49: 53 | Q49: 49.91 | R49: N | S49: 13 | T49: 40.39 | U49: E | V49: 53.8318 | W49: 13.6732 | X49: 53.8318 | Y49: 13.6732 | Z49: 122.650
E50: EDCB | F50: Ballenstedt | G50: 5 | H50: 44 | I50: 502 | J50: 122.7 | K50: Ballenstedt INFO | N50: INFO | P50: 51 | Q50: 44.78 | R50: N | S50: 11 | T50: 13.86 | U50: E | V50: 51.7463 | W50: 11.231 | X50: 51.7463 | Y50: 11.2310 | Z50: 122.700
E51: EDCD | F51: Cottbus-Drewitz | G51: 4 | H51: 90 | I51: 274 | J51: 118.125 | K51: Drewitz INFO | N51: INFO | P51: 51 | Q51: 53.37 | R51: N | S51: 14 | T51: 31.92 | U51: E | V51: 51.8895 | W51: 14.532 | X51: 51.8895 | Y51: 14.5320 | Z51: 118.125
E52: EDCE | F52: Eggersdorf | G52: 24 | H52: 112 | I52: 223 | J52: 123 | K52: Eggersdorf INFO | N52: INFO | P52: 52 | Q52: 28.97 | R52: N | S52: 14 | T52: 5.45 | U52: E | V52: 52.4828 | W52: 14.0908 | X52: 52.4828 | Y52: 14.0908 | Z52: 123.000
E53: EDCG | F53: Ruegen | G53: 24 | H53: 366 | I53: 69 | J53: 123 | K53: Rügen INFO | N53: INFO | P53: 54 | Q53: 23.03 | R53: N | S53: 13 | T53: 19.54 | U53: E | V53: 54.3838 | W53: 13.3257 | X53: 54.3838 | Y53: 13.3257 | Z53: 123.000
E54: EDCH | F54: Sprossen | G54: 9 | H54: 402 | I54: 672 | J54: 0 | K54: no call sign | P54: 51 | Q54: 2.59 | R54: N | S54: 12 | T54: 13.99 | U54: E | V54: 51.0432 | W54: 12.2332 | X54: 51.0432 | Y54: 12.2332
E55: EDCI | F55: Klix | G55: 2 | H55: 221 | I55: 486 | J55: 118.6 | K55: Klix INFO | N55: INFO | P55: 51 | Q55: 16.42 | R55: N | S55: 14 | T55: 30.39 | U55: E | V55: 51.2737 | W55: 14.5065 | X55: 51.2737 | Y55: 14.5065 | Z55: 118.600
E56: EDCJ | F56: Chemnitz/Jahnsdorf | G56: 15 | H56: 87 | I56: 1202 | J56: 122.5 | K56: Jahnsdorf INFO | N56: INFO | P56: 50 | Q56: 44.84 | R56: N | S56: 12 | T56: 50.24 | U56: E | V56: 50.7473 | W56: 12.8373 | X56: 50.7473 | Y56: 12.8373 | Z56: 122.500
E57: EDCK | F57: Koethen | G57: 18 | H57: 224 | I57: 304 | J57: 123.65 | K57: Koethen INFO | N57: INFO | P57: 51 | Q57: 43.35 | R57: N | S57: 11 | T57: 56.83 | U57: E | V57: 51.7225 | W57: 11.9472 | X57: 51.7225 | Y57: 11.9472 | Z57: 123.650
E58: EDCL | F58: Klietz/Scharlibbe | G58: 4 | H58: 220 | I58: 95 | J58: 122.375 | K58: Klietz INFO | N58: INFO | P58: 52 | Q58: 42.57 | R58: N | S58: 12 | T58: 4.4 | U58: E | V58: 52.7095 | W58: 12.0733 | X58: 52.7095 | Y58: 12.0733 | Z58: 122.375
E59: EDCM | F59: Kamenz | G59: 9 | H59: 209 | I59: 495 | J59: 122.05 | K59: Kamenz INFO | N59: INFO | P59: 51 | Q59: 17.82 | R59: N | S59: 14 | T59: 7.65 | U59: E | V59: 51.297 | W59: 14.1275 | X59: 51.2970 | Y59: 14.1275 | Z59: 122.050
E60: EDCO | F60: Obermehler-Schlotheim | G60: 3 | H60: 310 | I60: 909 | J60: 122.9 | K60: Obermehrler INFO | N60: INFO | P60: 51 | Q60: 16.6 | R60: N | S60: 10 | T60: 38.09 | U60: E | V60: 51.2767 | W60: 10.6348 | X60: 51.2767 | Y60: 10.6348 | Z60: 122.900
E61: EDCP | F61: Peenemuende | G61: 5 | H61: 334 | I61: 7 | J61: 122.475 | K61: Peenemuende INFO | N61: INFO | P61: 54 | Q61: 9.47 | R61: N | S61: 13 | T61: 46.36 | U61: E | V61: 54.1578 | W61: 13.7727 | X61: 54.1578 | Y61: 13.7727 | Z61: 122.475
E62: EDCQ | F62: Aschersleben | G62: 5 | H62: 21 | I62: 525 | J62: 123.375 | K62: Aschersleben INFO | N62: INFO | P62: 51 | Q62: 45.92 | R62: N | S62: 11 | T62: 29.91 | U62: E | V62: 51.7653 | W62: 11.4985 | X62: 51.7653 | Y62: 11.4985 | Z62: 123.375
E63: EDCR | F63: Rerik-Zweedorf | G63: 3 | H63: 355 | I63: 30 | J63: 126.5 | K63: Rerik INFO | N63: INFO | P63: 54 | Q63: 4.93 | R63: N | S63: 11 | T63: 39.3 | U63: E | V63: 54.0822 | W63: 11.655 | X63: 54.0822 | Y63: 11.6550 | Z63: 126.500
E64: EDCS | F64: Saarmund | G64: 18 | H64: 370 | I64: 174 | J64: 123.65 | K64: Saarmund INFO | N64: INFO | P64: 52 | Q64: 18.55 | R64: N | S64: 13 | T64: 6.03 | U64: E | V64: 52.3092 | W64: 13.1005 | X64: 52.3092 | Y64: 13.1005 | Z64: 123.650
E65: EDCT | F65: Taucha | G65: 12 | H65: 417 | I65: 492 | J65: 122.4 | K65: Taucha INFO | N65: INFO | P65: 51 | Q65: 23.68 | R65: N | S65: 12 | T65: 32.21 | U65: E | V65: 51.3947 | W65: 12.5368 | X65: 51.3947 | Y65: 12.5368 | Z65: 122.400
E66: EDCU | F66: Guestrow | G66: =COUNTIF($J$2:$J$445,J66) -> 19 | H66: 166 | I66: 46 | J66: 122 | K66: Guestrow INFO | N66: INFO | P66: 53 | Q66: 48.41 | R66: N | S66: 12 | T66: 13.91 | U66: E | V66: =IF(P66+(Q66/60)<>0,ROUND(P66+(Q66/60),4),"") -> 53.8068 | W66: =IF(S66+(T66/60)<>0,ROUND(S66+(T66/60),4),"") -> 12.2318 | X66: =LEFT(V66,2)&"."&RIGHT(TEXT(V66,"00,0000"),4) -> 53.8068 | Y66: =LEFT(W66,IF(W66<10,1,2))&"."&RIGHT(TEXT(W66,"00,0000"),4) -> 12.2318 | Z66: =LEFT(J66,3)&"."&IF(LEN(J66)=3,"",RIGHT(J66,LEN(J66)-4))&IF(LEN(J66)=3,"000",IF(LEN(J66)=5,"00",IF(LEN(J66)=6,"0",""))) -> 122.000
E67: EDCV | F67: Pasewalk | G67: 18 | H67: 331 | I67: 72 | J67: 123.65 | K67: Pasewalk INFO | N67: INFO | P67: 53 | Q67: 30.33 | R67: N | S67: 13 | T67: 56.9 | U67: E | V67: 53.5055 | W67: 13.9483 | X67: 53.5055 | Y67: 13.9483 | Z67: 123.650
E68: EDCW | F68: Wismar | G68: 11 | H68: 458 | I68: 43 | J68: 123.05 | K68: Wismar INFO | N68: INFO | P68: 53 | Q68: 54.87 | R68: N | S68: 11 | T68: 29.97 | U68: E | V68: 53.9145 | W68: 11.4995 | X68: 53.9145 | Y68: 11.4995 | Z68: 123.050
E69: EDCX | F69: Purkshof | G69: 12 | H69: 348 | I69: 66 | J69: 122.4 | K69: Purkshof INFO | N69: INFO | P69: 54 | Q69: 9.65 | R69: N | S69: 12 | T69: 14.91 | U69: E | V69: 54.1608 | W69: 12.2485 | X69: 54.1608 | Y69: 12.2485 | Z69: 122.400
E70: EDCY | F70: Welzow | G70: 1 | H70: 445 | I70: 375 | J70: 134.85 | K70: Welzow INFO | N70: INFO | P70: 51 | Q70: 34.62 | R70: N | S70: 14 | T70: 8.22 | U70: E | V70: 51.577 | W70: 14.137 | X70: 51.5770 | Y70: 14.1370 | Z70: 134.850
E71: EDDB | F71: Berlin/Schoenefeld | G71: 1 | H71: 56 | I71: 157 | J71: 119.575 | K71: Schoenefeld TURM/TOWER | M71: 123.775 | N71: TWR | P71: 52 | Q71: 21.73 | R71: N | S71: 13 | T71: 30.04 | U71: E | V71: 52.3622 | W71: 13.5007 | X71: 52.3622 | Y71: 13.5007 | Z71: 119.575
E72: EDDC | F72: Dresden | G72: 5 | H72: 107 | I72: 754 | J72: 122.925 | K72: Dresden TURM/TOWER | L72: 121.975 | M72: 118.875 | N72: TWR | P72: 51 | Q72: 8.06 | R72: N | S72: 13 | T72: 46.08 | U72: E | V72: 51.1343 | W72: 13.768 | X72: 51.1343 | Y72: 13.7680 | Z72: 122.925
E73: EDDE | F73: Erfurt-Weimar | G73: 1 | H73: 121 | I73: 1036 | J73: 121.15 | K73: Erfurt TURM/TOWER | L73: 121.75 | M73: 133.45 | N73: TWR | P73: 50 | Q73: 58.78333333 | R73: N | S73: 10 | T73: 57.48333333 | U73: E | V73: 50.9797 | W73: 10.9581 | X73: 50.9797 | Y73: 10.9581 | Z73: 121.150
E74: EDDF | F74: Frankfurt Main | G74: 1 | H74: 131 | I74: 364 | J74: 119.9 | K74: Frankfurt TURM/TOWER | L74: 121.8 | M74: 118.025 | N74: TWR | P74: 50 | Q74: 2 | R74: N | S74: 8 | T74: 34.23 | U74: E | V74: 50.0333 | W74: 8.5705 | X74: 50.0333 | Y74: 8.5705 | Z74: 119.900
E75: EDDG | F75: Muenster/Osnabrueck | G75: 3 | H75: 281 | I75: 160 | J75: 129.8 | K75: Muenster TURM/TOWER | L75: 121.875 | M75: 127.175 | N75: TWR | P75: 52 | Q75: 8.08 | R75: N | S75: 7 | T75: 41.09 | U75: E | V75: 52.1347 | W75: 7.6848 | X75: 52.1347 | Y75: 7.6848 | Z75: 129.800
E76: EDDH | F76: Hamburg | G76: 1 | H76: 169 | I76: 53 | J76: 121.275 | K76: Hamburg TURM/TOWER | L76: 121.8 | M76: 123.125 | N76: TWR | P76: 53 | Q76: 37.82 | R76: N | S76: 9 | T76: 59.29 | U76: E | V76: 53.6303 | W76: 9.9882 | X76: 53.6303 | Y76: 9.9882 | Z76: 121.275
E77: EDDK | F77: Koeln/Bonn | G77: 2 | H77: 223 | I77: 302 | J77: 124.975 | K77: Koeln-Bonn TURM/TOWER | L77: 121.725 | M77: 112.15 | N77: TWR | P77: 50 | Q77: 51.95 | R77: N | S77: 7 | T77: 8.56 | U77: E | V77: 50.8658 | W77: 7.1427 | X77: 50.8658 | Y77: 7.1427 | Z77: 124.975
E78: EDDL | F78: Duesseldorf | G78: 3 | H78: 108 | I78: 147 | J78: 118.3 | K78: Duesseldorf TURM/TOWER | L78: 121.9 | M78: 123.775 | N78: TWR | P78: 51 | Q78: 16.86 | R78: N | S78: 6 | T78: 45.44 | U78: E | V78: 51.281 | W78: 6.7573 | X78: 51.2810 | Y78: 6.7573 | Z78: 118.300
E79: EDDM | F79: Muenchen | G79: 3 | H79: 280 | I79: 1487 | J79: 118.7 | K79: Muenchen TURM/TOWER | L79: 121.725 | M79: 123.125 | N79: TWR | P79: 48 | Q79: 21.23 | R79: N | S79: 11 | T79: 47.17 | U79: E | V79: 48.3538 | W79: 11.7862 | X79: 48.3538 | Y79: 11.7862 | Z79: 118.700
E80: EDDN | F80: Nuernberg | G80: 3 | H80: 309 | I80: 1046 | J80: 118.3 | K80: Nuernberg TURM/TOWER | L80: 118.1 | M80: 123.075 | N80: TWR | P80: 49 | Q80: 29.92 | R80: N | S80: 11 | T80: 4.68 | U80: E | V80: 49.4987 | W80: 11.078 | X80: 49.4987 | Y80: 11.0780 | Z80: 118.300
E81: EDDP | F81: Leipzig/Halle | G81: 1 | H81: 247 | I81: 470 | J81: 121.1 | K81: Leipzig TURM/TOWER | L81: 121.675 | M81: 123.95 | N81: TWR | P81: 51 | Q81: 25.44 | R81: N | S81: 12 | T81: 14.18 | U81: E | V81: 51.424 | W81: 12.2363 | X81: 51.4240 | Y81: 12.2363 | Z81: 121.100
E82: EDDR | F82: Saarbruecken | G82: 3 | H82: 368 | I82: 1058 | J82: 118.35 | K82: Saarbruecken TURM/TOWER | M82: 125.3 | N82: TWR | P82: 49 | Q82: 12.87 | R82: N | S82: 7 | T82: 6.57 | U82: E | V82: 49.2145 | W82: 7.1095 | X82: 49.2145 | Y82: 7.1095 | Z82: 118.350
E83: EDDS | F83: Stuttgart | G83: 2 | H83: 413 | I83: 1276 | J83: 119.05 | K83: Stuttgart TURM/TOWER | L83: 118.6 | M83: 126.125 | N83: TWR | P83: 48 | Q83: 41.39 | R83: N | S83: 9 | T83: 13.32 | U83: E | V83: 48.6898 | W83: 9.222 | X83: 48.6898 | Y83: 9.2220 | Z83: 119.050
E84: EDDT | F84: Berlin-Tegel | G84: 1 | H84: 57 | I84: 122 | J84: 124.525 | K84: Tegel TURM/TOWER | M84: 125.9 | N84: TWR | P84: 52 | Q84: 33.58 | R84: N | S84: 13 | T84: 17.26 | U84: E | V84: 52.5597 | W84: 13.2877 | X84: 52.5597 | Y84: 13.2877 | Z84: 124.525
E85: EDDV | F85: Hannover | G85: 1 | H85: 173 | I85: 183 | J85: 120.175 | K85: Hannover TURM/TOWER | L85: 121.95 | M85: 136.575 | N85: TWR | P85: 52 | Q85: 27.61 | R85: N | S85: 9 | T85: 41.01 | U85: E | V85: 52.4602 | W85: 9.6835 | X85: 52.4602 | Y85: 9.6835 | Z85: 120.175
E86: EDDW | F86: Bremen | G86: 1 | H86: 79 | I86: 14 | J86: 120.325 | K86: Bremen TURM/TOWER | L86: 121.75 | M86: 123.375 | N86: TWR | P86: 53 | Q86: 2.84 | R86: N | S86: 8 | T86: 47.2 | U86: E | V86: 53.0473 | W86: 8.7867 | X86: 53.0473 | Y86: 8.7867 | Z86: 120.325
E87: EDEB | F87: Bad Langensalza | G87: 6 | H87: 39 | I87: 650 | J87: 130.125 | K87: Bad Langensalza INFO | N87: INFO | P87: 51 | Q87: 7.75 | R87: N | S87: 10 | T87: 37.3 | U87: E | V87: 51.1292 | W87: 10.6217 | X87: 51.1292 | Y87: 10.6217 | Z87: 130.125
E88: EDEF | F88: Babenhausen | G88: 1 | H88: 27 | I88: 436 | J88: 123.2 | K88: Babenhausen INFO | N88: INFO | P88: 49 | Q88: 57.17 | R88: N | S88: 8 | T88: 58.16 | U88: E | V88: 49.9528 | W88: 8.9693 | X88: 49.9528 | Y88: 8.9693 | Z88: 123.200
E89: EDEG | F89: Gotha-Ost | G89: 15 | H89: 151 | I89: 1010 | J89: 122.5 | K89: Gotha INFO | N89: INFO | P89: 50 | Q89: 58.23 | R89: N | S89: 10 | T89: 43.68 | U89: E | V89: 50.9705 | W89: 10.728 | X89: 50.9705 | Y89: 10.7280 | Z89: 122.500
E90: EDEH | F90: Herrenteich | G90: 1 | H90: 182 | I90: 308 | J90: 132.05 | K90: Herrenteich INFO | N90: INFO | P90: 49 | Q90: 20.7 | R90: N | S90: 8 | T90: 29.26 | U90: E | V90: 49.345 | W90: 8.4877 | X90: 49.3450 | Y90: 8.4877 | Z90: 132.050
E91: EDEL | F91: Langenlonsheim | G91: 3 | H91: 237 | I91: 295 | J91: 122.875 | K91: Langenlonsheim INFO | N91: INFO | P91: 49 | Q91: 54.5 | R91: N | S91: 7 | T91: 54.46 | U91: E | V91: 49.9083 | W91: 7.9077 | X91: 49.9083 | Y91: 7.9077 | Z91: 122.875
E92: EDEM | F92: Mosenberg | G92: 11 | H92: 277 | I92: 1315 | J92: 123.05 | K92: Mosenberg INFO | N92: INFO | P92: 51 | Q92: 3.77 | R92: N | S92: 9 | T92: 25.32 | U92: E | V92: 51.0628 | W92: 9.422 | X92: 51.0628 | Y92: 9.4220 | Z92: 123.050
E93: EDEN | F93: Bad Hersfeld | G93: 2 | H93: 37 | I93: 971 | J93: 124 | K93: Hersfeld INFO | N93: INFO | P93: 50 | Q93: 50.67 | R93: N | S93: 9 | T93: 42.44 | U93: E | V93: 50.8445 | W93: 9.7073 | X93: 50.8445 | Y93: 9.7073 | Z93: 124.000
E94: EDEP | F94: Heppenheim | G94: 5 | H94: 180 | I94: 315 | J94: 122.475 | K94: Heppenheim INFO | N94: INFO | P94: 49 | Q94: 37.29 | R94: N | S94: 8 | T94: 37.5 | U94: E | V94: 49.6215 | W94: 8.625 | X94: 49.6215 | Y94: 8.6250 | Z94: 122.475
E95: EDEQ | F95: Muehlhausen | G95: 15 | H95: 279 | I95: 814 | J95: 122.85 | K95: Muehlhausen INFO | N95: INFO | P95: 51 | Q95: 12.87 | R95: N | S95: 10 | T95: 32.55 | U95: E | V95: 51.2145 | W95: 10.5425 | X95: 51.2145 | Y95: 10.5425 | Z95: 122.850
E96: EDER | F96: Wasserkuppe | G96: 1 | H96: 440 | I96: 2958 | J96: 118.65 | K96: Wasserkuppe INFO | N96: INFO | P96: 50 | Q96: 29.87 | R96: N | S96: 9 | T96: 56.97 | U96: E | V96: 50.4978 | W96: 9.9495 | X96: 50.4978 | Y96: 9.9495 | Z96: 118.650
E97: EDEW | F97: Wallduern | G97: 5 | H97: 437 | I97: 1322 | J97: 122.75 | K97: Wallduern INFO | N97: INFO | P97: 49 | Q97: 34.9 | R97: N | S97: 9 | T97: 24.13 | U97: E | V97: 49.5817 | W97: 9.4022 | X97: 49.5817 | Y97: 9.4022 | Z97: 122.750
E98: EDFA | F98: Anspach/Taunus | G98: 5 | H98: 16 | I98: 1102 | J98: 121.025 | K98: Anspach INFO | N98: INFO | P98: 50 | Q98: 17.34 | R98: N | S98: 8 | T98: 32.11 | U98: E | V98: 50.289 | W98: 8.5352 | X98: 50.2890 | Y98: 8.5352 | Z98: 121.025
E99: EDFB | F99: Reichelsheim | G99: 2 | H99: 351 | I99: 398 | J99: 120.425 | K99: Reichelsheim INFO | N99: INFO | P99: 50 | Q99: 20.32 | R99: N | S99: 8 | T99: 52.72 | U99: E | V99: 50.3387 | W99: 8.8787 | X99: 50.3387 | Y99: 8.8787 | Z99: 120.425
E100: EDFC | F100: Aschaffenburg | G100: 1 | H100: 20 | I100: 410 | J100: 132.425 | K100: Aschaffenburg INFO | N100: INFO | P100: 49 | Q100: 56.33 | R100: N | S100: 9 | T100: 3.75 | U100: E | V100: 49.9388 | W100: 9.0625 | X100: 49.9388 | Y100: 9.0625 | Z100: 132.425
E101: EDFD | F101: Bad Neustadt/Saale-Grasberg | G101: 18 | H101: 41 | I101: 997 | J101: 123.65 | K101: Neustadt Saale INFO | N101: INFO | P101: 50 | Q101: 18.33 | R101: N | S101: 10 | T101: 13.59 | U101: E | V101: 50.3055 | W101: 10.2265 | X101: 50.3055 | Y101: 10.2265 | Z101: 123.650
E102: EDFE | F102: Frankfurt-Egelsbach | G102: 1 | H102: 129 | I102: 385 | J102: 118.4 | K102: Egelsbach INFO | N102: INFO | P102: 49 | Q102: 57.65 | R102: N | S102: 8 | T102: 38.49 | U102: E | V102: 49.9608 | W102: 8.6415 | X102: 49.9608 | Y102: 8.6415 | Z102: 118.400
E103: EDFG | F103: Gelnhausen | G103: 11 | H103: 141 | I103: 413 | J103: 123.05 | K103: Gelnhausen INFO | N103: INFO | P103: 50 | Q103: 11.83 | R103: N | S103: 9 | T103: 10.2 | U103: E | V103: 50.1972 | W103: 9.17 | X103: 50.1972 | Y103: 9.1700 | Z103: 123.050
E104: EDFH | F104: Frankfurt-Hahn | G104: 2 | H104: 130 | I104: 1649 | J104: 119.65 | K104: Hahn TURM/TOWER | L104: 121.975 | M104: 136.35 | N104: TWR | P104: 49 | Q104: 56.92 | R104: N | S104: 7 | T104: 15.83 | U104: E | V104: 49.9487 | W104: 7.2638 | X104: 49.9487 | Y104: 7.2638 | Z104: 119.650
E105: EDFI | F105: Hirzenhain | G105: 3 | H105: 189 | I105: 1706 | J105: 118.325 | K105: Hirzenhain INFO | N105: INFO | P105: 50 | Q105: 47.29 | R105: N | S105: 8 | T105: 23.56 | U105: E | V105: 50.7882 | W105: 8.3927 | X105: 50.7882 | Y105: 8.3927 | Z105: 118.325
E106: EDFJ | F106: Lager Hammelburg | G106: 4 | H106: 233 | I106: 1133 | J106: 118.425 | K106: Hammelburg INFO | N106: INFO | P106: 50 | Q106: 5.91 | R106: N | S106: 9 | T106: 53.01 | U106: E | V106: 50.0985 | W106: 9.8835 | X106: 50.0985 | Y106: 9.8835 | Z106: 118.425
E107: EDFK | F107: Bad Kissingen | G107: 19 | H107: 38 | I107: 653 | J107: 122 | K107: Bad Kissingen INFO | N107: INFO | P107: 50 | Q107: 12.63 | R107: N | S107: 10 | T107: 4.13 | U107: E | V107: 50.2105 | W107: 10.0688 | X107: 50.2105 | Y107: 10.0688 | Z107: 122.000
E108: EDFL | F108: Gießen-Luetzellinden | G108: 15 | H108: 146 | I108: 756 | J108: 122.5 | K108: Luetzellinden INFO | N108: INFO | P108: 50 | Q108: 32.63 | R108: N | S108: 8 | T108: 35.41 | U108: E | V108: 50.5438 | W108: 8.5902 | X108: 50.5438 | Y108: 8.5902 | Z108: 122.500
E109: EDFM | F109: Mannheim City | G109: 2 | H109: 261 | I109: 309 | J109: 129.775 | K109: Mannheim TURM/TOWER | M109: 136.55 | N109: TWR | P109: 49 | Q109: 28.36 | R109: N | S109: 8 | T109: 30.86 | U109: E | V109: 49.4727 | W109: 8.5143 | X109: 49.4727 | Y109: 8.5143 | Z109: 129.775
E110: EDFN | F110: Marburg-Schoenstadt | G110: 24 | H110: 262 | I110: 833 | J110: 123 | K110: Marburg INFO | N110: INFO | P110: 50 | Q110: 52.43 | R110: N | S110: 8 | T110: 48.82 | U110: E | V110: 50.8738 | W110: 8.8137 | X110: 50.8738 | Y110: 8.8137 | Z110: 123.000
E111: EDFO | F111: Michelstadt/Odenwald | G111: 18 | H111: 272 | I111: 1143 | J111: 123.65 | K111: Michelstadt INFO | N111: INFO | P111: 49 | Q111: 40.71 | R111: N | S111: 8 | T111: 58.34 | U111: E | V111: 49.6785 | W111: 8.9723 | X111: 49.6785 | Y111: 8.9723 | Z111: 123.650
E112: EDFP | F112: Ober-Moerlen | G112: 15 | H112: 311 | I112: 812 | J112: 122.85 | K112: Ober-Moerlen INFO | N112: INFO | P112: 50 | Q112: 21.71 | R112: N | S112: 8 | T112: 42.64 | U112: E | V112: 50.3618 | W112: 8.7107 | X112: 50.3618 | Y112: 8.7107 | Z112: 122.850
E113: EDFQ | F113: Allendorf/Eder | G113: 7 | H113: 9 | I113: 1164 | J113: 118.175 | K113: Allendorf INFO | N113: INFO | P113: 51 | Q113: 2.12 | R113: N | S113: 8 | T113: 40.85 | U113: E | V113: 51.0353 | W113: 8.6808 | X113: 51.0353 | Y113: 8.6808 | Z113: 118.175
E114: EDFR | F114: Rothenburg o.d.T. | G114: 7 | H114: 362 | I114: 1309 | J114: 118.175 | K114: Rothenburg INFO | N114: INFO | P114: 49 | Q114: 23.44 | R114: N | S114: 10 | T114: 13.13 | U114: E | V114: 49.3907 | W114: 10.2188 | X114: 49.3907 | Y114: 10.2188 | Z114: 118.175
E115: EDFS | F115: Schweinfurt-Sued | G115: 5 | H115: 389 | I115: 685 | J115: 119.975 | K115: Schweinfurt INFO | N115: INFO | P115: 50 | Q115: 0.63 | R115: N | S115: 10 | T115: 15.08 | U115: E | V115: 50.0105 | W115: 10.2513 | X115: 50.0105 | Y115: 10.2513 | Z115: 119.975
E116: EDFT | F116: Lauterbach | G116: 4 | H116: 243 | I116: 1210 | J116: 122.175 | K116: Lauterbach INFO | N116: INFO | P116: 50 | Q116: 40.99 | R116: N | S116: 9 | T116: 24.62 | U116: E | V116: 50.6832 | W116: 9.4103 | X116: 50.6832 | Y116: 9.4103 | Z116: 122.175
E117: EDFU | F117: Mainbullau | G117: 4 | H117: 259 | I117: 1501 | J117: 122.375 | K117: Mainbullau INFO | N117: INFO | P117: 49 | Q117: 41.7 | R117: N | S117: 9 | T117: 10.92 | U117: E | V117: 49.695 | W117: 9.182 | X117: 49.6950 | Y117: 9.1820 | Z117: 122.375
E118: EDFV | F118: Worms | G118: 1 | H118: 460 | I118: 295 | J118: 124.6 | K118: Worms INFO | N118: INFO | P118: 49 | Q118: 36.38 | R118: N | S118: 8 | T118: 22.01 | U118: E | V118: 49.6063 | W118: 8.3668 | X118: 49.6063 | Y118: 8.3668 | Z118: 124.600
E119: EDFW | F119: Wuerzburg-Schenkenturm | G119: 4 | H119: 461 | I119: 991 | J119: 122.175 | K119: Wuerzburg INFO | N119: INFO | P119: 49 | Q119: 49.08 | R119: N | S119: 9 | T119: 53.83 | U119: E | V119: 49.818 | W119: 9.8972 | X119: 49.8180 | Y119: 9.8972 | Z119: 122.175
E120: EDFX | F120: Hockenheim | G120: 18 | H120: 190 | I120: 315 | J120: 123.65 | K120: Hockenheim INFO | N120: INFO | P120: 49 | Q120: 19.52 | R120: N | S120: 8 | T120: 31.71 | U120: E | V120: 49.3253 | W120: 8.5285 | X120: 49.3253 | Y120: 8.5285 | Z120: 123.650
E121: EDFY | F121: Elz | G121: 6 | H121: 117 | I121: 699 | J121: 123.6 | K121: Elz INFO | N121: INFO | P121: 50 | Q121: 25.61 | R121: N | S121: 8 | T121: 0.66 | U121: E | V121: 50.4268 | W121: 8.011 | X121: 50.4268 | Y121: 8.0110 | Z121: 123.600
E122: EDFZ | F122: Mainz/Finthen | G122: 5 | H122: 260 | I122: 760 | J122: 122.925 | K122: Mainz INFO | N122: INFO | P122: 49 | Q122: 58.11 | R122: N | S122: 8 | T122: 8.88 | U122: E | V122: 49.9685 | W122: 8.148 | X122: 49.9685 | Y122: 8.1480 | Z122: 122.925
E123: EDGA | F123: Ailertchen | G123: 11 | H123: 7 | I123: 1542 | J123: 123.05 | K123: Ailertchen INFO | N123: INFO | P123: 50 | Q123: 35.55 | R123: N | S123: 7 | T123: 56 | U123: E | V123: 50.5925 | W123: 7.9333 | X123: 50.5925 | Y123: 7.9333 | Z123: 123.050
E124: EDGB | F124: Breitscheid | G124: 20 | H124: 78 | I124: 1833 | J124: 122.6 | K124: Breitscheid INFO | N124: INFO | P124: 50 | Q124: 40.63 | R124: N | S124: 8 | T124: 10.22 | U124: E | V124: 50.6772 | W124: 8.1703 | X124: 50.6772 | Y124: 8.1703 | Z124: 122.600
E125: EDGE | F125: Eisenach-Kindel | G125: 4 | H125: 114 | I125: 1101 | J125: 119.75 | K125: Eisenach INFO | N125: INFO | P125: 50 | Q125: 59.53 | R125: N | S125: 10 | T125: 28.56 | U125: E | V125: 50.9922 | W125: 10.476 | X125: 50.9922 | Y125: 10.4760 | Z125: 119.750
E126: EDGF | F126: Fulda-Jossa | G126: 12 | H126: 136 | I126: 1558 | J126: 122.4 | K126: Jossa INFO | N126: INFO | P126: 50 | Q126: 28.54 | R126: N | S126: 9 | T126: 26.52 | U126: E | V126: 50.4757 | W126: 9.442 | X126: 50.4757 | Y126: 9.4420 | Z126: 122.400
E127: EDGH | F127: Hettstadt | G127: 3 | H127: 185 | I127: 1050 | J127: 122.425 | K127: Hettstadt INFO | N127: INFO | P127: 49 | Q127: 47.92 | R127: N | S127: 9 | T127: 50.21 | U127: E | V127: 49.7987 | W127: 9.8368 | X127: 49.7987 | Y127: 9.8368 | Z127: 122.425
E128: EDGI | F128: Ingelfingen-Buehlhof | G128: 5 | H128: 202 | I128: 1375 | J128: 130.6 | K128: Ingelfingen INFO | N128: INFO | P128: 49 | Q128: 19.3 | R128: N | S128: 9 | T128: 39.81 | U128: E | V128: 49.3217 | W128: 9.6635 | X128: 49.3217 | Y128: 9.6635 | Z128: 130.600
E129: EDGJ | F129: Ochsenfurt | G129: 24 | H129: 316 | I129: 814 | J129: 123 | K129: Ochsenfurt INFO | N129: INFO | P129: 49 | Q129: 40.45 | R129: N | S129: 10 | T129: 4.29 | U129: E | V129: 49.6742 | W129: 10.0715 | X129: 49.6742 | Y129: 10.0715 | Z129: 123.000
E130: EDGK | F130: Korbach | G130: =COUNTIF($J$2:$J$445,J130) -> 5 | H130: 226 | I130: 1280 | J130: 119.975 | K130: Korbach INFO | N130: INFO | P130: 51 | Q130: 15.24 | R130: N | S130: 8 | T130: 52.57 | U130: E | V130: =IF(P130+(Q130/60)<>0,ROUND(P130+(Q130/60),4),"") -> 51.254 | W130: =IF(S130+(T130/60)<>0,ROUND(S130+(T130/60),4),"") -> 8.8762 | X130: =LEFT(V130,2)&"."&RIGHT(TEXT(V130,"00,0000"),4) -> 51.2540 | Y130: =LEFT(W130,IF(W130<10,1,2))&"."&RIGHT(TEXT(W130,"00,0000"),4) -> 8.8762 | Z130: =LEFT(J130,3)&"."&IF(LEN(J130)=3,"",RIGHT(J130,LEN(J130)-4))&IF(LEN(J130)=3,"000",IF(LEN(J130)=5,"00",IF(LEN(J130)=6,"0",""))) -> 119.975
E131: EDGM | F131: Mosbach-Lohrbach | G131: 15 | H131: 276 | I131: 1083 | J131: 122.85 | K131: Mosbach INFO | N131: INFO | P131: 49 | Q131: 23.94 | R131: N | S131: 9 | T131: 7.44 | U131: E | V131: 49.399 | W131: 9.124 | X131: 49.3990 | Y131: 9.1240 | Z131: 122.850
E132: EDGP | F132: Oppenheim | G132: 19 | H132: 323 | I132: 279 | J132: 122 | K132: Oppenheim INFO | N132: INFO | P132: 49 | Q132: 50.43 | R132: N | S132: 8 | T132: 22.61 | U132: E | V132: 49.8405 | W132: 8.3768 | X132: 49.8405 | Y132: 8.3768 | Z132: 122.000
E133: EDGQ | F133: Schameder | G133: 4 | H133: 374 | I133: 1788 | J133: 122.025 | K133: Schameder INFO | N133: INFO | P133: 51 | Q133: 0.01 | R133: N | S133: 8 | T133: 18.41 | U133: E | V133: 51.0002 | W133: 8.3068 | X133: 51.0002 | Y133: 8.3068 | Z133: 122.025
E134: EDGR | F134: Gießen-Reiskirchen | G134: 18 | H134: 147 | I134: 702 | J134: 123.65 | K134: Reiskirchen INFO | N134: INFO | P134: 50 | Q134: 34.01 | R134: N | S134: 8 | T134: 52.19 | U134: E | V134: 50.5668 | W134: 8.8698 | X134: 50.5668 | Y134: 8.8698 | Z134: 123.650
E135: EDGS | F135: Siegerland | G135: 1 | H135: 395 | I135: 1966 | J135: 120.375 | K135: Siegerland INFO | M135: 128.7 | N135: INFO | P135: 50 | Q135: 42.46 | R135: N | S135: 8 | T135: 4.98 | U135: E | V135: 50.7077 | W135: 8.083 | X135: 50.7077 | Y135: 8.0830 | Z135: 120.375
E136: EDGT | F136: Bottenhorn | G136: 1 | H136: 75 | I136: 1683 | J136: 123.8 | K136: Bottenhorn INFO | N136: INFO | P136: 50 | Q136: 47.68 | R136: N | S136: 8 | T136: 27.81 | U136: E | V136: 50.7947 | W136: 8.4635 | X136: 50.7947 | Y136: 8.4635 | Z136: 123.800
E137: EDGU | F137: Unterschuepf | G137: 20 | H137: 427 | I137: 1154 | J137: 122.6 | K137: Unterschuepf INFO | N137: INFO | P137: 49 | Q137: 30.93 | R137: N | S137: 9 | T137: 40.1 | U137: E | V137: 49.5155 | W137: 9.6683 | X137: 49.5155 | Y137: 9.6683 | Z137: 122.600
E138: EDGW | F138: Wolfhagen-„Graner Berg“ | G138: 2 | H138: 459 | I138: 1027 | J138: 127.45 | K138: Wolfenhagen INFO | N138: INFO | P138: 51 | Q138: 18.42 | R138: N | S138: 9 | T138: 10.52 | U138: E | V138: 51.307 | W138: 9.1753 | X138: 51.3070 | Y138: 9.1753 | Z138: 127.450
E139: EDGX | F139: Walldorf | G139: 2 | H139: 436 | I139: 346 | J139: 118.275 | K139: Walldorf INFO | N139: INFO | P139: 49 | Q139: 18.24 | R139: N | S139: 8 | T139: 39.54 | U139: E | V139: 49.304 | W139: 8.659 | X139: 49.3040 | Y139: 8.6590 | Z139: 118.275
E140: EDGY | F140: Kitzingen | G140: 1 | H140: 218 | I140: 666 | J140: 118.255 | P140: 49 | Q140: 44.66 | R140: N | S140: 10 | T140: 12.25 | U140: E | V140: 49.7443 | W140: 10.2042 | X140: 49.7443 | Y140: 10.2042 | Z140: 118.255
E141: EDGZ | F141: Weinheim/Bergstraße | G141: 6 | H141: 443 | I141: 317 | J141: 123.6 | K141: Weinheim INFO | N141: INFO | P141: 49 | Q141: 34.05 | R141: N | S141: 8 | T141: 36.67 | U141: E | V141: 49.5675 | W141: 8.6112 | X141: 49.5675 | Y141: 8.6112 | Z141: 123.600
E142: EDHA | F142: Ahlhorn | G142: 1 | H142: 4 | I142: 151 | J142: 136.15 | P142: 52 | Q142: 53.33 | R142: N | S142: 8 | T142: 13.79 | U142: E | V142: 52.8888 | W142: 8.2298 | X142: 52.8888 | Y142: 8.2298 | Z142: 136.150
E143: EDHB | F143: Grube | G143: 20 | H143: 161 | I143: 6 | J143: 122.6 | K143: Grube INFO | N143: INFO | P143: 54 | Q143: 14.72 | R143: N | S143: 11 | T143: 1.48 | U143: E | V143: 54.2453 | W143: 11.0247 | X143: 54.2453 | Y143: 11.0247 | Z143: 122.600
E144: EDHC | F144: Luechow-Rehbeck | G144: 15 | H144: 253 | I144: 50 | J144: 122.5 | K144: Luechow INFO | N144: INFO | P144: 53 | Q144: 0.96 | R144: N | S144: 11 | T144: 8.74 | U144: E | V144: 53.016 | W144: 11.1457 | X144: 53.0160 | Y144: 11.1457 | Z144: 122.500
E145: EDHD | F145: Flugplatz Eichsfeld | G145: 4 | H145: 128 | I145: 1195 | J145: 122.2 | K145: Heiligenstadt INFO | N145: INFO | P145: 51 | Q145: 24.45 | R145: N | S145: 10 | T145: 8.72 | U145: E | V145: 51.4075 | W145: 10.1453 | X145: 51.4075 | Y145: 10.1453 | Z145: 122.200
E146: EDHE | F146: Uetersen/Heist | G146: 5 | H146: 426 | I146: 22 | J146: 122.7 | K146: Uetersen INFO | N146: INFO | P146: 53 | Q146: 38.82 | R146: N | S146: 9 | T146: 42.25 | U146: E | V146: 53.647 | W146: 9.7042 | X146: 53.6470 | Y146: 9.7042 | Z146: 122.700
E147: EDHF | F147: Itzehoe/Hungriger Wolf | G147: 5 | H147: 205 | I147: 82 | J147: 123.375 | K147: Itzehoe INFO | N147: INFO | P147: 53 | Q147: 59.67 | R147: N | S147: 9 | T147: 34.71 | U147: E | V147: 53.9945 | W147: 9.5785 | X147: 53.9945 | Y147: 9.5785 | Z147: 123.375
E148: EDHG | F148: Lueneburg | G148: 4 | H148: 255 | I148: 161 | J148: 122.175 | K148: Lueneburg INFO | N148: INFO | P148: 53 | Q148: 14.9 | R148: N | S148: 10 | T148: 27.52 | U148: E | V148: 53.2483 | W148: 10.4587 | X148: 53.2483 | Y148: 10.4587 | Z148: 122.175
E149: EDHI | F149: Hamburg-Finkenwerder | G149: 5 | H149: 170 | I149: 21 | J149: 123.25 | K149: Finkenwerder TURM/TOWER | N149: TWR | P149: 53 | Q149: 32.03 | R149: N | S149: 9 | T149: 49.94 | U149: E | V149: 53.5338 | W149: 9.8323 | X149: 53.5338 | Y149: 9.8323 | Z149: 123.250
E150: EDHK | F150: Kiel-Holtenau | G150: 5 | H150: 216 | I150: 101 | J150: 119.975 | K150: Kiel INFO | N150: INFO | P150: 54 | Q150: 22.77 | R150: N | S150: 10 | T150: 8.71 | U150: E | V150: 54.3795 | W150: 10.1452 | X150: 54.3795 | Y150: 10.1452 | Z150: 119.975
E151: EDHL | F151: Luebeck-Blankensee | G151: 1 | H151: 252 | I151: 53 | J151: 128.7 | K151: Luebeck TURM/TOWER | L151: 121.775 | M151: 119.925 | N151: TWR | P151: 53 | Q151: 48.32 | R151: N | S151: 10 | T151: 43.15 | U151: E | V151: 53.8053 | W151: 10.7192 | X151: 53.8053 | Y151: 10.7192 | Z151: 128.700
E152: EDHM | F152: Hartenholm | G152: 4 | H152: 175 | I152: 108 | J152: 118.125 | K152: Hartenholm INFO | N152: INFO | P152: 53 | Q152: 54.9 | R152: N | S152: 10 | T152: 2.43 | U152: E | V152: 53.915 | W152: 10.0405 | X152: 53.9150 | Y152: 10.0405 | Z152: 118.125
E153: EDHN | F153: Neumuenster | G153: 24 | H153: 294 | I153: 72 | J153: 123 | K153: Neumuenster INFO | N153: INFO | P153: 54 | Q153: 4.72 | R153: N | S153: 9 | T153: 56.43 | U153: E | V153: 54.0787 | W153: 9.9405 | X153: 54.0787 | Y153: 9.9405 | Z153: 123.000
E154: EDHO | F154: Ahrenlohe | G154: 20 | H154: 5 | I154: 33 | J154: 122.6 | K154: Ahrenlohe INFO | N154: INFO | P154: 53 | Q154: 41.99 | R154: N | S154: 9 | T154: 44.43 | U154: E | V154: 53.6998 | W154: 9.7405 | X154: 53.6998 | Y154: 9.7405 | Z154: 122.600
E155: EDHP | F155: Pellworm | G155: 24 | H155: 337 | I155: 2 | J155: 123 | K155: Pellworm INFO | N155: INFO | P155: 54 | Q155: 32.15 | R155: N | S155: 8 | T155: 40.91 | U155: E | V155: 54.5358 | W155: 8.6818 | X155: 54.5358 | Y155: 8.6818 | Z155: 123.000
E156: EDHS | F156: Stade | G156: 24 | H156: 403 | I156: 63 | J156: 123 | K156: Stade INFO | N156: INFO | P156: 53 | Q156: 33.68 | R156: N | S156: 9 | T156: 29.9 | U156: E | V156: 53.5613 | W156: 9.4983 | X156: 53.5613 | Y156: 9.4983 | Z156: 123.000
E157: EDHU | F157: Lauenbrueck | G157: 18 | H157: 241 | I157: 98 | J157: 123.65 | K157: Lauenbrueck INFO | N157: INFO | P157: 53 | Q157: 12.43 | R157: N | S157: 9 | T157: 34.43 | U157: E | V157: 53.2072 | W157: 9.5738 | X157: 53.2072 | Y157: 9.5738 | Z157: 123.650
E158: EDHW | F158: Wahlstedt | G158: 5 | H158: 435 | I158: 128 | J158: 121.025 | K158: Wahlstedt INFO | N158: INFO | P158: 53 | Q158: 58.17 | R158: N | S158: 10 | T158: 13.3 | U158: E | V158: 53.9695 | W158: 10.2217 | X158: 53.9695 | Y158: 10.2217 | Z158: 121.025
E159: EDJA | F159: Memmingen | G159: 1 | H159: 266 | I159: 2079 | J159: 126.85 | K159: Memmingen TURM/TOWER | L159: 121.675 | M159: 118.85 | N159: TWR | P159: 47 | Q159: 59.33 | R159: N | S159: 10 | T159: 14.37 | U159: E | V159: 47.9888 | W159: 10.2395 | X159: 47.9888 | Y159: 10.2395 | Z159: 126.850
E160: EDJG | F160: Grabenstaett | G160: 9 | H160: 153 | I160: 1762 | J160: 0 | K160: Grabenstaett INFO | N160: INFO | P160: 47 | Q160: 51.18 | R160: N | S160: 12 | T160: 33.03 | U160: E | V160: 47.853 | W160: 12.5505 | X160: 47.8530 | Y160: 12.5505
E161: EDKA | F161: Aachen-Merzbrueck | G161: 3 | H161: 1 | I161: 623 | J161: 122.875 | K161: Aachen INFO | N161: INFO | P161: 50 | Q161: 49.38 | R161: N | S161: 6 | T161: 11.18 | U161: E | V161: 50.823 | W161: 6.1863 | X161: 50.8230 | Y161: 6.1863 | Z161: 122.875
E162: EDKB | F162: Bonn-Hangelar | G162: 2 | H162: 70 | I162: 197 | J162: 135.15 | K162: Bonn-Hangelar INFO | N162: INFO | P162: 50 | Q162: 46.13 | R162: N | S162: 7 | T162: 9.84 | U162: E | V162: 50.7688 | W162: 7.164 | X162: 50.7688 | Y162: 7.1640 | Z162: 135.150
E163: EDKD | F163: Altena-Hegenscheid | G163: 4 | H163: 12 | I163: 1552 | J163: 122.2 | K163: Altena INFO | N163: INFO | P163: 51 | Q163: 18.78 | R163: N | S163: 7 | T163: 42.22 | U163: E | V163: 51.313 | W163: 7.7037 | X163: 51.3130 | Y163: 7.7037 | Z163: 122.200
E164: EDKF | F164: Bergneustadt/Auf dem Duempel | G164: 18 | H164: 55 | I164: 1604 | J164: 123.65 | K164: Bergneustadt INFO | N164: INFO | P164: 51 | Q164: 3.11 | R164: N | S164: 7 | T164: 42.38 | U164: E | V164: 51.0518 | W164: 7.7063 | X164: 51.0518 | Y164: 7.7063 | Z164: 123.650
E165: EDKH | F165: Huensborn | G165: 6 | H165: 198 | I165: 1306 | J165: 130.125 | K165: Huensborn INFO | N165: INFO | P165: 50 | Q165: 55.74 | R165: N | S165: 7 | T165: 53.95 | U165: E | V165: 50.929 | W165: 7.8992 | X165: 50.9290 | Y165: 7.8992 | Z165: 130.125
E166: EDKI | F166: Betzdorf-Kirchen | G166: 5 | H166: 58 | I166: 1126 | J166: 122.75 | K166: Betzdorf INFO | N166: INFO | P166: 50 | Q166: 49.03 | R166: N | S166: 7 | T166: 49.83 | U166: E | V166: 50.8172 | W166: 7.8305 | X166: 50.8172 | Y166: 7.8305 | Z166: 122.750
E167: EDKL | F167: Leverkusen | G167: 3 | H167: 249 | I167: 157 | J167: 122.425 | K167: Leverkusen INFO | N167: INFO | P167: 51 | Q167: 0.92 | R167: N | S167: 7 | T167: 0.37 | U167: E | V167: 51.0153 | W167: 7.0062 | X167: 51.0153 | Y167: 7.0062 | Z167: 122.425
E168: EDKM | F168: Meschede-Schueren | G168: 9 | H168: 271 | I168: 1436 | J168: 122.05 | K168: Meschede INFO | N168: INFO | P168: 51 | Q168: 18.14 | R168: N | S168: 8 | T168: 14.24 | U168: E | V168: 51.3023 | W168: 8.2373 | X168: 51.3023 | Y168: 8.2373 | Z168: 122.050
E169: EDKN | F169: Wipperfuerth-Neye | G169: 12 | H169: 457 | I169: 863 | J169: 122.4 | K169: Wipperfuerth INFO | N169: INFO | P169: 51 | Q169: 7.42 | R169: N | S169: 7 | T169: 22.45 | U169: E | V169: 51.1237 | W169: 7.3742 | X169: 51.1237 | Y169: 7.3742 | Z169: 122.400
E170: EDKO | F170: Brilon/Hochsauerland | G170: 1 | H170: 81 | I170: 1510 | J170: 129.375 | K170: Brilon INFO | N170: INFO | P170: 51 | Q170: 24.15 | R170: N | S170: 8 | T170: 38.51 | U170: E | V170: 51.4025 | W170: 8.6418 | X170: 51.4025 | Y170: 8.6418 | Z170: 129.375
E171: EDKP | F171: Plettenberg-Hueinghausen | G171: 5 | H171: 344 | I171: 980 | J171: 122.925 | K171: Plettenberg INFO | N171: INFO | P171: 51 | Q171: 11.52 | R171: N | S171: 7 | T171: 47.36 | U171: E | V171: 51.192 | W171: 7.7893 | X171: 51.1920 | Y171: 7.7893 | Z171: 122.925
E172: EDKR | F172: Schmallenberg-Rennefeld | G172: 3 | H172: 376 | I172: 1530 | J172: 122.425 | K172: Schmallenberg INFO | N172: INFO | P172: 51 | Q172: 9.69 | R172: N | S172: 8 | T172: 15.64 | U172: E | V172: 51.1615 | W172: 8.2607 | X172: 51.1615 | Y172: 8.2607 | Z172: 122.425
E173: EDKU | F173: Attendorn-Finnentrop | G173: 3 | H173: 22 | I173: 1040 | J173: 121.4 | K173: Attendorn INFO | N173: INFO | P173: 51 | Q173: 8.77 | R173: N | S173: 7 | T173: 56.22 | U173: E | V173: 51.1462 | W173: 7.937 | X173: 51.1462 | Y173: 7.9370 | Z173: 121.400
E174: EDKV | F174: Dahlemer Binz | G174: 4 | H174: 92 | I174: 1896 | J174: 122.375 | K174: Dahlemer Binz INFO | N174: INFO | P174: 50 | Q174: 24.34 | R174: N | S174: 6 | T174: 31.74 | U174: E | V174: 50.4057 | W174: 6.529 | X174: 50.4057 | Y174: 6.5290 | Z174: 122.375
E175: EDKW | F175: Werdohl-Kuentrop | G175: 1 | H175: 446 | I175: 1037 | J175: 118 | K175: Werdohl INFO | N175: INFO | P175: 51 | Q175: 17.82 | R175: N | S175: 7 | T175: 49.01 | U175: E | V175: 51.297 | W175: 7.8168 | X175: 51.2970 | Y175: 7.8168 | Z175: 118.000
E176: EDKZ | F176: Meinerzhagen | G176: 5 | H176: 264 | I176: 1548 | J176: 130.6 | K176: Meinerzhagen INFO | N176: INFO | P176: 51 | Q176: 6.06 | R176: N | S176: 7 | T176: 35.98 | U176: E | V176: 51.101 | W176: 7.5997 | X176: 51.1010 | Y176: 7.5997 | Z176: 130.600
E177: EDLA | F177: Arnsberg-Menden | G177: 2 | H177: 18 | I177: 794 | J177: 123.025 | K177: Arnsberg INFO | N177: INFO | P177: 51 | Q177: 29 | R177: N | S177: 7 | T177: 53.96 | U177: E | V177: 51.4833 | W177: 7.8993 | X177: 51.4833 | Y177: 7.8993 | Z177: 123.025
E178: EDLB | F178: Borkenberge | G178: 2 | H178: 72 | I178: 158 | J178: 135 | K178: Borkenberge INFO | N178: INFO | P178: 51 | Q178: 46.75 | R178: N | S178: 7 | T178: 17.31 | U178: E | V178: 51.7792 | W178: 7.2885 | X178: 51.7792 | Y178: 7.2885 | Z178: 135.000
E179: EDLC | F179: Kamp-Lintfort | G179: 24 | H179: 210 | I179: 80 | J179: 123 | K179: Kamp-Lintfort INFO | N179: INFO | P179: 51 | Q179: 31.74 | R179: N | S179: 6 | T179: 32.17 | U179: E | V179: 51.529 | W179: 6.5362 | X179: 51.5290 | Y179: 6.5362 | Z179: 123.000
E180: EDLD | F180: Dinslaken/Schwarze Heide | G180: 5 | H180: 101 | I180: 213 | J180: 122.7 | K180: Dinslaken INFO | N180: INFO | P180: 51 | Q180: 36.96 | R180: N | S180: 6 | T180: 51.67 | U180: E | V180: 51.616 | W180: 6.8612 | X180: 51.6160 | Y180: 6.8612 | Z180: 122.700
E181: EDLE | F181: Essen/Muelheim | G181: 4 | H181: 122 | I181: 424 | J181: 119.75 | K181: Essen/Muehlheim INFO | N181: INFO | P181: 51 | Q181: 24.14 | R181: N | S181: 6 | T181: 56.24 | U181: E | V181: 51.4023 | W181: 6.9373 | X181: 51.4023 | Y181: 6.9373 | Z181: 119.750
E182: EDLF | F182: Grefrath-Niershorst | G182: 2 | H182: 156 | I182: 105 | J182: 123.625 | K182: Grefrath INFO | N182: INFO | P182: 51 | Q182: 20.04 | R182: N | S182: 6 | T182: 21.56 | U182: E | V182: 51.334 | W182: 6.3593 | X182: 51.3340 | Y182: 6.3593 | Z182: 123.625
E183: EDLG | F183: Goch-Asperden | G183: 1 | H183: 150 | I183: 52 | J183: 118.45 | K183: Goch INFO | N183: INFO | P183: 51 | Q183: 41.45 | R183: N | S183: 6 | T183: 6.25 | U183: E | V183: 51.6908 | W183: 6.1042 | X183: 51.6908 | Y183: 6.1042 | Z183: 118.450
E184: EDLH | F184: Hamm-Lippewiesen | G184: 1 | H184: 172 | I184: 190 | J184: 134.05 | K184: Hamm INFO | N184: INFO | P184: 51 | Q184: 41.4 | R184: N | S184: 7 | T184: 49 | U184: E | V184: 51.69 | W184: 7.8167 | X184: 51.6900 | Y184: 7.8167 | Z184: 134.050
E185: EDLI | F185: Bielefeld | G185: 3 | H185: 60 | I185: 454 | J185: 118.35 | K185: Bielefeld INFO | N185: INFO | P185: 51 | Q185: 57.89 | R185: N | S185: 8 | T185: 32.69 | U185: E | V185: 51.9648 | W185: 8.5448 | X185: 51.9648 | Y185: 8.5448 | Z185: 118.350
E186: EDLJ | F186: Detmold | G186: 5 | H186: 96 | I186: 623 | J186: 122.75 | K186: Detmold INFO | N186: INFO | P186: 51 | Q186: 56.46 | R186: N | S186: 8 | T186: 54.25 | U186: E | V186: 51.941 | W186: 8.9042 | X186: 51.9410 | Y186: 8.9042 | Z186: 122.750
E187: EDLK | F187: Krefeld-Egelsberg | G187: 1 | H187: 227 | I187: 141 | J187: 120.675 | K187: Krefeld INFO | N187: INFO | P187: 51 | Q187: 23.1 | R187: N | S187: 6 | T187: 35.26 | U187: E | V187: 51.385 | W187: 6.5877 | X187: 51.3850 | Y187: 6.5877 | Z187: 120.675
E188: EDLM | F188: Marl-Loemuehle | G188: 19 | H188: 263 | I188: 241 | J188: 122 | K188: Marl INFO | N188: INFO | P188: 51 | Q188: 38.82 | R188: N | S188: 7 | T188: 9.82 | U188: E | V188: 51.647 | W188: 7.1637 | X188: 51.6470 | Y188: 7.1637 | Z188: 122.000
E189: EDLN | F189: Moenchengladbach | G189: 4 | H189: 274 | I189: 125 | J189: 118.125 | K189: Moenchengladbach TURM/TOWER | L189: 121.925 | M189: 109.8 | N189: TWR | P189: 51 | Q189: 13.82 | R189: N | S189: 6 | T189: 30.27 | U189: E | V189: 51.2303 | W189: 6.5045 | X189: 51.2303 | Y189: 6.5045 | Z189: 118.125
E190: EDLO | F190: Oerlinghausen | G190: 4 | H190: 320 | I190: 568 | J190: 122.175 | K190: Oerlinghausen INFO | N190: INFO | P190: 51 | Q190: 55.95 | R190: N | S190: 8 | T190: 39.72 | U190: E | V190: 51.9325 | W190: 8.662 | X190: 51.9325 | Y190: 8.6620 | Z190: 122.175
E191: EDLP | F191: Paderborn/Lippstadt | G191: 1 | H191: 330 | I191: 699 | J191: 133.375 | K191: Paderborn TURM/TOWER | L191: 121.925 | M191: 125.725 | N191: TWR | P191: 51 | Q191: 36.85 | R191: N | S191: 8 | T191: 36.98 | U191: E | V191: 51.6142 | W191: 8.6163 | X191: 51.6142 | Y191: 8.6163 | Z191: 133.375
E192: EDLR | F192: Paderborn-Haxterberg | G192: 1 | H192: 329 | I192: 800 | J192: 125.275 | K192: Haxterberg INFO | N192: INFO | P192: 51 | Q192: 41.3 | R192: N | S192: 8 | T192: 46.49 | U192: E | V192: 51.6883 | W192: 8.7748 | X192: 51.6883 | Y192: 8.7748 | Z192: 125.275
E193: EDLS | F193: Stadtlohn-Vreden | G193: 1 | H193: 404 | I193: 157 | J193: 119.2 | K193: Stadtlohn INFO | N193: INFO | P193: 51 | Q193: 59.75 | R193: N | S193: 6 | T193: 50.44 | U193: E | V193: 51.9958 | W193: 6.8407 | X193: 51.9958 | Y193: 6.8407 | Z193: 119.200
E194: EDLT | F194: Muenster-Telgte | G194: =COUNTIF($J$2:$J$445,J194) -> 15 | H194: 282 | I194: 177 | J194: 122.85 | K194: Telgte INFO | N194: INFO | P194: 51 | Q194: 56.68 | R194: N | S194: 7 | T194: 46.36 | U194: E | V194: =IF(P194+(Q194/60)<>0,ROUND(P194+(Q194/60),4),"") -> 51.9447 | W194: =IF(S194+(T194/60)<>0,ROUND(S194+(T194/60),4),"") -> 7.7727 | X194: =LEFT(V194,2)&"."&RIGHT(TEXT(V194,"00,0000"),4) -> 51.9447 | Y194: =LEFT(W194,IF(W194<10,1,2))&"."&RIGHT(TEXT(W194,"00,0000"),4) -> 7.7727 | Z194: =LEFT(J194,3)&"."&IF(LEN(J194)=3,"",RIGHT(J194,LEN(J194)-4))&IF(LEN(J194)=3,"000",IF(LEN(J194)=5,"00",IF(LEN(J194)=6,"0",""))) -> 122.850
E195: EDLV | F195: Niederrhein | G195: 3 | H195: 299 | I195: 106 | J195: 129.4 | K195: Niederrhein TURM/TOWER | M195: 124.45 | N195: TWR | P195: 51 | Q195: 36.14 | R195: N | S195: 6 | T195: 8.53 | U195: E | V195: 51.6023 | W195: 6.1422 | X195: 51.6023 | Y195: 6.1422 | Z195: 129.400
E196: EDLW | F196: Dortmund | G196: 1 | H196: 106 | I196: 425 | J196: 134.175 | K196: Dortmund INFO | N196: INFO | P196: 51 | Q196: 31.1 | R196: N | S196: 7 | T196: 36.73 | U196: E | V196: 51.5183 | W196: 7.6122 | X196: 51.5183 | Y196: 7.6122 | Z196: 134.175
E197: EDLX | F197: Wesel-Roemerwardt | G197: 4 | H197: 449 | I197: 72 | J197: 122.025 | K197: Wesel INFO | N197: INFO | P197: 51 | Q197: 39.77 | R197: N | S197: 6 | T197: 35.74 | U197: E | V197: 51.6628 | W197: 6.5957 | X197: 51.6628 | Y197: 6.5957 | Z197: 122.025
E198: EDLY | F198: Borken-Hoxfeld | G198: 5 | H198: 73 | I198: 156 | J198: 122.925 | K198: Hoxfeld INFO | N198: INFO | P198: 51 | Q198: 51.2 | R198: N | S198: 6 | T198: 48.89 | U198: E | V198: 51.8533 | W198: 6.8148 | X198: 51.8533 | Y198: 6.8148 | Z198: 122.925
E199: EDLZ | F199: Soest/Bad Sassendorf | G199: 20 | H199: 398 | I199: 394 | J199: 122.6 | K199: Soest INFO | N199: INFO | P199: 51 | Q199: 34.69 | R199: N | S199: 8 | T199: 12.88 | U199: E | V199: 51.5782 | W199: 8.2147 | X199: 51.5782 | Y199: 8.2147 | Z199: 122.600
E200: EDMA | F200: Augsburg | G200: 2 | H200: 24 | I200: 1515 | J200: 124.975 | K200: Augsburg TURM/TOWER | M200: 124.575 | N200: TWR | P200: 48 | Q200: 25.51 | R200: N | S200: 10 | T200: 55.91 | U200: E | V200: 48.4252 | W200: 10.9318 | X200: 48.4252 | Y200: 10.9318 | Z200: 124.975
... 245 more rows

Sheet Funknavigation (hidden)
A1: # | B1: Station | C1: Anlage | G1: ID | H1: Freq [MHz] | I1: Channel | J1: Freq [kHz] | K1: Lat ° | L1: Lat ' | M1: Lat '' | O1: Long ° | P1: Long ' | Q1: Long '' | S1: Reichweite | T1: Lat | U1: Long | X1: MHz | Y1: kHz
A2: 1 | B2: Allgaeu | C2: DME | D2: =IF(C2<>"DME",COUNTIF($H$2:$H$177,H2),0) -> 1 | E2: =COUNTIF($I$2:$I$177,I2) -> 1 | F2: =COUNTIF($J$2:$J$177,J2) -> 0 | G2: ALD | H2: 117.2 | I2: 119x | K2: 47 | L2: 59 | M2: 19 | N2: N | O2: 10 | P2: 13 | Q2: 52 | R2: E | S2: 25 | T2: =IF(K2+(L2/60)<>0,ROUND(K2+(L2/60)+(M2/3600),4),"") -> 47.9886 | U2: =IF(O2+(P2/60)<>0,ROUND(O2+(P2/60)+(Q2/3600),4),"") -> 10.2311 | V2: =LEFT(T2,2)&"."&RIGHT(TEXT(T2,"00,0000"),4) -> 47.9886 | W2: =LEFT(U2,IF(U2<10,1,2))&"."&RIGHT(TEXT(U2,"00,0000"),4) -> 10.2311 | X2: =IF(H2<>"",LEFT(H2,3)&"."&IF(LEN(H2)=3,"",RIGHT(H2,LEN(H2)-4))&IF(LEN(H2)=3,"00",IF(LEN(H2)=5,"0",IF(LEN(H2)=6,"",""))),"") -> 117.20 | Y2: =IF(J2<>0,J2,"") ->  | Z2: =VLOOKUP(MID(G2,1,1),Morse!$A$2:$B$37,2,FALSE)&" "&VLOOKUP(MID(G2,2,1),Morse!$A$2:$B$37,2,FALSE)&IF(LEN(G2)>2," "&VLOOKUP(MID(G2,3,1),Morse!$A$2:$B$37,2,FALSE),"")&IF(LEN(G2)>3," "&VLOOKUP(MID(G2,4,1),Morse!$A$2:$B$37,2,FALSE),"") -> · − · − · · − · · | AA2: =IF(I2<>"","Ch "&I2,"") -> Ch 119x | AB2: =B2&" "&C2&" "&G2&" ("&Z2&") "&IF(H2<>"",X2&" MHz","") -> Allgaeu DME ALD (· − · − · · − · ·) 117.20 MHz
A3: 2 | B3: Allgaeu | C3: NDB | D3: 0 | E3: 0 | F3: 1 | G3: ALG | J3: 341 | K3: 47 | L3: 59 | M3: 51 | N3: N | O3: 10 | P3: 15 | Q3: 44 | R3: E | S3: 25 | T3: =IF(K3+(L3/60)<>0,ROUND(K3+(L3/60)+(M3/3600),4),"") -> 47.9975 | U3: =IF(O3+(P3/60)<>0,ROUND(O3+(P3/60)+(Q3/3600),4),"") -> 10.2622 | V3: =LEFT(T3,2)&"."&RIGHT(TEXT(T3,"00,0000"),4) -> 47.9975 | W3: =LEFT(U3,IF(U3<10,1,2))&"."&RIGHT(TEXT(U3,"00,0000"),4) -> 10.2622 | X3: =IF(H3<>"",LEFT(H3,3)&"."&IF(LEN(H3)=3,"",RIGHT(H3,LEN(H3)-4))&IF(LEN(H3)=3,"00",IF(LEN(H3)=5,"0",IF(LEN(H3)=6,"",""))),"") ->  | Y3: =IF(J3<>0,J3,"") -> 341 | Z3: =VLOOKUP(MID(G3,1,1),Morse!$A$2:$B$37,2,FALSE)&" "&VLOOKUP(MID(G3,2,1),Morse!$A$2:$B$37,2,FALSE)&IF(LEN(G3)>2," "&VLOOKUP(MID(G3,3,1),Morse!$A$2:$B$37,2,FALSE),"")&IF(LEN(G3)>3," "&VLOOKUP(MID(G3,4,1),Morse!$A$2:$B$37,2,FALSE),"") -> · − · − · · − − · | AA3: =IF(I3<>"","Ch "&I3,"") -> 
A4: 3 | B4: Alster | C4: DME | D4: 2 | E4: 1 | F4: 0 | G4: ALF | H4: 115.8 | I4: 105x | K4: 53 | L4: 38 | M4: 7 | N4: N | O4: 9 | P4: 59 | Q4: 39 | R4: E | S4: 25 | T4: 53.6353 | U4: 9.9942 | V4: 53.6353 | W4: 9.9942 | X4: 115.80 | Z4: =VLOOKUP(MID(G4,1,1),Morse!$A$2:$B$37,2,FALSE)&" "&VLOOKUP(MID(G4,2,1),Morse!$A$2:$B$37,2,FALSE)&IF(LEN(G4)>2," "&VLOOKUP(MID(G4,3,1),Morse!$A$2:$B$37,2,FALSE),"")&IF(LEN(G4)>3," "&VLOOKUP(MID(G4,4,1),Morse!$A$2:$B$37,2,FALSE),"") -> · − · − · · · · − · | AA4: =IF(I4<>"","Ch "&I4,"") -> Ch 105x
A5: 4 | B5: Altenburg | C5: NDB | D5: 0 | E5: 0 | F5: 2 | G5: ABU | J5: 330 | K5: 50 | L5: 59 | M5: 38 | N5: N | O5: 12 | P5: 31 | Q5: 16 | R5: E | S5: 25 | T5: 50.9939 | U5: 12.5211 | V5: 50.9939 | W5: 12.5211 | Y5: 330 | Z5: =VLOOKUP(MID(G5,1,1),Morse!$A$2:$B$37,2,FALSE)&" "&VLOOKUP(MID(G5,2,1),Morse!$A$2:$B$37,2,FALSE)&IF(LEN(G5)>2," "&VLOOKUP(MID(G5,3,1),Morse!$A$2:$B$37,2,FALSE),"")&IF(LEN(G5)>3," "&VLOOKUP(MID(G5,4,1),Morse!$A$2:$B$37,2,FALSE),"") -> · − − · · · · · −
A6: 5 | B6: Altenburg | C6: DME | D6: 2 | E6: 2 | F6: 0 | G6: AGD | H6: 115.3 | I6: 100x | K6: 50 | L6: 58 | M6: 58 | N6: N | O6: 12 | P6: 30 | Q6: 44 | R6: E | S6: 25 | T6: 50.9828 | U6: 12.5122 | V6: 50.9828 | W6: 12.5122 | X6: 115.30 | Z6: =VLOOKUP(MID(G6,1,1),Morse!$A$2:$B$37,2,FALSE)&" "&VLOOKUP(MID(G6,2,1),Morse!$A$2:$B$37,2,FALSE)&IF(LEN(G6)>2," "&VLOOKUP(MID(G6,3,1),Morse!$A$2:$B$37,2,FALSE),"")&IF(LEN(G6)>3," "&VLOOKUP(MID(G6,4,1),Morse!$A$2:$B$37,2,FALSE),"") -> · − − − · − · · | AA6: Ch 100x
A7: 6 | B7: Ansbach | C7: NDB | D7: 0 | E7: 0 | F7: 1 | G7: ANS | J7: 452 | K7: 49 | L7: 18 | M7: 32 | N7: N | O7: 10 | P7: 37 | Q7: 53 | R7: E | S7: 25 | T7: 49.3089 | U7: 10.6314 | V7: 49.3089 | W7: 10.6314 | Y7: 452 | Z7: =VLOOKUP(MID(G7,1,1),Morse!$A$2:$B$37,2,FALSE)&" "&VLOOKUP(MID(G7,2,1),Morse!$A$2:$B$37,2,FALSE)&IF(LEN(G7)>2," "&VLOOKUP(MID(G7,3,1),Morse!$A$2:$B$37,2,FALSE),"")&IF(LEN(G7)>3," "&VLOOKUP(MID(G7,4,1),Morse!$A$2:$B$37,2,FALSE),"") -> · − − · · · ·
A8: 7 | B8: Augsburg | C8: NDB | D8: 0 | E8: 0 | F8: 2 | G8: AGB | J8: 318 | K8: 48 | L8: 25 | M8: 27 | N8: N | O8: 10 | P8: 55 | Q8: 59 | R8: E | S8: 25 | T8: 48.4242 | U8: 10.9331 | V8: 48.4242 | W8: 10.9331 | Y8: 318 | Z8: =VLOOKUP(MID(G8,1,1),Morse!$A$2:$B$37,2,FALSE)&" "&VLOOKUP(MID(G8,2,1),Morse!$A$2:$B$37,2,FALSE)&IF(LEN(G8)>2," "&VLOOKUP(MID(G8,3,1),Morse!$A$2:$B$37,2,FALSE),"")&IF(LEN(G8)>3," "&VLOOKUP(MID(G8,4,1),Morse!$A$2:$B$37,2,FALSE),"") -> · − − − · − · · ·
A9: 8 | B9: Augsburg | C9: DME | D9: 2 | E9: 1 | F9: 0 | G9: AUG | H9: 115.9 | I9: 106x | K9: 48 | L9: 25 | M9: 27 | N9: N | O9: 10 | P9: 55 | Q9: 59 | R9: E | S9: 25 | T9: 48.4242 | U9: 10.9331 | V9: 48.4242 | W9: 10.9331 | X9: 115.90 | Z9: =VLOOKUP(MID(G9,1,1),Morse!$A$2:$B$37,2,FALSE)&" "&VLOOKUP(MID(G9,2,1),Morse!$A$2:$B$37,2,FALSE)&IF(LEN(G9)>2," "&VLOOKUP(MID(G9,3,1),Morse!$A$2:$B$37,2,FALSE),"")&IF(LEN(G9)>3," "&VLOOKUP(MID(G9,4,1),Morse!$A$2:$B$37,2,FALSE),"") -> · − · · − − − · | AA9: Ch 106x
A10: 9 | B10: Barmen | C10: DVOR/DME | D10: 1 | E10: 1 | F10: 0 | G10: BAM | H10: 113.6 | I10: 83x | K10: 51 | L10: 19 | M10: 40 | N10: N | O10: 7 | P10: 10 | Q10: 37 | R10: E | S10: 40 | T10: 51.3278 | U10: 7.1769 | V10: 51.3278 | W10: 7.1769 | X10: 113.60 | Z10: =VLOOKUP(MID(G10,1,1),Morse!$A$2:$B$37,2,FALSE)&" "&VLOOKUP(MID(G10,2,1),Morse!$A$2:$B$37,2,FALSE)&IF(LEN(G10)>2," "&VLOOKUP(MID(G10,3,1),Morse!$A$2:$B$37,2,FALSE),"")&IF(LEN(G10)>3," "&VLOOKUP(MID(G10,4,1),Morse!$A$2:$B$37,2,FALSE),"") -> − · · · · − − − | AA10: Ch 83x
A11: 10 | B11: Bayreuth | C11: VOR | D11: 1 | E11: 0 | F11: 0 | G11: BAY | H11: 110.6 | K11: 49 | L11: 59 | M11: 7 | N11: N | O11: 11 | P11: 38 | Q11: 12 | R11: E | S11: 40 | T11: 49.9853 | U11: 11.6367 | V11: 49.9853 | W11: 11.6367 | X11: 110.60 | Z11: =VLOOKUP(MID(G11,1,1),Morse!$A$2:$B$37,2,FALSE)&" "&VLOOKUP(MID(G11,2,1),Morse!$A$2:$B$37,2,FALSE)&IF(LEN(G11)>2," "&VLOOKUP(MID(G11,3,1),Morse!$A$2:$B$37,2,FALSE),"")&IF(LEN(G11)>3," "&VLOOKUP(MID(G11,4,1),Morse!$A$2:$B$37,2,FALSE),"") -> − · · · · − − · − −
A12: 11 | B12: Berlin-Brandenburg | C12: DVOR/DME | D12: 1 | E12: 1 | F12: 0 | G12: BBI | H12: 114.1 | I12: 88x | K12: 52 | L12: 20 | M12: 31 | N12: N | O12: 13 | P12: 27 | Q12: 15 | R12: E | S12: 80 | T12: 52.3419 | U12: 13.4542 | V12: 52.3419 | W12: 13.4542 | X12: 114.10 | Z12: =VLOOKUP(MID(G12,1,1),Morse!$A$2:$B$37,2,FALSE)&" "&VLOOKUP(MID(G12,2,1),Morse!$A$2:$B$37,2,FALSE)&IF(LEN(G12)>2," "&VLOOKUP(MID(G12,3,1),Morse!$A$2:$B$37,2,FALSE),"")&IF(LEN(G12)>3," "&VLOOKUP(MID(G12,4,1),Morse!$A$2:$B$37,2,FALSE),"") -> − · · · − · · · · · | AA12: Ch 88x
A13: 12 | B13: Berlin/Schoenefeld | C13: DME | D13: 1 | E13: 1 | F13: 0 | G13: SDD | H13: 114.4 | I13: 91x | K13: 52 | L13: 22 | M13: 28 | N13: N | O13: 13 | P13: 30 | Q13: 13 | R13: E | S13: 25 | T13: 52.3744 | U13: 13.5036 | V13: 52.3744 | W13: 13.5036 | X13: 114.40 | Z13: =VLOOKUP(MID(G13,1,1),Morse!$A$2:$B$37,2,FALSE)&" "&VLOOKUP(MID(G13,2,1),Morse!$A$2:$B$37,2,FALSE)&IF(LEN(G13)>2," "&VLOOKUP(MID(G13,3,1),Morse!$A$2:$B$37,2,FALSE),"")&IF(LEN(G13)>3," "&VLOOKUP(MID(G13,4,1),Morse!$A$2:$B$37,2,FALSE),"") -> · · · − · · − · · | AA13: Ch 91x
A14: 13 | B14: Berlin/Schoenefeld | C14: LO | D14: 0 | E14: 0 | F14: 1 | G14: SL | J14: 299 | K14: 52 | L14: 24 | M14: 1 | N14: N | O14: 13 | P14: 37 | Q14: 21 | R14: E | S14: 15 | T14: 52.4003 | U14: 13.6225 | V14: 52.4003 | W14: 13.6225 | Y14: 299 | Z14: =VLOOKUP(MID(G14,1,1),Morse!$A$2:$B$37,2,FALSE)&" "&VLOOKUP(MID(G14,2,1),Morse!$A$2:$B$37,2,FALSE)&IF(LEN(G14)>2," "&VLOOKUP(MID(G14,3,1),Morse!$A$2:$B$37,2,FALSE),"")&IF(LEN(G14)>3," "&VLOOKUP(MID(G14,4,1),Morse!$A$2:$B$37,2,FALSE),"") -> · · · · − · ·
A15: 14 | B15: Berlin/Schoenefeld | C15: LO | D15: 0 | E15: 0 | F15: 1 | G15: MW | J15: 309 | K15: 52 | L15: 20 | M15: 40 | N15: N | O15: 13 | P15: 23 | Q15: 15 | R15: E | S15: 10 | T15: 52.3444 | U15: 13.3875 | V15: =LEFT(T15,2)&"."&RIGHT(TEXT(T15,"00,0000"),4) -> 52.3444 | W15: =LEFT(U15,IF(U15<10,1,2))&"."&RIGHT(TEXT(U15,"00,0000"),4) -> 13.3875 | Y15: 309 | Z15: =VLOOKUP(MID(G15,1,1),Morse!$A$2:$B$37,2,FALSE)&" "&VLOOKUP(MID(G15,2,1),Morse!$A$2:$B$37,2,FALSE)&IF(LEN(G15)>2," "&VLOOKUP(MID(G15,3,1),Morse!$A$2:$B$37,2,FALSE),"")&IF(LEN(G15)>3," "&VLOOKUP(MID(G15,4,1),Morse!$A$2:$B$37,2,FALSE),"") -> − − · − −
A16: 15 | B16: Berlin-Tegel | C16: DVOR/DME | D16: 2 | E16: 2 | F16: 0 | G16: TGL | H16: 112.3 | I16: 70x | K16: 52 | L16: 33 | M16: 41 | N16: N | O16: 13 | P16: 17 | Q16: 15 | R16: E | S16: 80 | T16: 52.5614 | U16: 13.2875 | V16: 52.5614 | W16: 13.2875 | X16: 112.30 | Z16: =VLOOKUP(MID(G16,1,1),Morse!$A$2:$B$37,2,FALSE)&" "&VLOOKUP(MID(G16,2,1),Morse!$A$2:$B$37,2,FALSE)&IF(LEN(G16)>2," "&VLOOKUP(MID(G16,3,1),Morse!$A$2:$B$37,2,FALSE),"")&IF(LEN(G16)>3," "&VLOOKUP(MID(G16,4,1),Morse!$A$2:$B$37,2,FALSE),"") -> − − − · · − · · | AA16: Ch 70x
A17: 16 | B17: (Tegel-West) | C17: NDB | D17: 0 | E17: 0 | F17: 1 | G17: RW | J17: 392 | K17: 52 | L17: 32 | M17: 42 | N17: N | O17: 13 | P17: 9 | Q17: 4 | R17: E | S17: 21 | T17: 52.545 | U17: 13.1511 | V17: 52.5450 | W17: 13.1511 | Y17: 392 | Z17: =VLOOKUP(MID(G17,1,1),Morse!$A$2:$B$37,2,FALSE)&" "&VLOOKUP(MID(G17,2,1),Morse!$A$2:$B$37,2,FALSE)&IF(LEN(G17)>2," "&VLOOKUP(MID(G17,3,1),Morse!$A$2:$B$37,2,FALSE),"")&IF(LEN(G17)>3," "&VLOOKUP(MID(G17,4,1),Morse!$A$2:$B$37,2,FALSE),"") -> · − · · − −
A18: 17 | B18: (Tegel-East) | C18: NDB | D18: 0 | E18: 0 | F18: 1 | G18: GL | J18: 321 | K18: 52 | L18: 34 | M18: 20 | N18: N | O18: 13 | P18: 25 | Q18: 34 | R18: E | S18: 24 | T18: 52.5722 | U18: 13.4261 | V18: 52.5722 | W18: 13.4261 | Y18: 321 | Z18: =VLOOKUP(MID(G18,1,1),Morse!$A$2:$B$37,2,FALSE)&" "&VLOOKUP(MID(G18,2,1),Morse!$A$2:$B$37,2,FALSE)&IF(LEN(G18)>2," "&VLOOKUP(MID(G18,3,1),Morse!$A$2:$B$37,2,FALSE),"")&IF(LEN(G18)>3," "&VLOOKUP(MID(G18,4,1),Morse!$A$2:$B$37,2,FALSE),"") -> − − · · − · ·
A19: 18 | B19: Bottrop | C19: NDB | D19: 0 | E19: 0 | F19: 1 | G19: BOT | J19: 406.5 | K19: 51 | L19: 35 | M19: 9 | N19: N | O19: 7 | P19: 1 | Q19: 23 | R19: E | S19: 17 | T19: 51.5858 | U19: 7.0231 | V19: 51.5858 | W19: 7.0231 | Y19: 406.5 | Z19: =VLOOKUP(MID(G19,1,1),Morse!$A$2:$B$37,2,FALSE)&" "&VLOOKUP(MID(G19,2,1),Morse!$A$2:$B$37,2,FALSE)&IF(LEN(G19)>2," "&VLOOKUP(MID(G19,3,1),Morse!$A$2:$B$37,2,FALSE),"")&IF(LEN(G19)>3," "&VLOOKUP(MID(G19,4,1),Morse!$A$2:$B$37,2,FALSE),"") -> − · · · − − − −
A20: 19 | B20: Braunschweig-Wolfsburg | C20: NDB | D20: 0 | E20: 0 | F20: 1 | G20: BRU | J20: 427 | K20: 52 | L20: 19 | M20: 20 | N20: N | O20: 10 | P20: 36 | Q20: 22 | R20: E | S20: 20 | T20: 52.3222 | U20: 10.6061 | V20: 52.3222 | W20: 10.6061 | Y20: 427 | Z20: =VLOOKUP(MID(G20,1,1),Morse!$A$2:$B$37,2,FALSE)&" "&VLOOKUP(MID(G20,2,1),Morse!$A$2:$B$37,2,FALSE)&IF(LEN(G20)>2," "&VLOOKUP(MID(G20,3,1),Morse!$A$2:$B$37,2,FALSE),"")&IF(LEN(G20)>3," "&VLOOKUP(MID(G20,4,1),Morse!$A$2:$B$37,2,FALSE),"") -> − · · · · − · · · −
A21: 20 | B21: Braunschweig | C21: DME | D21: 1 | E21: 1 | F21: 0 | G21: BWG | H21: 111.1 | I21: 48x | K21: 52 | L21: 19 | M21: 16 | N21: N | O21: 10 | P21: 34 | Q21: 16 | R21: E | S21: 0 | T21: 52.3211 | U21: 10.5711 | V21: 52.3211 | W21: 10.5711 | X21: 111.10 | Z21: =VLOOKUP(MID(G21,1,1),Morse!$A$2:$B$37,2,FALSE)&" "&VLOOKUP(MID(G21,2,1),Morse!$A$2:$B$37,2,FALSE)&IF(LEN(G21)>2," "&VLOOKUP(MID(G21,3,1),Morse!$A$2:$B$37,2,FALSE),"")&IF(LEN(G21)>3," "&VLOOKUP(MID(G21,4,1),Morse!$A$2:$B$37,2,FALSE),"") -> − · · · · − − − − · | AA21: Ch 48x
A22: 21 | B22: Bremen | C22: NDB | D22: 0 | E22: 0 | F22: 2 | G22: HIG | J22: 318 | K22: 53 | L22: 2 | M22: 58 | N22: N | O22: 8 | P22: 54 | Q22: 32 | R22: E | S22: 20 | T22: 53.0494 | U22: 8.9089 | V22: 53.0494 | W22: 8.9089 | Y22: 318 | Z22: =VLOOKUP(MID(G22,1,1),Morse!$A$2:$B$37,2,FALSE)&" "&VLOOKUP(MID(G22,2,1),Morse!$A$2:$B$37,2,FALSE)&IF(LEN(G22)>2," "&VLOOKUP(MID(G22,3,1),Morse!$A$2:$B$37,2,FALSE),"")&IF(LEN(G22)>3," "&VLOOKUP(MID(G22,4,1),Morse!$A$2:$B$37,2,FALSE),"") -> · · · · · · − − ·
A23: 22 | B23: Bremen | C23: DVOR/DME | D23: 1 | E23: 1 | F23: 0 | G23: BMN | H23: 117.45 | I23: 121y | K23: 53 | L23: 2 | M23: 47 | N23: N | O23: 8 | P23: 45 | Q23: 38 | R23: E | S23: 50 | T23: 53.0464 | U23: 8.7606 | V23: 53.0464 | W23: 8.7606 | X23: 117.45 | Z23: =VLOOKUP(MID(G23,1,1),Morse!$A$2:$B$37,2,FALSE)&" "&VLOOKUP(MID(G23,2,1),Morse!$A$2:$B$37,2,FALSE)&IF(LEN(G23)>2," "&VLOOKUP(MID(G23,3,1),Morse!$A$2:$B$37,2,FALSE),"")&IF(LEN(G23)>3," "&VLOOKUP(MID(G23,4,1),Morse!$A$2:$B$37,2,FALSE),"") -> − · · · − − − · | AA23: Ch 121y
A24: 23 | B24: Bremen | C24: DME | D24: 1 | E24: 1 | F24: 0 | G24: BND | H24: 113.65 | I24: 83y | K24: 53 | L24: 2 | M24: 39 | N24: N | O24: 8 | P24: 46 | Q24: 56 | R24: E | S24: 25 | T24: 53.0442 | U24: 8.7822 | V24: 53.0442 | W24: 8.7822 | X24: 113.65 | Z24: =VLOOKUP(MID(G24,1,1),Morse!$A$2:$B$37,2,FALSE)&" "&VLOOKUP(MID(G24,2,1),Morse!$A$2:$B$37,2,FALSE)&IF(LEN(G24)>2," "&VLOOKUP(MID(G24,3,1),Morse!$A$2:$B$37,2,FALSE),"")&IF(LEN(G24)>3," "&VLOOKUP(MID(G24,4,1),Morse!$A$2:$B$37,2,FALSE),"") -> − · · · − · − · · | AA24: Ch 83y
A25: 24 | B25: Bruenkendorf | C25: DVOR/DME | D25: 1 | E25: 1 | F25: 0 | G25: BKD | H25: 117.7 | I25: 124x | K25: 53 | L25: 2 | M25: 4 | N25: N | O25: 11 | P25: 32 | Q25: 46 | R25: E | S25: 80 | T25: 53.0344 | U25: 11.5461 | V25: 53.0344 | W25: 11.5461 | X25: 117.70 | Z25: =VLOOKUP(MID(G25,1,1),Morse!$A$2:$B$37,2,FALSE)&" "&VLOOKUP(MID(G25,2,1),Morse!$A$2:$B$37,2,FALSE)&IF(LEN(G25)>2," "&VLOOKUP(MID(G25,3,1),Morse!$A$2:$B$37,2,FALSE),"")&IF(LEN(G25)>3," "&VLOOKUP(MID(G25,4,1),Morse!$A$2:$B$37,2,FALSE),"") -> − · · · − · − − · · | AA25: Ch 124x
A26: 25 | B26: Bueckeburg | C26: NDB | D26: 0 | E26: 0 | F26: 1 | G26: BYC | J26: 368 | K26: 52 | L26: 17 | M26: 28 | N26: N | O26: 9 | P26: 5 | Q26: 28 | R26: E | S26: 25 | T26: 52.2911 | U26: 9.0911 | V26: 52.2911 | W26: 9.0911 | Y26: 368 | Z26: =VLOOKUP(MID(G26,1,1),Morse!$A$2:$B$37,2,FALSE)&" "&VLOOKUP(MID(G26,2,1),Morse!$A$2:$B$37,2,FALSE)&IF(LEN(G26)>2," "&VLOOKUP(MID(G26,3,1),Morse!$A$2:$B$37,2,FALSE),"")&IF(LEN(G26)>3," "&VLOOKUP(MID(G26,4,1),Morse!$A$2:$B$37,2,FALSE),"") -> − · · · − · − − − · − ·
A27: 26 | B27: Celle | C27: NDB | D27: 0 | E27: 0 | F27: 3 | G27: CEL | J27: 311 | K27: 52 | L27: 35 | M27: 23 | N27: N | O27: 10 | P27: 1 | Q27: 46 | R27: E | S27: 25 | T27: 52.5897 | U27: 10.0294 | V27: 52.5897 | W27: 10.0294 | Y27: 311 | Z27: =VLOOKUP(MID(G27,1,1),Morse!$A$2:$B$37,2,FALSE)&" "&VLOOKUP(MID(G27,2,1),Morse!$A$2:$B$37,2,FALSE)&IF(LEN(G27)>2," "&VLOOKUP(MID(G27,3,1),Morse!$A$2:$B$37,2,FALSE),"")&IF(LEN(G27)>3," "&VLOOKUP(MID(G27,4,1),Morse!$A$2:$B$37,2,FALSE),"") -> − · − · · · − · ·
A28: 27 | B28: Charlie | C28: VOR | D28: 2 | E28: 0 | F28: 0 | G28: CHA | H28: 115.5 | K28: 49 | L28: 55 | M28: 16 | N28: N | O28: 9 | P28: 2 | Q28: 23 | R28: E | S28: 60 | T28: 49.9211 | U28: 9.0397 | V28: 49.9211 | W28: 9.0397 | X28: 115.50 | Z28: =VLOOKUP(MID(G28,1,1),Morse!$A$2:$B$37,2,FALSE)&" "&VLOOKUP(MID(G28,2,1),Morse!$A$2:$B$37,2,FALSE)&IF(LEN(G28)>2," "&VLOOKUP(MID(G28,3,1),Morse!$A$2:$B$37,2,FALSE),"")&IF(LEN(G28)>3," "&VLOOKUP(MID(G28,4,1),Morse!$A$2:$B$37,2,FALSE),"") -> − · − · · · · · · −
A29: 28 | B29: Cochstedt | C29: DME | D29: 1 | E29: 1 | F29: 0 | G29: COD | H29: 113.35 | I29: 80y | K29: 51 | L29: 51 | M29: 14 | N29: N | O29: 11 | P29: 25 | Q29: 24 | R29: E | S29: 25 | T29: 51.8539 | U29: 11.4233 | V29: 51.8539 | W29: 11.4233 | X29: 113.35 | Z29: =VLOOKUP(MID(G29,1,1),Morse!$A$2:$B$37,2,FALSE)&" "&VLOOKUP(MID(G29,2,1),Morse!$A$2:$B$37,2,FALSE)&IF(LEN(G29)>2," "&VLOOKUP(MID(G29,3,1),Morse!$A$2:$B$37,2,FALSE),"")&IF(LEN(G29)>3," "&VLOOKUP(MID(G29,4,1),Morse!$A$2:$B$37,2,FALSE),"") -> − · − · − − − − · · | AA29: Ch 80y
A30: 29 | B30: Cochstedt | C30: NDB | D30: 0 | E30: 0 | F30: 2 | G30: CB | J30: 344 | K30: 51 | L30: 51 | M30: 37 | N30: N | O30: 11 | P30: 27 | Q30: 2 | R30: E | S30: 0 | T30: 51.8603 | U30: 11.4506 | V30: 51.8603 | W30: 11.4506 | Y30: 344 | Z30: =VLOOKUP(MID(G30,1,1),Morse!$A$2:$B$37,2,FALSE)&" "&VLOOKUP(MID(G30,2,1),Morse!$A$2:$B$37,2,FALSE)&IF(LEN(G30)>2," "&VLOOKUP(MID(G30,3,1),Morse!$A$2:$B$37,2,FALSE),"")&IF(LEN(G30)>3," "&VLOOKUP(MID(G30,4,1),Morse!$A$2:$B$37,2,FALSE),"") -> − · − · − · · ·
A31: 30 | B31: Cola | C31: DVOR/DME | D31: 1 | E31: 1 | F31: 0 | G31: COL | H31: 108.8 | I31: 25x | K31: 50 | L31: 47 | M31: 1 | N31: N | O31: 7 | P31: 35 | Q31: 39 | R31: E | S31: 40 | T31: 50.7836 | U31: 7.5942 | V31: 50.7836 | W31: 7.5942 | X31: 108.80 | Z31: =VLOOKUP(MID(G31,1,1),Morse!$A$2:$B$37,2,FALSE)&" "&VLOOKUP(MID(G31,2,1),Morse!$A$2:$B$37,2,FALSE)&IF(LEN(G31)>2," "&VLOOKUP(MID(G31,3,1),Morse!$A$2:$B$37,2,FALSE),"")&IF(LEN(G31)>3," "&VLOOKUP(MID(G31,4,1),Morse!$A$2:$B$37,2,FALSE),"") -> − · − · − − − · − · · | AA31: Ch 25x
A32: 31 | B32: Cottbus-Drewitz | C32: NDB | D32: 0 | E32: 0 | F32: 1 | G32: DRW | J32: 355 | K32: 51 | L32: 53 | M32: 48 | N32: N | O32: 14 | P32: 33 | Q32: 45 | R32: E | S32: 12 | T32: 51.8967 | U32: 14.5625 | V32: 51.8967 | W32: 14.5625 | Y32: 355 | Z32: =VLOOKUP(MID(G32,1,1),Morse!$A$2:$B$37,2,FALSE)&" "&VLOOKUP(MID(G32,2,1),Morse!$A$2:$B$37,2,FALSE)&IF(LEN(G32)>2," "&VLOOKUP(MID(G32,3,1),Morse!$A$2:$B$37,2,FALSE),"")&IF(LEN(G32)>3," "&VLOOKUP(MID(G32,4,1),Morse!$A$2:$B$37,2,FALSE),"") -> − · · · − · · − −
A33: 32 | B33: Cottbus-Drewitz | C33: DME | D33: 2 | E33: 1 | F33: 0 | G33: CDD | H33: 113.7 | I33: CH84x (*) | K33: 51 | L33: 53 | M33: 16 | N33: N | O33: 14 | P33: 31 | Q33: 59 | R33: E | S33: 25 | T33: 51.8878 | U33: 14.5331 | V33: 51.8878 | W33: 14.5331 | X33: 113.70 | Z33: =VLOOKUP(MID(G33,1,1),Morse!$A$2:$B$37,2,FALSE)&" "&VLOOKUP(MID(G33,2,1),Morse!$A$2:$B$37,2,FALSE)&IF(LEN(G33)>2," "&VLOOKUP(MID(G33,3,1),Morse!$A$2:$B$37,2,FALSE),"")&IF(LEN(G33)>3," "&VLOOKUP(MID(G33,4,1),Morse!$A$2:$B$37,2,FALSE),"") -> − · − · − · · − · · | AA33: Ch CH84x (*)
A34: 33 | B34: Diepholz | C34: NDB | D34: 0 | E34: 0 | F34: 1 | G34: DP | J34: 325 | K34: 52 | L34: 35 | M34: 30 | N34: N | O34: 8 | P34: 27 | Q34: 12 | R34: E | S34: 35 | T34: 52.5917 | U34: 8.4533 | V34: 52.5917 | W34: 8.4533 | Y34: 325 | Z34: =VLOOKUP(MID(G34,1,1),Morse!$A$2:$B$37,2,FALSE)&" "&VLOOKUP(MID(G34,2,1),Morse!$A$2:$B$37,2,FALSE)&IF(LEN(G34)>2," "&VLOOKUP(MID(G34,3,1),Morse!$A$2:$B$37,2,FALSE),"")&IF(LEN(G34)>3," "&VLOOKUP(MID(G34,4,1),Morse!$A$2:$B$37,2,FALSE),"") -> − · · · − − ·
A35: 34 | B35: Dinkelsbuehl | C35: DVORTAC | D35: 1 | E35: 1 | F35: 0 | G35: DKB | H35: 117.8 | I35: 125x | K35: 49 | L35: 8 | M35: 34 | N35: N | O35: 10 | P35: 14 | Q35: 18 | R35: E | S35: 60 | T35: 49.1428 | U35: 10.2383 | V35: 49.1428 | W35: 10.2383 | X35: 117.80 | Z35: =VLOOKUP(MID(G35,1,1),Morse!$A$2:$B$37,2,FALSE)&" "&VLOOKUP(MID(G35,2,1),Morse!$A$2:$B$37,2,FALSE)&IF(LEN(G35)>2," "&VLOOKUP(MID(G35,3,1),Morse!$A$2:$B$37,2,FALSE),"")&IF(LEN(G35)>3," "&VLOOKUP(MID(G35,4,1),Morse!$A$2:$B$37,2,FALSE),"") -> − · · − · − − · · · | AA35: Ch 125x
A36: 35 | B36: Dortmund-Wickede | C36: NDB | D36: 0 | E36: 0 | F36: 2 | G36: DWI | J36: 357 | K36: 51 | L36: 31 | M36: 34 | N36: N | O36: 7 | P36: 38 | Q36: 4 | R36: E | S36: 25 | T36: 51.5261 | U36: 7.6344 | V36: 51.5261 | W36: 7.6344 | Y36: 357 | Z36: =VLOOKUP(MID(G36,1,1),Morse!$A$2:$B$37,2,FALSE)&" "&VLOOKUP(MID(G36,2,1),Morse!$A$2:$B$37,2,FALSE)&IF(LEN(G36)>2," "&VLOOKUP(MID(G36,3,1),Morse!$A$2:$B$37,2,FALSE),"")&IF(LEN(G36)>3," "&VLOOKUP(MID(G36,4,1),Morse!$A$2:$B$37,2,FALSE),"") -> − · · · − − · ·
A37: 36 | B37: Dresden | C37: DVOR/DME | D37: 1 | E37: 1 | F37: 0 | G37: DRN | H37: 114.35 | I37: 90y | K37: 51 | L37: 0 | M37: 56 | N37: N | O37: 13 | P37: 35 | Q37: 56 | R37: E | S37: 60 | T37: 51.0156 | U37: 13.5989 | V37: 51.0156 | W37: 13.5989 | X37: 114.35 | Z37: =VLOOKUP(MID(G37,1,1),Morse!$A$2:$B$37,2,FALSE)&" "&VLOOKUP(MID(G37,2,1),Morse!$A$2:$B$37,2,FALSE)&IF(LEN(G37)>2," "&VLOOKUP(MID(G37,3,1),Morse!$A$2:$B$37,2,FALSE),"")&IF(LEN(G37)>3," "&VLOOKUP(MID(G37,4,1),Morse!$A$2:$B$37,2,FALSE),"") -> − · · · − · − · | AA37: Ch 90y
A38: 37 | B38: Dresden | C38: LO | D38: 0 | E38: 0 | F38: 1 | G38: FS | J38: 374 | K38: 51 | L38: 11 | M38: 35 | N38: N | O38: 13 | P38: 1 | Q38: 0 | R38: E | S38: 15 | T38: 51.1931 | U38: 13.0167 | V38: 51.1931 | W38: 13.0167 | Y38: 374 | Z38: =VLOOKUP(MID(G38,1,1),Morse!$A$2:$B$37,2,FALSE)&" "&VLOOKUP(MID(G38,2,1),Morse!$A$2:$B$37,2,FALSE)&IF(LEN(G38)>2," "&VLOOKUP(MID(G38,3,1),Morse!$A$2:$B$37,2,FALSE),"")&IF(LEN(G38)>3," "&VLOOKUP(MID(G38,4,1),Morse!$A$2:$B$37,2,FALSE),"") -> · · − · · · ·
A39: 38 | B39: Duesseldorf | C39: VOR/DME | D39: 2 | E39: 2 | F39: 0 | G39: DUS | H39: 115.15 | I39: 98y | K39: 51 | L39: 16 | M39: 59 | N39: N | O39: 6 | P39: 45 | Q39: 13 | R39: E | S39: 40 | T39: 51.2831 | U39: 6.7536 | V39: 51.2831 | W39: 6.7536 | X39: 115.15 | Z39: =VLOOKUP(MID(G39,1,1),Morse!$A$2:$B$37,2,FALSE)&" "&VLOOKUP(MID(G39,2,1),Morse!$A$2:$B$37,2,FALSE)&IF(LEN(G39)>2," "&VLOOKUP(MID(G39,3,1),Morse!$A$2:$B$37,2,FALSE),"")&IF(LEN(G39)>3," "&VLOOKUP(MID(G39,4,1),Morse!$A$2:$B$37,2,FALSE),"") -> − · · · · − · · · | AA39: Ch 98y
A40: 39 | B40: Duesseldorf | C40: LO | D40: 0 | E40: 0 | F40: 1 | G40: LI | J40: 417 | K40: 51 | L40: 20 | M40: 49 | N40: N | O40: 6 | P40: 53 | Q40: 29 | R40: E | S40: 25 | T40: 51.3469 | U40: 6.8914 | V40: 51.3469 | W40: 6.8914 | Y40: 417 | Z40: =VLOOKUP(MID(G40,1,1),Morse!$A$2:$B$37,2,FALSE)&" "&VLOOKUP(MID(G40,2,1),Morse!$A$2:$B$37,2,FALSE)&IF(LEN(G40)>2," "&VLOOKUP(MID(G40,3,1),Morse!$A$2:$B$37,2,FALSE),"")&IF(LEN(G40)>3," "&VLOOKUP(MID(G40,4,1),Morse!$A$2:$B$37,2,FALSE),"") -> · − · · · ·
A41: 40 | B41: Duesseldorf | C41: LO | D41: 0 | E41: 0 | F41: 1 | G41: DY | J41: 284.5 | K41: 51 | L41: 14 | M41: 4 | N41: N | O41: 6 | P41: 39 | Q41: 16 | R41: E | S41: 13 | T41: 51.2344 | U41: 6.6544 | V41: 51.2344 | W41: 6.6544 | Y41: 284.5 | Z41: =VLOOKUP(MID(G41,1,1),Morse!$A$2:$B$37,2,FALSE)&" "&VLOOKUP(MID(G41,2,1),Morse!$A$2:$B$37,2,FALSE)&IF(LEN(G41)>2," "&VLOOKUP(MID(G41,3,1),Morse!$A$2:$B$37,2,FALSE),"")&IF(LEN(G41)>3," "&VLOOKUP(MID(G41,4,1),Morse!$A$2:$B$37,2,FALSE),"") -> − · · − · − −
A42: 41 | B42: Elbe | C42: VOR/DME | D42: 1 | E42: 1 | F42: 0 | G42: LBV | H42: 115.1 | I42: 98x | K42: 53 | L42: 39 | M42: 9 | N42: N | O42: 9 | P42: 34 | Q42: 46 | R42: E | S42: 60 | T42: 53.6525 | U42: 9.5794 | V42: 53.6525 | W42: 9.5794 | X42: 115.10 | Z42: =VLOOKUP(MID(G42,1,1),Morse!$A$2:$B$37,2,FALSE)&" "&VLOOKUP(MID(G42,2,1),Morse!$A$2:$B$37,2,FALSE)&IF(LEN(G42)>2," "&VLOOKUP(MID(G42,3,1),Morse!$A$2:$B$37,2,FALSE),"")&IF(LEN(G42)>3," "&VLOOKUP(MID(G42,4,1),Morse!$A$2:$B$37,2,FALSE),"") -> · − · · − · · · · · · − | AA42: Ch 98x
A43: 42 | B43: Erfurt | C43: DME | D43: 1 | E43: 1 | F43: 0 | G43: EFD | H43: 112.05 | I43: 57y (*) | K43: 50 | L43: 58 | M43: 57 | N43: N | O43: 10 | P43: 57 | Q43: 28 | R43: E | S43: 25 | T43: 50.9825 | U43: 10.9578 | V43: 50.9825 | W43: 10.9578 | X43: 112.05 | Z43: =VLOOKUP(MID(G43,1,1),Morse!$A$2:$B$37,2,FALSE)&" "&VLOOKUP(MID(G43,2,1),Morse!$A$2:$B$37,2,FALSE)&IF(LEN(G43)>2," "&VLOOKUP(MID(G43,3,1),Morse!$A$2:$B$37,2,FALSE),"")&IF(LEN(G43)>3," "&VLOOKUP(MID(G43,4,1),Morse!$A$2:$B$37,2,FALSE),"") -> · · · − · − · · | AA43: Ch 57y (*)
A44: 43 | B44: Erfurt | C44: DVOR/DME | D44: 1 | E44: 1 | F44: 0 | G44: ERF | H44: 113.85 | I44: 85y | K44: 50 | L44: 57 | M44: 3 | N44: N | O44: 11 | P44: 14 | Q44: 12 | R44: E | S44: 40 | T44: 50.9508 | U44: 11.2367 | V44: 50.9508 | W44: 11.2367 | X44: 113.85 | Z44: =VLOOKUP(MID(G44,1,1),Morse!$A$2:$B$37,2,FALSE)&" "&VLOOKUP(MID(G44,2,1),Morse!$A$2:$B$37,2,FALSE)&IF(LEN(G44)>2," "&VLOOKUP(MID(G44,3,1),Morse!$A$2:$B$37,2,FALSE),"")&IF(LEN(G44)>3," "&VLOOKUP(MID(G44,4,1),Morse!$A$2:$B$37,2,FALSE),"") -> · · − · · · − · | AA44: Ch 85y
A45: 44 | B45: Erfurt | C45: NDB (LO) | D45: 0 | E45: 0 | F45: 1 | G45: ERT | J45: 425 | K45: 50 | L45: 58 | M45: 57 | N45: N | O45: 10 | P45: 55 | Q45: 23 | R45: E | S45: 35 | T45: 50.9825 | U45: 10.9231 | V45: 50.9825 | W45: 10.9231 | Y45: 425 | Z45: =VLOOKUP(MID(G45,1,1),Morse!$A$2:$B$37,2,FALSE)&" "&VLOOKUP(MID(G45,2,1),Morse!$A$2:$B$37,2,FALSE)&IF(LEN(G45)>2," "&VLOOKUP(MID(G45,3,1),Morse!$A$2:$B$37,2,FALSE),"")&IF(LEN(G45)>3," "&VLOOKUP(MID(G45,4,1),Morse!$A$2:$B$37,2,FALSE),"") -> · · − · −
A46: 45 | B46: Erlangen | C46: VOR/DME | D46: 1 | E46: 1 | F46: 0 | G46: ERL | H46: 114.9 | I46: 96x | K46: 49 | L46: 39 | M46: 19 | N46: N | O46: 11 | P46: 9 | Q46: 3 | R46: E | S46: 60 | T46: 49.6553 | U46: 11.1508 | V46: 49.6553 | W46: 11.1508 | X46: 114.90 | Z46: =VLOOKUP(MID(G46,1,1),Morse!$A$2:$B$37,2,FALSE)&" "&VLOOKUP(MID(G46,2,1),Morse!$A$2:$B$37,2,FALSE)&IF(LEN(G46)>2," "&VLOOKUP(MID(G46,3,1),Morse!$A$2:$B$37,2,FALSE),"")&IF(LEN(G46)>3," "&VLOOKUP(MID(G46,4,1),Morse!$A$2:$B$37,2,FALSE),"") -> · · − · · − · · | AA46: Ch 96x
A47: 46 | B47: Faßberg | C47: NDB | D47: 0 | E47: 0 | F47: 1 | G47: FSB | J47: 284 | K47: 52 | L47: 54 | M47: 56 | N47: N | O47: 10 | P47: 11 | Q47: 17 | R47: E | S47: 30 | T47: 52.9156 | U47: 10.1881 | V47: 52.9156 | W47: 10.1881 | Y47: 284 | Z47: =VLOOKUP(MID(G47,1,1),Morse!$A$2:$B$37,2,FALSE)&" "&VLOOKUP(MID(G47,2,1),Morse!$A$2:$B$37,2,FALSE)&IF(LEN(G47)>2," "&VLOOKUP(MID(G47,3,1),Morse!$A$2:$B$37,2,FALSE),"")&IF(LEN(G47)>3," "&VLOOKUP(MID(G47,4,1),Morse!$A$2:$B$37,2,FALSE),"") -> · · − · · · · − · · ·
A48: 47 | B48: Frankfurt (Main) | C48: DVORTAC | D48: 1 | E48: 1 | F48: 0 | G48: FFM | H48: 114.2 | I48: 89x | K48: 50 | L48: 3 | M48: 13 | N48: N | O48: 8 | P48: 38 | Q48: 14 | R48: E | S48: 50 | T48: 50.0536 | U48: 8.6372 | V48: 50.0536 | W48: 8.6372 | X48: 114.20 | Z48: =VLOOKUP(MID(G48,1,1),Morse!$A$2:$B$37,2,FALSE)&" "&VLOOKUP(MID(G48,2,1),Morse!$A$2:$B$37,2,FALSE)&IF(LEN(G48)>2," "&VLOOKUP(MID(G48,3,1),Morse!$A$2:$B$37,2,FALSE),"")&IF(LEN(G48)>3," "&VLOOKUP(MID(G48,4,1),Morse!$A$2:$B$37,2,FALSE),"") -> · · − · · · − · − − | AA48: Ch 89x
A49: 48 | B49: Frankfurt (Main) | C49: LO | D49: 0 | E49: 0 | F49: 1 | G49: FR | J49: 297 | K49: 50 | L49: 3 | M49: 57 | N49: N | O49: 8 | P49: 41 | Q49: 1 | R49: E | S49: 10 | T49: 50.0658 | U49: 8.6836 | V49: 50.0658 | W49: 8.6836 | Y49: 297 | Z49: =VLOOKUP(MID(G49,1,1),Morse!$A$2:$B$37,2,FALSE)&" "&VLOOKUP(MID(G49,2,1),Morse!$A$2:$B$37,2,FALSE)&IF(LEN(G49)>2," "&VLOOKUP(MID(G49,3,1),Morse!$A$2:$B$37,2,FALSE),"")&IF(LEN(G49)>3," "&VLOOKUP(MID(G49,4,1),Morse!$A$2:$B$37,2,FALSE),"") -> · · − · · − ·
A50: 49 | B50: Frankfurt (Main) | C50: LO | D50: 0 | E50: 0 | F50: 1 | G50: FW | J50: 382 | K50: 50 | L50: 0 | M50: 18 | N50: N | O50: 8 | P50: 25 | Q50: 46 | R50: E | S50: 15 | T50: 50.005 | U50: 8.4294 | V50: 50.0050 | W50: 8.4294 | Y50: 382 | Z50: =VLOOKUP(MID(G50,1,1),Morse!$A$2:$B$37,2,FALSE)&" "&VLOOKUP(MID(G50,2,1),Morse!$A$2:$B$37,2,FALSE)&IF(LEN(G50)>2," "&VLOOKUP(MID(G50,3,1),Morse!$A$2:$B$37,2,FALSE),"")&IF(LEN(G50)>3," "&VLOOKUP(MID(G50,4,1),Morse!$A$2:$B$37,2,FALSE),"") -> · · − · · − −
A51: 50 | B51: Fred | C51: DME | D51: 2 | E51: 1 | F51: 0 | G51: FRD | H51: 115.9 | I51: 106x (*) | K51: 50 | L51: 1 | M51: 50 | N51: N | O51: 8 | P51: 34 | Q51: 1 | R51: E | S51: 25 | T51: 50.0306 | U51: 8.5669 | V51: 50.0306 | W51: 8.5669 | X51: 115.90 | Z51: =VLOOKUP(MID(G51,1,1),Morse!$A$2:$B$37,2,FALSE)&" "&VLOOKUP(MID(G51,2,1),Morse!$A$2:$B$37,2,FALSE)&IF(LEN(G51)>2," "&VLOOKUP(MID(G51,3,1),Morse!$A$2:$B$37,2,FALSE),"")&IF(LEN(G51)>3," "&VLOOKUP(MID(G51,4,1),Morse!$A$2:$B$37,2,FALSE),"") -> · · − · · − · − · · | AA51: Ch 106x (*)
A52: 51 | B52: Friedland | C52: DVOR/DME | D52: 1 | E52: 1 | F52: 0 | G52: FLD | H52: 117.15 | I52: 118y | K52: 53 | L52: 45 | M52: 46 | N52: N | O52: 13 | P52: 33 | Q52: 47 | R52: E | S52: 60 | T52: 53.7628 | U52: 13.5631 | V52: 53.7628 | W52: 13.5631 | X52: 117.15 | Z52: =VLOOKUP(MID(G52,1,1),Morse!$A$2:$B$37,2,FALSE)&" "&VLOOKUP(MID(G52,2,1),Morse!$A$2:$B$37,2,FALSE)&IF(LEN(G52)>2," "&VLOOKUP(MID(G52,3,1),Morse!$A$2:$B$37,2,FALSE),"")&IF(LEN(G52)>3," "&VLOOKUP(MID(G52,4,1),Morse!$A$2:$B$37,2,FALSE),"") -> · · − · · − · · − · · | AA52: Ch 118y
A53: 52 | B53: Friedrichshafen | C53: DME/ILS | D53: 1 | E53: 1 | F53: 0 | G53: FHD | H53: 112.6 | I53: 73x (*) | K53: 47 | L53: 39 | M53: 59 | N53: N | O53: 9 | P53: 30 | Q53: 32 | R53: E | S53: 25 | T53: 47.6664 | U53: 9.5089 | V53: 47.6664 | W53: 9.5089 | X53: 112.60 | Z53: =VLOOKUP(MID(G53,1,1),Morse!$A$2:$B$37,2,FALSE)&" "&VLOOKUP(MID(G53,2,1),Morse!$A$2:$B$37,2,FALSE)&IF(LEN(G53)>2," "&VLOOKUP(MID(G53,3,1),Morse!$A$2:$B$37,2,FALSE),"")&IF(LEN(G53)>3," "&VLOOKUP(MID(G53,4,1),Morse!$A$2:$B$37,2,FALSE),"") -> · · − · · · · · − · · | AA53: Ch 73x (*)
A54: 53 | B54: Fritzlar | C54: NDB | D54: 0 | E54: 0 | F54: 1 | G54: FTZ | J54: 468 | K54: 51 | L54: 5 | M54: 3 | N54: N | O54: 9 | P54: 24 | Q54: 55 | R54: E | S54: 35 | T54: 51.0842 | U54: 9.4153 | V54: 51.0842 | W54: 9.4153 | Y54: 468 | Z54: =VLOOKUP(MID(G54,1,1),Morse!$A$2:$B$37,2,FALSE)&" "&VLOOKUP(MID(G54,2,1),Morse!$A$2:$B$37,2,FALSE)&IF(LEN(G54)>2," "&VLOOKUP(MID(G54,3,1),Morse!$A$2:$B$37,2,FALSE),"")&IF(LEN(G54)>3," "&VLOOKUP(MID(G54,4,1),Morse!$A$2:$B$37,2,FALSE),"") -> · · − · − − − · ·
A55: 54 | B55: Fuerstenwalde | C55: VOR/DME | D55: 1 | E55: 1 | F55: 0 | G55: FWE | H55: 113.3 | I55: 80x | K55: 52 | L55: 24 | M55: 41 | N55: N | O55: 14 | P55: 7 | Q55: 50 | R55: E | S55: 50 | T55: 52.4114 | U55: 14.1306 | V55: 52.4114 | W55: 14.1306 | X55: 113.30 | Z55: =VLOOKUP(MID(G55,1,1),Morse!$A$2:$B$37,2,FALSE)&" "&VLOOKUP(MID(G55,2,1),Morse!$A$2:$B$37,2,FALSE)&IF(LEN(G55)>2," "&VLOOKUP(MID(G55,3,1),Morse!$A$2:$B$37,2,FALSE),"")&IF(LEN(G55)>3," "&VLOOKUP(MID(G55,4,1),Morse!$A$2:$B$37,2,FALSE),"") -> · · − · · − − · | AA55: Ch 80x
A56: 55 | B56: Fulda | C56: DVOR/DME | D56: 1 | E56: 1 | F56: 0 | G56: FUL | H56: 112.1 | I56: 58x | K56: 50 | L56: 35 | M56: 33 | N56: N | O56: 9 | P56: 34 | Q56: 20 | R56: E | S56: 100 | T56: 50.5925 | U56: 9.5722 | V56: 50.5925 | W56: 9.5722 | X56: 112.10 | Z56: =VLOOKUP(MID(G56,1,1),Morse!$A$2:$B$37,2,FALSE)&" "&VLOOKUP(MID(G56,2,1),Morse!$A$2:$B$37,2,FALSE)&IF(LEN(G56)>2," "&VLOOKUP(MID(G56,3,1),Morse!$A$2:$B$37,2,FALSE),"")&IF(LEN(G56)>3," "&VLOOKUP(MID(G56,4,1),Morse!$A$2:$B$37,2,FALSE),"") -> · · − · · · − · − · · | AA56: Ch 58x
A57: 56 | B57: Gedern | C57: DVORTAC | D57: 1 | E57: 1 | F57: 0 | G57: GED | H57: 110.8 | I57: 45x | K57: 50 | L57: 24 | M57: 43 | N57: N | O57: 9 | P57: 14 | Q57: 57 | R57: E | S57: 70 | T57: 50.4119 | U57: 9.2492 | V57: 50.4119 | W57: 9.2492 | X57: 110.80 | Z57: =VLOOKUP(MID(G57,1,1),Morse!$A$2:$B$37,2,FALSE)&" "&VLOOKUP(MID(G57,2,1),Morse!$A$2:$B$37,2,FALSE)&IF(LEN(G57)>2," "&VLOOKUP(MID(G57,3,1),Morse!$A$2:$B$37,2,FALSE),"")&IF(LEN(G57)>3," "&VLOOKUP(MID(G57,4,1),Morse!$A$2:$B$37,2,FALSE),"") -> − − · · − · · | AA57: Ch 45x
A58: 57 | B58: Germinghausen | C58: DVOR/DME | D58: 2 | E58: 1 | F58: 0 | G58: GMH | H58: 115.4 | I58: 101x | K58: 51 | L58: 10 | M58: 14 | N58: N | O58: 7 | P58: 53 | Q58: 31 | R58: E | S58: 60 | T58: 51.1706 | U58: 7.8919 | V58: 51.1706 | W58: 7.8919 | X58: 115.40 | Z58: =VLOOKUP(MID(G58,1,1),Morse!$A$2:$B$37,2,FALSE)&" "&VLOOKUP(MID(G58,2,1),Morse!$A$2:$B$37,2,FALSE)&IF(LEN(G58)>2," "&VLOOKUP(MID(G58,3,1),Morse!$A$2:$B$37,2,FALSE),"")&IF(LEN(G58)>3," "&VLOOKUP(MID(G58,4,1),Morse!$A$2:$B$37,2,FALSE),"") -> − − · − − · · · · | AA58: Ch 101x
A59: 58 | B59: Gotem | C59: DVOR/DME | D59: 1 | E59: 1 | F59: 0 | G59: GOT | H59: 115.25 | I59: 99y | K59: 51 | L59: 20 | M59: 35 | N59: N | O59: 11 | P59: 35 | Q59: 51 | R59: E | S59: 60 | T59: 51.3431 | U59: 11.5975 | V59: 51.3431 | W59: 11.5975 | X59: 115.25 | Z59: =VLOOKUP(MID(G59,1,1),Morse!$A$2:$B$37,2,FALSE)&" "&VLOOKUP(MID(G59,2,1),Morse!$A$2:$B$37,2,FALSE)&IF(LEN(G59)>2," "&VLOOKUP(MID(G59,3,1),Morse!$A$2:$B$37,2,FALSE),"")&IF(LEN(G59)>3," "&VLOOKUP(MID(G59,4,1),Morse!$A$2:$B$37,2,FALSE),"") -> − − · − − − − | AA59: Ch 99y
A60: 59 | B60: Grafenwoehr | C60: NDB | D60: 0 | E60: 0 | F60: 1 | G60: GRW | J60: 405 | K60: 49 | L60: 41 | M60: 40 | N60: N | O60: 11 | P60: 56 | Q60: 30 | R60: E | S60: 25 | T60: 49.6944 | U60: 11.9417 | V60: 49.6944 | W60: 11.9417 | Y60: 405 | Z60: =VLOOKUP(MID(G60,1,1),Morse!$A$2:$B$37,2,FALSE)&" "&VLOOKUP(MID(G60,2,1),Morse!$A$2:$B$37,2,FALSE)&IF(LEN(G60)>2," "&VLOOKUP(MID(G60,3,1),Morse!$A$2:$B$37,2,FALSE),"")&IF(LEN(G60)>3," "&VLOOKUP(MID(G60,4,1),Morse!$A$2:$B$37,2,FALSE),"") -> − − · · − · · − −
A61: 60 | B61: Hahn | C61: NDB | D61: 0 | E61: 0 | F61: 1 | G61: HAN | J61: 376 | K61: 49 | L61: 57 | M61: 54 | N61: N | O61: 7 | P61: 16 | Q61: 51 | R61: E | S61: 15 | T61: 49.965 | U61: 7.2808 | V61: 49.9650 | W61: 7.2808 | Y61: 376 | Z61: =VLOOKUP(MID(G61,1,1),Morse!$A$2:$B$37,2,FALSE)&" "&VLOOKUP(MID(G61,2,1),Morse!$A$2:$B$37,2,FALSE)&IF(LEN(G61)>2," "&VLOOKUP(MID(G61,3,1),Morse!$A$2:$B$37,2,FALSE),"")&IF(LEN(G61)>3," "&VLOOKUP(MID(G61,4,1),Morse!$A$2:$B$37,2,FALSE),"") -> · · · · · − − ·
A62: 61 | B62: Hahn | C62: DME | D62: 1 | E62: 1 | F62: 0 | G62: FHH | H62: 117.35 | I62: 120y (*) | K62: 49 | L62: 56 | M62: 30 | N62: N | O62: 7 | P62: 15 | Q62: 38 | R62: E | S62: 25 | T62: 49.9417 | U62: 7.2606 | V62: 49.9417 | W62: 7.2606 | X62: 117.35 | Z62: =VLOOKUP(MID(G62,1,1),Morse!$A$2:$B$37,2,FALSE)&" "&VLOOKUP(MID(G62,2,1),Morse!$A$2:$B$37,2,FALSE)&IF(LEN(G62)>2," "&VLOOKUP(MID(G62,3,1),Morse!$A$2:$B$37,2,FALSE),"")&IF(LEN(G62)>3," "&VLOOKUP(MID(G62,4,1),Morse!$A$2:$B$37,2,FALSE),"") -> · · − · · · · · · · · · | AA62: Ch 120y (*)
A63: 62 | B63: Hamburg | C63: NDB | D63: 0 | E63: 0 | F63: 1 | G63: HOS | J63: 339 | K63: 53 | L63: 40 | M63: 37 | N63: N | O63: 10 | P63: 5 | Q63: 0 | R63: E | S63: 25 | T63: 53.6769 | U63: 10.0833 | V63: 53.6769 | W63: 10.0833 | Y63: 339 | Z63: =VLOOKUP(MID(G63,1,1),Morse!$A$2:$B$37,2,FALSE)&" "&VLOOKUP(MID(G63,2,1),Morse!$A$2:$B$37,2,FALSE)&IF(LEN(G63)>2," "&VLOOKUP(MID(G63,3,1),Morse!$A$2:$B$37,2,FALSE),"")&IF(LEN(G63)>3," "&VLOOKUP(MID(G63,4,1),Morse!$A$2:$B$37,2,FALSE),"") -> · · · · − − − · · ·
A64: 63 | B64: Hamburg | C64: DVORTAC | D64: 2 | E64: 1 | F64: 0 | G64: HAM | H64: 113.1 | I64: 78x | K64: 53 | L64: 41 | M64: 8 | N64: N | O64: 10 | P64: 12 | Q64: 18 | R64: E | S64: 60 | T64: 53.6856 | U64: 10.205 | V64: 53.6856 | W64: 10.2050 | X64: 113.10 | Z64: =VLOOKUP(MID(G64,1,1),Morse!$A$2:$B$37,2,FALSE)&" "&VLOOKUP(MID(G64,2,1),Morse!$A$2:$B$37,2,FALSE)&IF(LEN(G64)>2," "&VLOOKUP(MID(G64,3,1),Morse!$A$2:$B$37,2,FALSE),"")&IF(LEN(G64)>3," "&VLOOKUP(MID(G64,4,1),Morse!$A$2:$B$37,2,FALSE),"") -> · · · · · − − − | AA64: Ch 78x
A65: 64 | B65: Hamburg | C65: LM | D65: 0 | E65: 0 | F65: 1 | G65: FU | J65: 350 | K65: 53 | L65: 36 | M65: 53 | N65: N | O65: 9 | P65: 57 | Q65: 25 | R65: E | S65: 15 | T65: 53.6147 | U65: 9.9569 | V65: 53.6147 | W65: 9.9569 | Y65: 350 | Z65: =VLOOKUP(MID(G65,1,1),Morse!$A$2:$B$37,2,FALSE)&" "&VLOOKUP(MID(G65,2,1),Morse!$A$2:$B$37,2,FALSE)&IF(LEN(G65)>2," "&VLOOKUP(MID(G65,3,1),Morse!$A$2:$B$37,2,FALSE),"")&IF(LEN(G65)>3," "&VLOOKUP(MID(G65,4,1),Morse!$A$2:$B$37,2,FALSE),"") -> · · − · · · −
A66: 65 | B66: Hamburg | C66: LO | D66: =IF(C66<>"DME",COUNTIF($H$2:$H$177,H66),0) -> 0 | E66: =COUNTIF($I$2:$I$177,I66) -> 0 | F66: =COUNTIF($J$2:$J$177,J66) -> 1 | G66: GT | J66: 323 | K66: 53 | L66: 42 | M66: 51 | N66: N | O66: 9 | P66: 55 | Q66: 27 | R66: E | S66: 15 | T66: 53.7142 | U66: 9.9242 | V66: 53.7142 | W66: 9.9242 | Y66: 323 | Z66: =VLOOKUP(MID(G66,1,1),Morse!$A$2:$B$37,2,FALSE)&" "&VLOOKUP(MID(G66,2,1),Morse!$A$2:$B$37,2,FALSE)&IF(LEN(G66)>2," "&VLOOKUP(MID(G66,3,1),Morse!$A$2:$B$37,2,FALSE),"")&IF(LEN(G66)>3," "&VLOOKUP(MID(G66,4,1),Morse!$A$2:$B$37,2,FALSE),"") -> − − · −
A67: 66 | B67: Hamburg-Finkenwerder | C67: DME | D67: 2 | E67: 2 | F67: 0 | G67: IHFW | H67: 108.5 | I67: 22x (*) | K67: 53 | L67: 32 | M67: 11 | N67: N | O67: 9 | P67: 50 | Q67: 27 | R67: E | S67: 10 | T67: =IF(K67+(L67/60)<>0,ROUND(K67+(L67/60)+(M67/3600),4),"") -> 53.5364 | U67: =IF(O67+(P67/60)<>0,ROUND(O67+(P67/60)+(Q67/3600),4),"") -> 9.8408 | V67: 53.5364 | W67: 9.8408 | X67: =IF(H67<>"",LEFT(H67,3)&"."&IF(LEN(H67)=3,"",RIGHT(H67,LEN(H67)-4))&IF(LEN(H67)=3,"00",IF(LEN(H67)=5,"0",IF(LEN(H67)=6,"",""))),"") -> 108.50 | Y67: =IF(J67<>0,J67,"") ->  | Z67: =VLOOKUP(MID(G67,1,1),Morse!$A$2:$B$37,2,FALSE)&" "&VLOOKUP(MID(G67,2,1),Morse!$A$2:$B$37,2,FALSE)&IF(LEN(G67)>2," "&VLOOKUP(MID(G67,3,1),Morse!$A$2:$B$37,2,FALSE),"")&IF(LEN(G67)>3," "&VLOOKUP(MID(G67,4,1),Morse!$A$2:$B$37,2,FALSE),"") -> · · · · · · · · − · · − − | AA67: Ch 22x (*)
A68: 67 | B68: Hamm | C68: DVOR/DME | D68: 1 | E68: 1 | F68: 0 | G68: HMM | H68: 115.65 | I68: 103y | K68: 51 | L68: 51 | M68: 25 | N68: N | O68: 7 | P68: 42 | Q68: 30 | R68: E | S68: 40 | T68: 51.8569 | U68: 7.7083 | V68: 51.8569 | W68: 7.7083 | X68: 115.65 | Z68: =VLOOKUP(MID(G68,1,1),Morse!$A$2:$B$37,2,FALSE)&" "&VLOOKUP(MID(G68,2,1),Morse!$A$2:$B$37,2,FALSE)&IF(LEN(G68)>2," "&VLOOKUP(MID(G68,3,1),Morse!$A$2:$B$37,2,FALSE),"")&IF(LEN(G68)>3," "&VLOOKUP(MID(G68,4,1),Morse!$A$2:$B$37,2,FALSE),"") -> · · · · − − − − | AA68: =IF(I68<>"","Ch "&I68,"") -> Ch 103y
A69: 68 | B69: Hannover | C69: DME | D69: 1 | E69: 1 | F69: 0 | G69: HAD | H69: 113.95 | I69: 86y (*) | K69: 52 | L69: 28 | M69: 8 | N69: N | O69: 9 | P69: 41 | Q69: 44 | R69: E | S69: 25 | T69: 52.4689 | U69: 9.6956 | V69: 52.4689 | W69: 9.6956 | X69: 113.95 | Z69: =VLOOKUP(MID(G69,1,1),Morse!$A$2:$B$37,2,FALSE)&" "&VLOOKUP(MID(G69,2,1),Morse!$A$2:$B$37,2,FALSE)&IF(LEN(G69)>2," "&VLOOKUP(MID(G69,3,1),Morse!$A$2:$B$37,2,FALSE),"")&IF(LEN(G69)>3," "&VLOOKUP(MID(G69,4,1),Morse!$A$2:$B$37,2,FALSE),"") -> · · · · · − − · · | AA69: Ch 86y (*)
A70: 69 | B70: Hannover | C70: DME | D70: 1 | E70: 1 | F70: 0 | G70: HBD | H70: 116.9 | I70: 116x (*) | K70: 52 | L70: 27 | M70: 19 | N70: N | O70: 9 | P70: 39 | Q70: 33 | R70: E | S70: 25 | T70: 52.4553 | U70: 9.6592 | V70: 52.4553 | W70: 9.6592 | X70: 116.90 | Z70: =VLOOKUP(MID(G70,1,1),Morse!$A$2:$B$37,2,FALSE)&" "&VLOOKUP(MID(G70,2,1),Morse!$A$2:$B$37,2,FALSE)&IF(LEN(G70)>2," "&VLOOKUP(MID(G70,3,1),Morse!$A$2:$B$37,2,FALSE),"")&IF(LEN(G70)>3," "&VLOOKUP(MID(G70,4,1),Morse!$A$2:$B$37,2,FALSE),"") -> · · · · − · · · − · · | AA70: Ch 116x (*)
A71: 70 | B71: Hannover | C71: LO | D71: 0 | E71: 0 | F71: 1 | G71: HA | J71: 320 | K71: 52 | L71: 27 | M71: 51 | N71: N | O71: 9 | P71: 48 | Q71: 18 | R71: E | S71: 15 | T71: 52.4642 | U71: 9.805 | V71: 52.4642 | W71: 9.8050 | Y71: 320 | Z71: =VLOOKUP(MID(G71,1,1),Morse!$A$2:$B$37,2,FALSE)&" "&VLOOKUP(MID(G71,2,1),Morse!$A$2:$B$37,2,FALSE)&IF(LEN(G71)>2," "&VLOOKUP(MID(G71,3,1),Morse!$A$2:$B$37,2,FALSE),"")&IF(LEN(G71)>3," "&VLOOKUP(MID(G71,4,1),Morse!$A$2:$B$37,2,FALSE),"") -> · · · · · −
A72: 71 | B72: Hannover | C72: LO | D72: 0 | E72: 0 | F72: 2 | G72: HW | J72: 358 | K72: 52 | L72: 28 | M72: 7 | N72: N | O72: 9 | P72: 32 | Q72: 47 | R72: E | S72: 15 | T72: 52.4686 | U72: 9.5464 | V72: 52.4686 | W72: 9.5464 | Y72: 358 | Z72: =VLOOKUP(MID(G72,1,1),Morse!$A$2:$B$37,2,FALSE)&" "&VLOOKUP(MID(G72,2,1),Morse!$A$2:$B$37,2,FALSE)&IF(LEN(G72)>2," "&VLOOKUP(MID(G72,3,1),Morse!$A$2:$B$37,2,FALSE),"")&IF(LEN(G72)>3," "&VLOOKUP(MID(G72,4,1),Morse!$A$2:$B$37,2,FALSE),"") -> · · · · · − −
A73: 72 | B73: Hehlingen | C73: DVOR/DME | D73: 1 | E73: 1 | F73: 0 | G73: HLZ | H73: 117.3 | I73: 120x | K73: 52 | L73: 21 | M73: 48 | N73: N | O73: 10 | P73: 47 | Q73: 43 | R73: E | S73: 80 | T73: 52.3633 | U73: 10.7953 | V73: 52.3633 | W73: 10.7953 | X73: 117.30 | Z73: =VLOOKUP(MID(G73,1,1),Morse!$A$2:$B$37,2,FALSE)&" "&VLOOKUP(MID(G73,2,1),Morse!$A$2:$B$37,2,FALSE)&IF(LEN(G73)>2," "&VLOOKUP(MID(G73,3,1),Morse!$A$2:$B$37,2,FALSE),"")&IF(LEN(G73)>3," "&VLOOKUP(MID(G73,4,1),Morse!$A$2:$B$37,2,FALSE),"") -> · · · · · − · · − − · · | AA73: Ch 120x
A74: 73 | B74: Helgoland | C74: VOR/DME | D74: 1 | E74: 1 | F74: 0 | G74: DHE | H74: 116.3 | I74: 110x | K74: 54 | L74: 11 | M74: 8 | N74: N | O74: 7 | P74: 54 | Q74: 39 | R74: E | S74: 60 | T74: 54.1856 | U74: 7.9108 | V74: 54.1856 | W74: 7.9108 | X74: 116.30 | Z74: =VLOOKUP(MID(G74,1,1),Morse!$A$2:$B$37,2,FALSE)&" "&VLOOKUP(MID(G74,2,1),Morse!$A$2:$B$37,2,FALSE)&IF(LEN(G74)>2," "&VLOOKUP(MID(G74,3,1),Morse!$A$2:$B$37,2,FALSE),"")&IF(LEN(G74)>3," "&VLOOKUP(MID(G74,4,1),Morse!$A$2:$B$37,2,FALSE),"") -> − · · · · · · · | AA74: Ch 110x
A75: 74 | B75: Heringsdorf | C75: DME | D75: 1 | E75: 1 | F75: 0 | G75: IHEW | H75: 111.3 | I75: 50x (*) | K75: 53 | L75: 52 | M75: 41 | N75: N | O75: 14 | P75: 9 | Q75: 4 | R75: E | S75: 25 | T75: 53.8781 | U75: 14.1511 | V75: 53.8781 | W75: 14.1511 | X75: 111.30 | Z75: =VLOOKUP(MID(G75,1,1),Morse!$A$2:$B$37,2,FALSE)&" "&VLOOKUP(MID(G75,2,1),Morse!$A$2:$B$37,2,FALSE)&IF(LEN(G75)>2," "&VLOOKUP(MID(G75,3,1),Morse!$A$2:$B$37,2,FALSE),"")&IF(LEN(G75)>3," "&VLOOKUP(MID(G75,4,1),Morse!$A$2:$B$37,2,FALSE),"") -> · · · · · · · · − − | AA75: Ch 50x (*)
A76: 75 | B76: Heringsdorf | C76: NDB | D76: 0 | E76: 0 | F76: 2 | G76: HC | J76: 330 | K76: 53 | L76: 52 | M76: 27 | N76: N | O76: 14 | P76: 10 | Q76: 55 | R76: E | S76: 25 | T76: 53.8742 | U76: 14.1819 | V76: 53.8742 | W76: 14.1819 | Y76: 330 | Z76: =VLOOKUP(MID(G76,1,1),Morse!$A$2:$B$37,2,FALSE)&" "&VLOOKUP(MID(G76,2,1),Morse!$A$2:$B$37,2,FALSE)&IF(LEN(G76)>2," "&VLOOKUP(MID(G76,3,1),Morse!$A$2:$B$37,2,FALSE),"")&IF(LEN(G76)>3," "&VLOOKUP(MID(G76,4,1),Morse!$A$2:$B$37,2,FALSE),"") -> · · · · − · − ·
A77: 76 | B77: Hermsdorf | C77: DVOR/DME | D77: 2 | E77: 2 | F77: 0 | G77: HDO | H77: 108.65 | I77: 23y | K77: 50 | L77: 55 | M77: 41 | N77: N | O77: 14 | P77: 22 | Q77: 8 | R77: E | S77: 60 | T77: 50.9281 | U77: 14.3689 | V77: 50.9281 | W77: 14.3689 | X77: 108.65 | Z77: =VLOOKUP(MID(G77,1,1),Morse!$A$2:$B$37,2,FALSE)&" "&VLOOKUP(MID(G77,2,1),Morse!$A$2:$B$37,2,FALSE)&IF(LEN(G77)>2," "&VLOOKUP(MID(G77,3,1),Morse!$A$2:$B$37,2,FALSE),"")&IF(LEN(G77)>3," "&VLOOKUP(MID(G77,4,1),Morse!$A$2:$B$37,2,FALSE),"") -> · · · · − · · − − − | AA77: Ch 23y
A78: 77 | B78: Hof | C78: DME | D78: 1 | E78: 1 | F78: 0 | G78: HOD | H78: 110.7 | I78: 44x (*) | K78: 50 | L78: 17 | M78: 23 | N78: N | O78: 11 | P78: 51 | Q78: 19 | R78: E | S78: 10 | T78: 50.2897 | U78: 11.8553 | V78: 50.2897 | W78: 11.8553 | X78: 110.70 | Z78: =VLOOKUP(MID(G78,1,1),Morse!$A$2:$B$37,2,FALSE)&" "&VLOOKUP(MID(G78,2,1),Morse!$A$2:$B$37,2,FALSE)&IF(LEN(G78)>2," "&VLOOKUP(MID(G78,3,1),Morse!$A$2:$B$37,2,FALSE),"")&IF(LEN(G78)>3," "&VLOOKUP(MID(G78,4,1),Morse!$A$2:$B$37,2,FALSE),"") -> · · · · − − − − · · | AA78: Ch 44x (*)
A79: 78 | B79: Hof | C79: NDB | D79: 0 | E79: 0 | F79: 1 | G79: HOF | J79: 484 | K79: 50 | L79: 17 | M79: 5 | N79: N | O79: 11 | P79: 45 | Q79: 41 | R79: E | S79: 15 | T79: 50.2847 | U79: 11.7614 | V79: =LEFT(T79,2)&"."&RIGHT(TEXT(T79,"00,0000"),4) -> 50.2847 | W79: =LEFT(U79,IF(U79<10,1,2))&"."&RIGHT(TEXT(U79,"00,0000"),4) -> 11.7614 | Y79: 484 | Z79: =VLOOKUP(MID(G79,1,1),Morse!$A$2:$B$37,2,FALSE)&" "&VLOOKUP(MID(G79,2,1),Morse!$A$2:$B$37,2,FALSE)&IF(LEN(G79)>2," "&VLOOKUP(MID(G79,3,1),Morse!$A$2:$B$37,2,FALSE),"")&IF(LEN(G79)>3," "&VLOOKUP(MID(G79,4,1),Morse!$A$2:$B$37,2,FALSE),"") -> · · · · − − − · · − ·
A80: 79 | B80: Hohenfels | C80: NDB | D80: 0 | E80: 0 | F80: 1 | G80: HFX | J80: 286 | K80: 49 | L80: 13 | M80: 6 | N80: N | O80: 11 | P80: 51 | Q80: 34 | R80: E | S80: 25 | T80: 49.2183 | U80: 11.8594 | V80: 49.2183 | W80: 11.8594 | Y80: 286 | Z80: =VLOOKUP(MID(G80,1,1),Morse!$A$2:$B$37,2,FALSE)&" "&VLOOKUP(MID(G80,2,1),Morse!$A$2:$B$37,2,FALSE)&IF(LEN(G80)>2," "&VLOOKUP(MID(G80,3,1),Morse!$A$2:$B$37,2,FALSE),"")&IF(LEN(G80)>3," "&VLOOKUP(MID(G80,4,1),Morse!$A$2:$B$37,2,FALSE),"") -> · · · · · · − · − · · −
A81: 80 | B81: Hohn | C81: NDB | D81: 0 | E81: 0 | F81: 2 | G81: HN | J81: 344 | K81: 54 | L81: 19 | M81: 35 | N81: N | O81: 9 | P81: 40 | Q81: 13 | R81: E | S81: 25 | T81: 54.3264 | U81: 9.6703 | V81: 54.3264 | W81: 9.6703 | Y81: 344 | Z81: =VLOOKUP(MID(G81,1,1),Morse!$A$2:$B$37,2,FALSE)&" "&VLOOKUP(MID(G81,2,1),Morse!$A$2:$B$37,2,FALSE)&IF(LEN(G81)>2," "&VLOOKUP(MID(G81,3,1),Morse!$A$2:$B$37,2,FALSE),"")&IF(LEN(G81)>3," "&VLOOKUP(MID(G81,4,1),Morse!$A$2:$B$37,2,FALSE),"") -> · · · · − ·
A82: 81 | B82: Holzdorf | C82: NDB | D82: 0 | E82: 0 | F82: 1 | G82: HOZ | J82: 406 | K82: 51 | L82: 46 | M82: 13 | N82: N | O82: 13 | P82: 5 | Q82: 52 | R82: E | S82: 25 | T82: 51.7703 | U82: 13.0978 | V82: 51.7703 | W82: 13.0978 | Y82: 406 | Z82: =VLOOKUP(MID(G82,1,1),Morse!$A$2:$B$37,2,FALSE)&" "&VLOOKUP(MID(G82,2,1),Morse!$A$2:$B$37,2,FALSE)&IF(LEN(G82)>2," "&VLOOKUP(MID(G82,3,1),Morse!$A$2:$B$37,2,FALSE),"")&IF(LEN(G82)>3," "&VLOOKUP(MID(G82,4,1),Morse!$A$2:$B$37,2,FALSE),"") -> · · · · − − − − − · ·
A83: 82 | B83: Illesheim | C83: NDB | D83: 0 | E83: 0 | F83: 1 | G83: ILM | J83: 488 | K83: 49 | L83: 28 | M83: 19 | N83: N | O83: 10 | P83: 23 | Q83: 18 | R83: E | S83: 25 | T83: 49.4719 | U83: 10.3883 | V83: 49.4719 | W83: 10.3883 | Y83: 488 | Z83: =VLOOKUP(MID(G83,1,1),Morse!$A$2:$B$37,2,FALSE)&" "&VLOOKUP(MID(G83,2,1),Morse!$A$2:$B$37,2,FALSE)&IF(LEN(G83)>2," "&VLOOKUP(MID(G83,3,1),Morse!$A$2:$B$37,2,FALSE),"")&IF(LEN(G83)>3," "&VLOOKUP(MID(G83,4,1),Morse!$A$2:$B$37,2,FALSE),"") -> · · · − · · − −
A84: 83 | B84: Ingolstadt (Manching) | C84: NDB | D84: 0 | E84: 0 | F84: 1 | G84: IGL | J84: 345 | K84: 48 | L84: 44 | M84: 16 | N84: N | O84: 11 | P84: 38 | Q84: 40 | R84: E | S84: 22 | T84: 48.7378 | U84: 11.6444 | V84: 48.7378 | W84: 11.6444 | Y84: 345 | Z84: =VLOOKUP(MID(G84,1,1),Morse!$A$2:$B$37,2,FALSE)&" "&VLOOKUP(MID(G84,2,1),Morse!$A$2:$B$37,2,FALSE)&IF(LEN(G84)>2," "&VLOOKUP(MID(G84,3,1),Morse!$A$2:$B$37,2,FALSE),"")&IF(LEN(G84)>3," "&VLOOKUP(MID(G84,4,1),Morse!$A$2:$B$37,2,FALSE),"") -> · · − − · · − · ·
A85: 84 | B85: Karlsruhe | C85: DVOR/DME | D85: 1 | E85: 1 | F85: 0 | G85: KRH | H85: 115.95 | I85: 106y | K85: 48 | L85: 59 | M85: 35 | N85: N | O85: 8 | P85: 35 | Q85: 3 | R85: E | S85: 40 | T85: 48.9931 | U85: 8.5842 | V85: 48.9931 | W85: 8.5842 | X85: 115.95 | Z85: =VLOOKUP(MID(G85,1,1),Morse!$A$2:$B$37,2,FALSE)&" "&VLOOKUP(MID(G85,2,1),Morse!$A$2:$B$37,2,FALSE)&IF(LEN(G85)>2," "&VLOOKUP(MID(G85,3,1),Morse!$A$2:$B$37,2,FALSE),"")&IF(LEN(G85)>3," "&VLOOKUP(MID(G85,4,1),Morse!$A$2:$B$37,2,FALSE),"") -> − · − · − · · · · · | AA85: Ch 106y
A86: 85 | B86: Karlsruhe/Baden-Baden | C86: NDB | D86: 0 | E86: 0 | F86: 1 | G86: KBA | J86: 431 | K86: 48 | L86: 47 | M86: 53 | N86: N | O86: 8 | P86: 5 | Q86: 51 | R86: E | S86: 30 | T86: 48.7981 | U86: 8.0975 | V86: 48.7981 | W86: 8.0975 | Y86: 431 | Z86: =VLOOKUP(MID(G86,1,1),Morse!$A$2:$B$37,2,FALSE)&" "&VLOOKUP(MID(G86,2,1),Morse!$A$2:$B$37,2,FALSE)&IF(LEN(G86)>2," "&VLOOKUP(MID(G86,3,1),Morse!$A$2:$B$37,2,FALSE),"")&IF(LEN(G86)>3," "&VLOOKUP(MID(G86,4,1),Morse!$A$2:$B$37,2,FALSE),"") -> − · − − · · · · −
A87: 86 | B87: Karlsruhe/Baden-Baden | C87: DME | D87: 2 | E87: 1 | F87: 0 | G87: KBD | H87: 115.8 | I87: 105x (*) | K87: 48 | L87: 46 | M87: 49 | N87: N | O87: 8 | P87: 5 | Q87: 19 | R87: E | S87: 25 | T87: 48.7803 | U87: 8.0886 | V87: 48.7803 | W87: 8.0886 | X87: 115.80 | Z87: =VLOOKUP(MID(G87,1,1),Morse!$A$2:$B$37,2,FALSE)&" "&VLOOKUP(MID(G87,2,1),Morse!$A$2:$B$37,2,FALSE)&IF(LEN(G87)>2," "&VLOOKUP(MID(G87,3,1),Morse!$A$2:$B$37,2,FALSE),"")&IF(LEN(G87)>3," "&VLOOKUP(MID(G87,4,1),Morse!$A$2:$B$37,2,FALSE),"") -> − · − − · · · − · · | AA87: Ch 105x (*)
A88: 87 | B88: Kassel-Calden | C88: DME | D88: 2 | E88: 1 | F88: 0 | G88: DKS | H88: 111.5 | I88: CH52x (*) | K88: 51 | L88: 25 | M88: 16 | N88: N | O88: 9 | P88: 24 | Q88: 19 | R88: E | S88: 25 | T88: 51.4211 | U88: 9.4053 | V88: 51.4211 | W88: 9.4053 | X88: 111.50 | Z88: =VLOOKUP(MID(G88,1,1),Morse!$A$2:$B$37,2,FALSE)&" "&VLOOKUP(MID(G88,2,1),Morse!$A$2:$B$37,2,FALSE)&IF(LEN(G88)>2," "&VLOOKUP(MID(G88,3,1),Morse!$A$2:$B$37,2,FALSE),"")&IF(LEN(G88)>3," "&VLOOKUP(MID(G88,4,1),Morse!$A$2:$B$37,2,FALSE),"") -> − · · − · − · · · | AA88: Ch CH52x (*)
A89: 88 | B89: Kempten | C89: DVOR/DME | D89: 1 | E89: 1 | F89: 0 | G89: KPT | H89: 108.4 | I89: 21x | K89: 47 | L89: 44 | M89: 45 | N89: N | O89: 10 | P89: 20 | Q89: 59 | R89: E | S89: 60 | T89: 47.7458 | U89: 10.3497 | V89: 47.7458 | W89: 10.3497 | X89: 108.40 | Z89: =VLOOKUP(MID(G89,1,1),Morse!$A$2:$B$37,2,FALSE)&" "&VLOOKUP(MID(G89,2,1),Morse!$A$2:$B$37,2,FALSE)&IF(LEN(G89)>2," "&VLOOKUP(MID(G89,3,1),Morse!$A$2:$B$37,2,FALSE),"")&IF(LEN(G89)>3," "&VLOOKUP(MID(G89,4,1),Morse!$A$2:$B$37,2,FALSE),"") -> − · − · − − · − | AA89: Ch 21x
A90: 89 | B90: Kiel-Holtenau | C90: NDB | D90: 0 | E90: 0 | F90: 1 | G90: KIL | J90: 353 | K90: 54 | L90: 22 | M90: 39 | N90: N | O90: 10 | P90: 7 | Q90: 12 | R90: E | S90: 30 | T90: 54.3775 | U90: 10.12 | V90: 54.3775 | W90: 10.1200 | Y90: 353 | Z90: =VLOOKUP(MID(G90,1,1),Morse!$A$2:$B$37,2,FALSE)&" "&VLOOKUP(MID(G90,2,1),Morse!$A$2:$B$37,2,FALSE)&IF(LEN(G90)>2," "&VLOOKUP(MID(G90,3,1),Morse!$A$2:$B$37,2,FALSE),"")&IF(LEN(G90)>3," "&VLOOKUP(MID(G90,4,1),Morse!$A$2:$B$37,2,FALSE),"") -> − · − · · · − · ·
A91: 90 | B91: Kiel-Holtenau | C91: DME | D91: 1 | E91: 1 | F91: 0 | G91: KHD | H91: 109.5 | I91: 32x | K91: 54 | L91: 22 | M91: 44 | N91: N | O91: 10 | P91: 8 | Q91: 43 | R91: E | S91: 25 | T91: 54.3789 | U91: 10.1453 | V91: 54.3789 | W91: 10.1453 | X91: 109.50 | Z91: =VLOOKUP(MID(G91,1,1),Morse!$A$2:$B$37,2,FALSE)&" "&VLOOKUP(MID(G91,2,1),Morse!$A$2:$B$37,2,FALSE)&IF(LEN(G91)>2," "&VLOOKUP(MID(G91,3,1),Morse!$A$2:$B$37,2,FALSE),"")&IF(LEN(G91)>3," "&VLOOKUP(MID(G91,4,1),Morse!$A$2:$B$37,2,FALSE),"") -> − · − · · · · − · · | AA91: Ch 32x
A92: 91 | B92: Klasdorf | C92: DVOR/DME | D92: 2 | E92: 2 | F92: 0 | G92: KLF | H92: 115.15 | I92: 98y | K92: 52 | L92: 1 | M92: 10 | N92: N | O92: 13 | P92: 33 | Q92: 48 | R92: E | S92: 60 | T92: 52.0194 | U92: 13.5633 | V92: 52.0194 | W92: 13.5633 | X92: 115.15 | Z92: =VLOOKUP(MID(G92,1,1),Morse!$A$2:$B$37,2,FALSE)&" "&VLOOKUP(MID(G92,2,1),Morse!$A$2:$B$37,2,FALSE)&IF(LEN(G92)>2," "&VLOOKUP(MID(G92,3,1),Morse!$A$2:$B$37,2,FALSE),"")&IF(LEN(G92)>3," "&VLOOKUP(MID(G92,4,1),Morse!$A$2:$B$37,2,FALSE),"") -> − · − · − · · · · − · | AA92: Ch 98y
A93: 92 | B93: Koeln/Bonn | C93: VOR/DME | D93: 2 | E93: 1 | F93: 0 | G93: KBO | H93: 112.15 | I93: 58y | K93: 50 | L93: 51 | M93: 42 | N93: N | O93: 7 | P93: 8 | Q93: 44 | R93: E | S93: 25 | T93: 50.8617 | U93: 7.1456 | V93: 50.8617 | W93: 7.1456 | X93: 112.15 | Z93: =VLOOKUP(MID(G93,1,1),Morse!$A$2:$B$37,2,FALSE)&" "&VLOOKUP(MID(G93,2,1),Morse!$A$2:$B$37,2,FALSE)&IF(LEN(G93)>2," "&VLOOKUP(MID(G93,3,1),Morse!$A$2:$B$37,2,FALSE),"")&IF(LEN(G93)>3," "&VLOOKUP(MID(G93,4,1),Morse!$A$2:$B$37,2,FALSE),"") -> − · − − · · · − − − | AA93: Ch 58y
A94: 93 | B94: Koeln/Bonn | C94: LO | D94: 0 | E94: 0 | F94: 1 | G94: LW | J94: 300.5 | K94: 50 | L94: 53 | M94: 54 | N94: N | O94: 7 | P94: 15 | Q94: 10 | R94: E | S94: 11 | T94: 50.8983 | U94: 7.2528 | V94: 50.8983 | W94: 7.2528 | Y94: 300.5 | Z94: =VLOOKUP(MID(G94,1,1),Morse!$A$2:$B$37,2,FALSE)&" "&VLOOKUP(MID(G94,2,1),Morse!$A$2:$B$37,2,FALSE)&IF(LEN(G94)>2," "&VLOOKUP(MID(G94,3,1),Morse!$A$2:$B$37,2,FALSE),"")&IF(LEN(G94)>3," "&VLOOKUP(MID(G94,4,1),Morse!$A$2:$B$37,2,FALSE),"") -> · − · · · − −
A95: 94 | B95: Koeln/Bonn | C95: LO | D95: 0 | E95: 0 | F95: 1 | G95: LV | J95: 327 | K95: 50 | L95: 48 | M95: 15 | N95: N | O95: 7 | P95: 14 | Q95: 25 | R95: E | S95: 15 | T95: 50.8042 | U95: 7.2403 | V95: 50.8042 | W95: 7.2403 | Y95: 327 | Z95: =VLOOKUP(MID(G95,1,1),Morse!$A$2:$B$37,2,FALSE)&" "&VLOOKUP(MID(G95,2,1),Morse!$A$2:$B$37,2,FALSE)&IF(LEN(G95)>2," "&VLOOKUP(MID(G95,3,1),Morse!$A$2:$B$37,2,FALSE),"")&IF(LEN(G95)>3," "&VLOOKUP(MID(G95,4,1),Morse!$A$2:$B$37,2,FALSE),"") -> · − · · · · · −
A96: 95 | B96: Koeln/Bonn | C96: LO | D96: 0 | E96: 0 | F96: 1 | G96: LJ | J96: 365 | K96: 50 | L96: 55 | M96: 37 | N96: N | O96: 7 | P96: 3 | Q96: 44 | R96: E | S96: 25 | T96: 50.9269 | U96: 7.0622 | V96: 50.9269 | W96: 7.0622 | Y96: 365 | Z96: =VLOOKUP(MID(G96,1,1),Morse!$A$2:$B$37,2,FALSE)&" "&VLOOKUP(MID(G96,2,1),Morse!$A$2:$B$37,2,FALSE)&IF(LEN(G96)>2," "&VLOOKUP(MID(G96,3,1),Morse!$A$2:$B$37,2,FALSE),"")&IF(LEN(G96)>3," "&VLOOKUP(MID(G96,4,1),Morse!$A$2:$B$37,2,FALSE),"") -> · − · · · − − −
A97: 96 | B97: Lahr | C97: DME | D97: 3 | E97: 2 | F97: 0 | G97: LRD | H97: 108.05 | I97: 17y (*) | K97: 48 | L97: 21 | M97: 51 | N97: N | O97: 7 | P97: 49 | Q97: 39 | R97: E | S97: 25 | T97: 48.3642 | U97: 7.8275 | V97: 48.3642 | W97: 7.8275 | X97: 108.05 | Z97: =VLOOKUP(MID(G97,1,1),Morse!$A$2:$B$37,2,FALSE)&" "&VLOOKUP(MID(G97,2,1),Morse!$A$2:$B$37,2,FALSE)&IF(LEN(G97)>2," "&VLOOKUP(MID(G97,3,1),Morse!$A$2:$B$37,2,FALSE),"")&IF(LEN(G97)>3," "&VLOOKUP(MID(G97,4,1),Morse!$A$2:$B$37,2,FALSE),"") -> · − · · · − · − · · | AA97: Ch 17y (*)
A98: 97 | B98: Lahr | C98: NDB | D98: 0 | E98: 0 | F98: 1 | G98: LHR | J98: 337 | K98: 48 | L98: 20 | M98: 55 | N98: N | O98: 7 | P98: 48 | Q98: 40 | R98: E | S98: 17 | T98: 48.3486 | U98: 7.8111 | V98: 48.3486 | W98: 7.8111 | Y98: 337 | Z98: =VLOOKUP(MID(G98,1,1),Morse!$A$2:$B$37,2,FALSE)&" "&VLOOKUP(MID(G98,2,1),Morse!$A$2:$B$37,2,FALSE)&IF(LEN(G98)>2," "&VLOOKUP(MID(G98,3,1),Morse!$A$2:$B$37,2,FALSE),"")&IF(LEN(G98)>3," "&VLOOKUP(MID(G98,4,1),Morse!$A$2:$B$37,2,FALSE),"") -> · − · · · · · · · − ·
A99: 98 | B99: Landsberg | C99: NDB | D99: 0 | E99: 0 | F99: 1 | G99: LQ | J99: 448 | K99: 48 | L99: 5 | M99: 41 | N99: N | O99: 11 | P99: 1 | Q99: 8 | R99: E | S99: 25 | T99: 48.0947 | U99: 11.0189 | V99: 48.0947 | W99: 11.0189 | Y99: 448 | Z99: =VLOOKUP(MID(G99,1,1),Morse!$A$2:$B$37,2,FALSE)&" "&VLOOKUP(MID(G99,2,1),Morse!$A$2:$B$37,2,FALSE)&IF(LEN(G99)>2," "&VLOOKUP(MID(G99,3,1),Morse!$A$2:$B$37,2,FALSE),"")&IF(LEN(G99)>3," "&VLOOKUP(MID(G99,4,1),Morse!$A$2:$B$37,2,FALSE),"") -> · − · · − − · −
A100: 99 | B100: Laupheim | C100: NDB | D100: 0 | E100: 0 | F100: 1 | G100: LUP | J100: 407 | K100: 48 | L100: 13 | M100: 6 | N100: N | O100: 9 | P100: 54 | Q100: 41 | R100: E | S100: 25 | T100: 48.2183 | U100: 9.9114 | V100: 48.2183 | W100: 9.9114 | Y100: 407 | Z100: =VLOOKUP(MID(G100,1,1),Morse!$A$2:$B$37,2,FALSE)&" "&VLOOKUP(MID(G100,2,1),Morse!$A$2:$B$37,2,FALSE)&IF(LEN(G100)>2," "&VLOOKUP(MID(G100,3,1),Morse!$A$2:$B$37,2,FALSE),"")&IF(LEN(G100)>3," "&VLOOKUP(MID(G100,4,1),Morse!$A$2:$B$37,2,FALSE),"") -> · − · · · · − · − − ·
A101: 100 | B101: Leine | C101: DVOR/DME | D101: 2 | E101: 2 | F101: 0 | G101: DLE | H101: 115.2 | I101: 99x | K101: 52 | L101: 15 | M101: 1 | N101: N | O101: 9 | P101: 53 | Q101: 1 | R101: E | S101: 60 | T101: 52.2503 | U101: 9.8836 | V101: 52.2503 | W101: 9.8836 | X101: 115.20 | Z101: =VLOOKUP(MID(G101,1,1),Morse!$A$2:$B$37,2,FALSE)&" "&VLOOKUP(MID(G101,2,1),Morse!$A$2:$B$37,2,FALSE)&IF(LEN(G101)>2," "&VLOOKUP(MID(G101,3,1),Morse!$A$2:$B$37,2,FALSE),"")&IF(LEN(G101)>3," "&VLOOKUP(MID(G101,4,1),Morse!$A$2:$B$37,2,FALSE),"") -> − · · · − · · · | AA101: Ch 99x
A102: 101 | B102: Leipzig | C102: VOR/DME | D102: 1 | E102: 1 | F102: 0 | G102: LEG | H102: 115.85 | I102: 105y | K102: 51 | L102: 26 | M102: 10 | N102: N | O102: 12 | P102: 28 | Q102: 25 | R102: E | S102: 80 | T102: 51.4361 | U102: 12.4736 | V102: 51.4361 | W102: 12.4736 | X102: 115.85 | Z102: =VLOOKUP(MID(G102,1,1),Morse!$A$2:$B$37,2,FALSE)&" "&VLOOKUP(MID(G102,2,1),Morse!$A$2:$B$37,2,FALSE)&IF(LEN(G102)>2," "&VLOOKUP(MID(G102,3,1),Morse!$A$2:$B$37,2,FALSE),"")&IF(LEN(G102)>3," "&VLOOKUP(MID(G102,4,1),Morse!$A$2:$B$37,2,FALSE),"") -> · − · · · − − · | AA102: Ch 105y
A103: 102 | B103: Leipzig | C103: NDB | D103: 0 | E103: 0 | F103: 1 | G103: ZIG | J103: 340 | K103: 51 | L103: 26 | M103: 2 | N103: N | O103: 12 | P103: 16 | Q103: 50 | R103: E | S103: 15 | T103: 51.4339 | U103: 12.2806 | V103: 51.4339 | W103: 12.2806 | Y103: 340 | Z103: =VLOOKUP(MID(G103,1,1),Morse!$A$2:$B$37,2,FALSE)&" "&VLOOKUP(MID(G103,2,1),Morse!$A$2:$B$37,2,FALSE)&IF(LEN(G103)>2," "&VLOOKUP(MID(G103,3,1),Morse!$A$2:$B$37,2,FALSE),"")&IF(LEN(G103)>3," "&VLOOKUP(MID(G103,4,1),Morse!$A$2:$B$37,2,FALSE),"") -> − − · · · · − − ·
A104: 103 | B104: Lima | C104: NDB | D104: 0 | E104: 0 | F104: 3 | G104: LMA | J104: 311 | K104: 51 | L104: 22 | M104: 15 | N104: N | O104: 6 | P104: 23 | Q104: 42 | R104: E | S104: 15 | T104: 51.3708 | U104: 6.395 | V104: 51.3708 | W104: 6.3950 | Y104: 311 | Z104: =VLOOKUP(MID(G104,1,1),Morse!$A$2:$B$37,2,FALSE)&" "&VLOOKUP(MID(G104,2,1),Morse!$A$2:$B$37,2,FALSE)&IF(LEN(G104)>2," "&VLOOKUP(MID(G104,3,1),Morse!$A$2:$B$37,2,FALSE),"")&IF(LEN(G104)>3," "&VLOOKUP(MID(G104,4,1),Morse!$A$2:$B$37,2,FALSE),"") -> · − · · − − · −
A105: 104 | B105: Loewenberg | C105: DVOR/DME | D105: 1 | E105: 1 | F105: 0 | G105: LWB | H105: 114.55 | I105: 92y | K105: 52 | L105: 54 | M105: 36 | N105: N | O105: 13 | P105: 8 | Q105: 5 | R105: E | S105: 80 | T105: 52.91 | U105: 13.1347 | V105: 52.9100 | W105: 13.1347 | X105: 114.55 | Z105: =VLOOKUP(MID(G105,1,1),Morse!$A$2:$B$37,2,FALSE)&" "&VLOOKUP(MID(G105,2,1),Morse!$A$2:$B$37,2,FALSE)&IF(LEN(G105)>2," "&VLOOKUP(MID(G105,3,1),Morse!$A$2:$B$37,2,FALSE),"")&IF(LEN(G105)>3," "&VLOOKUP(MID(G105,4,1),Morse!$A$2:$B$37,2,FALSE),"") -> · − · · · − − − · · · | AA105: Ch 92y
A106: 105 | B106: Luburg | C106: VOR/DME | D106: 1 | E106: 1 | F106: 0 | G106: LBU | H106: 109.2 | I106: 29x | K106: 48 | L106: 54 | M106: 47 | N106: N | O106: 9 | P106: 20 | Q106: 25 | R106: E | S106: 40 | T106: 48.9131 | U106: 9.3403 | V106: 48.9131 | W106: 9.3403 | X106: 109.20 | Z106: =VLOOKUP(MID(G106,1,1),Morse!$A$2:$B$37,2,FALSE)&" "&VLOOKUP(MID(G106,2,1),Morse!$A$2:$B$37,2,FALSE)&IF(LEN(G106)>2," "&VLOOKUP(MID(G106,3,1),Morse!$A$2:$B$37,2,FALSE),"")&IF(LEN(G106)>3," "&VLOOKUP(MID(G106,4,1),Morse!$A$2:$B$37,2,FALSE),"") -> · − · · − · · · · · − | AA106: Ch 29x
A107: 106 | B107: Luebars | C107: NDB | D107: 0 | E107: 0 | F107: 1 | G107: DLS | J107: 413.5 | K107: 52 | L107: 36 | M107: 50 | N107: N | O107: 13 | P107: 21 | Q107: 49 | R107: E | S107: 0 | T107: 52.6139 | U107: 13.3636 | V107: 52.6139 | W107: 13.3636 | Y107: 413.5 | Z107: =VLOOKUP(MID(G107,1,1),Morse!$A$2:$B$37,2,FALSE)&" "&VLOOKUP(MID(G107,2,1),Morse!$A$2:$B$37,2,FALSE)&IF(LEN(G107)>2," "&VLOOKUP(MID(G107,3,1),Morse!$A$2:$B$37,2,FALSE),"")&IF(LEN(G107)>3," "&VLOOKUP(MID(G107,4,1),Morse!$A$2:$B$37,2,FALSE),"") -> − · · · − · · · · ·
A108: 107 | B108: Luebeck-Blankensee | C108: LO | D108: 0 | E108: 0 | F108: 1 | G108: LYE | J108: 394 | K108: 53 | L108: 48 | M108: 3 | N108: N | O108: 10 | P108: 41 | Q108: 45 | R108: E | S108: 15 | T108: 53.8008 | U108: 10.6958 | V108: 53.8008 | W108: 10.6958 | Y108: 394 | Z108: =VLOOKUP(MID(G108,1,1),Morse!$A$2:$B$37,2,FALSE)&" "&VLOOKUP(MID(G108,2,1),Morse!$A$2:$B$37,2,FALSE)&IF(LEN(G108)>2," "&VLOOKUP(MID(G108,3,1),Morse!$A$2:$B$37,2,FALSE),"")&IF(LEN(G108)>3," "&VLOOKUP(MID(G108,4,1),Morse!$A$2:$B$37,2,FALSE),"") -> · − · · − · − − ·
A109: 108 | B109: Luebeck-Blankensee | C109: DME | D109: 1 | E109: 1 | F109: 0 | G109: ILUE | H109: 109.35 | I109: 30y | K109: 53 | L109: 48 | M109: 23 | N109: N | O109: 10 | P109: 43 | Q109: 7 | R109: E | S109: 25 | T109: 53.8064 | U109: 10.7186 | V109: 53.8064 | W109: 10.7186 | X109: 109.35 | Z109: =VLOOKUP(MID(G109,1,1),Morse!$A$2:$B$37,2,FALSE)&" "&VLOOKUP(MID(G109,2,1),Morse!$A$2:$B$37,2,FALSE)&IF(LEN(G109)>2," "&VLOOKUP(MID(G109,3,1),Morse!$A$2:$B$37,2,FALSE),"")&IF(LEN(G109)>3," "&VLOOKUP(MID(G109,4,1),Morse!$A$2:$B$37,2,FALSE),"") -> · · · − · · · · − · | AA109: Ch 30y
A110: 109 | B110: Magdeburg | C110: VOR/DME | D110: 1 | E110: 1 | F110: 0 | G110: MAG | H110: 110.45 | I110: 41y | K110: 51 | L110: 59 | M110: 42 | N110: N | O110: 11 | P110: 47 | Q110: 40 | R110: E | S110: 80 | T110: 51.995 | U110: 11.7944 | V110: 51.9950 | W110: 11.7944 | X110: 110.45 | Z110: =VLOOKUP(MID(G110,1,1),Morse!$A$2:$B$37,2,FALSE)&" "&VLOOKUP(MID(G110,2,1),Morse!$A$2:$B$37,2,FALSE)&IF(LEN(G110)>2," "&VLOOKUP(MID(G110,3,1),Morse!$A$2:$B$37,2,FALSE),"")&IF(LEN(G110)>3," "&VLOOKUP(MID(G110,4,1),Morse!$A$2:$B$37,2,FALSE),"") -> − − · − − − · | AA110: Ch 41y
A111: 110 | B111: Maisach | C111: DVOR/DME | D111: 2 | E111: 2 | F111: 0 | G111: MAH | H111: 115.2 | I111: 99x | K111: 48 | L111: 15 | M111: 48 | N111: N | O111: 11 | P111: 18 | Q111: 43 | R111: E | S111: 40 | T111: 48.2633 | U111: 11.3119 | V111: 48.2633 | W111: 11.3119 | X111: 115.20 | Z111: =VLOOKUP(MID(G111,1,1),Morse!$A$2:$B$37,2,FALSE)&" "&VLOOKUP(MID(G111,2,1),Morse!$A$2:$B$37,2,FALSE)&IF(LEN(G111)>2," "&VLOOKUP(MID(G111,3,1),Morse!$A$2:$B$37,2,FALSE),"")&IF(LEN(G111)>3," "&VLOOKUP(MID(G111,4,1),Morse!$A$2:$B$37,2,FALSE),"") -> − − · − · · · · | AA111: Ch 99x
A112: 111 | B112: Mannheim | C112: DME | D112: 1 | E112: 1 | F112: 0 | G112: MND | H112: 113.55 | I112: 82y () | K112: 49 | L112: 28 | M112: 14 | N112: N | O112: 8 | P112: 30 | Q112: 58 | R112: E | S112: 15 | T112: 49.4706 | U112: 8.5161 | V112: 49.4706 | W112: 8.5161 | X112: 113.55 | Z112: =VLOOKUP(MID(G112,1,1),Morse!$A$2:$B$37,2,FALSE)&" "&VLOOKUP(MID(G112,2,1),Morse!$A$2:$B$37,2,FALSE)&IF(LEN(G112)>2," "&VLOOKUP(MID(G112,3,1),Morse!$A$2:$B$37,2,FALSE),"")&IF(LEN(G112)>3," "&VLOOKUP(MID(G112,4,1),Morse!$A$2:$B$37,2,FALSE),"") -> − − − · − · · | AA112: Ch 82y ()
A113: 112 | B113: Metro | C113: VOR | D113: 1 | E113: 0 | F113: 0 | G113: MTR | H113: 110 | K113: 50 | L113: 16 | M113: 35 | N113: N | O113: 8 | P113: 50 | Q113: 55 | R113: E | S113: 60 | T113: 50.2764 | U113: 8.8486 | V113: 50.2764 | W113: 8.8486 | X113: 110.00 | Z113: =VLOOKUP(MID(G113,1,1),Morse!$A$2:$B$37,2,FALSE)&" "&VLOOKUP(MID(G113,2,1),Morse!$A$2:$B$37,2,FALSE)&IF(LEN(G113)>2," "&VLOOKUP(MID(G113,3,1),Morse!$A$2:$B$37,2,FALSE),"")&IF(LEN(G113)>3," "&VLOOKUP(MID(G113,4,1),Morse!$A$2:$B$37,2,FALSE),"") -> − − − · − ·
A114: 113 | B114: Michaelsdorf | C114: DVOR | D114: 2 | E114: 0 | F114: 0 | G114: MIC | H114: 112.2 | K114: 54 | L114: 18 | M114: 20 | N114: N | O114: 11 | P114: 0 | Q114: 19 | R114: E | S114: 60 | T114: 54.3056 | U114: 11.0053 | V114: 54.3056 | W114: 11.0053 | X114: 112.20 | Z114: =VLOOKUP(MID(G114,1,1),Morse!$A$2:$B$37,2,FALSE)&" "&VLOOKUP(MID(G114,2,1),Morse!$A$2:$B$37,2,FALSE)&IF(LEN(G114)>2," "&VLOOKUP(MID(G114,3,1),Morse!$A$2:$B$37,2,FALSE),"")&IF(LEN(G114)>3," "&VLOOKUP(MID(G114,4,1),Morse!$A$2:$B$37,2,FALSE),"") -> − − · · − · − ·
A115: 114 | B115: Mike | C115: NDB | D115: 0 | E115: 0 | F115: 1 | G115: MIQ | J115: 426 | K115: 48 | L115: 34 | M115: 13 | N115: N | O115: 11 | P115: 35 | Q115: 51 | R115: E | S115: 24 | T115: 48.5703 | U115: 11.5975 | V115: 48.5703 | W115: 11.5975 | Y115: 426 | Z115: =VLOOKUP(MID(G115,1,1),Morse!$A$2:$B$37,2,FALSE)&" "&VLOOKUP(MID(G115,2,1),Morse!$A$2:$B$37,2,FALSE)&IF(LEN(G115)>2," "&VLOOKUP(MID(G115,3,1),Morse!$A$2:$B$37,2,FALSE),"")&IF(LEN(G115)>3," "&VLOOKUP(MID(G115,4,1),Morse!$A$2:$B$37,2,FALSE),"") -> − − · · − − · −
A116: 115 | B116: Moenchengladbach | C116: DVOR | D116: 1 | E116: 0 | F116: 0 | G116: MHV | H116: 109.8 | K116: 51 | L116: 14 | M116: 14 | N116: N | O116: 6 | P116: 29 | Q116: 25 | R116: E | S116: 40 | T116: 51.2372 | U116: 6.4903 | V116: 51.2372 | W116: 6.4903 | X116: 109.80 | Z116: =VLOOKUP(MID(G116,1,1),Morse!$A$2:$B$37,2,FALSE)&" "&VLOOKUP(MID(G116,2,1),Morse!$A$2:$B$37,2,FALSE)&IF(LEN(G116)>2," "&VLOOKUP(MID(G116,3,1),Morse!$A$2:$B$37,2,FALSE),"")&IF(LEN(G116)>3," "&VLOOKUP(MID(G116,4,1),Morse!$A$2:$B$37,2,FALSE),"") -> − − · · · · · · · −
A117: 116 | B117: Moenchengladbach | C117: DME | D117: 1 | E117: 1 | F117: 0 | G117: MHD | H117: 112.5 | I117: 72x (*) | K117: 51 | L117: 14 | M117: 6 | N117: N | O117: 6 | P117: 29 | Q117: 31 | R117: E | S117: 25 | T117: 51.235 | U117: 6.4919 | V117: 51.2350 | W117: 6.4919 | X117: 112.50 | Z117: =VLOOKUP(MID(G117,1,1),Morse!$A$2:$B$37,2,FALSE)&" "&VLOOKUP(MID(G117,2,1),Morse!$A$2:$B$37,2,FALSE)&IF(LEN(G117)>2," "&VLOOKUP(MID(G117,3,1),Morse!$A$2:$B$37,2,FALSE),"")&IF(LEN(G117)>3," "&VLOOKUP(MID(G117,4,1),Morse!$A$2:$B$37,2,FALSE),"") -> − − · · · · − · · | AA117: Ch 72x (*)
A118: 117 | B118: Muenchen | C118: DME | D118: 1 | E118: 1 | F118: 0 | G118: DMN | H118: 116 | I118: 107x (*) | K118: 48 | L118: 22 | M118: 1 | N118: N | O118: 11 | P118: 47 | Q118: 38 | R118: E | S118: 25 | T118: 48.3669 | U118: 11.7939 | V118: 48.3669 | W118: 11.7939 | X118: 116.00 | Z118: =VLOOKUP(MID(G118,1,1),Morse!$A$2:$B$37,2,FALSE)&" "&VLOOKUP(MID(G118,2,1),Morse!$A$2:$B$37,2,FALSE)&IF(LEN(G118)>2," "&VLOOKUP(MID(G118,3,1),Morse!$A$2:$B$37,2,FALSE),"")&IF(LEN(G118)>3," "&VLOOKUP(MID(G118,4,1),Morse!$A$2:$B$37,2,FALSE),"") -> − · · − − − · | AA118: Ch 107x (*)
A119: 118 | B119: Muenchen | C119: DME | D119: 1 | E119: 1 | F119: 0 | G119: DMS | H119: 115 | I119: 97x (*) | K119: 48 | L119: 20 | M119: 26 | N119: N | O119: 11 | P119: 46 | Q119: 41 | R119: E | S119: 25 | T119: 48.3406 | U119: 11.7781 | V119: 48.3406 | W119: 11.7781 | X119: 115.00 | Z119: =VLOOKUP(MID(G119,1,1),Morse!$A$2:$B$37,2,FALSE)&" "&VLOOKUP(MID(G119,2,1),Morse!$A$2:$B$37,2,FALSE)&IF(LEN(G119)>2," "&VLOOKUP(MID(G119,3,1),Morse!$A$2:$B$37,2,FALSE),"")&IF(LEN(G119)>3," "&VLOOKUP(MID(G119,4,1),Morse!$A$2:$B$37,2,FALSE),"") -> − · · − − · · · | AA119: Ch 97x (*)
A120: 119 | B120: Muenchen | C120: VOR/DME | D120: 2 | E120: 2 | F120: 0 | G120: MUN | H120: 112.3 | I120: 70x | K120: 48 | L120: 10 | M120: 49 | N120: N | O120: 11 | P120: 48 | Q120: 58 | R120: E | S120: 40 | T120: 48.1803 | U120: 11.8161 | V120: 48.1803 | W120: 11.8161 | X120: 112.30 | Z120: =VLOOKUP(MID(G120,1,1),Morse!$A$2:$B$37,2,FALSE)&" "&VLOOKUP(MID(G120,2,1),Morse!$A$2:$B$37,2,FALSE)&IF(LEN(G120)>2," "&VLOOKUP(MID(G120,3,1),Morse!$A$2:$B$37,2,FALSE),"")&IF(LEN(G120)>3," "&VLOOKUP(MID(G120,4,1),Morse!$A$2:$B$37,2,FALSE),"") -> − − · · − − · | AA120: Ch 70x
A121: 120 | B121: Muenchen | C121: LO | D121: 0 | E121: 0 | F121: 1 | G121: MNE | J121: 369 | K121: 48 | L121: 21 | M121: 19 | N121: N | O121: 11 | P121: 40 | Q121: 34 | R121: E | S121: 22 | T121: 48.3553 | U121: 11.6761 | V121: 48.3553 | W121: 11.6761 | Y121: 369 | Z121: =VLOOKUP(MID(G121,1,1),Morse!$A$2:$B$37,2,FALSE)&" "&VLOOKUP(MID(G121,2,1),Morse!$A$2:$B$37,2,FALSE)&IF(LEN(G121)>2," "&VLOOKUP(MID(G121,3,1),Morse!$A$2:$B$37,2,FALSE),"")&IF(LEN(G121)>3," "&VLOOKUP(MID(G121,4,1),Morse!$A$2:$B$37,2,FALSE),"") -> − − − · ·
